Workbook

Sheet 分析
D1: =FIND(" ",A5) -> 13 | I1: 重庆一 | K1: =COUNTA(A:A) -> 1901 | AP1: =199-COUNTBLANK(#REF!)+13 -> 
A2: 201806270832 05530 | C2: =IF(E2>=0,MID(OFFSET($A$1,E2,),3,D$1-3),"") -> 1806241119 | D2: =IF(E2>=0,MID(OFFSET($A$1,E2,),D$1+1,5),"") -> 44924 | E2: =E3+1 -> 1002 | F2: 1002 | G2: =IF(E2>=0,MID(OFFSET($A$1,F2,),3,D$1-3),"") -> 1806241119 | H2: =IF(E2>=0,MID(OFFSET($A$1,F2,),D$1+1,5),"") -> 44924 | J2: 开奖号
A3: 201806270831 85145 | C3: 1806241120 | D3: 99998 | E3: 1001 | F3: 1001 | G3: 1806241120 | H3: 99998
A4: 201806270830 95876 | C4: 1806241121 | D4: 45834 | E4: 1000 | F4: 1000 | G4: 1806241121 | H4: 45834
A5: 201806270829 26861 | C5: 1806241122 | D5: 02609 | E5: 999 | F5: 999 | G5: 1806241122 | H5: 02609
A6: 201806270828 93366 | C6: 1806241123 | D6: 04665 | E6: 998 | F6: 998 | G6: 1806241123 | H6: 04665
A7: 201806270827 29861 | C7: 1806241124 | D7: 35722 | E7: 997 | F7: 997 | G7: 1806241124 | H7: 35722 | S7: 1
A8: 201806270826 90830 | C8: 1806241125 | D8: 93038 | E8: 996 | F8: 996 | G8: 1806241125 | H8: 93038 | S8: 10
A9: 201806270825 34158 | C9: 1806241126 | D9: 71408 | E9: 995 | F9: 995 | G9: 1806241126 | H9: 71408
A10: 201806270824 46698 | C10: 1806241127 | D10: 76208 | E10: 994 | F10: 994 | G10: 1806241127 | H10: 76208
A11: 201806270823 14455 | C11: 1806241128 | D11: 74661 | E11: 993 | F11: 993 | G11: 1806241128 | H11: 74661 | L11: 万 | M11: 千 | N11: 百 | O11: 十 | P11: 个 | T11: 1 | U11: 2 | V11: 3
A12: 201806270822 50312 | C12: 1806241129 | D12: 78229 | E12: 992 | F12: 992 | G12: 1806241129 | H12: 78229 | I12: 20180625093 | J12: 43060 | T12: 胆 | W12: 对码 | Z12: 九 | AC12: 补 | AG12: 胆对九 | AH12: 胆对补 | AI12: 胆九补 | AJ12: 对九补 | AK12: 定 胆对九 | AL12: 定 胆对补 | AM12: 定 胆九补 | AN12: 定 对九补
A13: 201806270821 92987 | C13: 1806241130 | D13: 06027 | E13: 991 | F13: 991 | G13: 1806241130 | H13: 06027 | I13: 20180625094 | J13: 15673 | K13: =IF(J13="","",TEXT(J13,"00000")) -> 15673 | L13: =MID($K13,1,1) -> 1 | M13: =MID(K13,2,1) -> 5 | N13: =MID(K13,3,1) -> 6 | O13: =MID(K13,4,1) -> 7 | P13: =MID(K13,5,1) -> 3
A14: 201806270820 35770 | C14: 1806241131 | D14: 44727 | E14: 990 | F14: 990 | G14: 1806241131 | H14: 44727 | I14: 20180625095 | J14: 92383 | K14: 92383 | L14: 9 | M14: 2 | N14: 3 | O14: 8 | P14: 3 | R14: =IF(R$213="胆码",MID($K14,MID(S$213,1,1),1)&MID($K14,MID(S$213,2,1),1)&MID($K14,MID(S$213,3,1),1),IF(R$213="任合",RIGHT(MID($K14,MID(S$213,1,1),1)+MID($K14,MID(S$213,2,1),1))&RIGHT(MID($K14,MID(S$213,1,1),1)+MID($K14,MID(S$213,3,1),1))&RIGHT(MID($K14,MID(S$213,2,1),1)+MID($K14,MID(S$213,3,1),1)),IF(R$213="任差",RIGHT(MID($K14,MID(S$213,1,1),1)-MID($K14,MID(S$213,2,1),1))&RIGHT(MID($K14,MID(S$213,1,1),1)-MID($K14,MID(S$213,3,1),1))&RIGHT(MID($K14,MID(S$213,2,1),1)-MID($K14,MID(S$213,3,1),1)),IF(R$213="任积",RIGHT(MID($K14,MID(S$213,1,1),1)*MID($K14,MID(S$213,2,1),1))&RIGHT(MID($K14,MID(S$213,1,1),1)*MID($K14,MID(S$213,3,1),1))&RIGHT(MID($K14,MID(S$213,2,1),1)*MID($K14,MID(S$213,3,1),1)),IF(R$213="位合",RIGHT(MID($K14,MID(S$213,1,1),1)+MID($K13,MID(S$213,1,1),1))&RIGHT(MID($K14,MID(S$213,2,1),1)+MID($K13,MID(S$213,2,1),1))&RIGHT(MID($K14,MID(S$213,3,1),1)+MID($K13,MID(S$213,3,1),1)),IF(R$213="位差",RIGHT(MID($K14,MID(S$213,1,1),1)-MID($K13,MID(S$213,1,1),1))&RIGHT(MID($K14,MID(S$213,2,1),1)-MID($K13,MID(S$213,2,1),1))&RIGHT(MID($K14,MID(S$213,3,1),1)-MID($K13,MID(S$213,3,1),1)),IF(R$213="位积",RIGHT(MID($K14,MID(S$213,1,1),1)*MID($K13,MID(S$213,1,1),1))&RIGHT(MID($K14,MID(S$213,2,1),1)*MID($K13,MID(S$213,2,1),1))&RIGHT(MID($K14,MID(S$213,3,1),1)*MID($K13,MID(S$213,3,1),1))))))))) -> 383 | S14: =R14 -> 383 | T14: =MID($S14,MID(T$11,1,1),1) -> 3 | U14: =MID($S14,MID(U$11,1,1),1) -> 8 | V14: 3 | W14: =RIGHT(T14+5) -> 8 | X14: =RIGHT(U14+5) -> 3 | Y14: 8 | Z14: =RIGHT(9-T14) -> 6 | AA14: =RIGHT(9-U14) -> 1 | AB14: 6 | AC14: =RIGHT(10-T14) -> 7 | AD14: =RIGHT(10-U14) -> 2 | AE14: 7 | AG14: =T14&U14&V14&W14&X14&Y14&Z14&AA14&AB14 -> 383838616 | AH14: =T14&U14&V14&W14&X14&Y14&AC14&AD14&AE14 -> 383838727 | AI14: =T14&U14&V14&Z14&AA14&AB14&AC14&AD14&AE14 -> 383616727 | AJ14: =W14&X14&Y14&Z14&AA14&AB14&AC14&AD14&AE14 -> 838616727 | AK14: =T14&W14&Z14&"-"&U14&X14&AA14&"-"&V14&Y14&AB14 -> 386-831-386 | AL14: =T14&W14&AC14&"-"&U14&X14&AD14&"-"&V14&Y14&AE14 -> 387-832-387 | AM14: =T14&Z14&AC14&"-"&U14&AA14&AD14&"-"&V14&AB14&AE14 -> 367-812-367 | AN14: =W14&Z14&AC14&"-"&X14&AA14&AD14&"-"&Y14&AB14&AE14 -> 867-312-867
A15: 201806270819 15847 | C15: 1806241132 | D15: 87188 | E15: 989 | F15: 989 | G15: 1806241132 | H15: 87188 | I15: 20180625096 | J15: 21200 | K15: 21200 | L15: 2 | M15: 1 | N15: 2 | O15: 0 | P15: 0 | R15: 200 | S15: 200 | T15: =MID($S15,MID(T$11,1,1),1) -> 2 | U15: 0 | V15: 0 | W15: =RIGHT(T15+5) -> 7 | X15: =RIGHT(U15+5) -> 5 | Y15: =RIGHT(V15+5) -> 5 | Z15: =RIGHT(9-T15) -> 7 | AA15: =RIGHT(9-U15) -> 9 | AB15: =RIGHT(9-V15) -> 9 | AC15: =RIGHT(10-T15) -> 8 | AD15: =RIGHT(10-U15) -> 0 | AE15: =RIGHT(10-V15) -> 0 | AG15: =T15&U15&V15&W15&X15&Y15&Z15&AA15&AB15 -> 200755799 | AH15: =T15&U15&V15&W15&X15&Y15&AC15&AD15&AE15 -> 200755800 | AI15: =T15&U15&V15&Z15&AA15&AB15&AC15&AD15&AE15 -> 200799800 | AJ15: =W15&X15&Y15&Z15&AA15&AB15&AC15&AD15&AE15 -> 755799800 | AK15: =T15&W15&Z15&"-"&U15&X15&AA15&"-"&V15&Y15&AB15 -> 277-059-059 | AL15: =T15&W15&AC15&"-"&U15&X15&AD15&"-"&V15&Y15&AE15 -> 278-050-050 | AM15: =T15&Z15&AC15&"-"&U15&AA15&AD15&"-"&V15&AB15&AE15 -> 278-090-090 | AN15: =W15&Z15&AC15&"-"&X15&AA15&AD15&"-"&Y15&AB15&AE15 -> 778-590-590
A16: 201806270818 73150 | C16: 1806241133 | D16: 07028 | E16: 988 | F16: 988 | G16: 1806241133 | H16: 07028 | I16: 20180625097 | J16: 44459 | K16: 44459 | L16: 4 | M16: 4 | N16: 4 | O16: 5 | P16: 9 | R16: 459 | S16: 459 | T16: 4 | U16: 5 | V16: 9 | W16: 9 | X16: 0 | Y16: 4 | Z16: 5 | AA16: 4 | AB16: 0 | AC16: 6 | AD16: 5 | AE16: 1 | AG16: 459904540 | AH16: 459904651 | AI16: 459540651 | AJ16: 904540651 | AK16: 495-504-940 | AL16: 496-505-941 | AM16: 456-545-901 | AN16: 956-045-401
A17: 201806270817 68674 | C17: 1806241134 | D17: 72635 | E17: 987 | F17: 987 | G17: 1806241134 | H17: 72635 | I17: 20180625098 | J17: 91410 | K17: 91410 | L17: 9 | M17: 1 | N17: 4 | O17: 1 | P17: 0 | R17: 410 | S17: 410 | T17: 4 | U17: 1 | V17: 0 | W17: 9 | X17: 6 | Y17: 5 | Z17: 5 | AA17: 8 | AB17: 9 | AC17: 6 | AD17: 9 | AE17: 0 | AG17: 410965589 | AH17: 410965690 | AI17: 410589690 | AJ17: 965589690 | AK17: 495-168-059 | AL17: 496-169-050 | AM17: 456-189-090 | AN17: 956-689-590
A18: 201806270816 83245 | C18: 1806241135 | D18: 04056 | E18: 986 | F18: 986 | G18: 1806241135 | H18: 04056 | I18: 20180625099 | J18: 59605 | K18: 59605 | L18: 5 | M18: 9 | N18: 6 | O18: 0 | P18: 5 | R18: 605 | S18: 605 | T18: 6 | U18: 0 | V18: 5 | W18: 1 | X18: 5 | Y18: 0 | Z18: 3 | AA18: 9 | AB18: 4 | AC18: 4 | AD18: 0 | AE18: 5 | AG18: =T18&U18&V18&W18&X18&Y18&Z18&AA18&AB18 -> 605150394 | AH18: =T18&U18&V18&W18&X18&Y18&AC18&AD18&AE18 -> 605150405 | AI18: =T18&U18&V18&Z18&AA18&AB18&AC18&AD18&AE18 -> 605394405 | AJ18: =W18&X18&Y18&Z18&AA18&AB18&AC18&AD18&AE18 -> 150394405 | AK18: 613-059-504 | AL18: 614-050-505 | AM18: 634-090-545 | AN18: 134-590-045
A19: 201806270815 99908 | C19: 1806241136 | D19: 33836 | E19: 985 | F19: 985 | G19: 1806241136 | H19: 33836 | I19: 20180625100 | J19: 21456 | K19: 21456 | L19: 2 | M19: 1 | N19: 4 | O19: 5 | P19: 6 | R19: 456 | S19: 456 | T19: 4 | U19: 5 | V19: 6 | W19: 9 | X19: 0 | Y19: 1 | Z19: 5 | AA19: 4 | AB19: 3 | AC19: 6 | AD19: 5 | AE19: 4 | AG19: 456901543 | AH19: 456901654 | AI19: 456543654 | AJ19: 901543654 | AK19: 495-504-613 | AL19: 496-505-614 | AM19: 456-545-634 | AN19: 956-045-134
A20: 201806270814 52094 | C20: 1806241137 | D20: 77703 | E20: 984 | F20: 984 | G20: 1806241137 | H20: 77703 | I20: 20180625101 | J20: 18708 | K20: 18708 | L20: 1 | M20: 8 | N20: 7 | O20: 0 | P20: 8 | R20: 708 | S20: 708 | T20: 7 | U20: 0 | V20: 8 | W20: 2 | X20: 5 | Y20: 3 | Z20: 2 | AA20: 9 | AB20: 1 | AC20: 3 | AD20: 0 | AE20: 2 | AG20: 708253291 | AH20: 708253302 | AI20: 708291302 | AJ20: 253291302 | AK20: 722-059-831 | AL20: 723-050-832 | AM20: 723-090-812 | AN20: 223-590-312
A21: 201806270813 01775 | C21: 1806241138 | D21: 05664 | E21: 983 | F21: 983 | G21: 1806241138 | H21: 05664 | I21: 20180625102 | J21: 22635 | K21: 22635 | L21: 2 | M21: 2 | N21: 6 | O21: 3 | P21: 5 | R21: 635 | S21: 635 | T21: 6 | U21: 3 | V21: 5 | W21: 1 | X21: 8 | Y21: 0 | Z21: 3 | AA21: 6 | AB21: 4 | AC21: 4 | AD21: 7 | AE21: 5 | AG21: 635180364 | AH21: 635180475 | AI21: 635364475 | AJ21: 180364475 | AK21: 613-386-504 | AL21: 614-387-505 | AM21: 634-367-545 | AN21: 134-867-045
A22: 201806270812 14326 | C22: 1806241139 | D22: 19639 | E22: 982 | F22: 982 | G22: 1806241139 | H22: 19639 | I22: 20180625103 | J22: 62504 | K22: 62504 | L22: 6 | M22: 2 | N22: 5 | O22: 0 | P22: 4 | R22: 504 | S22: 504 | T22: 5 | U22: 0 | V22: 4 | W22: 0 | X22: 5 | Y22: 9 | Z22: 4 | AA22: 9 | AB22: 5 | AC22: 5 | AD22: 0 | AE22: 6 | AG22: 504059495 | AH22: 504059506 | AI22: 504495506 | AJ22: 059495506 | AK22: 504-059-495 | AL22: 505-050-496 | AM22: 545-090-456 | AN22: 045-590-956
A23: 201806270811 17567 | C23: 1806241140 | D23: 70257 | E23: 981 | F23: 981 | G23: 1806241140 | H23: 70257 | I23: 20180625104 | J23: 54184 | K23: 54184 | L23: 5 | M23: 4 | N23: 1 | O23: 8 | P23: 4 | R23: 184 | S23: 184 | T23: 1 | U23: 8 | V23: 4 | W23: 6 | X23: 3 | Y23: 9 | Z23: 8 | AA23: 1 | AB23: 5 | AC23: 9 | AD23: 2 | AE23: 6 | AG23: 184639815 | AH23: 184639926 | AI23: 184815926 | AJ23: 639815926 | AK23: 168-831-495 | AL23: 169-832-496 | AM23: 189-812-456 | AN23: 689-312-956
A24: 201806270810 85344 | C24: 1806241141 | D24: 76019 | E24: 980 | F24: 980 | G24: 1806241141 | H24: 76019 | I24: 20180625105 | J24: 5073 | K24: 05073 | L24: 0 | M24: 5 | N24: 0 | O24: 7 | P24: 3 | R24: 073 | S24: 073 | T24: 0 | U24: 7 | V24: 3 | W24: 5 | X24: 2 | Y24: 8 | Z24: 9 | AA24: 2 | AB24: 6 | AC24: 0 | AD24: 3 | AE24: 7 | AG24: 073528926 | AH24: 073528037 | AI24: 073926037 | AJ24: 528926037 | AK24: 059-722-386 | AL24: 050-723-387 | AM24: 090-723-367 | AN24: 590-223-867
A25: 201806270809 06109 | C25: 1806241142 | D25: 94734 | E25: 979 | F25: 979 | G25: 1806241142 | H25: 94734 | I25: 20180625106 | J25: 9719 | K25: 09719 | L25: 0 | M25: 9 | N25: 7 | O25: 1 | P25: 9 | R25: 719 | S25: 719 | T25: 7 | U25: 1 | V25: 9 | W25: 2 | X25: 6 | Y25: 4 | Z25: 2 | AA25: 8 | AB25: 0 | AC25: 3 | AD25: 9 | AE25: 1 | AG25: 719264280 | AH25: 719264391 | AI25: 719280391 | AJ25: 264280391 | AK25: 722-168-940 | AL25: 723-169-941 | AM25: 723-189-901 | AN25: 223-689-401
A26: 201806270808 93969 | C26: 1806241143 | D26: 36114 | E26: 978 | F26: 978 | G26: 1806241143 | H26: 36114 | I26: 20180625107 | J26: 3411 | K26: 03411 | L26: 0 | M26: 3 | N26: 4 | O26: 1 | P26: 1 | R26: 411 | S26: 411 | T26: 4 | U26: 1 | V26: 1 | W26: 9 | X26: 6 | Y26: 6 | Z26: 5 | AA26: 8 | AB26: 8 | AC26: 6 | AD26: 9 | AE26: 9 | AG26: 411966588 | AH26: 411966699 | AI26: 411588699 | AJ26: 966588699 | AK26: 495-168-168 | AL26: 496-169-169 | AM26: 456-189-189 | AN26: 956-689-689
A27: 201806270807 46637 | C27: 1806241144 | D27: 87218 | E27: 977 | F27: 977 | G27: 1806241144 | H27: 87218 | I27: 20180625108 | J27: 22188 | K27: 22188 | L27: 2 | M27: 2 | N27: 1 | O27: 8 | P27: 8 | R27: 188 | S27: 188 | T27: 1 | U27: 8 | V27: 8 | W27: 6 | X27: 3 | Y27: 3 | Z27: 8 | AA27: 1 | AB27: 1 | AC27: 9 | AD27: 2 | AE27: 2 | AG27: 188633811 | AH27: 188633922 | AI27: 188811922 | AJ27: 633811922 | AK27: 168-831-831 | AL27: 169-832-832 | AM27: 189-812-812 | AN27: 689-312-312
A28: 201806270806 52209 | C28: 1806241145 | D28: 29951 | E28: 976 | F28: 976 | G28: 1806241145 | H28: 29951 | I28: 20180625109 | J28: 23060 | K28: 23060 | L28: 2 | M28: 3 | N28: 0 | O28: 6 | P28: 0 | R28: 060 | S28: 060 | T28: 0 | U28: 6 | V28: 0 | W28: 5 | X28: 1 | Y28: 5 | Z28: 9 | AA28: 3 | AB28: 9 | AC28: 0 | AD28: 4 | AE28: 0 | AG28: 060515939 | AH28: 060515040 | AI28: 060939040 | AJ28: 515939040 | AK28: 059-613-059 | AL28: 050-614-050 | AM28: 090-634-090 | AN28: 590-134-590
A29: 201806270805 77294 | C29: 1806241146 | D29: 34246 | E29: 975 | F29: 975 | G29: 1806241146 | H29: 34246 | I29: 20180625110 | J29: 77436 | K29: 77436 | L29: 7 | M29: 7 | N29: 4 | O29: 3 | P29: 6 | R29: 436 | S29: 436 | T29: 4 | U29: 3 | V29: 6 | W29: 9 | X29: 8 | Y29: 1 | Z29: 5 | AA29: 6 | AB29: 3 | AC29: 6 | AD29: 7 | AE29: 4 | AG29: 436981563 | AH29: 436981674 | AI29: 436563674 | AJ29: 981563674 | AK29: 495-386-613 | AL29: 496-387-614 | AM29: 456-367-634 | AN29: 956-867-134
A30: 201806270804 58144 | C30: 1806241147 | D30: 35092 | E30: 974 | F30: 974 | G30: 1806241147 | H30: 35092 | I30: 20180625111 | J30: 11174 | K30: 11174 | L30: 1 | M30: 1 | N30: 1 | O30: 7 | P30: 4 | R30: 174 | S30: 174 | T30: 1 | U30: 7 | V30: 4 | W30: 6 | X30: 2 | Y30: 9 | Z30: 8 | AA30: 2 | AB30: 5 | AC30: 9 | AD30: 3 | AE30: 6 | AG30: 174629825 | AH30: 174629936 | AI30: 174825936 | AJ30: 629825936 | AK30: 168-722-495 | AL30: 169-723-496 | AM30: 189-723-456 | AN30: 689-223-956
A31: 201806270803 62137 | C31: 1806241148 | D31: 46441 | E31: 973 | F31: 973 | G31: 1806241148 | H31: 46441 | I31: 20180625112 | J31: 69914 | K31: 69914 | L31: 6 | M31: 9 | N31: 9 | O31: 1 | P31: 4 | R31: 914 | S31: 914 | T31: 9 | U31: 1 | V31: 4 | W31: 4 | X31: 6 | Y31: 9 | Z31: 0 | AA31: 8 | AB31: 5 | AC31: 1 | AD31: 9 | AE31: 6 | AG31: 914469085 | AH31: 914469196 | AI31: 914085196 | AJ31: 469085196 | AK31: 940-168-495 | AL31: 941-169-496 | AM31: 901-189-456 | AN31: 401-689-956
A32: 201806270802 28633 | C32: 1806241149 | D32: 67765 | E32: 972 | F32: 972 | G32: 1806241149 | H32: 67765 | I32: 20180625113 | J32: 25548 | K32: 25548 | L32: 2 | M32: 5 | N32: 5 | O32: 4 | P32: 8 | R32: 548 | S32: 548 | T32: 5 | U32: 4 | V32: 8 | W32: 0 | X32: 9 | Y32: 3 | Z32: 4 | AA32: 5 | AB32: 1 | AC32: 5 | AD32: 6 | AE32: 2 | AG32: 548093451 | AH32: 548093562 | AI32: 548451562 | AJ32: 093451562 | AK32: 504-495-831 | AL32: 505-496-832 | AM32: 545-456-812 | AN32: 045-956-312
A33: 201806270801 52235 | C33: 1806241150 | D33: 16786 | E33: 971 | F33: 971 | G33: 1806241150 | H33: 16786 | I33: 20180625114 | J33: 23944 | K33: 23944 | L33: 2 | M33: 3 | N33: 9 | O33: 4 | P33: 4 | R33: 944 | S33: 944 | T33: 9 | U33: 4 | V33: 4 | W33: 4 | X33: 9 | Y33: 9 | Z33: 0 | AA33: 5 | AB33: 5 | AC33: 1 | AD33: 6 | AE33: 6 | AG33: 944499055 | AH33: 944499166 | AI33: 944055166 | AJ33: 499055166 | AK33: 940-495-495 | AL33: 941-496-496 | AM33: 901-456-456 | AN33: 401-956-956
A34: 201806270800 50597 | C34: 1806241151 | D34: 02949 | E34: 970 | F34: 970 | G34: 1806241151 | H34: 02949 | I34: 20180625115 | J34: 78521 | K34: 78521 | L34: 7 | M34: 8 | N34: 5 | O34: 2 | P34: 1 | R34: 521 | S34: 521 | T34: 5 | U34: 2 | V34: 1 | W34: 0 | X34: 7 | Y34: 6 | Z34: 4 | AA34: 7 | AB34: 8 | AC34: 5 | AD34: 8 | AE34: 9 | AG34: 521076478 | AH34: 521076589 | AI34: 521478589 | AJ34: 076478589 | AK34: 504-277-168 | AL34: 505-278-169 | AM34: 545-278-189 | AN34: 045-778-689
A35: 201806270799 43240 | C35: 1806241152 | D35: 71755 | E35: 969 | F35: 969 | G35: 1806241152 | H35: 71755 | I35: 20180625116 | J35: 79487 | K35: 79487 | L35: 7 | M35: 9 | N35: 4 | O35: 8 | P35: 7 | R35: 487 | S35: 487 | T35: 4 | U35: 8 | V35: 7 | W35: 9 | X35: 3 | Y35: 2 | Z35: 5 | AA35: 1 | AB35: 2 | AC35: 6 | AD35: 2 | AE35: 3 | AG35: 487932512 | AH35: 487932623 | AI35: 487512623 | AJ35: 932512623 | AK35: 495-831-722 | AL35: 496-832-723 | AM35: 456-812-723 | AN35: 956-312-223
A36: 201806270798 04443 | C36: 1806241153 | D36: 32679 | E36: 968 | F36: 968 | G36: 1806241153 | H36: 32679 | I36: 20180625117 | J36: 61385 | K36: 61385 | L36: 6 | M36: 1 | N36: 3 | O36: 8 | P36: 5 | R36: 385 | S36: 385 | T36: 3 | U36: 8 | V36: 5 | W36: 8 | X36: 3 | Y36: 0 | Z36: 6 | AA36: 1 | AB36: 4 | AC36: 7 | AD36: 2 | AE36: 5 | AG36: 385830614 | AH36: 385830725 | AI36: 385614725 | AJ36: 830614725 | AK36: 386-831-504 | AL36: 387-832-505 | AM36: 367-812-545 | AN36: 867-312-045
A37: 201806270797 93578 | C37: 1806241154 | D37: 16962 | E37: 967 | F37: 967 | G37: 1806241154 | H37: 16962 | I37: 20180625118 | J37: 63541 | K37: 63541 | L37: 6 | M37: 3 | N37: 5 | O37: 4 | P37: 1 | R37: 541 | S37: 541 | T37: 5 | U37: 4 | V37: 1 | W37: 0 | X37: 9 | Y37: 6 | Z37: 4 | AA37: 5 | AB37: 8 | AC37: 5 | AD37: 6 | AE37: 9 | AG37: 541096458 | AH37: 541096569 | AI37: 541458569 | AJ37: 096458569 | AK37: 504-495-168 | AL37: 505-496-169 | AM37: 545-456-189 | AN37: 045-956-689
A38: 201806270796 85974 | C38: 1806241155 | D38: 47074 | E38: 966 | F38: 966 | G38: 1806241155 | H38: 47074 | I38: 20180625119 | J38: 20389 | K38: 20389 | L38: 2 | M38: 0 | N38: 3 | O38: 8 | P38: 9 | R38: 389 | S38: 389 | T38: 3 | U38: 8 | V38: 9 | W38: 8 | X38: 3 | Y38: 4 | Z38: 6 | AA38: 1 | AB38: 0 | AC38: 7 | AD38: 2 | AE38: 1 | AG38: 389834610 | AH38: 389834721 | AI38: 389610721 | AJ38: 834610721 | AK38: 386-831-940 | AL38: 387-832-941 | AM38: 367-812-901 | AN38: 867-312-401
A39: 201806270795 21700 | C39: 1806241156 | D39: 80382 | E39: 965 | F39: 965 | G39: 1806241156 | H39: 80382 | I39: 20180625120 | J39: 57252 | K39: 57252 | L39: 5 | M39: 7 | N39: 2 | O39: 5 | P39: 2 | R39: 252 | S39: 252 | T39: 2 | U39: 5 | V39: 2 | W39: 7 | X39: 0 | Y39: 7 | Z39: 7 | AA39: 4 | AB39: 7 | AC39: 8 | AD39: 5 | AE39: 8 | AG39: 252707747 | AH39: 252707858 | AI39: 252747858 | AJ39: 707747858 | AK39: 277-504-277 | AL39: 278-505-278 | AM39: 278-545-278 | AN39: 778-045-778
A40: 201806270794 90145 | C40: 1806241157 | D40: 76575 | E40: 964 | F40: 964 | G40: 1806241157 | H40: 76575 | I40: 20180626001 | J40: 39499 | K40: 39499 | L40: 3 | M40: 9 | N40: 4 | O40: 9 | P40: 9 | R40: 499 | S40: 499 | T40: 4 | U40: 9 | V40: 9 | W40: 9 | X40: 4 | Y40: 4 | Z40: 5 | AA40: 0 | AB40: 0 | AC40: 6 | AD40: 1 | AE40: 1 | AG40: 499944500 | AH40: 499944611 | AI40: 499500611 | AJ40: 944500611 | AK40: 495-940-940 | AL40: 496-941-941 | AM40: 456-901-901 | AN40: 956-401-401
A41: 201806270793 20003 | C41: 1806241158 | D41: 51433 | E41: 963 | F41: 963 | G41: 1806241158 | H41: 51433 | I41: 20180626002 | J41: 13905 | K41: 13905 | L41: 1 | M41: 3 | N41: 9 | O41: 0 | P41: 5 | R41: 905 | S41: 905 | T41: 9 | U41: 0 | V41: 5 | W41: 4 | X41: 5 | Y41: 0 | Z41: 0 | AA41: 9 | AB41: 4 | AC41: 1 | AD41: 0 | AE41: 5 | AG41: 905450094 | AH41: 905450105 | AI41: 905094105 | AJ41: 450094105 | AK41: 940-059-504 | AL41: 941-050-505 | AM41: 901-090-545 | AN41: 401-590-045
A42: 201806270792 25059 | C42: 1806241159 | D42: 17325 | E42: 962 | F42: 962 | G42: 1806241159 | H42: 17325 | I42: 20180626003 | J42: 29696 | K42: 29696 | L42: 2 | M42: 9 | N42: 6 | O42: 9 | P42: 6 | R42: 696 | S42: 696 | T42: 6 | U42: 9 | V42: 6 | W42: 1 | X42: 4 | Y42: 1 | Z42: 3 | AA42: 0 | AB42: 3 | AC42: 4 | AD42: 1 | AE42: 4 | AG42: 696141303 | AH42: 696141414 | AI42: 696303414 | AJ42: 141303414 | AK42: 613-940-613 | AL42: 614-941-614 | AM42: 634-901-634 | AN42: 134-401-134
A43: 201806270791 10967 | C43: 1806241160 | D43: 50541 | E43: 961 | F43: 961 | G43: 1806241160 | H43: 50541 | I43: 20180626004 | J43: 81341 | K43: 81341 | L43: 8 | M43: 1 | N43: 3 | O43: 4 | P43: 1 | R43: 341 | S43: 341 | T43: 3 | U43: 4 | V43: 1 | W43: 8 | X43: 9 | Y43: 6 | Z43: 6 | AA43: 5 | AB43: 8 | AC43: 7 | AD43: 6 | AE43: 9 | AG43: 341896658 | AH43: 341896769 | AI43: 341658769 | AJ43: 896658769 | AK43: 386-495-168 | AL43: 387-496-169 | AM43: 367-456-189 | AN43: 867-956-689
A44: 201806270790 87045 | C44: 1806241161 | D44: 23371 | E44: 960 | F44: 960 | G44: 1806241161 | H44: 23371 | I44: 20180626005 | J44: 16842 | K44: 16842 | L44: 1 | M44: 6 | N44: 8 | O44: 4 | P44: 2 | R44: 842 | S44: 842 | T44: 8 | U44: 4 | V44: 2 | W44: 3 | X44: 9 | Y44: 7 | Z44: 1 | AA44: 5 | AB44: 7 | AC44: 2 | AD44: 6 | AE44: 8 | AG44: 842397157 | AH44: 842397268 | AI44: 842157268 | AJ44: 397157268 | AK44: 831-495-277 | AL44: 832-496-278 | AM44: 812-456-278 | AN44: 312-956-778
A45: 201806270789 68696 | C45: 1806241162 | D45: 48835 | E45: 959 | F45: 959 | G45: 1806241162 | H45: 48835 | I45: 20180626006 | J45: 62397 | K45: 62397 | L45: 6 | M45: 2 | N45: 3 | O45: 9 | P45: 7 | R45: 397 | S45: 397 | T45: 3 | U45: 9 | V45: 7 | W45: 8 | X45: 4 | Y45: 2 | Z45: 6 | AA45: 0 | AB45: 2 | AC45: 7 | AD45: 1 | AE45: 3 | AG45: 397842602 | AH45: 397842713 | AI45: 397602713 | AJ45: 842602713 | AK45: 386-940-722 | AL45: 387-941-723 | AM45: 367-901-723 | AN45: 867-401-223
A46: 201806270788 15755 | C46: 1806241163 | D46: 44845 | E46: 958 | F46: 958 | G46: 1806241163 | H46: 44845 | I46: 20180626007 | J46: 87120 | K46: 87120 | L46: 8 | M46: 7 | N46: 1 | O46: 2 | P46: 0 | R46: 120 | S46: 120 | T46: 1 | U46: 2 | V46: 0 | W46: 6 | X46: 7 | Y46: 5 | Z46: 8 | AA46: 7 | AB46: 9 | AC46: 9 | AD46: 8 | AE46: 0 | AG46: 120675879 | AH46: 120675980 | AI46: 120879980 | AJ46: 675879980 | AK46: 168-277-059 | AL46: 169-278-050 | AM46: 189-278-090 | AN46: 689-778-590
A47: 201806270787 72940 | C47: 1806241164 | D47: 88052 | E47: 957 | F47: 957 | G47: 1806241164 | H47: 88052 | I47: 20180626008 | J47: 25009 | K47: 25009 | L47: 2 | M47: 5 | N47: 0 | O47: 0 | P47: 9 | R47: 009 | S47: 009 | T47: =MID($S47,MID(T$11,1,1),1) -> 0 | U47: 0 | V47: 9 | W47: 5 | X47: 5 | Y47: 4 | Z47: 9 | AA47: 9 | AB47: 0 | AC47: 0 | AD47: 0 | AE47: 1 | AG47: 009554990 | AH47: 009554001 | AI47: 009990001 | AJ47: 554990001 | AK47: 059-059-940 | AL47: 050-050-941 | AM47: 090-090-901 | AN47: 590-590-401
A48: 201806270786 81009 | C48: 1806241165 | D48: 98351 | E48: 956 | F48: 956 | G48: 1806241165 | H48: 98351 | I48: 20180626009 | J48: 83855 | K48: 83855 | L48: 8 | M48: 3 | N48: 8 | O48: 5 | P48: 5 | R48: 855 | S48: 855 | T48: 8 | U48: 5 | V48: 5 | W48: 3 | X48: 0 | Y48: 0 | Z48: 1 | AA48: 4 | AB48: 4 | AC48: 2 | AD48: 5 | AE48: 5 | AG48: 855300144 | AH48: 855300255 | AI48: 855144255 | AJ48: 300144255 | AK48: 831-504-504 | AL48: 832-505-505 | AM48: 812-545-545 | AN48: 312-045-045
A49: 201806270785 27471 | C49: 1806241166 | D49: 94463 | E49: 955 | F49: 955 | G49: 1806241166 | H49: 94463 | I49: 20180626010 | J49: 90986 | K49: 90986 | L49: 9 | M49: 0 | N49: 9 | O49: 8 | P49: 6 | R49: 986 | S49: 986 | T49: 9 | U49: 8 | V49: 6 | W49: 4 | X49: 3 | Y49: 1 | Z49: 0 | AA49: 1 | AB49: 3 | AC49: 1 | AD49: 2 | AE49: 4 | AG49: 986431013 | AH49: 986431124 | AI49: 986013124 | AJ49: 431013124 | AK49: 940-831-613 | AL49: 941-832-614 | AM49: 901-812-634 | AN49: 401-312-134
A50: 201806270784 58719 | C50: 1806241167 | D50: 75379 | E50: 954 | F50: 954 | G50: 1806241167 | H50: 75379 | I50: 20180626011 | J50: 92903 | K50: 92903 | L50: 9 | M50: 2 | N50: 9 | O50: 0 | P50: 3 | R50: 903 | S50: 903 | T50: 9 | U50: 0 | V50: 3 | W50: 4 | X50: 5 | Y50: 8 | Z50: 0 | AA50: 9 | AB50: 6 | AC50: 1 | AD50: 0 | AE50: 7 | AG50: 903458096 | AH50: 903458107 | AI50: 903096107 | AJ50: 458096107 | AK50: 940-059-386 | AL50: 941-050-387 | AM50: 901-090-367 | AN50: 401-590-867
A51: 201806270783 44020 | C51: 1806241168 | D51: 15812 | E51: 953 | F51: 953 | G51: 1806241168 | H51: 15812 | I51: 20180626012 | J51: 74001 | K51: 74001 | L51: 7 | M51: 4 | N51: 0 | O51: 0 | P51: 1 | R51: 001 | S51: 001 | T51: 0 | U51: 0 | V51: 1 | W51: 5 | X51: 5 | Y51: 6 | Z51: 9 | AA51: 9 | AB51: 8 | AC51: 0 | AD51: 0 | AE51: 9 | AG51: 001556998 | AH51: 001556009 | AI51: 001998009 | AJ51: 556998009 | AK51: 059-059-168 | AL51: 050-050-169 | AM51: 090-090-189 | AN51: 590-590-689
A52: 201806270782 22503 | C52: 1806241169 | D52: 85501 | E52: 952 | F52: 952 | G52: 1806241169 | H52: 85501 | I52: 20180626013 | J52: 85839 | K52: 85839 | L52: 8 | M52: 5 | N52: 8 | O52: 3 | P52: 9 | R52: 839 | S52: 839 | T52: 8 | U52: 3 | V52: 9 | W52: 3 | X52: 8 | Y52: 4 | Z52: 1 | AA52: 6 | AB52: 0 | AC52: 2 | AD52: 7 | AE52: 1 | AG52: 839384160 | AH52: 839384271 | AI52: 839160271 | AJ52: 384160271 | AK52: 831-386-940 | AL52: 832-387-941 | AM52: 812-367-901 | AN52: 312-867-401
A53: 201806270781 20453 | C53: 1806241170 | D53: 21721 | E53: 951 | F53: 951 | G53: 1806241170 | H53: 21721 | I53: 20180626014 | J53: 20740 | K53: 20740 | L53: 2 | M53: 0 | N53: 7 | O53: 4 | P53: 0 | R53: 740 | S53: 740 | T53: 7 | U53: 4 | V53: 0 | W53: 2 | X53: 9 | Y53: 5 | Z53: 2 | AA53: 5 | AB53: 9 | AC53: 3 | AD53: 6 | AE53: 0 | AG53: 740295259 | AH53: 740295360 | AI53: 740259360 | AJ53: 295259360 | AK53: 722-495-059 | AL53: 723-496-050 | AM53: 723-456-090 | AN53: 223-956-590
A54: 201806270780 78988 | C54: 1806241171 | D54: 15787 | E54: 950 | F54: 950 | G54: 1806241171 | H54: 15787 | I54: 20180626015 | J54: 68554 | K54: 68554 | L54: 6 | M54: 8 | N54: 5 | O54: 5 | P54: 4 | R54: 554 | S54: 554 | T54: 5 | U54: 5 | V54: 4 | W54: 0 | X54: 0 | Y54: 9 | Z54: 4 | AA54: 4 | AB54: 5 | AC54: 5 | AD54: 5 | AE54: 6 | AG54: 554009445 | AH54: 554009556 | AI54: 554445556 | AJ54: 009445556 | AK54: 504-504-495 | AL54: 505-505-496 | AM54: 545-545-456 | AN54: 045-045-956
A55: 201806270779 91203 | C55: 1806241172 | D55: 58399 | E55: 949 | F55: 949 | G55: 1806241172 | H55: 58399 | I55: 20180626016 | J55: 66371 | K55: 66371 | L55: 6 | M55: 6 | N55: 3 | O55: 7 | P55: 1 | R55: 371 | S55: 371 | T55: 3 | U55: 7 | V55: 1 | W55: 8 | X55: 2 | Y55: 6 | Z55: 6 | AA55: 2 | AB55: 8 | AC55: 7 | AD55: 3 | AE55: 9 | AG55: 371826628 | AH55: 371826739 | AI55: 371628739 | AJ55: 826628739 | AK55: 386-722-168 | AL55: 387-723-169 | AM55: 367-723-189 | AN55: 867-223-689
A56: 201806270778 89109 | C56: 1806241173 | D56: 21622 | E56: 948 | F56: 948 | G56: 1806241173 | H56: 21622 | I56: 20180626017 | J56: 23580 | K56: 23580 | L56: 2 | M56: 3 | N56: 5 | O56: 8 | P56: 0 | R56: 580 | S56: 580 | T56: 5 | U56: 8 | V56: 0 | W56: 0 | X56: 3 | Y56: 5 | Z56: 4 | AA56: 1 | AB56: 9 | AC56: 5 | AD56: 2 | AE56: 0 | AG56: 580035419 | AH56: 580035520 | AI56: 580419520 | AJ56: 035419520 | AK56: 504-831-059 | AL56: 505-832-050 | AM56: 545-812-090 | AN56: 045-312-590
A57: 201806270777 33543 | C57: 1806241174 | D57: 88594 | E57: 947 | F57: 947 | G57: 1806241174 | H57: 88594 | I57: 20180626018 | J57: 45728 | K57: 45728 | L57: 4 | M57: 5 | N57: 7 | O57: 2 | P57: 8 | R57: 728 | S57: 728 | T57: 7 | U57: 2 | V57: 8 | W57: 2 | X57: 7 | Y57: 3 | Z57: 2 | AA57: 7 | AB57: 1 | AC57: 3 | AD57: 8 | AE57: 2 | AG57: 728273271 | AH57: 728273382 | AI57: 728271382 | AJ57: 273271382 | AK57: 722-277-831 | AL57: 723-278-832 | AM57: 723-278-812 | AN57: 223-778-312
A58: 201806270776 00240 | C58: 1806241175 | D58: 90085 | E58: 946 | F58: 946 | G58: 1806241175 | H58: 90085 | I58: 20180626019 | J58: 34594 | K58: 34594 | L58: 3 | M58: 4 | N58: 5 | O58: 9 | P58: 4 | R58: 594 | S58: 594 | T58: 5 | U58: 9 | V58: 4 | W58: 0 | X58: 4 | Y58: 9 | Z58: 4 | AA58: 0 | AB58: 5 | AC58: 5 | AD58: 1 | AE58: 6 | AG58: 594049405 | AH58: 594049516 | AI58: 594405516 | AJ58: 049405516 | AK58: 504-940-495 | AL58: 505-941-496 | AM58: 545-901-456 | AN58: 045-401-956
A59: 201806270775 14035 | C59: 1806241176 | D59: 35579 | E59: 945 | F59: 945 | G59: 1806241176 | H59: 35579 | I59: 20180626020 | J59: 1536 | K59: 01536 | L59: 0 | M59: 1 | N59: 5 | O59: 3 | P59: 6 | R59: 536 | S59: 536 | T59: 5 | U59: 3 | V59: 6 | W59: 0 | X59: 8 | Y59: 1 | Z59: 4 | AA59: 6 | AB59: 3 | AC59: 5 | AD59: 7 | AE59: 4 | AG59: 536081463 | AH59: 536081574 | AI59: 536463574 | AJ59: 081463574 | AK59: 504-386-613 | AL59: 505-387-614 | AM59: 545-367-634 | AN59: 045-867-134
A60: 201806270774 46427 | C60: 1806241177 | D60: 35426 | E60: 944 | F60: 944 | G60: 1806241177 | H60: 35426 | I60: 20180626021 | J60: 69578 | K60: 69578 | L60: 6 | M60: 9 | N60: 5 | O60: 7 | P60: 8 | R60: 578 | S60: 578 | T60: 5 | U60: 7 | V60: 8 | W60: 0 | X60: 2 | Y60: 3 | Z60: 4 | AA60: 2 | AB60: 1 | AC60: 5 | AD60: 3 | AE60: 2 | AG60: 578023421 | AH60: 578023532 | AI60: 578421532 | AJ60: 023421532 | AK60: 504-722-831 | AL60: 505-723-832 | AM60: 545-723-812 | AN60: 045-223-312
A61: 201806270773 87795 | C61: 1806241178 | D61: 77649 | E61: 943 | F61: 943 | G61: 1806241178 | H61: 77649 | I61: 20180626022 | J61: 15464 | K61: 15464 | L61: 1 | M61: 5 | N61: 4 | O61: 6 | P61: 4 | R61: 464 | S61: 464 | T61: 4 | U61: 6 | V61: 4 | W61: 9 | X61: 1 | Y61: 9 | Z61: 5 | AA61: 3 | AB61: 5 | AC61: 6 | AD61: 4 | AE61: 6 | AG61: 464919535 | AH61: 464919646 | AI61: 464535646 | AJ61: 919535646 | AK61: 495-613-495 | AL61: 496-614-496 | AM61: 456-634-456 | AN61: 956-134-956
A62: 201806270772 32294 | C62: 1806241179 | D62: 13268 | E62: 942 | F62: 942 | G62: 1806241179 | H62: 13268 | I62: 20180626023 | J62: 65746 | K62: 65746 | L62: 6 | M62: 5 | N62: 7 | O62: 4 | P62: 6 | R62: 746 | S62: 746 | T62: 7 | U62: 4 | V62: 6 | W62: 2 | X62: 9 | Y62: 1 | Z62: 2 | AA62: 5 | AB62: 3 | AC62: 3 | AD62: 6 | AE62: 4 | AG62: 746291253 | AH62: 746291364 | AI62: 746253364 | AJ62: 291253364 | AK62: 722-495-613 | AL62: 723-496-614 | AM62: 723-456-634 | AN62: 223-956-134
A63: 201806270771 49188 | C63: 1806241180 | D63: 84185 | E63: 941 | F63: 941 | G63: 1806241180 | H63: 84185 | I63: 20180626024 | J63: 38593 | K63: 38593 | L63: 3 | M63: 8 | N63: 5 | O63: 9 | P63: 3 | R63: 593 | S63: 593 | T63: 5 | U63: 9 | V63: 3 | W63: 0 | X63: 4 | Y63: 8 | Z63: 4 | AA63: 0 | AB63: 6 | AC63: 5 | AD63: 1 | AE63: 7 | AG63: 593048406 | AH63: 593048517 | AI63: 593406517 | AJ63: 048406517 | AK63: 504-940-386 | AL63: 505-941-387 | AM63: 545-901-367 | AN63: 045-401-867
A64: 201806270770 11586 | C64: 1806241181 | D64: 79759 | E64: 940 | F64: 940 | G64: 1806241181 | H64: 79759 | I64: 20180626025 | J64: 57133 | K64: 57133 | L64: 5 | M64: 7 | N64: 1 | O64: 3 | P64: 3 | R64: 133 | S64: 133 | T64: 1 | U64: 3 | V64: 3 | W64: 6 | X64: 8 | Y64: 8 | Z64: 8 | AA64: 6 | AB64: 6 | AC64: 9 | AD64: 7 | AE64: 7 | AG64: 133688866 | AH64: 133688977 | AI64: 133866977 | AJ64: 688866977 | AK64: 168-386-386 | AL64: 169-387-387 | AM64: 189-367-367 | AN64: 689-867-867
A65: 201806270769 60978 | C65: 1806241182 | D65: 25987 | E65: 939 | F65: 939 | G65: 1806241182 | H65: 25987 | I65: 20180626026 | J65: 45878 | K65: 45878 | L65: 4 | M65: 5 | N65: 8 | O65: 7 | P65: 8 | R65: 878 | S65: 878 | T65: 8 | U65: 7 | V65: 8 | W65: 3 | X65: 2 | Y65: 3 | Z65: 1 | AA65: 2 | AB65: 1 | AC65: 2 | AD65: 3 | AE65: 2 | AG65: 878323121 | AH65: 878323232 | AI65: 878121232 | AJ65: 323121232 | AK65: 831-722-831 | AL65: 832-723-832 | AM65: 812-723-812 | AN65: 312-223-312
A66: 201806270768 28831 | C66: =IF(E66>=0,MID(OFFSET($A$1,E66,),3,D$1-3),"") -> 1806241183 | D66: =IF(E66>=0,MID(OFFSET($A$1,E66,),D$1+1,5),"") -> 85276 | E66: =E67+1 -> 938 | F66: 938 | G66: =IF(E66>=0,MID(OFFSET($A$1,F66,),3,D$1-3),"") -> 1806241183 | H66: =IF(E66>=0,MID(OFFSET($A$1,F66,),D$1+1,5),"") -> 85276 | I66: 20180626027 | J66: 18095 | K66: 18095 | L66: 1 | M66: 8 | N66: 0 | O66: 9 | P66: 5 | R66: 095 | S66: 095 | T66: 0 | U66: 9 | V66: 5 | W66: 5 | X66: 4 | Y66: 0 | Z66: 9 | AA66: 0 | AB66: 4 | AC66: 0 | AD66: 1 | AE66: 5 | AG66: 095540904 | AH66: 095540015 | AI66: 095904015 | AJ66: 540904015 | AK66: 059-940-504 | AL66: 050-941-505 | AM66: 090-901-545 | AN66: 590-401-045
A67: 201806270767 03822 | C67: 1806241184 | D67: 84255 | E67: 937 | F67: 937 | G67: 1806241184 | H67: 84255 | I67: 20180626028 | J67: 79389 | K67: =IF(J67="","",TEXT(J67,"00000")) -> 79389 | L67: =MID($K67,1,1) -> 7 | M67: =MID(K67,2,1) -> 9 | N67: =MID(K67,3,1) -> 3 | O67: =MID(K67,4,1) -> 8 | P67: =MID(K67,5,1) -> 9 | R67: 389 | S67: 389 | T67: 3 | U67: 8 | V67: 9 | W67: 8 | X67: 3 | Y67: 4 | Z67: 6 | AA67: 1 | AB67: 0 | AC67: 7 | AD67: 2 | AE67: 1 | AG67: 389834610 | AH67: 389834721 | AI67: 389610721 | AJ67: 834610721 | AK67: 386-831-940 | AL67: 387-832-941 | AM67: 367-812-901 | AN67: 867-312-401
A68: 201806270766 18890 | C68: 1806241185 | D68: 11500 | E68: 936 | F68: 936 | G68: 1806241185 | H68: 11500 | I68: 20180626029 | J68: 55237 | K68: 55237 | L68: 5 | M68: 5 | N68: 2 | O68: 3 | P68: 7 | R68: 237 | S68: 237 | T68: 2 | U68: 3 | V68: 7 | W68: 7 | X68: 8 | Y68: 2 | Z68: 7 | AA68: 6 | AB68: 2 | AC68: 8 | AD68: 7 | AE68: 3 | AG68: 237782762 | AH68: 237782873 | AI68: 237762873 | AJ68: 782762873 | AK68: 277-386-722 | AL68: 278-387-723 | AM68: 278-367-723 | AN68: 778-867-223
A69: 201806270765 36801 | C69: 1806241186 | D69: 10516 | E69: 935 | F69: 935 | G69: 1806241186 | H69: 10516 | I69: 20180626030 | J69: 32602 | K69: 32602 | L69: 3 | M69: 2 | N69: 6 | O69: 0 | P69: 2 | R69: 602 | S69: 602 | T69: 6 | U69: 0 | V69: 2 | W69: 1 | X69: 5 | Y69: 7 | Z69: 3 | AA69: 9 | AB69: 7 | AC69: 4 | AD69: 0 | AE69: 8 | AG69: 602157397 | AH69: 602157408 | AI69: 602397408 | AJ69: 157397408 | AK69: 613-059-277 | AL69: 614-050-278 | AM69: 634-090-278 | AN69: 134-590-778
A70: 201806270764 51824 | C70: 1806241187 | D70: 69475 | E70: 934 | F70: 934 | G70: 1806241187 | H70: 69475 | I70: 20180626031 | J70: 39698 | K70: 39698 | L70: 3 | M70: 9 | N70: 6 | O70: 9 | P70: 8 | R70: 698 | S70: 698 | T70: 6 | U70: 9 | V70: 8 | W70: 1 | X70: 4 | Y70: 3 | Z70: 3 | AA70: 0 | AB70: 1 | AC70: 4 | AD70: 1 | AE70: 2 | AG70: 698143301 | AH70: 698143412 | AI70: 698301412 | AJ70: 143301412 | AK70: 613-940-831 | AL70: 614-941-832 | AM70: 634-901-812 | AN70: 134-401-312
A71: 201806270763 30930 | C71: 1806241188 | D71: 63748 | E71: 933 | F71: 933 | G71: 1806241188 | H71: 63748 | I71: 20180626032 | J71: 5587 | K71: 05587 | L71: 0 | M71: 5 | N71: 5 | O71: 8 | P71: 7 | R71: 587 | S71: 587 | T71: 5 | U71: 8 | V71: 7 | W71: 0 | X71: 3 | Y71: 2 | Z71: 4 | AA71: 1 | AB71: 2 | AC71: 5 | AD71: 2 | AE71: 3 | AG71: 587032412 | AH71: 587032523 | AI71: 587412523 | AJ71: 032412523 | AK71: 504-831-722 | AL71: 505-832-723 | AM71: 545-812-723 | AN71: 045-312-223
A72: 201806270762 46510 | C72: 1806241189 | D72: 97473 | E72: 932 | F72: 932 | G72: 1806241189 | H72: 97473 | I72: 20180626033 | J72: 47417 | K72: 47417 | L72: 4 | M72: 7 | N72: 4 | O72: 1 | P72: 7 | R72: 417 | S72: 417 | T72: 4 | U72: 1 | V72: 7 | W72: 9 | X72: 6 | Y72: 2 | Z72: 5 | AA72: 8 | AB72: 2 | AC72: 6 | AD72: 9 | AE72: 3 | AG72: 417962582 | AH72: 417962693 | AI72: 417582693 | AJ72: 962582693 | AK72: 495-168-722 | AL72: 496-169-723 | AM72: 456-189-723 | AN72: 956-689-223
A73: 201806270761 44724 | C73: 1806241190 | D73: 62796 | E73: 931 | F73: 931 | G73: 1806241190 | H73: 62796 | I73: 20180626034 | J73: 13477 | K73: 13477 | L73: 1 | M73: 3 | N73: 4 | O73: 7 | P73: 7 | R73: 477 | S73: 477 | T73: 4 | U73: 7 | V73: 7 | W73: 9 | X73: 2 | Y73: 2 | Z73: 5 | AA73: 2 | AB73: 2 | AC73: 6 | AD73: 3 | AE73: 3 | AG73: 477922522 | AH73: 477922633 | AI73: 477522633 | AJ73: 922522633 | AK73: 495-722-722 | AL73: 496-723-723 | AM73: 456-723-723 | AN73: 956-223-223
A74: 201806270760 20613 | C74: 1806241191 | D74: 57256 | E74: 930 | F74: 930 | G74: 1806241191 | H74: 57256 | I74: 20180626035 | J74: 60978 | K74: 60978 | L74: 6 | M74: 0 | N74: 9 | O74: 7 | P74: 8 | R74: 978 | S74: 978 | T74: 9 | U74: 7 | V74: 8 | W74: 4 | X74: 2 | Y74: 3 | Z74: 0 | AA74: 2 | AB74: 1 | AC74: 1 | AD74: 3 | AE74: 2 | AG74: 978423021 | AH74: 978423132 | AI74: 978021132 | AJ74: 423021132 | AK74: 940-722-831 | AL74: 941-723-832 | AM74: 901-723-812 | AN74: 401-223-312
A75: 201806270759 26256 | C75: 1806241192 | D75: 23711 | E75: 929 | F75: 929 | G75: 1806241192 | H75: 23711 | I75: 20180626036 | J75: 3328 | K75: 03328 | L75: 0 | M75: 3 | N75: 3 | O75: 2 | P75: 8 | R75: 328 | S75: 328 | T75: 3 | U75: 2 | V75: 8 | W75: 8 | X75: 7 | Y75: 3 | Z75: 6 | AA75: 7 | AB75: 1 | AC75: 7 | AD75: 8 | AE75: 2 | AG75: 328873671 | AH75: 328873782 | AI75: 328671782 | AJ75: 873671782 | AK75: 386-277-831 | AL75: 387-278-832 | AM75: 367-278-812 | AN75: 867-778-312
A76: 201806270758 76810 | C76: 1806241193 | D76: 48148 | E76: 928 | F76: 928 | G76: 1806241193 | H76: 48148 | I76: 20180626037 | J76: 6477 | K76: 06477 | L76: 0 | M76: 6 | N76: 4 | O76: 7 | P76: 7 | R76: 477 | S76: 477 | T76: 4 | U76: 7 | V76: 7 | W76: 9 | X76: 2 | Y76: 2 | Z76: 5 | AA76: 2 | AB76: 2 | AC76: 6 | AD76: 3 | AE76: 3 | AG76: 477922522 | AH76: 477922633 | AI76: 477522633 | AJ76: 922522633 | AK76: 495-722-722 | AL76: 496-723-723 | AM76: 456-723-723 | AN76: 956-223-223
A77: 201806270757 76442 | C77: 1806241194 | D77: 98790 | E77: 927 | F77: 927 | G77: 1806241194 | H77: 98790 | I77: 20180626038 | J77: 90334 | K77: 90334 | L77: 9 | M77: 0 | N77: 3 | O77: 3 | P77: 4 | R77: =IF(R$213="胆码",MID($K77,MID(S$213,1,1),1)&MID($K77,MID(S$213,2,1),1)&MID($K77,MID(S$213,3,1),1),IF(R$213="任合",RIGHT(MID($K77,MID(S$213,1,1),1)+MID($K77,MID(S$213,2,1),1))&RIGHT(MID($K77,MID(S$213,1,1),1)+MID($K77,MID(S$213,3,1),1))&RIGHT(MID($K77,MID(S$213,2,1),1)+MID($K77,MID(S$213,3,1),1)),IF(R$213="任差",RIGHT(MID($K77,MID(S$213,1,1),1)-MID($K77,MID(S$213,2,1),1))&RIGHT(MID($K77,MID(S$213,1,1),1)-MID($K77,MID(S$213,3,1),1))&RIGHT(MID($K77,MID(S$213,2,1),1)-MID($K77,MID(S$213,3,1),1)),IF(R$213="任积",RIGHT(MID($K77,MID(S$213,1,1),1)*MID($K77,MID(S$213,2,1),1))&RIGHT(MID($K77,MID(S$213,1,1),1)*MID($K77,MID(S$213,3,1),1))&RIGHT(MID($K77,MID(S$213,2,1),1)*MID($K77,MID(S$213,3,1),1)),IF(R$213="位合",RIGHT(MID($K77,MID(S$213,1,1),1)+MID($K76,MID(S$213,1,1),1))&RIGHT(MID($K77,MID(S$213,2,1),1)+MID($K76,MID(S$213,2,1),1))&RIGHT(MID($K77,MID(S$213,3,1),1)+MID($K76,MID(S$213,3,1),1)),IF(R$213="位差",RIGHT(MID($K77,MID(S$213,1,1),1)-MID($K76,MID(S$213,1,1),1))&RIGHT(MID($K77,MID(S$213,2,1),1)-MID($K76,MID(S$213,2,1),1))&RIGHT(MID($K77,MID(S$213,3,1),1)-MID($K76,MID(S$213,3,1),1)),IF(R$213="位积",RIGHT(MID($K77,MID(S$213,1,1),1)*MID($K76,MID(S$213,1,1),1))&RIGHT(MID($K77,MID(S$213,2,1),1)*MID($K76,MID(S$213,2,1),1))&RIGHT(MID($K77,MID(S$213,3,1),1)*MID($K76,MID(S$213,3,1),1))))))))) -> 334 | S77: =R77 -> 334 | T77: 3 | U77: 3 | V77: 4 | W77: 8 | X77: 8 | Y77: 9 | Z77: 6 | AA77: 6 | AB77: 5 | AC77: 7 | AD77: 7 | AE77: 6 | AG77: 334889665 | AH77: 334889776 | AI77: 334665776 | AJ77: 889665776 | AK77: 386-386-495 | AL77: 387-387-496 | AM77: 367-367-456 | AN77: 867-867-956
A78: 201806270756 31086 | C78: 1806241195 | D78: 51477 | E78: 926 | F78: 926 | G78: 1806241195 | H78: 51477 | I78: 20180626039 | J78: 40109 | K78: 40109 | L78: 4 | M78: 0 | N78: 1 | O78: 0 | P78: 9 | R78: 109 | S78: 109 | T78: 1 | U78: 0 | V78: 9 | W78: 6 | X78: 5 | Y78: 4 | Z78: 8 | AA78: 9 | AB78: 0 | AC78: 9 | AD78: 0 | AE78: 1 | AG78: 109654890 | AH78: 109654901 | AI78: 109890901 | AJ78: 654890901 | AK78: 168-059-940 | AL78: 169-050-941 | AM78: 189-090-901 | AN78: 689-590-401
A79: 201806270755 55277 | C79: 1806241196 | D79: 17251 | E79: 925 | F79: 925 | G79: 1806241196 | H79: 17251 | I79: 20180626040 | J79: 27697 | K79: 27697 | L79: 2 | M79: 7 | N79: 6 | O79: 9 | P79: 7 | R79: 697 | S79: 697 | T79: =MID($S79,MID(T$11,1,1),1) -> 6 | U79: 9 | V79: 7 | W79: =RIGHT(T79+5) -> 1 | X79: =RIGHT(U79+5) -> 4 | Y79: =RIGHT(V79+5) -> 2 | Z79: =RIGHT(9-T79) -> 3 | AA79: =RIGHT(9-U79) -> 0 | AB79: =RIGHT(9-V79) -> 2 | AC79: =RIGHT(10-T79) -> 4 | AD79: =RIGHT(10-U79) -> 1 | AE79: =RIGHT(10-V79) -> 3 | AG79: 697142302 | AH79: 697142413 | AI79: 697302413 | AJ79: 142302413 | AK79: =T79&W79&Z79&"-"&U79&X79&AA79&"-"&V79&Y79&AB79 -> 613-940-722 | AL79: =T79&W79&AC79&"-"&U79&X79&AD79&"-"&V79&Y79&AE79 -> 614-941-723 | AM79: =T79&Z79&AC79&"-"&U79&AA79&AD79&"-"&V79&AB79&AE79 -> 634-901-723 | AN79: =W79&Z79&AC79&"-"&X79&AA79&AD79&"-"&Y79&AB79&AE79 -> 134-401-223
A80: 201806270754 03017 | C80: 1806241197 | D80: 92287 | E80: 924 | F80: 924 | G80: 1806241197 | H80: 92287 | I80: 20180626041 | J80: 97205 | K80: 97205 | L80: 9 | M80: 7 | N80: 2 | O80: 0 | P80: 5 | R80: 205 | S80: 205 | T80: 2 | U80: 0 | V80: 5 | W80: 7 | X80: 5 | Y80: 0 | Z80: 7 | AA80: 9 | AB80: 4 | AC80: 8 | AD80: 0 | AE80: 5 | AG80: 205750794 | AH80: 205750805 | AI80: 205794805 | AJ80: 750794805 | AK80: 277-059-504 | AL80: 278-050-505 | AM80: 278-090-545 | AN80: 778-590-045
A81: 201806270753 67022 | C81: 1806241198 | D81: 05878 | E81: 923 | F81: 923 | G81: 1806241198 | H81: 05878 | I81: 20180626042 | J81: 46416 | K81: 46416 | L81: 4 | M81: 6 | N81: 4 | O81: 1 | P81: 6 | R81: 416 | S81: 416 | T81: 4 | U81: 1 | V81: 6 | W81: 9 | X81: 6 | Y81: 1 | Z81: 5 | AA81: 8 | AB81: 3 | AC81: 6 | AD81: 9 | AE81: 4 | AG81: 416961583 | AH81: 416961694 | AI81: 416583694 | AJ81: 961583694 | AK81: 495-168-613 | AL81: 496-169-614 | AM81: 456-189-634 | AN81: 956-689-134
A82: 201806270752 81380 | C82: 1806241199 | D82: 54347 | E82: 922 | F82: 922 | G82: 1806241199 | H82: 54347 | I82: 20180626043 | J82: 34686 | K82: 34686 | L82: 3 | M82: 4 | N82: 6 | O82: 8 | P82: 6 | R82: 686 | S82: 686 | T82: 6 | U82: 8 | V82: 6 | W82: 1 | X82: 3 | Y82: 1 | Z82: 3 | AA82: 1 | AB82: 3 | AC82: 4 | AD82: 2 | AE82: 4 | AG82: =T82&U82&V82&W82&X82&Y82&Z82&AA82&AB82 -> 686131313 | AH82: =T82&U82&V82&W82&X82&Y82&AC82&AD82&AE82 -> 686131424 | AI82: =T82&U82&V82&Z82&AA82&AB82&AC82&AD82&AE82 -> 686313424 | AJ82: =W82&X82&Y82&Z82&AA82&AB82&AC82&AD82&AE82 -> 131313424 | AK82: 613-831-613 | AL82: 614-832-614 | AM82: 634-812-634 | AN82: 134-312-134
A83: 201806270751 56649 | C83: 1806241200 | D83: 74714 | E83: 921 | F83: 921 | G83: 1806241200 | H83: 74714 | I83: 20180626044 | J83: 96823 | K83: 96823 | L83: 9 | M83: 6 | N83: 8 | O83: 2 | P83: 3 | R83: 823 | S83: 823 | T83: 8 | U83: 2 | V83: 3 | W83: 3 | X83: 7 | Y83: 8 | Z83: 1 | AA83: 7 | AB83: 6 | AC83: 2 | AD83: 8 | AE83: 7 | AG83: 823378176 | AH83: 823378287 | AI83: 823176287 | AJ83: 378176287 | AK83: 831-277-386 | AL83: 832-278-387 | AM83: 812-278-367 | AN83: 312-778-867
A84: 201806270750 91766 | C84: 1806241201 | D84: 22533 | E84: 920 | F84: 920 | G84: 1806241201 | H84: 22533 | I84: 20180626045 | J84: 69169 | K84: 69169 | L84: 6 | M84: 9 | N84: 1 | O84: 6 | P84: 9 | R84: 169 | S84: 169 | T84: 1 | U84: 6 | V84: 9 | W84: 6 | X84: 1 | Y84: 4 | Z84: 8 | AA84: 3 | AB84: 0 | AC84: 9 | AD84: 4 | AE84: 1 | AG84: 169614830 | AH84: 169614941 | AI84: 169830941 | AJ84: 614830941 | AK84: 168-613-940 | AL84: 169-614-941 | AM84: 189-634-901 | AN84: 689-134-401
A85: 201806270749 58220 | C85: 1806241202 | D85: 18873 | E85: 919 | F85: 919 | G85: 1806241202 | H85: 18873 | I85: 20180626046 | J85: 52567 | K85: 52567 | L85: 5 | M85: 2 | N85: 5 | O85: 6 | P85: 7 | R85: 567 | S85: 567 | T85: 5 | U85: 6 | V85: 7 | W85: 0 | X85: 1 | Y85: 2 | Z85: 4 | AA85: 3 | AB85: 2 | AC85: 5 | AD85: 4 | AE85: 3 | AG85: 567012432 | AH85: 567012543 | AI85: 567432543 | AJ85: 012432543 | AK85: 504-613-722 | AL85: 505-614-723 | AM85: 545-634-723 | AN85: 045-134-223
A86: 201806270748 44123 | C86: 1806241203 | D86: 34954 | E86: 918 | F86: 918 | G86: 1806241203 | H86: 34954 | I86: 20180626047 | J86: 65637 | K86: 65637 | L86: 6 | M86: 5 | N86: 6 | O86: 3 | P86: 7 | R86: 637 | S86: 637 | T86: 6 | U86: 3 | V86: 7 | W86: 1 | X86: 8 | Y86: 2 | Z86: 3 | AA86: 6 | AB86: 2 | AC86: 4 | AD86: 7 | AE86: 3 | AG86: 637182362 | AH86: 637182473 | AI86: 637362473 | AJ86: 182362473 | AK86: 613-386-722 | AL86: 614-387-723 | AM86: 634-367-723 | AN86: 134-867-223
A87: 201806270747 39619 | C87: 1806241204 | D87: 54627 | E87: 917 | F87: 917 | G87: 1806241204 | H87: 54627 | I87: 20180626048 | J87: 11301 | K87: 11301 | L87: 1 | M87: 1 | N87: 3 | O87: 0 | P87: 1 | R87: 301 | S87: 301 | T87: 3 | U87: 0 | V87: 1 | W87: 8 | X87: 5 | Y87: 6 | Z87: 6 | AA87: 9 | AB87: 8 | AC87: 7 | AD87: 0 | AE87: 9 | AG87: 301856698 | AH87: 301856709 | AI87: 301698709 | AJ87: 856698709 | AK87: 386-059-168 | AL87: 387-050-169 | AM87: 367-090-189 | AN87: 867-590-689
A88: 201806270746 23476 | C88: 1806241205 | D88: 44586 | E88: 916 | F88: 916 | G88: 1806241205 | H88: 44586 | I88: 20180626049 | J88: 88712 | K88: 88712 | L88: 8 | M88: 8 | N88: 7 | O88: 1 | P88: 2 | R88: 712 | S88: 712 | T88: 7 | U88: 1 | V88: 2 | W88: 2 | X88: 6 | Y88: 7 | Z88: 2 | AA88: 8 | AB88: 7 | AC88: 3 | AD88: 9 | AE88: 8 | AG88: 712267287 | AH88: 712267398 | AI88: 712287398 | AJ88: 267287398 | AK88: 722-168-277 | AL88: 723-169-278 | AM88: 723-189-278 | AN88: 223-689-778
A89: 201806270745 96177 | C89: 1806241206 | D89: 28774 | E89: 915 | F89: 915 | G89: 1806241206 | H89: 28774 | I89: 20180626050 | J89: 99819 | K89: 99819 | L89: 9 | M89: 9 | N89: 8 | O89: 1 | P89: 9 | R89: 819 | S89: 819 | T89: 8 | U89: 1 | V89: 9 | W89: 3 | X89: 6 | Y89: 4 | Z89: 1 | AA89: 8 | AB89: 0 | AC89: 2 | AD89: 9 | AE89: 1 | AG89: 819364180 | AH89: 819364291 | AI89: 819180291 | AJ89: 364180291 | AK89: 831-168-940 | AL89: 832-169-941 | AM89: 812-189-901 | AN89: 312-689-401
A90: 201806270744 08854 | C90: 1806241207 | D90: 15426 | E90: 914 | F90: 914 | G90: 1806241207 | H90: 15426 | I90: 20180626051 | J90: 55714 | K90: 55714 | L90: 5 | M90: 5 | N90: 7 | O90: 1 | P90: 4 | R90: 714 | S90: 714 | T90: 7 | U90: 1 | V90: 4 | W90: 2 | X90: 6 | Y90: 9 | Z90: 2 | AA90: 8 | AB90: 5 | AC90: 3 | AD90: 9 | AE90: 6 | AG90: 714269285 | AH90: 714269396 | AI90: 714285396 | AJ90: 269285396 | AK90: 722-168-495 | AL90: 723-169-496 | AM90: 723-189-456 | AN90: 223-689-956
A91: 201806270743 08125 | C91: 1806241208 | D91: 48203 | E91: 913 | F91: 913 | G91: 1806241208 | H91: 48203 | I91: 20180626052 | J91: 48812 | K91: 48812 | L91: 4 | M91: 8 | N91: 8 | O91: 1 | P91: 2 | R91: 812 | S91: 812 | T91: 8 | U91: 1 | V91: 2 | W91: 3 | X91: 6 | Y91: 7 | Z91: 1 | AA91: 8 | AB91: 7 | AC91: 2 | AD91: 9 | AE91: 8 | AG91: 812367187 | AH91: 812367298 | AI91: 812187298 | AJ91: 367187298 | AK91: 831-168-277 | AL91: 832-169-278 | AM91: 812-189-278 | AN91: 312-689-778
A92: 201806270742 52664 | C92: 1806241209 | D92: 01186 | E92: 912 | F92: 912 | G92: 1806241209 | H92: 01186 | I92: 20180626053 | J92: 46772 | K92: 46772 | L92: 4 | M92: 6 | N92: 7 | O92: 7 | P92: 2 | R92: 772 | S92: 772 | T92: 7 | U92: 7 | V92: 2 | W92: 2 | X92: 2 | Y92: 7 | Z92: 2 | AA92: 2 | AB92: 7 | AC92: 3 | AD92: 3 | AE92: 8 | AG92: 772227227 | AH92: 772227338 | AI92: 772227338 | AJ92: 227227338 | AK92: 722-722-277 | AL92: 723-723-278 | AM92: 723-723-278 | AN92: 223-223-778
A93: 201806270741 66263 | C93: 1806241210 | D93: 43911 | E93: 911 | F93: 911 | G93: 1806241210 | H93: 43911 | I93: 20180626054 | J93: 77899 | K93: 77899 | L93: 7 | M93: 7 | N93: 8 | O93: 9 | P93: 9 | R93: 899 | S93: 899 | T93: 8 | U93: 9 | V93: 9 | W93: 3 | X93: 4 | Y93: 4 | Z93: 1 | AA93: 0 | AB93: 0 | AC93: 2 | AD93: 1 | AE93: 1 | AG93: 899344100 | AH93: 899344211 | AI93: 899100211 | AJ93: 344100211 | AK93: 831-940-940 | AL93: 832-941-941 | AM93: 812-901-901 | AN93: 312-401-401
A94: 201806270740 45965 | C94: 1806241211 | D94: 89174 | E94: 910 | F94: 910 | G94: 1806241211 | H94: 89174 | I94: 20180626055 | J94: 80687 | K94: 80687 | L94: 8 | M94: 0 | N94: 6 | O94: 8 | P94: 7 | R94: 687 | S94: 687 | T94: 6 | U94: 8 | V94: 7 | W94: 1 | X94: 3 | Y94: 2 | Z94: 3 | AA94: 1 | AB94: 2 | AC94: 4 | AD94: 2 | AE94: 3 | AG94: 687132312 | AH94: 687132423 | AI94: 687312423 | AJ94: 132312423 | AK94: 613-831-722 | AL94: 614-832-723 | AM94: 634-812-723 | AN94: 134-312-223
A95: 201806270739 20793 | C95: 1806241212 | D95: 93093 | E95: 909 | F95: 909 | G95: 1806241212 | H95: 93093 | I95: 20180626056 | J95: 9300 | K95: 09300 | L95: 0 | M95: 9 | N95: 3 | O95: 0 | P95: 0 | R95: 300 | S95: 300 | T95: 3 | U95: 0 | V95: 0 | W95: 8 | X95: 5 | Y95: 5 | Z95: 6 | AA95: 9 | AB95: 9 | AC95: 7 | AD95: 0 | AE95: 0 | AG95: 300855699 | AH95: 300855700 | AI95: 300699700 | AJ95: 855699700 | AK95: 386-059-059 | AL95: 387-050-050 | AM95: 367-090-090 | AN95: 867-590-590
A96: 201806270738 95576 | C96: 1806241213 | D96: 66496 | E96: 908 | F96: 908 | G96: 1806241213 | H96: 66496 | I96: 20180626057 | J96: 41234 | K96: 41234 | L96: 4 | M96: 1 | N96: 2 | O96: 3 | P96: 4 | R96: 234 | S96: 234 | T96: 2 | U96: 3 | V96: 4 | W96: 7 | X96: 8 | Y96: 9 | Z96: 7 | AA96: 6 | AB96: 5 | AC96: 8 | AD96: 7 | AE96: 6 | AG96: 234789765 | AH96: 234789876 | AI96: 234765876 | AJ96: 789765876 | AK96: 277-386-495 | AL96: 278-387-496 | AM96: 278-367-456 | AN96: 778-867-956
A97: 201806270737 57414 | C97: 1806241214 | D97: 69550 | E97: 907 | F97: 907 | G97: 1806241214 | H97: 69550 | I97: 20180626058 | J97: 83781 | K97: 83781 | L97: 8 | M97: 3 | N97: 7 | O97: 8 | P97: 1 | R97: 781 | S97: 781 | T97: 7 | U97: 8 | V97: 1 | W97: 2 | X97: 3 | Y97: 6 | Z97: 2 | AA97: 1 | AB97: 8 | AC97: 3 | AD97: 2 | AE97: 9 | AG97: 781236218 | AH97: 781236329 | AI97: 781218329 | AJ97: 236218329 | AK97: 722-831-168 | AL97: 723-832-169 | AM97: 723-812-189 | AN97: 223-312-689
A98: 201806270736 92979 | C98: 1806241215 | D98: 24366 | E98: 906 | F98: 906 | G98: 1806241215 | H98: 24366 | I98: 20180626059 | J98: 93161 | K98: 93161 | L98: 9 | M98: 3 | N98: 1 | O98: 6 | P98: 1 | R98: 161 | S98: 161 | T98: 1 | U98: 6 | V98: 1 | W98: 6 | X98: 1 | Y98: 6 | Z98: 8 | AA98: 3 | AB98: 8 | AC98: 9 | AD98: 4 | AE98: 9 | AG98: 161616838 | AH98: 161616949 | AI98: 161838949 | AJ98: 616838949 | AK98: 168-613-168 | AL98: 169-614-169 | AM98: 189-634-189 | AN98: 689-134-689
A99: 201806270735 18818 | C99: 1806241216 | D99: 85276 | E99: 905 | F99: 905 | G99: 1806241216 | H99: 85276 | I99: 20180626060 | J99: 39249 | K99: 39249 | L99: 3 | M99: 9 | N99: 2 | O99: 4 | P99: 9 | R99: 249 | S99: 249 | T99: 2 | U99: 4 | V99: 9 | W99: 7 | X99: 9 | Y99: 4 | Z99: 7 | AA99: 5 | AB99: 0 | AC99: 8 | AD99: 6 | AE99: 1 | AG99: 249794750 | AH99: 249794861 | AI99: 249750861 | AJ99: 794750861 | AK99: 277-495-940 | AL99: 278-496-941 | AM99: 278-456-901 | AN99: 778-956-401
A100: 201806270734 85484 | C100: 1806241217 | D100: 74352 | E100: 904 | F100: 904 | G100: 1806241217 | H100: 74352 | I100: 20180626061 | J100: 92294 | K100: 92294 | L100: 9 | M100: 2 | N100: 2 | O100: 9 | P100: 4 | R100: 294 | S100: 294 | T100: 2 | U100: 9 | V100: 4 | W100: 7 | X100: 4 | Y100: 9 | Z100: 7 | AA100: 0 | AB100: 5 | AC100: 8 | AD100: 1 | AE100: 6 | AG100: 294749705 | AH100: 294749816 | AI100: 294705816 | AJ100: 749705816 | AK100: 277-940-495 | AL100: 278-941-496 | AM100: 278-901-456 | AN100: 778-401-956
A101: 201806270733 65469 | C101: 1806241218 | D101: 76282 | E101: 903 | F101: 903 | G101: 1806241218 | H101: 76282 | I101: 20180626062 | J101: 68889 | K101: 68889 | L101: 6 | M101: 8 | N101: 8 | O101: 8 | P101: 9 | R101: 889 | S101: 889 | T101: 8 | U101: 8 | V101: 9 | W101: 3 | X101: 3 | Y101: 4 | Z101: 1 | AA101: 1 | AB101: 0 | AC101: 2 | AD101: 2 | AE101: 1 | AG101: 889334110 | AH101: 889334221 | AI101: 889110221 | AJ101: 334110221 | AK101: 831-831-940 | AL101: 832-832-941 | AM101: 812-812-901 | AN101: 312-312-401
A102: 201806270732 32423 | C102: 1806241219 | D102: 98113 | E102: 902 | F102: 902 | G102: 1806241219 | H102: 98113 | I102: 20180626063 | J102: 75093 | K102: 75093 | L102: 7 | M102: 5 | N102: 0 | O102: 9 | P102: 3 | R102: 093 | S102: 093 | T102: 0 | U102: 9 | V102: 3 | W102: 5 | X102: 4 | Y102: 8 | Z102: 9 | AA102: 0 | AB102: 6 | AC102: 0 | AD102: 1 | AE102: 7 | AG102: 093548906 | AH102: 093548017 | AI102: 093906017 | AJ102: 548906017 | AK102: 059-940-386 | AL102: 050-941-387 | AM102: 090-901-367 | AN102: 590-401-867
A103: 201806270731 73360 | C103: 1806241220 | D103: 25266 | E103: 901 | F103: 901 | G103: 1806241220 | H103: 25266 | I103: 20180626064 | J103: 71464 | K103: 71464 | L103: 7 | M103: 1 | N103: 4 | O103: 6 | P103: 4 | R103: 464 | S103: 464 | T103: 4 | U103: 6 | V103: 4 | W103: 9 | X103: 1 | Y103: 9 | Z103: 5 | AA103: 3 | AB103: 5 | AC103: 6 | AD103: 4 | AE103: 6 | AG103: 464919535 | AH103: 464919646 | AI103: 464535646 | AJ103: 919535646 | AK103: 495-613-495 | AL103: 496-614-496 | AM103: 456-634-456 | AN103: 956-134-956
A104: 201806270730 12179 | C104: 1806241221 | D104: 95761 | E104: 900 | F104: 900 | G104: 1806241221 | H104: 95761 | I104: 20180626065 | J104: 13702 | K104: 13702 | L104: 1 | M104: 3 | N104: 7 | O104: 0 | P104: 2 | R104: 702 | S104: 702 | T104: 7 | U104: 0 | V104: 2 | W104: 2 | X104: 5 | Y104: 7 | Z104: 2 | AA104: 9 | AB104: 7 | AC104: 3 | AD104: 0 | AE104: 8 | AG104: 702257297 | AH104: 702257308 | AI104: 702297308 | AJ104: 257297308 | AK104: 722-059-277 | AL104: 723-050-278 | AM104: 723-090-278 | AN104: 223-590-778
A105: 201806270729 57131 | C105: 1806241222 | D105: 79425 | E105: 899 | F105: 899 | G105: 1806241222 | H105: 79425 | I105: 20180626066 | J105: 76871 | K105: 76871 | L105: 7 | M105: 6 | N105: 8 | O105: 7 | P105: 1 | R105: 871 | S105: 871 | T105: 8 | U105: 7 | V105: 1 | W105: 3 | X105: 2 | Y105: 6 | Z105: 1 | AA105: 2 | AB105: 8 | AC105: 2 | AD105: 3 | AE105: 9 | AG105: 871326128 | AH105: 871326239 | AI105: 871128239 | AJ105: 326128239 | AK105: 831-722-168 | AL105: 832-723-169 | AM105: 812-723-189 | AN105: 312-223-689
A106: 201806270728 56122 | C106: 1806241223 | D106: 16472 | E106: 898 | F106: 898 | G106: 1806241223 | H106: 16472 | I106: 20180626067 | J106: 49568 | K106: 49568 | L106: 4 | M106: 9 | N106: 5 | O106: 6 | P106: 8 | R106: 568 | S106: 568 | T106: 5 | U106: 6 | V106: 8 | W106: 0 | X106: 1 | Y106: 3 | Z106: 4 | AA106: 3 | AB106: 1 | AC106: 5 | AD106: 4 | AE106: 2 | AG106: 568013431 | AH106: 568013542 | AI106: 568431542 | AJ106: 013431542 | AK106: 504-613-831 | AL106: 505-614-832 | AM106: 545-634-812 | AN106: 045-134-312
A107: 201806270727 98926 | C107: 1806241224 | D107: 10403 | E107: 897 | F107: 897 | G107: 1806241224 | H107: 10403 | I107: 20180626068 | J107: 69229 | K107: 69229 | L107: 6 | M107: 9 | N107: 2 | O107: 2 | P107: 9 | R107: 229 | S107: 229 | T107: 2 | U107: 2 | V107: 9 | W107: 7 | X107: 7 | Y107: 4 | Z107: 7 | AA107: 7 | AB107: 0 | AC107: 8 | AD107: 8 | AE107: 1 | AG107: 229774770 | AH107: 229774881 | AI107: 229770881 | AJ107: 774770881 | AK107: 277-277-940 | AL107: 278-278-941 | AM107: 278-278-901 | AN107: 778-778-401
A108: 201806270726 92221 | C108: 1806241225 | D108: 05597 | E108: 896 | F108: 896 | G108: 1806241225 | H108: 05597 | I108: 20180626069 | J108: 8497 | K108: 08497 | L108: 0 | M108: 8 | N108: 4 | O108: 9 | P108: 7 | R108: 497 | S108: 497 | T108: 4 | U108: 9 | V108: 7 | W108: 9 | X108: 4 | Y108: 2 | Z108: 5 | AA108: 0 | AB108: 2 | AC108: 6 | AD108: 1 | AE108: 3 | AG108: 497942502 | AH108: 497942613 | AI108: 497502613 | AJ108: 942502613 | AK108: 495-940-722 | AL108: 496-941-723 | AM108: 456-901-723 | AN108: 956-401-223
A109: 201806270725 79700 | C109: 1806241226 | D109: 22895 | E109: 895 | F109: 895 | G109: 1806241226 | H109: 22895 | I109: 20180626070 | J109: 61539 | K109: 61539 | L109: 6 | M109: 1 | N109: 5 | O109: 3 | P109: 9 | R109: 539 | S109: 539 | T109: 5 | U109: 3 | V109: 9 | W109: 0 | X109: 8 | Y109: 4 | Z109: 4 | AA109: 6 | AB109: 0 | AC109: 5 | AD109: 7 | AE109: 1 | AG109: 539084460 | AH109: 539084571 | AI109: 539460571 | AJ109: 084460571 | AK109: 504-386-940 | AL109: 505-387-941 | AM109: 545-367-901 | AN109: 045-867-401
A110: 201806270724 22424 | C110: 1806241227 | D110: 99162 | E110: 894 | F110: 894 | G110: 1806241227 | H110: 99162 | I110: 20180626071 | J110: 26245 | K110: 26245 | L110: 2 | M110: 6 | N110: 2 | O110: 4 | P110: 5 | R110: 245 | S110: 245 | T110: 2 | U110: 4 | V110: 5 | W110: 7 | X110: 9 | Y110: 0 | Z110: 7 | AA110: 5 | AB110: 4 | AC110: 8 | AD110: 6 | AE110: 5 | AG110: 245790754 | AH110: 245790865 | AI110: 245754865 | AJ110: 790754865 | AK110: 277-495-504 | AL110: 278-496-505 | AM110: 278-456-545 | AN110: 778-956-045
A111: 201806270723 47014 | C111: 1806241228 | D111: 44491 | E111: 893 | F111: 893 | G111: 1806241228 | H111: 44491 | I111: 20180626072 | J111: 59720 | K111: 59720 | L111: 5 | M111: 9 | N111: 7 | O111: 2 | P111: 0 | R111: 720 | S111: 720 | T111: =MID($S111,MID(T$11,1,1),1) -> 7 | U111: 2 | V111: 0 | W111: 2 | X111: 7 | Y111: 5 | Z111: 2 | AA111: 7 | AB111: 9 | AC111: 3 | AD111: 8 | AE111: 0 | AG111: 720275279 | AH111: 720275380 | AI111: 720279380 | AJ111: 275279380 | AK111: 722-277-059 | AL111: 723-278-050 | AM111: 723-278-090 | AN111: 223-778-590
A112: 201806270722 62802 | C112: 1806241229 | D112: 81970 | E112: 892 | F112: 892 | G112: 1806241229 | H112: 81970 | I112: 20180626073 | J112: 71981 | K112: 71981 | L112: 7 | M112: 1 | N112: 9 | O112: 8 | P112: 1 | R112: 981 | S112: 981 | T112: 9 | U112: 8 | V112: 1 | W112: 4 | X112: 3 | Y112: 6 | Z112: 0 | AA112: 1 | AB112: 8 | AC112: 1 | AD112: 2 | AE112: 9 | AG112: 981436018 | AH112: 981436129 | AI112: 981018129 | AJ112: 436018129 | AK112: 940-831-168 | AL112: 941-832-169 | AM112: 901-812-189 | AN112: 401-312-689
A113: 201806270721 58740 | C113: 1806241230 | D113: 28873 | E113: 891 | F113: 891 | G113: 1806241230 | H113: 28873 | I113: 20180626074 | J113: 7442 | K113: 07442 | L113: 0 | M113: 7 | N113: 4 | O113: 4 | P113: 2 | R113: 442 | S113: 442 | T113: 4 | U113: 4 | V113: 2 | W113: 9 | X113: 9 | Y113: 7 | Z113: 5 | AA113: 5 | AB113: 7 | AC113: 6 | AD113: 6 | AE113: 8 | AG113: 442997557 | AH113: 442997668 | AI113: 442557668 | AJ113: 997557668 | AK113: 495-495-277 | AL113: 496-496-278 | AM113: 456-456-278 | AN113: 956-956-778
A114: 201806270720 61921 | C114: 1806241231 | D114: 62721 | E114: 890 | F114: 890 | G114: 1806241231 | H114: 62721 | I114: 20180626075 | J114: 47777 | K114: 47777 | L114: 4 | M114: 7 | N114: 7 | O114: 7 | P114: 7 | R114: 777 | S114: 777 | T114: 7 | U114: 7 | V114: 7 | W114: 2 | X114: 2 | Y114: 2 | Z114: 2 | AA114: 2 | AB114: 2 | AC114: 3 | AD114: 3 | AE114: 3 | AG114: 777222222 | AH114: 777222333 | AI114: 777222333 | AJ114: 222222333 | AK114: 722-722-722 | AL114: 723-723-723 | AM114: 723-723-723 | AN114: 223-223-223
A115: 201806270719 22780 | C115: 1806241232 | D115: 99169 | E115: 889 | F115: 889 | G115: 1806241232 | H115: 99169 | I115: 20180626076 | J115: 43602 | K115: 43602 | L115: 4 | M115: 3 | N115: 6 | O115: 0 | P115: 2 | R115: 602 | S115: 602 | T115: 6 | U115: 0 | V115: 2 | W115: 1 | X115: 5 | Y115: 7 | Z115: 3 | AA115: 9 | AB115: 7 | AC115: 4 | AD115: 0 | AE115: 8 | AG115: 602157397 | AH115: 602157408 | AI115: 602397408 | AJ115: 157397408 | AK115: 613-059-277 | AL115: 614-050-278 | AM115: 634-090-278 | AN115: 134-590-778
A116: 201806270718 42325 | C116: 1806241233 | D116: 67322 | E116: 888 | F116: 888 | G116: 1806241233 | H116: 67322 | I116: 20180626077 | J116: 53914 | K116: 53914 | L116: 5 | M116: 3 | N116: 9 | O116: 1 | P116: 4 | R116: 914 | S116: 914 | T116: 9 | U116: 1 | V116: 4 | W116: 4 | X116: 6 | Y116: 9 | Z116: 0 | AA116: 8 | AB116: 5 | AC116: 1 | AD116: 9 | AE116: 6 | AG116: 914469085 | AH116: 914469196 | AI116: 914085196 | AJ116: 469085196 | AK116: 940-168-495 | AL116: 941-169-496 | AM116: 901-189-456 | AN116: 401-689-956
A117: 201806270717 32459 | C117: 1806241234 | D117: 91718 | E117: 887 | F117: 887 | G117: 1806241234 | H117: 91718 | I117: 20180626078 | J117: 84253 | K117: 84253 | L117: 8 | M117: 4 | N117: 2 | O117: 5 | P117: 3 | R117: 253 | S117: 253 | T117: 2 | U117: 5 | V117: 3 | W117: 7 | X117: 0 | Y117: 8 | Z117: 7 | AA117: 4 | AB117: 6 | AC117: 8 | AD117: 5 | AE117: 7 | AG117: 253708746 | AH117: 253708857 | AI117: 253746857 | AJ117: 708746857 | AK117: 277-504-386 | AL117: 278-505-387 | AM117: 278-545-367 | AN117: 778-045-867
A118: 201806270716 03719 | C118: 1806241235 | D118: 50465 | E118: 886 | F118: 886 | G118: 1806241235 | H118: 50465 | I118: 20180626079 | J118: 19056 | K118: 19056 | L118: 1 | M118: 9 | N118: 0 | O118: 5 | P118: 6 | R118: 056 | S118: 056 | T118: 0 | U118: 5 | V118: 6 | W118: 5 | X118: 0 | Y118: 1 | Z118: 9 | AA118: 4 | AB118: 3 | AC118: 0 | AD118: 5 | AE118: 4 | AG118: 056501943 | AH118: 056501054 | AI118: 056943054 | AJ118: 501943054 | AK118: 059-504-613 | AL118: 050-505-614 | AM118: 090-545-634 | AN118: 590-045-134
A119: 201806270715 98062 | C119: 1806241236 | D119: 96752 | E119: 885 | F119: 885 | G119: 1806241236 | H119: 96752 | I119: 20180626080 | J119: 26306 | K119: =IF(J119="","",TEXT(J119,"00000")) -> 26306 | L119: =MID($K119,1,1) -> 2 | M119: =MID(K119,2,1) -> 6 | N119: =MID(K119,3,1) -> 3 | O119: =MID(K119,4,1) -> 0 | P119: =MID(K119,5,1) -> 6 | R119: 306 | S119: 306 | T119: 3 | U119: 0 | V119: 6 | W119: 8 | X119: 5 | Y119: 1 | Z119: 6 | AA119: 9 | AB119: 3 | AC119: 7 | AD119: 0 | AE119: 4 | AG119: 306851693 | AH119: 306851704 | AI119: 306693704 | AJ119: 851693704 | AK119: 386-059-613 | AL119: 387-050-614 | AM119: 367-090-634 | AN119: 867-590-134
A120: 201806270714 40052 | C120: 1806241237 | D120: 34721 | E120: 884 | F120: 884 | G120: 1806241237 | H120: 34721 | I120: 20180626081 | J120: 82209 | K120: =IF(J120="","",TEXT(J120,"00000")) -> 82209 | L120: =MID($K120,1,1) -> 8 | M120: =MID(K120,2,1) -> 2 | N120: =MID(K120,3,1) -> 2 | O120: =MID(K120,4,1) -> 0 | P120: =MID(K120,5,1) -> 9 | R120: 209 | S120: 209 | T120: 2 | U120: 0 | V120: 9 | W120: 7 | X120: 5 | Y120: 4 | Z120: 7 | AA120: 9 | AB120: 0 | AC120: 8 | AD120: 0 | AE120: 1 | AG120: 209754790 | AH120: 209754801 | AI120: 209790801 | AJ120: 754790801 | AK120: 277-059-940 | AL120: 278-050-941 | AM120: 278-090-901 | AN120: 778-590-401
A121: 201806270713 92702 | C121: 1806241238 | D121: 73186 | E121: 883 | F121: 883 | G121: 1806241238 | H121: 73186 | I121: 20180626082 | J121: 58825 | K121: 58825 | L121: 5 | M121: 8 | N121: 8 | O121: 2 | P121: 5 | R121: 825 | S121: 825 | T121: 8 | U121: 2 | V121: 5 | W121: 3 | X121: 7 | Y121: 0 | Z121: 1 | AA121: 7 | AB121: 4 | AC121: 2 | AD121: 8 | AE121: 5 | AG121: 825370174 | AH121: 825370285 | AI121: 825174285 | AJ121: 370174285 | AK121: 831-277-504 | AL121: 832-278-505 | AM121: 812-278-545 | AN121: 312-778-045
A122: 201806270712 06403 | C122: 1806241239 | D122: 96085 | E122: 882 | F122: 882 | G122: 1806241239 | H122: 96085 | I122: 20180626083 | J122: 39703 | K122: 39703 | L122: 3 | M122: 9 | N122: 7 | O122: 0 | P122: 3 | R122: 703 | S122: 703 | T122: 7 | U122: 0 | V122: 3 | W122: 2 | X122: 5 | Y122: 8 | Z122: 2 | AA122: 9 | AB122: 6 | AC122: 3 | AD122: 0 | AE122: 7 | AG122: 703258296 | AH122: 703258307 | AI122: 703296307 | AJ122: 258296307 | AK122: 722-059-386 | AL122: 723-050-387 | AM122: 723-090-367 | AN122: 223-590-867
A123: 201806270711 70765 | C123: 1806241240 | D123: 75895 | E123: 881 | F123: 881 | G123: 1806241240 | H123: 75895 | I123: 20180626084 | J123: 63531 | K123: 63531 | L123: 6 | M123: 3 | N123: 5 | O123: 3 | P123: 1 | R123: 531 | S123: 531 | T123: 5 | U123: 3 | V123: 1 | W123: 0 | X123: 8 | Y123: 6 | Z123: 4 | AA123: 6 | AB123: 8 | AC123: 5 | AD123: 7 | AE123: 9 | AG123: 531086468 | AH123: 531086579 | AI123: 531468579 | AJ123: 086468579 | AK123: 504-386-168 | AL123: 505-387-169 | AM123: 545-367-189 | AN123: 045-867-689
A124: 201806270710 88168 | C124: 1806241241 | D124: 90279 | E124: 880 | F124: 880 | G124: 1806241241 | H124: 90279 | I124: 20180626085 | J124: 16205 | K124: 16205 | L124: 1 | M124: 6 | N124: 2 | O124: 0 | P124: 5 | R124: 205 | S124: 205 | T124: 2 | U124: 0 | V124: 5 | W124: 7 | X124: 5 | Y124: 0 | Z124: 7 | AA124: 9 | AB124: 4 | AC124: 8 | AD124: 0 | AE124: 5 | AG124: 205750794 | AH124: 205750805 | AI124: 205794805 | AJ124: 750794805 | AK124: 277-059-504 | AL124: 278-050-505 | AM124: 278-090-545 | AN124: 778-590-045
A125: 201806270709 76743 | C125: 1806241242 | D125: 60325 | E125: 879 | F125: 879 | G125: 1806241242 | H125: 60325 | I125: 20180626086 | J125: 80743 | K125: 80743 | L125: 8 | M125: 0 | N125: 7 | O125: 4 | P125: 3 | R125: 743 | S125: 743 | T125: 7 | U125: 4 | V125: 3 | W125: 2 | X125: 9 | Y125: 8 | Z125: 2 | AA125: 5 | AB125: 6 | AC125: 3 | AD125: 6 | AE125: 7 | AG125: 743298256 | AH125: 743298367 | AI125: 743256367 | AJ125: 298256367 | AK125: 722-495-386 | AL125: 723-496-387 | AM125: 723-456-367 | AN125: 223-956-867
A126: 201806270708 16341 | C126: 1806241243 | D126: 72047 | E126: 878 | F126: 878 | G126: 1806241243 | H126: 72047 | I126: 20180626087 | J126: 13767 | K126: 13767 | L126: 1 | M126: 3 | N126: 7 | O126: 6 | P126: 7 | R126: 767 | S126: 767 | T126: 7 | U126: 6 | V126: 7 | W126: 2 | X126: 1 | Y126: 2 | Z126: 2 | AA126: 3 | AB126: 2 | AC126: 3 | AD126: 4 | AE126: 3 | AG126: 767212232 | AH126: 767212343 | AI126: 767232343 | AJ126: 212232343 | AK126: 722-613-722 | AL126: 723-614-723 | AM126: 723-634-723 | AN126: 223-134-223
A127: 201806270707 85177 | C127: 1806241244 | D127: 10012 | E127: 877 | F127: 877 | G127: 1806241244 | H127: 10012 | I127: 20180626088 | J127: 71202 | K127: 71202 | L127: 7 | M127: 1 | N127: 2 | O127: 0 | P127: 2 | R127: 202 | S127: 202 | T127: 2 | U127: 0 | V127: 2 | W127: 7 | X127: 5 | Y127: 7 | Z127: 7 | AA127: 9 | AB127: 7 | AC127: 8 | AD127: 0 | AE127: 8 | AG127: 202757797 | AH127: 202757808 | AI127: 202797808 | AJ127: 757797808 | AK127: 277-059-277 | AL127: 278-050-278 | AM127: 278-090-278 | AN127: 778-590-778
A128: 201806270706 72608 | C128: 1806241245 | D128: 73289 | E128: 876 | F128: 876 | G128: 1806241245 | H128: 73289 | I128: 20180626089 | J128: 32877 | K128: 32877 | L128: 3 | M128: 2 | N128: 8 | O128: 7 | P128: 7 | R128: 877 | S128: 877 | T128: 8 | U128: 7 | V128: 7 | W128: 3 | X128: 2 | Y128: 2 | Z128: 1 | AA128: 2 | AB128: 2 | AC128: 2 | AD128: 3 | AE128: 3 | AG128: 877322122 | AH128: 877322233 | AI128: 877122233 | AJ128: 322122233 | AK128: 831-722-722 | AL128: 832-723-723 | AM128: 812-723-723 | AN128: 312-223-223
A129: 201806270705 45918 | C129: 1806241246 | D129: 18361 | E129: 875 | F129: 875 | G129: 1806241246 | H129: 18361 | I129: 20180626090 | J129: 6136 | K129: 06136 | L129: 0 | M129: 6 | N129: 1 | O129: 3 | P129: 6 | R129: 136 | S129: 136 | T129: 1 | U129: 3 | V129: 6 | W129: 6 | X129: 8 | Y129: 1 | Z129: 8 | AA129: 6 | AB129: 3 | AC129: 9 | AD129: 7 | AE129: 4 | AG129: 136681863 | AH129: 136681974 | AI129: 136863974 | AJ129: 681863974 | AK129: 168-386-613 | AL129: 169-387-614 | AM129: 189-367-634 | AN129: 689-867-134
A130: 201806270704 77097 | C130: =IF(E130>=0,MID(OFFSET($A$1,E130,),3,D$1-3),"") -> 1806241247 | D130: =IF(E130>=0,MID(OFFSET($A$1,E130,),D$1+1,5),"") -> 54463 | E130: =E131+1 -> 874 | F130: 874 | G130: =IF(E130>=0,MID(OFFSET($A$1,F130,),3,D$1-3),"") -> 1806241247 | H130: =IF(E130>=0,MID(OFFSET($A$1,F130,),D$1+1,5),"") -> 54463 | I130: 20180626091 | J130: 48320 | K130: 48320 | L130: 4 | M130: 8 | N130: 3 | O130: 2 | P130: 0 | R130: 320 | S130: 320 | T130: 3 | U130: 2 | V130: 0 | W130: 8 | X130: 7 | Y130: 5 | Z130: 6 | AA130: 7 | AB130: 9 | AC130: 7 | AD130: 8 | AE130: 0 | AG130: 320875679 | AH130: 320875780 | AI130: 320679780 | AJ130: 875679780 | AK130: 386-277-059 | AL130: 387-278-050 | AM130: 367-278-090 | AN130: 867-778-590
A131: 201806270703 58366 | C131: 1806241248 | D131: 02437 | E131: 873 | F131: 873 | G131: 1806241248 | H131: 02437 | I131: 20180626092 | J131: 10644 | K131: 10644 | L131: 1 | M131: 0 | N131: 6 | O131: 4 | P131: 4 | R131: 644 | S131: 644 | T131: 6 | U131: 4 | V131: 4 | W131: 1 | X131: 9 | Y131: 9 | Z131: 3 | AA131: 5 | AB131: 5 | AC131: 4 | AD131: 6 | AE131: 6 | AG131: 644199355 | AH131: 644199466 | AI131: 644355466 | AJ131: 199355466 | AK131: 613-495-495 | AL131: 614-496-496 | AM131: 634-456-456 | AN131: 134-956-956
A132: 201806270702 05895 | C132: 1806241249 | D132: 72124 | E132: 872 | F132: 872 | G132: 1806241249 | H132: 72124 | I132: 20180626093 | J132: 76231 | K132: 76231 | L132: 7 | M132: 6 | N132: 2 | O132: 3 | P132: 1 | R132: 231 | S132: 231 | T132: 2 | U132: 3 | V132: 1 | W132: 7 | X132: 8 | Y132: 6 | Z132: 7 | AA132: 6 | AB132: 8 | AC132: 8 | AD132: 7 | AE132: 9 | AG132: 231786768 | AH132: 231786879 | AI132: 231768879 | AJ132: 786768879 | AK132: 277-386-168 | AL132: 278-387-169 | AM132: 278-367-189 | AN132: 778-867-689
A133: 201806270701 92827 | C133: 1806241250 | D133: 77463 | E133: 871 | F133: 871 | G133: 1806241250 | H133: 77463 | I133: 20180626094 | J133: 60114 | K133: 60114 | L133: 6 | M133: 0 | N133: 1 | O133: 1 | P133: 4 | R133: 114 | S133: 114 | T133: 1 | U133: 1 | V133: 4 | W133: 6 | X133: 6 | Y133: 9 | Z133: 8 | AA133: 8 | AB133: 5 | AC133: 9 | AD133: 9 | AE133: 6 | AG133: 114669885 | AH133: 114669996 | AI133: 114885996 | AJ133: 669885996 | AK133: 168-168-495 | AL133: 169-169-496 | AM133: 189-189-456 | AN133: 689-689-956
A134: 201806270700 77217 | C134: 1806241251 | D134: 05062 | E134: 870 | F134: 870 | G134: 1806241251 | H134: 05062 | I134: 20180626095 | J134: 38094 | K134: 38094 | L134: 3 | M134: 8 | N134: 0 | O134: 9 | P134: 4 | R134: 094 | S134: 094 | T134: 0 | U134: 9 | V134: 4 | W134: 5 | X134: 4 | Y134: 9 | Z134: 9 | AA134: 0 | AB134: 5 | AC134: 0 | AD134: 1 | AE134: 6 | AG134: 094549905 | AH134: 094549016 | AI134: 094905016 | AJ134: 549905016 | AK134: 059-940-495 | AL134: 050-941-496 | AM134: 090-901-456 | AN134: 590-401-956
A135: 201806270699 47472 | C135: 1806241252 | D135: 53001 | E135: 869 | F135: 869 | G135: 1806241252 | H135: 53001 | I135: 20180626096 | J135: 31938 | K135: 31938 | L135: 3 | M135: 1 | N135: 9 | O135: 3 | P135: 8 | R135: 938 | S135: 938 | T135: 9 | U135: 3 | V135: 8 | W135: 4 | X135: 8 | Y135: 3 | Z135: 0 | AA135: 6 | AB135: 1 | AC135: 1 | AD135: 7 | AE135: 2 | AG135: 938483061 | AH135: 938483172 | AI135: 938061172 | AJ135: 483061172 | AK135: 940-386-831 | AL135: 941-387-832 | AM135: 901-367-812 | AN135: 401-867-312
A136: 201806270698 51503 | C136: 1806241253 | D136: 90937 | E136: 868 | F136: 868 | G136: 1806241253 | H136: 90937 | I136: 20180626097 | J136: 40872 | K136: 40872 | L136: 4 | M136: 0 | N136: 8 | O136: 7 | P136: 2 | R136: 872 | S136: 872 | T136: 8 | U136: 7 | V136: 2 | W136: 3 | X136: 2 | Y136: 7 | Z136: 1 | AA136: 2 | AB136: 7 | AC136: 2 | AD136: 3 | AE136: 8 | AG136: 872327127 | AH136: 872327238 | AI136: 872127238 | AJ136: 327127238 | AK136: 831-722-277 | AL136: 832-723-278 | AM136: 812-723-278 | AN136: 312-223-778
A137: 201806270697 46906 | C137: 1806241254 | D137: 74389 | E137: 867 | F137: 867 | G137: 1806241254 | H137: 74389 | I137: 20180626098 | J137: 63547 | K137: 63547 | L137: 6 | M137: 3 | N137: 5 | O137: 4 | P137: 7 | R137: 547 | S137: 547 | T137: 5 | U137: 4 | V137: 7 | W137: 0 | X137: 9 | Y137: 2 | Z137: 4 | AA137: 5 | AB137: 2 | AC137: 5 | AD137: 6 | AE137: 3 | AG137: 547092452 | AH137: 547092563 | AI137: 547452563 | AJ137: 092452563 | AK137: 504-495-722 | AL137: 505-496-723 | AM137: 545-456-723 | AN137: 045-956-223
A138: 201806270696 72775 | C138: 1806241255 | D138: 21749 | E138: 866 | F138: 866 | G138: 1806241255 | H138: 21749 | I138: 20180626099 | J138: 39427 | K138: 39427 | L138: 3 | M138: 9 | N138: 4 | O138: 2 | P138: 7 | R138: 427 | S138: 427 | T138: 4 | U138: 2 | V138: 7 | W138: 9 | X138: 7 | Y138: 2 | Z138: 5 | AA138: 7 | AB138: 2 | AC138: 6 | AD138: 8 | AE138: 3 | AG138: 427972572 | AH138: 427972683 | AI138: 427572683 | AJ138: 972572683 | AK138: 495-277-722 | AL138: 496-278-723 | AM138: 456-278-723 | AN138: 956-778-223
A139: 201806270695 71155 | C139: 1806241256 | D139: 20366 | E139: 865 | F139: 865 | G139: 1806241256 | H139: 20366 | I139: 20180626100 | J139: 26760 | K139: 26760 | L139: 2 | M139: 6 | N139: 7 | O139: 6 | P139: 0 | R139: 760 | S139: 760 | T139: 7 | U139: 6 | V139: 0 | W139: 2 | X139: 1 | Y139: 5 | Z139: 2 | AA139: 3 | AB139: 9 | AC139: 3 | AD139: 4 | AE139: 0 | AG139: 760215239 | AH139: 760215340 | AI139: 760239340 | AJ139: 215239340 | AK139: 722-613-059 | AL139: 723-614-050 | AM139: 723-634-090 | AN139: 223-134-590
A140: 201806270694 55010 | C140: 1806241257 | D140: 23534 | E140: 864 | F140: 864 | G140: 1806241257 | H140: 23534 | I140: 20180626101 | J140: 57215 | K140: 57215 | L140: 5 | M140: 7 | N140: 2 | O140: 1 | P140: 5 | R140: 215 | S140: 215 | T140: 2 | U140: 1 | V140: 5 | W140: 7 | X140: 6 | Y140: 0 | Z140: 7 | AA140: 8 | AB140: 4 | AC140: 8 | AD140: 9 | AE140: 5 | AG140: 215760784 | AH140: 215760895 | AI140: 215784895 | AJ140: 760784895 | AK140: 277-168-504 | AL140: 278-169-505 | AM140: 278-189-545 | AN140: 778-689-045
A141: 201806270693 74911 | C141: 1806241258 | D141: 28771 | E141: 863 | F141: 863 | G141: 1806241258 | H141: 28771 | I141: 20180626102 | J141: 2045 | K141: 02045 | L141: 0 | M141: 2 | N141: 0 | O141: 4 | P141: 5 | R141: =IF(R$213="胆码",MID($K141,MID(S$213,1,1),1)&MID($K141,MID(S$213,2,1),1)&MID($K141,MID(S$213,3,1),1),IF(R$213="任合",RIGHT(MID($K141,MID(S$213,1,1),1)+MID($K141,MID(S$213,2,1),1))&RIGHT(MID($K141,MID(S$213,1,1),1)+MID($K141,MID(S$213,3,1),1))&RIGHT(MID($K141,MID(S$213,2,1),1)+MID($K141,MID(S$213,3,1),1)),IF(R$213="任差",RIGHT(MID($K141,MID(S$213,1,1),1)-MID($K141,MID(S$213,2,1),1))&RIGHT(MID($K141,MID(S$213,1,1),1)-MID($K141,MID(S$213,3,1),1))&RIGHT(MID($K141,MID(S$213,2,1),1)-MID($K141,MID(S$213,3,1),1)),IF(R$213="任积",RIGHT(MID($K141,MID(S$213,1,1),1)*MID($K141,MID(S$213,2,1),1))&RIGHT(MID($K141,MID(S$213,1,1),1)*MID($K141,MID(S$213,3,1),1))&RIGHT(MID($K141,MID(S$213,2,1),1)*MID($K141,MID(S$213,3,1),1)),IF(R$213="位合",RIGHT(MID($K141,MID(S$213,1,1),1)+MID($K140,MID(S$213,1,1),1))&RIGHT(MID($K141,MID(S$213,2,1),1)+MID($K140,MID(S$213,2,1),1))&RIGHT(MID($K141,MID(S$213,3,1),1)+MID($K140,MID(S$213,3,1),1)),IF(R$213="位差",RIGHT(MID($K141,MID(S$213,1,1),1)-MID($K140,MID(S$213,1,1),1))&RIGHT(MID($K141,MID(S$213,2,1),1)-MID($K140,MID(S$213,2,1),1))&RIGHT(MID($K141,MID(S$213,3,1),1)-MID($K140,MID(S$213,3,1),1)),IF(R$213="位积",RIGHT(MID($K141,MID(S$213,1,1),1)*MID($K140,MID(S$213,1,1),1))&RIGHT(MID($K141,MID(S$213,2,1),1)*MID($K140,MID(S$213,2,1),1))&RIGHT(MID($K141,MID(S$213,3,1),1)*MID($K140,MID(S$213,3,1),1))))))))) -> 045 | S141: =R141 -> 045 | T141: 0 | U141: 4 | V141: 5 | W141: 5 | X141: 9 | Y141: 0 | Z141: 9 | AA141: 5 | AB141: 4 | AC141: 0 | AD141: 6 | AE141: 5 | AG141: 045590954 | AH141: 045590065 | AI141: 045954065 | AJ141: 590954065 | AK141: 059-495-504 | AL141: 050-496-505 | AM141: 090-456-545 | AN141: 590-956-045
A142: 201806270692 82451 | C142: 1806241259 | D142: 81340 | E142: 862 | F142: 862 | G142: 1806241259 | H142: 81340 | I142: 20180626103 | J142: 23478 | K142: 23478 | L142: 2 | M142: 3 | N142: 4 | O142: 7 | P142: 8 | R142: 478 | S142: 478 | T142: 4 | U142: 7 | V142: 8 | W142: 9 | X142: 2 | Y142: 3 | Z142: 5 | AA142: 2 | AB142: 1 | AC142: 6 | AD142: 3 | AE142: 2 | AG142: 478923521 | AH142: 478923632 | AI142: 478521632 | AJ142: 923521632 | AK142: 495-722-831 | AL142: 496-723-832 | AM142: 456-723-812 | AN142: 956-223-312
A143: 201806270691 92771 | C143: 1806241260 | D143: 58493 | E143: 861 | F143: 861 | G143: 1806241260 | H143: 58493 | I143: 20180626104 | J143: 76184 | K143: 76184 | L143: 7 | M143: 6 | N143: 1 | O143: 8 | P143: 4 | R143: 184 | S143: 184 | T143: =MID($S143,MID(T$11,1,1),1) -> 1 | U143: 8 | V143: 4 | W143: =RIGHT(T143+5) -> 6 | X143: =RIGHT(U143+5) -> 3 | Y143: =RIGHT(V143+5) -> 9 | Z143: =RIGHT(9-T143) -> 8 | AA143: =RIGHT(9-U143) -> 1 | AB143: =RIGHT(9-V143) -> 5 | AC143: =RIGHT(10-T143) -> 9 | AD143: =RIGHT(10-U143) -> 2 | AE143: =RIGHT(10-V143) -> 6 | AG143: 184639815 | AH143: 184639926 | AI143: 184815926 | AJ143: 639815926 | AK143: =T143&W143&Z143&"-"&U143&X143&AA143&"-"&V143&Y143&AB143 -> 168-831-495 | AL143: =T143&W143&AC143&"-"&U143&X143&AD143&"-"&V143&Y143&AE143 -> 169-832-496 | AM143: =T143&Z143&AC143&"-"&U143&AA143&AD143&"-"&V143&AB143&AE143 -> 189-812-456 | AN143: =W143&Z143&AC143&"-"&X143&AA143&AD143&"-"&Y143&AB143&AE143 -> 689-312-956
A144: 201806270690 68553 | C144: 1806241261 | D144: 80858 | E144: 860 | F144: 860 | G144: 1806241261 | H144: 80858 | I144: 20180626105 | J144: 15411 | K144: 15411 | L144: 1 | M144: 5 | N144: 4 | O144: 1 | P144: 1 | R144: 411 | S144: 411 | T144: 4 | U144: 1 | V144: 1 | W144: 9 | X144: 6 | Y144: 6 | Z144: 5 | AA144: 8 | AB144: 8 | AC144: 6 | AD144: 9 | AE144: 9 | AG144: 411966588 | AH144: 411966699 | AI144: 411588699 | AJ144: 966588699 | AK144: 495-168-168 | AL144: 496-169-169 | AM144: 456-189-189 | AN144: 956-689-689
A145: 201806270689 50048 | C145: 1806241262 | D145: 51960 | E145: 859 | F145: 859 | G145: 1806241262 | H145: 51960 | I145: 20180626106 | J145: 13488 | K145: 13488 | L145: 1 | M145: 3 | N145: 4 | O145: 8 | P145: 8 | R145: 488 | S145: 488 | T145: 4 | U145: 8 | V145: 8 | W145: 9 | X145: 3 | Y145: 3 | Z145: 5 | AA145: 1 | AB145: 1 | AC145: 6 | AD145: 2 | AE145: 2 | AG145: 488933511 | AH145: 488933622 | AI145: 488511622 | AJ145: 933511622 | AK145: 495-831-831 | AL145: 496-832-832 | AM145: 456-812-812 | AN145: 956-312-312
A146: 201806270688 18018 | C146: 1806241263 | D146: 78575 | E146: 858 | F146: 858 | G146: 1806241263 | H146: 78575 | I146: 20180626107 | J146: 46393 | K146: 46393 | L146: 4 | M146: 6 | N146: 3 | O146: 9 | P146: 3 | R146: 393 | S146: 393 | T146: 3 | U146: 9 | V146: 3 | W146: 8 | X146: 4 | Y146: 8 | Z146: 6 | AA146: 0 | AB146: 6 | AC146: 7 | AD146: 1 | AE146: 7 | AG146: =T146&U146&V146&W146&X146&Y146&Z146&AA146&AB146 -> 393848606 | AH146: =T146&U146&V146&W146&X146&Y146&AC146&AD146&AE146 -> 393848717 | AI146: =T146&U146&V146&Z146&AA146&AB146&AC146&AD146&AE146 -> 393606717 | AJ146: =W146&X146&Y146&Z146&AA146&AB146&AC146&AD146&AE146 -> 848606717 | AK146: 386-940-386 | AL146: 387-941-387 | AM146: 367-901-367 | AN146: 867-401-867
A147: 201806270687 00528 | C147: 1806241264 | D147: 34890 | E147: 857 | F147: 857 | G147: 1806241264 | H147: 34890 | I147: 20180626108 | J147: 11787 | K147: 11787 | L147: 1 | M147: 1 | N147: 7 | O147: 8 | P147: 7 | R147: 787 | S147: 787 | T147: 7 | U147: 8 | V147: 7 | W147: 2 | X147: 3 | Y147: 2 | Z147: 2 | AA147: 1 | AB147: 2 | AC147: 3 | AD147: 2 | AE147: 3 | AG147: 787232212 | AH147: 787232323 | AI147: 787212323 | AJ147: 232212323 | AK147: 722-831-722 | AL147: 723-832-723 | AM147: 723-812-723 | AN147: 223-312-223
A148: 201806270686 81398 | C148: 1806241265 | D148: 49746 | E148: 856 | F148: 856 | G148: 1806241265 | H148: 49746 | I148: 20180626109 | J148: 91040 | K148: 91040 | L148: 9 | M148: 1 | N148: 0 | O148: 4 | P148: 0 | R148: 040 | S148: 040 | T148: 0 | U148: 4 | V148: 0 | W148: 5 | X148: 9 | Y148: 5 | Z148: 9 | AA148: 5 | AB148: 9 | AC148: 0 | AD148: 6 | AE148: 0 | AG148: 040595959 | AH148: 040595060 | AI148: 040959060 | AJ148: 595959060 | AK148: 059-495-059 | AL148: 050-496-050 | AM148: 090-456-090 | AN148: 590-956-590
A149: 201806270685 36829 | C149: 1806241266 | D149: 86855 | E149: 855 | F149: 855 | G149: 1806241266 | H149: 86855 | I149: 20180626110 | J149: 67614 | K149: 67614 | L149: 6 | M149: 7 | N149: 6 | O149: 1 | P149: 4 | R149: 614 | S149: 614 | T149: 6 | U149: 1 | V149: 4 | W149: 1 | X149: 6 | Y149: 9 | Z149: 3 | AA149: 8 | AB149: 5 | AC149: 4 | AD149: 9 | AE149: 6 | AG149: 614169385 | AH149: 614169496 | AI149: 614385496 | AJ149: 169385496 | AK149: 613-168-495 | AL149: 614-169-496 | AM149: 634-189-456 | AN149: 134-689-956
A150: 201806270684 42372 | C150: 1806241267 | D150: 80961 | E150: 854 | F150: 854 | G150: 1806241267 | H150: 80961 | I150: 20180626111 | J150: 25010 | K150: 25010 | L150: 2 | M150: 5 | N150: 0 | O150: 1 | P150: 0 | R150: 010 | S150: 010 | T150: 0 | U150: 1 | V150: 0 | W150: 5 | X150: 6 | Y150: 5 | Z150: 9 | AA150: 8 | AB150: 9 | AC150: 0 | AD150: 9 | AE150: 0 | AG150: 010565989 | AH150: 010565090 | AI150: 010989090 | AJ150: 565989090 | AK150: 059-168-059 | AL150: 050-169-050 | AM150: 090-189-090 | AN150: 590-689-590
A151: 201806270683 41162 | C151: 1806241268 | D151: 93421 | E151: 853 | F151: 853 | G151: 1806241268 | H151: 93421 | I151: 20180626112 | J151: 59274 | K151: 59274 | L151: 5 | M151: 9 | N151: 2 | O151: 7 | P151: 4 | R151: 274 | S151: 274 | T151: 2 | U151: 7 | V151: 4 | W151: 7 | X151: 2 | Y151: 9 | Z151: 7 | AA151: 2 | AB151: 5 | AC151: 8 | AD151: 3 | AE151: 6 | AG151: 274729725 | AH151: 274729836 | AI151: 274725836 | AJ151: 729725836 | AK151: 277-722-495 | AL151: 278-723-496 | AM151: 278-723-456 | AN151: 778-223-956
A152: 201806270682 20118 | C152: 1806241269 | D152: 10148 | E152: 852 | F152: 852 | G152: 1806241269 | H152: 10148 | I152: 20180626113 | J152: 93825 | K152: 93825 | L152: 9 | M152: 3 | N152: 8 | O152: 2 | P152: 5 | R152: 825 | S152: 825 | T152: 8 | U152: 2 | V152: 5 | W152: 3 | X152: 7 | Y152: 0 | Z152: 1 | AA152: 7 | AB152: 4 | AC152: 2 | AD152: 8 | AE152: 5 | AG152: 825370174 | AH152: 825370285 | AI152: 825174285 | AJ152: 370174285 | AK152: 831-277-504 | AL152: 832-278-505 | AM152: 812-278-545 | AN152: 312-778-045
A153: 201806270681 80387 | C153: 1806241270 | D153: 48877 | E153: 851 | F153: 851 | G153: 1806241270 | H153: 48877 | I153: 20180626114 | J153: 83574 | K153: 83574 | L153: 8 | M153: 3 | N153: 5 | O153: 7 | P153: 4 | R153: 574 | S153: 574 | T153: 5 | U153: 7 | V153: 4 | W153: 0 | X153: 2 | Y153: 9 | Z153: 4 | AA153: 2 | AB153: 5 | AC153: 5 | AD153: 3 | AE153: 6 | AG153: 574029425 | AH153: 574029536 | AI153: 574425536 | AJ153: 029425536 | AK153: 504-722-495 | AL153: 505-723-496 | AM153: 545-723-456 | AN153: 045-223-956
A154: 201806270680 44562 | C154: 1806241271 | D154: 84039 | E154: 850 | F154: 850 | G154: 1806241271 | H154: 84039 | I154: 20180626115 | J154: 37049 | K154: 37049 | L154: 3 | M154: 7 | N154: 0 | O154: 4 | P154: 9 | R154: 049 | S154: 049 | T154: 0 | U154: 4 | V154: 9 | W154: 5 | X154: 9 | Y154: 4 | Z154: 9 | AA154: 5 | AB154: 0 | AC154: 0 | AD154: 6 | AE154: 1 | AG154: 049594950 | AH154: 049594061 | AI154: 049950061 | AJ154: 594950061 | AK154: 059-495-940 | AL154: 050-496-941 | AM154: 090-456-901 | AN154: 590-956-401
A155: 201806270679 19413 | C155: 1806241272 | D155: 33050 | E155: 849 | F155: 849 | G155: 1806241272 | H155: 33050 | I155: 20180626116 | J155: 86550 | K155: 86550 | L155: 8 | M155: 6 | N155: 5 | O155: 5 | P155: 0 | R155: 550 | S155: 550 | T155: 5 | U155: 5 | V155: 0 | W155: 0 | X155: 0 | Y155: 5 | Z155: 4 | AA155: 4 | AB155: 9 | AC155: 5 | AD155: 5 | AE155: 0 | AG155: 550005449 | AH155: 550005550 | AI155: 550449550 | AJ155: 005449550 | AK155: 504-504-059 | AL155: 505-505-050 | AM155: 545-545-090 | AN155: 045-045-590
A156: 201806270678 59173 | C156: 1806241273 | D156: 83395 | E156: 848 | F156: 848 | G156: 1806241273 | H156: 83395 | I156: 20180626117 | J156: 28305 | K156: 28305 | L156: 2 | M156: 8 | N156: 3 | O156: 0 | P156: 5 | R156: 305 | S156: 305 | T156: 3 | U156: 0 | V156: 5 | W156: 8 | X156: 5 | Y156: 0 | Z156: 6 | AA156: 9 | AB156: 4 | AC156: 7 | AD156: 0 | AE156: 5 | AG156: 305850694 | AH156: 305850705 | AI156: 305694705 | AJ156: 850694705 | AK156: 386-059-504 | AL156: 387-050-505 | AM156: 367-090-545 | AN156: 867-590-045
A157: 201806270677 85324 | C157: 1806241274 | D157: 99975 | E157: 847 | F157: 847 | G157: 1806241274 | H157: 99975 | I157: 20180626118 | J157: 35851 | K157: 35851 | L157: 3 | M157: 5 | N157: 8 | O157: 5 | P157: 1 | R157: 851 | S157: 851 | T157: 8 | U157: 5 | V157: 1 | W157: 3 | X157: 0 | Y157: 6 | Z157: 1 | AA157: 4 | AB157: 8 | AC157: 2 | AD157: 5 | AE157: 9 | AG157: 851306148 | AH157: 851306259 | AI157: 851148259 | AJ157: 306148259 | AK157: 831-504-168 | AL157: 832-505-169 | AM157: 812-545-189 | AN157: 312-045-689
A158: 201806270676 53693 | C158: 1806241275 | D158: 81536 | E158: 846 | F158: 846 | G158: 1806241275 | H158: 81536 | I158: 20180626119 | J158: 43995 | K158: 43995 | L158: 4 | M158: 3 | N158: 9 | O158: 9 | P158: 5 | R158: 995 | S158: 995 | T158: 9 | U158: 9 | V158: 5 | W158: 4 | X158: 4 | Y158: 0 | Z158: 0 | AA158: 0 | AB158: 4 | AC158: 1 | AD158: 1 | AE158: 5 | AG158: 995440004 | AH158: 995440115 | AI158: 995004115 | AJ158: 440004115 | AK158: 940-940-504 | AL158: 941-941-505 | AM158: 901-901-545 | AN158: 401-401-045
A159: 201806270675 58085 | C159: 1806241276 | D159: 67889 | E159: 845 | F159: 845 | G159: 1806241276 | H159: 67889 | I159: 20180626120 | J159: 34838 | K159: 34838 | L159: 3 | M159: 4 | N159: 8 | O159: 3 | P159: 8 | R159: 838 | S159: 838 | T159: 8 | U159: 3 | V159: 8 | W159: 3 | X159: 8 | Y159: 3 | Z159: 1 | AA159: 6 | AB159: 1 | AC159: 2 | AD159: 7 | AE159: 2 | AG159: 838383161 | AH159: 838383272 | AI159: 838161272 | AJ159: 383161272 | AK159: 831-386-831 | AL159: 832-387-832 | AM159: 812-367-812 | AN159: 312-867-312
A160: 201806270674 79359 | C160: 1806241277 | D160: 76013 | E160: 844 | F160: 844 | G160: 1806241277 | H160: 76013 | I160: 20180627001 | J160: 17656 | K160: 17656 | L160: 1 | M160: 7 | N160: 6 | O160: 5 | P160: 6 | R160: 656 | S160: 656 | T160: 6 | U160: 5 | V160: 6 | W160: 1 | X160: 0 | Y160: 1 | Z160: 3 | AA160: 4 | AB160: 3 | AC160: 4 | AD160: 5 | AE160: 4 | AG160: 656101343 | AH160: 656101454 | AI160: 656343454 | AJ160: 101343454 | AK160: 613-504-613 | AL160: 614-505-614 | AM160: 634-545-634 | AN160: 134-045-134
A161: 201806270673 28886 | C161: 1806241278 | D161: 00737 | E161: 843 | F161: 843 | G161: 1806241278 | H161: 00737 | I161: 20180627002 | J161: 97484 | K161: 97484 | L161: 9 | M161: 7 | N161: 4 | O161: 8 | P161: 4 | R161: 484 | S161: 484 | T161: 4 | U161: 8 | V161: 4 | W161: 9 | X161: 3 | Y161: 9 | Z161: 5 | AA161: 1 | AB161: 5 | AC161: 6 | AD161: 2 | AE161: 6 | AG161: 484939515 | AH161: 484939626 | AI161: 484515626 | AJ161: 939515626 | AK161: 495-831-495 | AL161: 496-832-496 | AM161: 456-812-456 | AN161: 956-312-956
A162: 201806270672 91651 | C162: 1806241279 | D162: 57705 | E162: 842 | F162: 842 | G162: 1806241279 | H162: 57705 | I162: 20180627003 | J162: 1411 | K162: 01411 | L162: 0 | M162: 1 | N162: 4 | O162: 1 | P162: 1 | R162: 411 | S162: 411 | T162: 4 | U162: 1 | V162: 1 | W162: 9 | X162: 6 | Y162: 6 | Z162: 5 | AA162: 8 | AB162: 8 | AC162: 6 | AD162: 9 | AE162: 9 | AG162: 411966588 | AH162: 411966699 | AI162: 411588699 | AJ162: 966588699 | AK162: 495-168-168 | AL162: 496-169-169 | AM162: 456-189-189 | AN162: 956-689-689
A163: 201806270671 12932 | C163: 1806241280 | D163: 52490 | E163: 841 | F163: 841 | G163: 1806241280 | H163: 52490 | I163: 20180627004 | J163: 19458 | K163: 19458 | L163: 1 | M163: 9 | N163: 4 | O163: 5 | P163: 8 | R163: 458 | S163: 458 | T163: 4 | U163: 5 | V163: 8 | W163: 9 | X163: 0 | Y163: 3 | Z163: 5 | AA163: 4 | AB163: 1 | AC163: 6 | AD163: 5 | AE163: 2 | AG163: 458903541 | AH163: 458903652 | AI163: 458541652 | AJ163: 903541652 | AK163: 495-504-831 | AL163: 496-505-832 | AM163: 456-545-812 | AN163: 956-045-312
A164: 201806270670 60781 | C164: 1806241281 | D164: 97744 | E164: 840 | F164: 840 | G164: 1806241281 | H164: 97744 | I164: 20180627005 | J164: 88109 | K164: 88109 | L164: 8 | M164: 8 | N164: 1 | O164: 0 | P164: 9 | R164: 109 | S164: 109 | T164: 1 | U164: 0 | V164: 9 | W164: 6 | X164: 5 | Y164: 4 | Z164: 8 | AA164: 9 | AB164: 0 | AC164: 9 | AD164: 0 | AE164: 1 | AG164: 109654890 | AH164: 109654901 | AI164: 109890901 | AJ164: 654890901 | AK164: 168-059-940 | AL164: 169-050-941 | AM164: 189-090-901 | AN164: 689-590-401
A165: 201806270669 27810 | C165: 1806241282 | D165: 78487 | E165: 839 | F165: 839 | G165: 1806241282 | H165: 78487 | I165: 20180627006 | J165: 77335 | K165: 77335 | L165: 7 | M165: 7 | N165: 3 | O165: 3 | P165: 5 | R165: 335 | S165: 335 | T165: 3 | U165: 3 | V165: 5 | W165: 8 | X165: 8 | Y165: 0 | Z165: 6 | AA165: 6 | AB165: 4 | AC165: 7 | AD165: 7 | AE165: 5 | AG165: 335880664 | AH165: 335880775 | AI165: 335664775 | AJ165: 880664775 | AK165: 386-386-504 | AL165: 387-387-505 | AM165: 367-367-545 | AN165: 867-867-045
A166: 201806270668 89237 | C166: 1806241283 | D166: 12355 | E166: 838 | F166: 838 | G166: 1806241283 | H166: 12355 | I166: 20180627007 | J166: 83890 | K166: 83890 | L166: 8 | M166: 3 | N166: 8 | O166: 9 | P166: 0 | R166: 890 | S166: 890 | T166: 8 | U166: 9 | V166: 0 | W166: 3 | X166: 4 | Y166: 5 | Z166: 1 | AA166: 0 | AB166: 9 | AC166: 2 | AD166: 1 | AE166: 0 | AG166: 890345109 | AH166: 890345210 | AI166: 890109210 | AJ166: 345109210 | AK166: 831-940-059 | AL166: 832-941-050 | AM166: 812-901-090 | AN166: 312-401-590
A167: 201806270667 59732 | C167: 1806241284 | D167: 66833 | E167: 837 | F167: 837 | G167: 1806241284 | H167: 66833 | I167: 20180627008 | J167: 92613 | K167: 92613 | L167: 9 | M167: 2 | N167: 6 | O167: 1 | P167: 3 | R167: 613 | S167: 613 | T167: 6 | U167: 1 | V167: 3 | W167: 1 | X167: 6 | Y167: 8 | Z167: 3 | AA167: 8 | AB167: 6 | AC167: 4 | AD167: 9 | AE167: 7 | AG167: 613168386 | AH167: 613168497 | AI167: 613386497 | AJ167: 168386497 | AK167: 613-168-386 | AL167: 614-169-387 | AM167: 634-189-367 | AN167: 134-689-867
A168: 201806270666 23916 | C168: 1806241285 | D168: 04849 | E168: 836 | F168: 836 | G168: 1806241285 | H168: 04849 | I168: 20180627009 | J168: 73115 | K168: 73115 | L168: 7 | M168: 3 | N168: 1 | O168: 1 | P168: 5 | R168: 115 | S168: 115 | T168: 1 | U168: 1 | V168: 5 | W168: 6 | X168: 6 | Y168: 0 | Z168: 8 | AA168: 8 | AB168: 4 | AC168: 9 | AD168: 9 | AE168: 5 | AG168: 115660884 | AH168: 115660995 | AI168: 115884995 | AJ168: 660884995 | AK168: 168-168-504 | AL168: 169-169-505 | AM168: 189-189-545 | AN168: 689-689-045
A169: 201806270665 37962 | C169: 1806241286 | D169: 39180 | E169: 835 | F169: 835 | G169: 1806241286 | H169: 39180 | I169: 20180627010 | J169: 81496 | K169: 81496 | L169: 8 | M169: 1 | N169: 4 | O169: 9 | P169: 6 | R169: 496 | S169: 496 | T169: 4 | U169: 9 | V169: 6 | W169: 9 | X169: 4 | Y169: 1 | Z169: 5 | AA169: 0 | AB169: 3 | AC169: 6 | AD169: 1 | AE169: 4 | AG169: 496941503 | AH169: 496941614 | AI169: 496503614 | AJ169: 941503614 | AK169: 495-940-613 | AL169: 496-941-614 | AM169: 456-901-634 | AN169: 956-401-134
A170: 201806270664 07396 | C170: 1806241287 | D170: 05016 | E170: 834 | F170: 834 | G170: 1806241287 | H170: 05016 | I170: 20180627011 | J170: 30061 | K170: 30061 | L170: 3 | M170: 0 | N170: 0 | O170: 6 | P170: 1 | R170: 061 | S170: 061 | T170: 0 | U170: 6 | V170: 1 | W170: 5 | X170: 1 | Y170: 6 | Z170: 9 | AA170: 3 | AB170: 8 | AC170: 0 | AD170: 4 | AE170: 9 | AG170: 061516938 | AH170: 061516049 | AI170: 061938049 | AJ170: 516938049 | AK170: 059-613-168 | AL170: 050-614-169 | AM170: 090-634-189 | AN170: 590-134-689
A171: 201806270663 72977 | C171: 1806241288 | D171: 76426 | E171: 833 | F171: 833 | G171: 1806241288 | H171: 76426 | I171: 20180627012 | J171: 78208 | K171: 78208 | L171: 7 | M171: 8 | N171: 2 | O171: 0 | P171: 8 | R171: 208 | S171: 208 | T171: 2 | U171: 0 | V171: 8 | W171: 7 | X171: 5 | Y171: 3 | Z171: 7 | AA171: 9 | AB171: 1 | AC171: 8 | AD171: 0 | AE171: 2 | AG171: 208753791 | AH171: 208753802 | AI171: 208791802 | AJ171: 753791802 | AK171: 277-059-831 | AL171: 278-050-832 | AM171: 278-090-812 | AN171: 778-590-312
A172: 201806270662 46943 | C172: 1806241289 | D172: 95164 | E172: 832 | F172: 832 | G172: 1806241289 | H172: 95164 | I172: 20180627013 | J172: 10197 | K172: 10197 | L172: 1 | M172: 0 | N172: 1 | O172: 9 | P172: 7 | R172: 197 | S172: 197 | T172: 1 | U172: 9 | V172: 7 | W172: 6 | X172: 4 | Y172: 2 | Z172: 8 | AA172: 0 | AB172: 2 | AC172: 9 | AD172: 1 | AE172: 3 | AG172: 197642802 | AH172: 197642913 | AI172: 197802913 | AJ172: 642802913 | AK172: 168-940-722 | AL172: 169-941-723 | AM172: 189-901-723 | AN172: 689-401-223
A173: 201806270661 13002 | C173: 1806241290 | D173: 14010 | E173: 831 | F173: 831 | G173: 1806241290 | H173: 14010 | I173: 20180627014 | J173: 30161 | K173: 30161 | L173: 3 | M173: 0 | N173: 1 | O173: 6 | P173: 1 | R173: 161 | S173: 161 | T173: 1 | U173: 6 | V173: 1 | W173: 6 | X173: 1 | Y173: 6 | Z173: 8 | AA173: 3 | AB173: 8 | AC173: 9 | AD173: 4 | AE173: 9 | AG173: 161616838 | AH173: 161616949 | AI173: 161838949 | AJ173: 616838949 | AK173: 168-613-168 | AL173: 169-614-169 | AM173: 189-634-189 | AN173: 689-134-689
A174: 201806270660 56284 | C174: 1806241291 | D174: 89569 | E174: 830 | F174: 830 | G174: 1806241291 | H174: 89569 | I174: 20180627015 | J174: 30270 | K174: 30270 | L174: 3 | M174: 0 | N174: 2 | O174: 7 | P174: 0 | R174: 270 | S174: 270 | T174: 2 | U174: 7 | V174: 0 | W174: 7 | X174: 2 | Y174: 5 | Z174: 7 | AA174: 2 | AB174: 9 | AC174: 8 | AD174: 3 | AE174: 0 | AG174: 270725729 | AH174: 270725830 | AI174: 270729830 | AJ174: 725729830 | AK174: 277-722-059 | AL174: 278-723-050 | AM174: 278-723-090 | AN174: 778-223-590
A175: 201806270659 96344 | C175: 1806241292 | D175: 07698 | E175: 829 | F175: 829 | G175: 1806241292 | H175: 07698 | I175: 20180627016 | J175: 37106 | K175: 37106 | L175: 3 | M175: 7 | N175: 1 | O175: 0 | P175: 6 | R175: 106 | S175: 106 | T175: =MID($S175,MID(T$11,1,1),1) -> 1 | U175: 0 | V175: 6 | W175: 6 | X175: 5 | Y175: 1 | Z175: 8 | AA175: 9 | AB175: 3 | AC175: 9 | AD175: 0 | AE175: 4 | AG175: 106651893 | AH175: 106651904 | AI175: 106893904 | AJ175: 651893904 | AK175: 168-059-613 | AL175: 169-050-614 | AM175: 189-090-634 | AN175: 689-590-134
A176: 201806270658 73047 | C176: 1806241293 | D176: 21172 | E176: 828 | F176: 828 | G176: 1806241293 | H176: 21172 | I176: 20180627017 | J176: 67362 | K176: 67362 | L176: 6 | M176: 7 | N176: 3 | O176: 6 | P176: 2 | R176: 362 | S176: 362 | T176: 3 | U176: 6 | V176: 2 | W176: 8 | X176: 1 | Y176: 7 | Z176: 6 | AA176: 3 | AB176: 7 | AC176: 7 | AD176: 4 | AE176: 8 | AG176: 362817637 | AH176: 362817748 | AI176: 362637748 | AJ176: 817637748 | AK176: 386-613-277 | AL176: 387-614-278 | AM176: 367-634-278 | AN176: 867-134-778
A177: 201806270657 70544 | C177: 1806241294 | D177: 80809 | E177: 827 | F177: 827 | G177: 1806241294 | H177: 80809 | I177: 20180627018 | J177: 51849 | K177: 51849 | L177: 5 | M177: 1 | N177: 8 | O177: 4 | P177: 9 | R177: 849 | S177: 849 | T177: 8 | U177: 4 | V177: 9 | W177: 3 | X177: 9 | Y177: 4 | Z177: 1 | AA177: 5 | AB177: 0 | AC177: 2 | AD177: 6 | AE177: 1 | AG177: 849394150 | AH177: 849394261 | AI177: 849150261 | AJ177: 394150261 | AK177: 831-495-940 | AL177: 832-496-941 | AM177: 812-456-901 | AN177: 312-956-401
A178: 201806270656 00650 | C178: 1806241295 | D178: 36827 | E178: 826 | F178: 826 | G178: 1806241295 | H178: 36827 | I178: 20180627019 | J178: 70760 | K178: 70760 | L178: 7 | M178: 0 | N178: 7 | O178: 6 | P178: 0 | R178: 760 | S178: 760 | T178: 7 | U178: 6 | V178: 0 | W178: 2 | X178: 1 | Y178: 5 | Z178: 2 | AA178: 3 | AB178: 9 | AC178: 3 | AD178: 4 | AE178: 0 | AG178: 760215239 | AH178: 760215340 | AI178: 760239340 | AJ178: 215239340 | AK178: 722-613-059 | AL178: 723-614-050 | AM178: 723-634-090 | AN178: 223-134-590
A179: 201806270655 33594 | C179: 1806241296 | D179: 97886 | E179: 825 | F179: 825 | G179: 1806241296 | H179: 97886 | I179: 20180627020 | J179: 4213 | K179: 04213 | L179: 0 | M179: 4 | N179: 2 | O179: 1 | P179: 3 | R179: 213 | S179: 213 | T179: 2 | U179: 1 | V179: 3 | W179: 7 | X179: 6 | Y179: 8 | Z179: 7 | AA179: 8 | AB179: 6 | AC179: 8 | AD179: 9 | AE179: 7 | AG179: 213768786 | AH179: 213768897 | AI179: 213786897 | AJ179: 768786897 | AK179: 277-168-386 | AL179: 278-169-387 | AM179: 278-189-367 | AN179: 778-689-867
A180: 201806270654 56173 | C180: 1806241297 | D180: 50357 | E180: 824 | F180: 824 | G180: 1806241297 | H180: 50357 | I180: 20180627021 | J180: 75183 | K180: 75183 | L180: 7 | M180: 5 | N180: 1 | O180: 8 | P180: 3 | R180: 183 | S180: 183 | T180: 1 | U180: 8 | V180: 3 | W180: 6 | X180: 3 | Y180: 8 | Z180: 8 | AA180: 1 | AB180: 6 | AC180: 9 | AD180: 2 | AE180: 7 | AG180: 183638816 | AH180: 183638927 | AI180: 183816927 | AJ180: 638816927 | AK180: 168-831-386 | AL180: 169-832-387 | AM180: 189-812-367 | AN180: 689-312-867
A181: 201806270653 26220 | C181: 1806241298 | D181: 17113 | E181: 823 | F181: 823 | G181: 1806241298 | H181: 17113 | I181: 20180627022 | J181: 26666 | K181: 26666 | L181: 2 | M181: 6 | N181: 6 | O181: 6 | P181: 6 | R181: 666 | S181: 666 | T181: 6 | U181: 6 | V181: 6 | W181: 1 | X181: 1 | Y181: 1 | Z181: 3 | AA181: 3 | AB181: 3 | AC181: 4 | AD181: 4 | AE181: 4 | AG181: 666111333 | AH181: 666111444 | AI181: 666333444 | AJ181: 111333444 | AK181: 613-613-613 | AL181: 614-614-614 | AM181: 634-634-634 | AN181: 134-134-134
A182: 201806270652 61820 | C182: 1806241299 | D182: 55687 | E182: 822 | F182: 822 | G182: 1806241299 | H182: 55687 | I182: 20180627023 | J182: 18709 | K182: 18709 | L182: 1 | M182: 8 | N182: 7 | O182: 0 | P182: 9 | R182: 709 | S182: 709 | T182: 7 | U182: 0 | V182: 9 | W182: 2 | X182: 5 | Y182: 4 | Z182: 2 | AA182: 9 | AB182: 0 | AC182: 3 | AD182: 0 | AE182: 1 | AG182: 709254290 | AH182: 709254301 | AI182: 709290301 | AJ182: 254290301 | AK182: 722-059-940 | AL182: 723-050-941 | AM182: 723-090-901 | AN182: 223-590-401
A183: 201806270651 45724 | C183: 1806241300 | D183: 01216 | E183: 821 | F183: 821 | G183: 1806241300 | H183: 01216 | I183: 20180627024 | J183: 48095 | K183: 48095 | L183: 4 | M183: 8 | N183: 0 | O183: 9 | P183: 5 | R183: 095 | S183: 095 | T183: 0 | U183: 9 | V183: 5 | W183: 5 | X183: 4 | Y183: 0 | Z183: 9 | AA183: 0 | AB183: 4 | AC183: 0 | AD183: 1 | AE183: 5 | AG183: 095540904 | AH183: 095540015 | AI183: 095904015 | AJ183: 540904015 | AK183: 059-940-504 | AL183: 050-941-505 | AM183: 090-901-545 | AN183: 590-401-045
A184: 201806270650 79253 | C184: 1806241301 | D184: 87993 | E184: 820 | F184: 820 | G184: 1806241301 | H184: 87993 | I184: 20180627025 | J184: 24644 | K184: =IF(J184="","",TEXT(J184,"00000")) -> 24644 | L184: =MID($K184,1,1) -> 2 | M184: =MID(K184,2,1) -> 4 | N184: =MID(K184,3,1) -> 6 | O184: =MID(K184,4,1) -> 4 | P184: =MID(K184,5,1) -> 4 | R184: 644 | S184: 644 | T184: 6 | U184: 4 | V184: 4 | W184: 1 | X184: 9 | Y184: 9 | Z184: 3 | AA184: 5 | AB184: 5 | AC184: 4 | AD184: 6 | AE184: 6 | AG184: 644199355 | AH184: 644199466 | AI184: 644355466 | AJ184: 199355466 | AK184: 613-495-495 | AL184: 614-496-496 | AM184: 634-456-456 | AN184: 134-956-956
A185: 201806270649 27443 | C185: 1806241302 | D185: 84544 | E185: 819 | F185: 819 | G185: 1806241302 | H185: 84544 | I185: 20180627026 | J185: 64754 | K185: 64754 | L185: 6 | M185: 4 | N185: 7 | O185: 5 | P185: 4 | R185: 754 | S185: 754 | T185: 7 | U185: 5 | V185: 4 | W185: 2 | X185: 0 | Y185: 9 | Z185: 2 | AA185: 4 | AB185: 5 | AC185: 3 | AD185: 5 | AE185: 6 | AG185: 754209245 | AH185: 754209356 | AI185: 754245356 | AJ185: 209245356 | AK185: 722-504-495 | AL185: 723-505-496 | AM185: 723-545-456 | AN185: 223-045-956
A186: 201806270648 15136 | C186: 1806241303 | D186: 80737 | E186: 818 | F186: 818 | G186: 1806241303 | H186: 80737 | I186: 20180627027 | J186: 98996 | K186: 98996 | L186: 9 | M186: 8 | N186: 9 | O186: 9 | P186: 6 | R186: 996 | S186: 996 | T186: 9 | U186: 9 | V186: 6 | W186: 4 | X186: 4 | Y186: 1 | Z186: 0 | AA186: 0 | AB186: 3 | AC186: 1 | AD186: 1 | AE186: 4 | AG186: 996441003 | AH186: 996441114 | AI186: 996003114 | AJ186: 441003114 | AK186: 940-940-613 | AL186: 941-941-614 | AM186: 901-901-634 | AN186: 401-401-134
A187: 201806270647 56356 | C187: 1806241304 | D187: 34299 | E187: 817 | F187: 817 | G187: 1806241304 | H187: 34299 | I187: 20180627028 | J187: 98421 | K187: 98421 | L187: 9 | M187: 8 | N187: 4 | O187: 2 | P187: 1 | R187: 421 | S187: 421 | T187: 4 | U187: 2 | V187: 1 | W187: 9 | X187: 7 | Y187: 6 | Z187: 5 | AA187: 7 | AB187: 8 | AC187: 6 | AD187: 8 | AE187: 9 | AG187: 421976578 | AH187: 421976689 | AI187: 421578689 | AJ187: 976578689 | AK187: 495-277-168 | AL187: 496-278-169 | AM187: 456-278-189 | AN187: 956-778-689
A188: 201806270646 70370 | C188: 1806241305 | D188: 60126 | E188: 816 | F188: 816 | G188: 1806241305 | H188: 60126 | I188: 20180627029 | J188: 14587 | K188: 14587 | L188: 1 | M188: 4 | N188: 5 | O188: 8 | P188: 7 | R188: 587 | S188: 587 | T188: 5 | U188: 8 | V188: 7 | W188: 0 | X188: 3 | Y188: 2 | Z188: 4 | AA188: 1 | AB188: 2 | AC188: 5 | AD188: 2 | AE188: 3 | AG188: 587032412 | AH188: 587032523 | AI188: 587412523 | AJ188: 032412523 | AK188: 504-831-722 | AL188: 505-832-723 | AM188: 545-812-723 | AN188: 045-312-223
A189: 201806270645 06885 | C189: 1806241306 | D189: 23529 | E189: 815 | F189: 815 | G189: 1806241306 | H189: 23529 | I189: 20180627030 | J189: 64441 | K189: 64441 | L189: 6 | M189: 4 | N189: 4 | O189: 4 | P189: 1 | R189: 441 | S189: 441 | T189: 4 | U189: 4 | V189: 1 | W189: 9 | X189: 9 | Y189: 6 | Z189: 5 | AA189: 5 | AB189: 8 | AC189: 6 | AD189: 6 | AE189: 9 | AG189: 441996558 | AH189: 441996669 | AI189: 441558669 | AJ189: 996558669 | AK189: 495-495-168 | AL189: 496-496-169 | AM189: 456-456-189 | AN189: 956-956-689
A190: 201806270644 14445 | C190: 1806241307 | D190: 81916 | E190: 814 | F190: 814 | G190: 1806241307 | H190: 81916 | I190: 20180627031 | J190: 29248 | K190: 29248 | L190: 2 | M190: 9 | N190: 2 | O190: 4 | P190: 8 | R190: 248 | S190: 248 | T190: 2 | U190: 4 | V190: 8 | W190: 7 | X190: 9 | Y190: 3 | Z190: 7 | AA190: 5 | AB190: 1 | AC190: 8 | AD190: 6 | AE190: 2 | AG190: 248793751 | AH190: 248793862 | AI190: 248751862 | AJ190: 793751862 | AK190: 277-495-831 | AL190: 278-496-832 | AM190: 278-456-812 | AN190: 778-956-312
A191: 201806270643 61714 | C191: 1806241308 | D191: 10004 | E191: 813 | F191: 813 | G191: 1806241308 | H191: 10004 | I191: 20180627032 | J191: 84441 | K191: 84441 | L191: 8 | M191: 4 | N191: 4 | O191: 4 | P191: 1 | R191: 441 | S191: 441 | T191: 4 | U191: 4 | V191: 1 | W191: 9 | X191: 9 | Y191: 6 | Z191: 5 | AA191: 5 | AB191: 8 | AC191: 6 | AD191: 6 | AE191: 9 | AG191: 441996558 | AH191: 441996669 | AI191: 441558669 | AJ191: 996558669 | AK191: 495-495-168 | AL191: 496-496-169 | AM191: 456-456-189 | AN191: 956-956-689
A192: 201806270642 67308 | C192: 1806241309 | D192: 10004 | E192: 812 | F192: 812 | G192: 1806241309 | H192: 10004 | I192: 20180627033 | J192: 76298 | K192: 76298 | L192: 7 | M192: 6 | N192: 2 | O192: 9 | P192: 8 | R192: 298 | S192: 298 | T192: 2 | U192: 9 | V192: 8 | W192: 7 | X192: 4 | Y192: 3 | Z192: 7 | AA192: 0 | AB192: 1 | AC192: 8 | AD192: 1 | AE192: 2 | AG192: 298743701 | AH192: 298743812 | AI192: 298701812 | AJ192: 743701812 | AK192: 277-940-831 | AL192: 278-941-832 | AM192: 278-901-812 | AN192: 778-401-312
A193: 201806270641 29134 | C193: 1806241310 | D193: 03765 | E193: 811 | F193: 811 | G193: 1806241310 | H193: 03765 | I193: 20180627034 | J193: 63578 | K193: 63578 | L193: 6 | M193: 3 | N193: 5 | O193: 7 | P193: 8 | R193: 578 | S193: 578 | T193: 5 | U193: 7 | V193: 8 | W193: 0 | X193: 2 | Y193: 3 | Z193: 4 | AA193: 2 | AB193: 1 | AC193: 5 | AD193: 3 | AE193: 2 | AG193: 578023421 | AH193: 578023532 | AI193: 578421532 | AJ193: 023421532 | AK193: 504-722-831 | AL193: 505-723-832 | AM193: 545-723-812 | AN193: 045-223-312
A194: 201806270640 48120 | C194: =IF(E194>=0,MID(OFFSET($A$1,E194,),3,D$1-3),"") -> 1806241311 | D194: =IF(E194>=0,MID(OFFSET($A$1,E194,),D$1+1,5),"") -> 47866 | E194: =E195+1 -> 810 | F194: 810 | G194: =IF(E194>=0,MID(OFFSET($A$1,F194,),3,D$1-3),"") -> 1806241311 | H194: =IF(E194>=0,MID(OFFSET($A$1,F194,),D$1+1,5),"") -> 47866 | I194: 20180627035 | J194: 56954 | K194: 56954 | L194: 5 | M194: 6 | N194: 9 | O194: 5 | P194: 4 | R194: 954 | S194: 954 | T194: 9 | U194: 5 | V194: 4 | W194: 4 | X194: 0 | Y194: 9 | Z194: 0 | AA194: 4 | AB194: 5 | AC194: 1 | AD194: 5 | AE194: 6 | AG194: 954409045 | AH194: 954409156 | AI194: 954045156 | AJ194: 409045156 | AK194: 940-504-495 | AL194: 941-505-496 | AM194: 901-545-456 | AN194: 401-045-956
A195: 201806270639 49310 | C195: 1806241312 | D195: 17973 | E195: 809 | F195: 809 | G195: 1806241312 | H195: 17973 | I195: 20180627036 | J195: 86962 | K195: 86962 | L195: 8 | M195: 6 | N195: 9 | O195: 6 | P195: 2 | R195: 962 | S195: 962 | T195: 9 | U195: 6 | V195: 2 | W195: 4 | X195: 1 | Y195: 7 | Z195: 0 | AA195: 3 | AB195: 7 | AC195: 1 | AD195: 4 | AE195: 8 | AG195: 962417037 | AH195: 962417148 | AI195: 962037148 | AJ195: 417037148 | AK195: 940-613-277 | AL195: 941-614-278 | AM195: 901-634-278 | AN195: 401-134-778
A196: 201806270638 44260 | C196: 1806241313 | D196: 73733 | E196: 808 | F196: 808 | G196: 1806241313 | H196: 73733 | I196: 20180627037 | J196: 27214 | K196: 27214 | L196: 2 | M196: 7 | N196: 2 | O196: 1 | P196: 4 | R196: 214 | S196: 214 | T196: 2 | U196: 1 | V196: 4 | W196: 7 | X196: 6 | Y196: 9 | Z196: 7 | AA196: 8 | AB196: 5 | AC196: 8 | AD196: 9 | AE196: 6 | AG196: 214769785 | AH196: 214769896 | AI196: 214785896 | AJ196: 769785896 | AK196: 277-168-495 | AL196: 278-169-496 | AM196: 278-189-456 | AN196: 778-689-956
A197: 201806270637 04813 | C197: 1806241314 | D197: 44581 | E197: 807 | F197: 807 | G197: 1806241314 | H197: 44581 | I197: 20180627038 | J197: 19118 | K197: 19118 | L197: 1 | M197: 9 | N197: 1 | O197: 1 | P197: 8 | R197: 118 | S197: 118 | T197: 1 | U197: 1 | V197: 8 | W197: 6 | X197: 6 | Y197: 3 | Z197: 8 | AA197: 8 | AB197: 1 | AC197: 9 | AD197: 9 | AE197: 2 | AG197: 118663881 | AH197: 118663992 | AI197: 118881992 | AJ197: 663881992 | AK197: 168-168-831 | AL197: 169-169-832 | AM197: 189-189-812 | AN197: 689-689-312
A198: 201806270636 73069 | C198: 1806241315 | D198: 40313 | E198: 806 | F198: 806 | G198: 1806241315 | H198: 40313 | I198: 20180627039 | J198: 88144 | K198: =IF(J198="","",TEXT(J198,"00000")) -> 88144 | L198: 8 | M198: =MID(K198,2,1) -> 8 | N198: =MID(K198,3,1) -> 1 | O198: =MID(K198,4,1) -> 4 | P198: =MID(K198,5,1) -> 4 | R198: 144 | S198: 144 | T198: 1 | U198: 4 | V198: 4 | W198: 6 | X198: 9 | Y198: 9 | Z198: 8 | AA198: 5 | AB198: 5 | AC198: 9 | AD198: 6 | AE198: 6 | AG198: 144699855 | AH198: 144699966 | AI198: 144855966 | AJ198: 699855966 | AK198: 168-495-495 | AL198: 169-496-496 | AM198: 189-456-456 | AN198: 689-956-956
A199: 201806270635 41430 | C199: 1806241316 | D199: 22309 | E199: 805 | F199: 805 | G199: 1806241316 | H199: 22309 | I199: 20180627040 | J199: 38703 | K199: 38703 | L199: 3 | M199: 8 | N199: 7 | O199: 0 | P199: 3 | R199: 703 | S199: 703 | T199: 7 | U199: 0 | V199: 3 | W199: 2 | X199: 5 | Y199: 8 | Z199: 2 | AA199: 9 | AB199: 6 | AC199: 3 | AD199: 0 | AE199: 7 | AG199: 703258296 | AH199: 703258307 | AI199: 703296307 | AJ199: 258296307 | AK199: 722-059-386 | AL199: 723-050-387 | AM199: 723-090-367 | AN199: 223-590-867
A200: 201806270634 35017 | C200: 1806241318 | D200: 20097 | E200: 804 | F200: 804 | G200: 1806241318 | H200: 20097 | I200: 20180627041 | J200: 63124 | K200: 63124 | L200: 6 | M200: 3 | N200: 1 | O200: 2 | P200: 4 | R200: 124 | S200: 124 | T200: 1 | U200: 2 | V200: 4 | W200: 6 | X200: 7 | Y200: 9 | Z200: 8 | AA200: 7 | AB200: 5 | AC200: 9 | AD200: 8 | AE200: 6 | AG200: 124679875 | AH200: 124679986 | AI200: 124875986 | AJ200: 679875986 | AK200: 168-277-495 | AL200: 169-278-496 | AM200: 189-278-456 | AN200: 689-778-956
... 1702 more rows

Sheet 360重庆 (hidden)
A5: 180618-104 | B5: 4 | C5: 6 | D5: 6 | E5: 7 | F5: 6 | G5: ="20"&SUBSTITUTE(A5,"-","")+0 -> 20180618104 | H5: =B5&C5&D5&E5&F5 -> 46676 | I5: =ROW()-$I$1006-1 -> 4 | J5: =OFFSET(G$1,$I5,) -> 20180618104 | K5: =OFFSET(H$1,$I5,) -> 46676
A6: 180618-105 | B6: 6 | C6: 1 | D6: 9 | E6: 0 | F6: 6 | G6: 20180618105 | H6: =B6&C6&D6&E6&F6 -> 61906 | I6: 5 | J6: 20180618105 | K6: 61906
A7: 180618-106 | B7: 7 | C7: 8 | D7: 6 | E7: 3 | F7: 4 | G7: 20180618106 | H7: 78634 | I7: 6 | J7: 20180618106 | K7: 78634
A8: 180618-107 | B8: 1 | C8: 1 | D8: 7 | E8: 1 | F8: 7 | G8: 20180618107 | H8: 11717 | I8: 7 | J8: 20180618107 | K8: 11717
A9: 180618-108 | B9: 6 | C9: 5 | D9: 7 | E9: 8 | F9: 6 | G9: 20180618108 | H9: 65786 | I9: 8 | J9: 20180618108 | K9: 65786
A10: 180618-109 | B10: 2 | C10: 3 | D10: 2 | E10: 2 | F10: 0 | G10: 20180618109 | H10: 23220 | I10: 9 | J10: 20180618109 | K10: 23220
A11: 180618-110 | B11: 0 | C11: 8 | D11: 6 | E11: 8 | F11: 9 | G11: 20180618110 | H11: 08689 | I11: 10 | J11: 20180618110 | K11: 08689
A12: 180618-111 | B12: 4 | C12: 2 | D12: 1 | E12: 5 | F12: 3 | G12: 20180618111 | H12: 42153 | I12: 11 | J12: 20180618111 | K12: 42153
A13: 180618-112 | B13: 7 | C13: 8 | D13: 1 | E13: 4 | F13: 5 | G13: 20180618112 | H13: 78145 | I13: 12 | J13: 20180618112 | K13: 78145
A14: 180618-113 | B14: 8 | C14: 8 | D14: 8 | E14: 6 | F14: 5 | G14: 20180618113 | H14: 88865 | I14: 13 | J14: 20180618113 | K14: 88865
A15: 180618-114 | B15: 4 | C15: 0 | D15: 0 | E15: 8 | F15: 2 | G15: 20180618114 | H15: 40082 | I15: 14 | J15: 20180618114 | K15: 40082
A16: 180618-115 | B16: 4 | C16: 8 | D16: 9 | E16: 1 | F16: 0 | G16: 20180618115 | H16: 48910 | I16: 15 | J16: 20180618115 | K16: 48910
A17: 180618-116 | B17: 3 | C17: 7 | D17: 1 | E17: 4 | F17: 1 | G17: 20180618116 | H17: 37141 | I17: 16 | J17: 20180618116 | K17: 37141
A18: 180618-117 | B18: 4 | C18: 5 | D18: 1 | E18: 5 | F18: 1 | G18: 20180618117 | H18: 45151 | I18: 17 | J18: 20180618117 | K18: 45151
A19: 180618-118 | B19: 0 | C19: 6 | D19: 3 | E19: 8 | F19: 9 | G19: 20180618118 | H19: 06389 | I19: 18 | J19: 20180618118 | K19: 06389
A20: 180618-119 | B20: 2 | C20: 3 | D20: 8 | E20: 6 | F20: 4 | G20: 20180618119 | H20: 23864 | I20: 19 | J20: 20180618119 | K20: 23864
A21: 180618-120 | B21: 2 | C21: 9 | D21: 3 | E21: 6 | F21: 3 | G21: 20180618120 | H21: 29363 | I21: 20 | J21: 20180618120 | K21: 29363
A22: 180619-001 | B22: 9 | C22: 0 | D22: 2 | E22: 9 | F22: 4 | G22: 20180619001 | H22: 90294 | I22: 21 | J22: 20180619001 | K22: 90294
A23: 180619-002 | B23: 8 | C23: 9 | D23: 9 | E23: 0 | F23: 4 | G23: 20180619002 | H23: 89904 | I23: 22 | J23: 20180619002 | K23: 89904
A24: 180619-003 | B24: 6 | C24: 0 | D24: 9 | E24: 4 | F24: 8 | G24: 20180619003 | H24: 60948 | I24: 23 | J24: 20180619003 | K24: 60948
A25: 180619-004 | B25: 9 | C25: 4 | D25: 3 | E25: 0 | F25: 4 | G25: 20180619004 | H25: 94304 | I25: 24 | J25: 20180619004 | K25: 94304
A26: 180619-005 | B26: 4 | C26: 8 | D26: 1 | E26: 5 | F26: 1 | G26: 20180619005 | H26: 48151 | I26: 25 | J26: 20180619005 | K26: 48151
A27: 180619-006 | B27: 0 | C27: 2 | D27: 7 | E27: 7 | F27: 6 | G27: 20180619006 | H27: 02776 | I27: 26 | J27: 20180619006 | K27: 02776
A28: 180619-007 | B28: 6 | C28: 8 | D28: 8 | E28: 0 | F28: 5 | G28: 20180619007 | H28: 68805 | I28: 27 | J28: 20180619007 | K28: 68805
A29: 180619-008 | B29: 0 | C29: 0 | D29: 2 | E29: 6 | F29: 3 | G29: 20180619008 | H29: 00263 | I29: 28 | J29: 20180619008 | K29: 00263
A30: 180619-009 | B30: 7 | C30: 3 | D30: 4 | E30: 6 | F30: 4 | G30: 20180619009 | H30: 73464 | I30: 29 | J30: 20180619009 | K30: 73464
A31: 180619-010 | B31: 5 | C31: 6 | D31: 1 | E31: 8 | F31: 8 | G31: 20180619010 | H31: 56188 | I31: 30 | J31: 20180619010 | K31: 56188
A32: 180619-011 | B32: 3 | C32: 3 | D32: 2 | E32: 0 | F32: 9 | G32: 20180619011 | H32: 33209 | I32: 31 | J32: 20180619011 | K32: 33209
A33: 180619-012 | B33: 2 | C33: 6 | D33: 5 | E33: 1 | F33: 3 | G33: 20180619012 | H33: 26513 | I33: 32 | J33: 20180619012 | K33: 26513
A34: 180619-013 | B34: 0 | C34: 5 | D34: 8 | E34: 2 | F34: 5 | G34: 20180619013 | H34: 05825 | I34: 33 | J34: 20180619013 | K34: 05825
A35: 180619-014 | B35: 0 | C35: 9 | D35: 9 | E35: 1 | F35: 6 | G35: 20180619014 | H35: 09916 | I35: 34 | J35: 20180619014 | K35: 09916
A36: 180619-015 | B36: 5 | C36: 3 | D36: 6 | E36: 2 | F36: 7 | G36: 20180619015 | H36: 53627 | I36: 35 | J36: 20180619015 | K36: 53627
A37: 180619-016 | B37: 3 | C37: 0 | D37: 8 | E37: 6 | F37: 8 | G37: 20180619016 | H37: 30868 | I37: 36 | J37: 20180619016 | K37: 30868
A38: 180619-017 | B38: 3 | C38: 7 | D38: 9 | E38: 3 | F38: 6 | G38: 20180619017 | H38: 37936 | I38: 37 | J38: 20180619017 | K38: 37936
A39: 180619-018 | B39: 7 | C39: 4 | D39: 4 | E39: 7 | F39: 2 | G39: 20180619018 | H39: 74472 | I39: 38 | J39: 20180619018 | K39: 74472
A40: 180619-019 | B40: 1 | C40: 6 | D40: 8 | E40: 2 | F40: 3 | G40: 20180619019 | H40: 16823 | I40: 39 | J40: 20180619019 | K40: 16823
A41: 180619-020 | B41: 2 | C41: 5 | D41: 6 | E41: 1 | F41: 2 | G41: 20180619020 | H41: 25612 | I41: 40 | J41: 20180619020 | K41: 25612
A42: 180619-021 | B42: 9 | C42: 0 | D42: 4 | E42: 3 | F42: 8 | G42: 20180619021 | H42: 90438 | I42: 41 | J42: 20180619021 | K42: 90438
A43: 180619-022 | B43: 0 | C43: 1 | D43: 7 | E43: 0 | F43: 1 | G43: 20180619022 | H43: 01701 | I43: 42 | J43: 20180619022 | K43: 01701
A44: 180619-023 | B44: 1 | C44: 8 | D44: 5 | E44: 6 | F44: 1 | G44: 20180619023 | H44: 18561 | I44: 43 | J44: 20180619023 | K44: 18561
A45: 180619-024 | B45: 5 | C45: 5 | D45: 7 | E45: 1 | F45: 0 | G45: 20180619024 | H45: 55710 | I45: 44 | J45: 20180619024 | K45: 55710
A46: 180619-025 | B46: 1 | C46: 4 | D46: 2 | E46: 9 | F46: 7 | G46: 20180619025 | H46: 14297 | I46: 45 | J46: 20180619025 | K46: 14297
A47: 180619-026 | B47: 9 | C47: 2 | D47: 9 | E47: 1 | F47: 1 | G47: 20180619026 | H47: 92911 | I47: 46 | J47: 20180619026 | K47: 92911
A48: 180619-027 | B48: 7 | C48: 3 | D48: 5 | E48: 9 | F48: 6 | G48: 20180619027 | H48: 73596 | I48: 47 | J48: 20180619027 | K48: 73596
A49: 180619-028 | B49: 8 | C49: 8 | D49: 7 | E49: 8 | F49: 3 | G49: 20180619028 | H49: 88783 | I49: 48 | J49: 20180619028 | K49: 88783
A50: 180619-029 | B50: 1 | C50: 6 | D50: 8 | E50: 6 | F50: 9 | G50: 20180619029 | H50: 16869 | I50: 49 | J50: 20180619029 | K50: 16869
A51: 180619-030 | B51: 3 | C51: 3 | D51: 3 | E51: 4 | F51: 1 | G51: 20180619030 | H51: 33341 | I51: 50 | J51: 20180619030 | K51: 33341
A52: 180619-031 | B52: 1 | C52: 0 | D52: 1 | E52: 9 | F52: 4 | G52: 20180619031 | H52: 10194 | I52: 51 | J52: 20180619031 | K52: 10194
A53: 180619-032 | B53: 1 | C53: 3 | D53: 6 | E53: 4 | F53: 5 | G53: 20180619032 | H53: 13645 | I53: 52 | J53: 20180619032 | K53: 13645
A54: 180619-033 | B54: 1 | C54: 9 | D54: 4 | E54: 9 | F54: 3 | G54: 20180619033 | H54: 19493 | I54: 53 | J54: 20180619033 | K54: 19493
A55: 180619-034 | B55: 4 | C55: 7 | D55: 1 | E55: 6 | F55: 3 | G55: 20180619034 | H55: 47163 | I55: 54 | J55: 20180619034 | K55: 47163
A56: 180619-035 | B56: 2 | C56: 8 | D56: 9 | E56: 1 | F56: 2 | G56: 20180619035 | H56: 28912 | I56: 55 | J56: 20180619035 | K56: 28912
A57: 180619-036 | B57: 8 | C57: 1 | D57: 7 | E57: 7 | F57: 0 | G57: 20180619036 | H57: 81770 | I57: 56 | J57: 20180619036 | K57: 81770
A58: 180619-037 | B58: 7 | C58: 7 | D58: 2 | E58: 8 | F58: 9 | G58: 20180619037 | H58: 77289 | I58: 57 | J58: 20180619037 | K58: 77289
A59: 180619-038 | B59: 7 | C59: 3 | D59: 7 | E59: 4 | F59: 5 | G59: 20180619038 | H59: 73745 | I59: 58 | J59: 20180619038 | K59: 73745
A60: 180619-039 | B60: 0 | C60: 8 | D60: 4 | E60: 5 | F60: 7 | G60: 20180619039 | H60: 08457 | I60: 59 | J60: 20180619039 | K60: 08457
A61: 180619-040 | B61: 6 | C61: 0 | D61: 7 | E61: 0 | F61: 5 | G61: 20180619040 | H61: 60705 | I61: 60 | J61: 20180619040 | K61: 60705
A62: 180619-041 | B62: 9 | C62: 9 | D62: 2 | E62: 7 | F62: 9 | G62: 20180619041 | H62: 99279 | I62: 61 | J62: 20180619041 | K62: 99279
A63: 180619-042 | B63: 6 | C63: 5 | D63: 4 | E63: 9 | F63: 5 | G63: 20180619042 | H63: 65495 | I63: 62 | J63: 20180619042 | K63: 65495
A64: 180619-043 | B64: 1 | C64: 5 | D64: 2 | E64: 6 | F64: 5 | G64: 20180619043 | H64: 15265 | I64: 63 | J64: 20180619043 | K64: 15265
A65: 180619-044 | B65: 2 | C65: 4 | D65: 3 | E65: 5 | F65: 5 | G65: 20180619044 | H65: 24355 | I65: 64 | J65: 20180619044 | K65: 24355
A66: 180619-045 | B66: 9 | C66: 9 | D66: 8 | E66: 5 | F66: 9 | G66: 20180619045 | H66: 99859 | I66: 65 | J66: 20180619045 | K66: 99859
A67: 180619-046 | B67: 8 | C67: 3 | D67: 7 | E67: 2 | F67: 0 | G67: 20180619046 | H67: 83720 | I67: 66 | J67: 20180619046 | K67: 83720
A68: 180619-047 | B68: 7 | C68: 7 | D68: 6 | E68: 7 | F68: 2 | G68: 20180619047 | H68: 77672 | I68: 67 | J68: 20180619047 | K68: 77672
A69: 180619-048 | B69: 8 | C69: 4 | D69: 1 | E69: 3 | F69: 1 | G69: ="20"&SUBSTITUTE(A69,"-","")+0 -> 20180619048 | H69: 84131 | I69: =ROW()-$I$1006-1 -> 68 | J69: =OFFSET(G$1,$I69,) -> 20180619048 | K69: =OFFSET(H$1,$I69,) -> 84131
A70: 180619-049 | B70: 9 | C70: 3 | D70: 2 | E70: 1 | F70: 7 | G70: 20180619049 | H70: =B70&C70&D70&E70&F70 -> 93217 | I70: 69 | J70: 20180619049 | K70: 93217
A71: 180619-050 | B71: 0 | C71: 4 | D71: 0 | E71: 2 | F71: 2 | G71: 20180619050 | H71: 04022 | I71: 70 | J71: 20180619050 | K71: 04022
A72: 180619-051 | B72: 3 | C72: 0 | D72: 4 | E72: 9 | F72: 7 | G72: 20180619051 | H72: 30497 | I72: 71 | J72: 20180619051 | K72: 30497
A73: 180619-052 | B73: 8 | C73: 4 | D73: 2 | E73: 1 | F73: 6 | G73: 20180619052 | H73: 84216 | I73: 72 | J73: 20180619052 | K73: 84216
A74: 180619-053 | B74: 8 | C74: 2 | D74: 8 | E74: 4 | F74: 2 | G74: 20180619053 | H74: 82842 | I74: 73 | J74: 20180619053 | K74: 82842
A75: 180619-054 | B75: 1 | C75: 0 | D75: 6 | E75: 2 | F75: 6 | G75: 20180619054 | H75: 10626 | I75: 74 | J75: 20180619054 | K75: 10626
A76: 180619-055 | B76: 7 | C76: 7 | D76: 0 | E76: 4 | F76: 9 | G76: 20180619055 | H76: 77049 | I76: 75 | J76: 20180619055 | K76: 77049
A77: 180619-056 | B77: 3 | C77: 4 | D77: 6 | E77: 5 | F77: 2 | G77: 20180619056 | H77: 34652 | I77: 76 | J77: 20180619056 | K77: 34652
A78: 180619-057 | B78: 4 | C78: 7 | D78: 9 | E78: 9 | F78: 5 | G78: 20180619057 | H78: 47995 | I78: 77 | J78: 20180619057 | K78: 47995
A79: 180619-058 | B79: 6 | C79: 7 | D79: 6 | E79: 0 | F79: 4 | G79: 20180619058 | H79: 67604 | I79: 78 | J79: 20180619058 | K79: 67604
A80: 180619-059 | B80: 8 | C80: 5 | D80: 3 | E80: 7 | F80: 1 | G80: 20180619059 | H80: 85371 | I80: 79 | J80: 20180619059 | K80: 85371
A81: 180619-060 | B81: 6 | C81: 3 | D81: 6 | E81: 0 | F81: 3 | G81: 20180619060 | H81: 63603 | I81: 80 | J81: 20180619060 | K81: 63603
A82: 180619-061 | B82: 1 | C82: 1 | D82: 2 | E82: 8 | F82: 6 | G82: 20180619061 | H82: 11286 | I82: 81 | J82: 20180619061 | K82: 11286
A83: 180619-062 | B83: 2 | C83: 3 | D83: 5 | E83: 9 | F83: 6 | G83: 20180619062 | H83: 23596 | I83: 82 | J83: 20180619062 | K83: 23596
A84: 180619-063 | B84: 4 | C84: 8 | D84: 3 | E84: 3 | F84: 4 | G84: 20180619063 | H84: 48334 | I84: 83 | J84: 20180619063 | K84: 48334
A85: 180619-064 | B85: 6 | C85: 3 | D85: 5 | E85: 9 | F85: 4 | G85: 20180619064 | H85: 63594 | I85: 84 | J85: 20180619064 | K85: 63594
A86: 180619-065 | B86: 1 | C86: 3 | D86: 6 | E86: 7 | F86: 1 | G86: 20180619065 | H86: 13671 | I86: 85 | J86: 20180619065 | K86: 13671
A87: 180619-066 | B87: 2 | C87: 5 | D87: 4 | E87: 1 | F87: 5 | G87: 20180619066 | H87: 25415 | I87: 86 | J87: 20180619066 | K87: 25415
A88: 180619-067 | B88: 8 | C88: 1 | D88: 6 | E88: 6 | F88: 9 | G88: 20180619067 | H88: 81669 | I88: 87 | J88: 20180619067 | K88: 81669
A89: 180619-068 | B89: 4 | C89: 1 | D89: 8 | E89: 0 | F89: 0 | G89: 20180619068 | H89: 41800 | I89: 88 | J89: 20180619068 | K89: 41800
A90: 180619-069 | B90: 3 | C90: 6 | D90: 8 | E90: 0 | F90: 8 | G90: 20180619069 | H90: 36808 | I90: 89 | J90: 20180619069 | K90: 36808
A91: 180619-070 | B91: 0 | C91: 9 | D91: 8 | E91: 5 | F91: 0 | G91: 20180619070 | H91: 09850 | I91: 90 | J91: 20180619070 | K91: 09850
A92: 180619-071 | B92: 1 | C92: 6 | D92: 0 | E92: 1 | F92: 6 | G92: 20180619071 | H92: 16016 | I92: 91 | J92: 20180619071 | K92: 16016
A93: 180619-072 | B93: 9 | C93: 2 | D93: 7 | E93: 3 | F93: 0 | G93: 20180619072 | H93: 92730 | I93: 92 | J93: 20180619072 | K93: 92730
A94: 180619-073 | B94: 5 | C94: 0 | D94: 8 | E94: 1 | F94: 3 | G94: 20180619073 | H94: 50813 | I94: 93 | J94: 20180619073 | K94: 50813
A95: 180619-074 | B95: 4 | C95: 4 | D95: 1 | E95: 2 | F95: 5 | G95: 20180619074 | H95: 44125 | I95: 94 | J95: 20180619074 | K95: 44125
A96: 180619-075 | B96: 3 | C96: 3 | D96: 4 | E96: 5 | F96: 6 | G96: 20180619075 | H96: 33456 | I96: 95 | J96: 20180619075 | K96: 33456
A97: 180619-076 | B97: 6 | C97: 0 | D97: 4 | E97: 4 | F97: 5 | G97: 20180619076 | H97: 60445 | I97: 96 | J97: 20180619076 | K97: 60445
A98: 180619-077 | B98: 7 | C98: 5 | D98: 2 | E98: 9 | F98: 6 | G98: 20180619077 | H98: 75296 | I98: 97 | J98: 20180619077 | K98: 75296
A99: 180619-078 | B99: 6 | C99: 0 | D99: 4 | E99: 3 | F99: 3 | G99: 20180619078 | H99: 60433 | I99: 98 | J99: 20180619078 | K99: 60433
A100: 180619-079 | B100: 4 | C100: 2 | D100: 7 | E100: 7 | F100: 5 | G100: 20180619079 | H100: 42775 | I100: 99 | J100: 20180619079 | K100: 42775
A101: 180619-080 | B101: 5 | C101: 6 | D101: 7 | E101: 3 | F101: 8 | G101: 20180619080 | H101: 56738 | I101: 100 | J101: 20180619080 | K101: 56738
A102: 180619-081 | B102: 9 | C102: 0 | D102: 8 | E102: 1 | F102: 6 | G102: 20180619081 | H102: 90816 | I102: 101 | J102: 20180619081 | K102: 90816
A103: 180619-082 | B103: 5 | C103: 9 | D103: 7 | E103: 7 | F103: 1 | G103: 20180619082 | H103: 59771 | I103: 102 | J103: 20180619082 | K103: 59771
A104: 180619-083 | B104: 2 | C104: 0 | D104: 0 | E104: 0 | F104: 1 | G104: 20180619083 | H104: 20001 | I104: 103 | J104: 20180619083 | K104: 20001
A105: 180619-084 | B105: 0 | C105: 7 | D105: 2 | E105: 0 | F105: 7 | G105: 20180619084 | H105: 07207 | I105: 104 | J105: 20180619084 | K105: 07207
A106: 180619-085 | B106: 5 | C106: 6 | D106: 9 | E106: 4 | F106: 4 | G106: 20180619085 | H106: 56944 | I106: 105 | J106: 20180619085 | K106: 56944
A107: 180619-086 | B107: 6 | C107: 0 | D107: 0 | E107: 3 | F107: 4 | G107: 20180619086 | H107: 60034 | I107: 106 | J107: 20180619086 | K107: 60034
A108: 180619-087 | B108: 5 | C108: 6 | D108: 5 | E108: 0 | F108: 0 | G108: 20180619087 | H108: 56500 | I108: 107 | J108: 20180619087 | K108: 56500
A109: 180619-088 | B109: 2 | C109: 7 | D109: 4 | E109: 2 | F109: 1 | G109: 20180619088 | H109: 27421 | I109: 108 | J109: 20180619088 | K109: 27421
A110: 180619-089 | B110: 6 | C110: 0 | D110: 1 | E110: 2 | F110: 8 | G110: 20180619089 | H110: 60128 | I110: 109 | J110: 20180619089 | K110: 60128
A111: 180619-090 | B111: 3 | C111: 6 | D111: 2 | E111: 3 | F111: 5 | G111: 20180619090 | H111: 36235 | I111: 110 | J111: 20180619090 | K111: 36235
A112: 180619-091 | B112: 0 | C112: 6 | D112: 5 | E112: 3 | F112: 5 | G112: 20180619091 | H112: 06535 | I112: 111 | J112: 20180619091 | K112: 06535
A113: 180619-092 | B113: 0 | C113: 5 | D113: 7 | E113: 7 | F113: 9 | G113: 20180619092 | H113: 05779 | I113: 112 | J113: 20180619092 | K113: 05779
A114: 180619-093 | B114: 1 | C114: 2 | D114: 1 | E114: 1 | F114: 8 | G114: 20180619093 | H114: 12118 | I114: 113 | J114: 20180619093 | K114: 12118
A115: 180619-094 | B115: 4 | C115: 3 | D115: 8 | E115: 9 | F115: 7 | G115: 20180619094 | H115: 43897 | I115: 114 | J115: 20180619094 | K115: 43897
A116: 180619-095 | B116: 6 | C116: 6 | D116: 9 | E116: 3 | F116: 3 | G116: 20180619095 | H116: 66933 | I116: 115 | J116: 20180619095 | K116: 66933
A117: 180619-096 | B117: 5 | C117: 3 | D117: 9 | E117: 1 | F117: 0 | G117: 20180619096 | H117: 53910 | I117: 116 | J117: 20180619096 | K117: 53910
A118: 180619-097 | B118: 0 | C118: 7 | D118: 3 | E118: 5 | F118: 4 | G118: 20180619097 | H118: 07354 | I118: 117 | J118: 20180619097 | K118: 07354
A119: 180619-098 | B119: 3 | C119: 4 | D119: 2 | E119: 6 | F119: 3 | G119: 20180619098 | H119: 34263 | I119: 118 | J119: 20180619098 | K119: 34263
A120: 180619-099 | B120: 7 | C120: 8 | D120: 9 | E120: 7 | F120: 9 | G120: 20180619099 | H120: 78979 | I120: 119 | J120: 20180619099 | K120: 78979
A121: 180619-100 | B121: 5 | C121: 5 | D121: 1 | E121: 9 | F121: 5 | G121: 20180619100 | H121: 55195 | I121: 120 | J121: 20180619100 | K121: 55195
A122: 180619-101 | B122: 3 | C122: 6 | D122: 5 | E122: 3 | F122: 0 | G122: 20180619101 | H122: 36530 | I122: 121 | J122: 20180619101 | K122: 36530
A123: 180619-102 | B123: 5 | C123: 5 | D123: 2 | E123: 5 | F123: 6 | G123: 20180619102 | H123: 55256 | I123: 122 | J123: 20180619102 | K123: 55256
A124: 180619-103 | B124: 2 | C124: 0 | D124: 1 | E124: 6 | F124: 5 | G124: 20180619103 | H124: 20165 | I124: 123 | J124: 20180619103 | K124: 20165
A125: 180619-104 | B125: 3 | C125: 1 | D125: 7 | E125: 3 | F125: 2 | G125: 20180619104 | H125: 31732 | I125: 124 | J125: 20180619104 | K125: 31732
A126: 180619-105 | B126: 6 | C126: 7 | D126: 7 | E126: 0 | F126: 2 | G126: 20180619105 | H126: 67702 | I126: 125 | J126: 20180619105 | K126: 67702
A127: 180619-106 | B127: 0 | C127: 2 | D127: 5 | E127: 9 | F127: 2 | G127: 20180619106 | H127: 02592 | I127: 126 | J127: 20180619106 | K127: 02592
A128: 180619-107 | B128: 2 | C128: 5 | D128: 8 | E128: 6 | F128: 8 | G128: 20180619107 | H128: 25868 | I128: 127 | J128: 20180619107 | K128: 25868
A129: 180619-108 | B129: 0 | C129: 6 | D129: 1 | E129: 6 | F129: 4 | G129: 20180619108 | H129: 06164 | I129: 128 | J129: 20180619108 | K129: 06164
A130: 180619-109 | B130: 6 | C130: 3 | D130: 9 | E130: 7 | F130: 1 | G130: 20180619109 | H130: 63971 | I130: 129 | J130: 20180619109 | K130: 63971
A131: 180619-110 | B131: 7 | C131: 3 | D131: 4 | E131: 5 | F131: 4 | G131: 20180619110 | H131: 73454 | I131: 130 | J131: 20180619110 | K131: 73454
A132: 180619-111 | B132: 3 | C132: 6 | D132: 8 | E132: 2 | F132: 5 | G132: 20180619111 | H132: 36825 | I132: 131 | J132: 20180619111 | K132: 36825
A133: 180619-112 | B133: 3 | C133: 1 | D133: 7 | E133: 6 | F133: 2 | G133: ="20"&SUBSTITUTE(A133,"-","")+0 -> 20180619112 | H133: 31762 | I133: =ROW()-$I$1006-1 -> 132 | J133: =OFFSET(G$1,$I133,) -> 20180619112 | K133: =OFFSET(H$1,$I133,) -> 31762
A134: 180619-113 | B134: 6 | C134: 7 | D134: 8 | E134: 3 | F134: 9 | G134: 20180619113 | H134: =B134&C134&D134&E134&F134 -> 67839 | I134: 133 | J134: 20180619113 | K134: 67839
A135: 180619-114 | B135: 1 | C135: 8 | D135: 7 | E135: 7 | F135: 3 | G135: 20180619114 | H135: 18773 | I135: 134 | J135: 20180619114 | K135: 18773
A136: 180619-115 | B136: 9 | C136: 8 | D136: 0 | E136: 5 | F136: 8 | G136: 20180619115 | H136: 98058 | I136: 135 | J136: 20180619115 | K136: 98058
A137: 180619-116 | B137: 1 | C137: 2 | D137: 6 | E137: 0 | F137: 7 | G137: 20180619116 | H137: 12607 | I137: 136 | J137: 20180619116 | K137: 12607
A138: 180619-117 | B138: 0 | C138: 4 | D138: 7 | E138: 1 | F138: 7 | G138: 20180619117 | H138: 04717 | I138: 137 | J138: 20180619117 | K138: 04717
A139: 180619-118 | B139: 8 | C139: 1 | D139: 9 | E139: 9 | F139: 6 | G139: 20180619118 | H139: 81996 | I139: 138 | J139: 20180619118 | K139: 81996
A140: 180619-119 | B140: 8 | C140: 5 | D140: 2 | E140: 2 | F140: 1 | G140: 20180619119 | H140: 85221 | I140: 139 | J140: 20180619119 | K140: 85221
A141: 180619-120 | B141: 6 | C141: 8 | D141: 8 | E141: 7 | F141: 8 | G141: 20180619120 | H141: 68878 | I141: 140 | J141: 20180619120 | K141: 68878
A142: 180620-001 | B142: 4 | C142: 9 | D142: 6 | E142: 8 | F142: 3 | G142: 20180620001 | H142: 49683 | I142: 141 | J142: 20180620001 | K142: 49683
A143: 180620-002 | B143: 4 | C143: 8 | D143: 4 | E143: 5 | F143: 8 | G143: 20180620002 | H143: 48458 | I143: 142 | J143: 20180620002 | K143: 48458
A144: 180620-003 | B144: 6 | C144: 7 | D144: 0 | E144: 8 | F144: 2 | G144: 20180620003 | H144: 67082 | I144: 143 | J144: 20180620003 | K144: 67082
A145: 180620-004 | B145: 4 | C145: 9 | D145: 6 | E145: 7 | F145: 6 | G145: 20180620004 | H145: 49676 | I145: 144 | J145: 20180620004 | K145: 49676
A146: 180620-005 | B146: 5 | C146: 5 | D146: 7 | E146: 6 | F146: 3 | G146: 20180620005 | H146: 55763 | I146: 145 | J146: 20180620005 | K146: 55763
A147: 180620-006 | B147: 8 | C147: 3 | D147: 0 | E147: 7 | F147: 6 | G147: 20180620006 | H147: 83076 | I147: 146 | J147: 20180620006 | K147: 83076
A148: 180620-007 | B148: 6 | C148: 6 | D148: 3 | E148: 1 | F148: 1 | G148: 20180620007 | H148: 66311 | I148: 147 | J148: 20180620007 | K148: 66311
A149: 180620-008 | B149: 1 | C149: 7 | D149: 4 | E149: 0 | F149: 9 | G149: 20180620008 | H149: 17409 | I149: 148 | J149: 20180620008 | K149: 17409
A150: 180620-009 | B150: 2 | C150: 6 | D150: 3 | E150: 9 | F150: 4 | G150: 20180620009 | H150: 26394 | I150: 149 | J150: 20180620009 | K150: 26394
A151: 180620-010 | B151: 4 | C151: 0 | D151: 9 | E151: 3 | F151: 6 | G151: 20180620010 | H151: 40936 | I151: 150 | J151: 20180620010 | K151: 40936
A152: 180620-011 | B152: 9 | C152: 8 | D152: 9 | E152: 9 | F152: 2 | G152: 20180620011 | H152: 98992 | I152: 151 | J152: 20180620011 | K152: 98992
A153: 180620-012 | B153: 3 | C153: 4 | D153: 3 | E153: 8 | F153: 0 | G153: 20180620012 | H153: 34380 | I153: 152 | J153: 20180620012 | K153: 34380
A154: 180620-013 | B154: 4 | C154: 8 | D154: 7 | E154: 5 | F154: 9 | G154: 20180620013 | H154: 48759 | I154: 153 | J154: 20180620013 | K154: 48759
A155: 180620-014 | B155: 4 | C155: 9 | D155: 1 | E155: 2 | F155: 6 | G155: 20180620014 | H155: 49126 | I155: 154 | J155: 20180620014 | K155: 49126
A156: 180620-015 | B156: 3 | C156: 7 | D156: 3 | E156: 5 | F156: 4 | G156: 20180620015 | H156: 37354 | I156: 155 | J156: 20180620015 | K156: 37354
A157: 180620-016 | B157: 8 | C157: 5 | D157: 5 | E157: 7 | F157: 3 | G157: 20180620016 | H157: 85573 | I157: 156 | J157: 20180620016 | K157: 85573
A158: 180620-017 | B158: 4 | C158: 7 | D158: 2 | E158: 0 | F158: 2 | G158: 20180620017 | H158: 47202 | I158: 157 | J158: 20180620017 | K158: 47202
A159: 180620-018 | B159: 6 | C159: 5 | D159: 4 | E159: 1 | F159: 0 | G159: 20180620018 | H159: 65410 | I159: 158 | J159: 20180620018 | K159: 65410
A160: 180620-019 | B160: 5 | C160: 3 | D160: 2 | E160: 0 | F160: 1 | G160: 20180620019 | H160: 53201 | I160: 159 | J160: 20180620019 | K160: 53201
A161: 180620-020 | B161: 6 | C161: 5 | D161: 5 | E161: 0 | F161: 5 | G161: 20180620020 | H161: 65505 | I161: 160 | J161: 20180620020 | K161: 65505
A162: 180620-021 | B162: 0 | C162: 2 | D162: 1 | E162: 1 | F162: 2 | G162: 20180620021 | H162: 02112 | I162: 161 | J162: 20180620021 | K162: 02112
A163: 180620-022 | B163: 3 | C163: 0 | D163: 0 | E163: 1 | F163: 8 | G163: 20180620022 | H163: 30018 | I163: 162 | J163: 20180620022 | K163: 30018
A164: 180620-023 | B164: 7 | C164: 2 | D164: 8 | E164: 4 | F164: 8 | G164: 20180620023 | H164: 72848 | I164: 163 | J164: 20180620023 | K164: 72848
A165: 180620-024 | B165: 7 | C165: 3 | D165: 9 | E165: 7 | F165: 8 | G165: 20180620024 | H165: 73978 | I165: 164 | J165: 20180620024 | K165: 73978
A166: 180620-025 | B166: 5 | C166: 9 | D166: 3 | E166: 0 | F166: 5 | G166: 20180620025 | H166: 59305 | I166: 165 | J166: 20180620025 | K166: 59305
A167: 180620-026 | B167: 4 | C167: 6 | D167: 8 | E167: 1 | F167: 3 | G167: 20180620026 | H167: 46813 | I167: 166 | J167: 20180620026 | K167: 46813
A168: 180620-027 | B168: 4 | C168: 7 | D168: 7 | E168: 3 | F168: 3 | G168: 20180620027 | H168: 47733 | I168: 167 | J168: 20180620027 | K168: 47733
A169: 180620-028 | B169: 9 | C169: 0 | D169: 8 | E169: 1 | F169: 5 | G169: 20180620028 | H169: 90815 | I169: 168 | J169: 20180620028 | K169: 90815
A170: 180620-029 | B170: 4 | C170: 2 | D170: 7 | E170: 3 | F170: 5 | G170: 20180620029 | H170: 42735 | I170: 169 | J170: 20180620029 | K170: 42735
A171: 180620-030 | B171: 4 | C171: 9 | D171: 6 | E171: 8 | F171: 8 | G171: 20180620030 | H171: 49688 | I171: 170 | J171: 20180620030 | K171: 49688
A172: 180620-031 | B172: 3 | C172: 5 | D172: 7 | E172: 7 | F172: 6 | G172: 20180620031 | H172: 35776 | I172: 171 | J172: 20180620031 | K172: 35776
A173: 180620-032 | B173: 2 | C173: 0 | D173: 1 | E173: 1 | F173: 7 | G173: 20180620032 | H173: 20117 | I173: 172 | J173: 20180620032 | K173: 20117
A174: 180620-033 | B174: 8 | C174: 4 | D174: 0 | E174: 2 | F174: 5 | G174: 20180620033 | H174: 84025 | I174: 173 | J174: 20180620033 | K174: 84025
A175: 180620-034 | B175: 4 | C175: 6 | D175: 2 | E175: 6 | F175: 3 | G175: 20180620034 | H175: 46263 | I175: 174 | J175: 20180620034 | K175: 46263
A176: 180620-035 | B176: 7 | C176: 9 | D176: 5 | E176: 7 | F176: 0 | G176: 20180620035 | H176: 79570 | I176: 175 | J176: 20180620035 | K176: 79570
A177: 180620-036 | B177: 4 | C177: 6 | D177: 5 | E177: 5 | F177: 9 | G177: 20180620036 | H177: 46559 | I177: 176 | J177: 20180620036 | K177: 46559
A178: 180620-037 | B178: 3 | C178: 9 | D178: 0 | E178: 8 | F178: 5 | G178: 20180620037 | H178: 39085 | I178: 177 | J178: 20180620037 | K178: 39085
A179: 180620-038 | B179: 3 | C179: 9 | D179: 7 | E179: 8 | F179: 0 | G179: 20180620038 | H179: 39780 | I179: 178 | J179: 20180620038 | K179: 39780
A180: 180620-039 | B180: 0 | C180: 3 | D180: 3 | E180: 1 | F180: 7 | G180: 20180620039 | H180: 03317 | I180: 179 | J180: 20180620039 | K180: 03317
A181: 180620-040 | B181: 0 | C181: 0 | D181: 0 | E181: 3 | F181: 5 | G181: 20180620040 | H181: 00035 | I181: 180 | J181: 20180620040 | K181: 00035
A182: 180620-041 | B182: 1 | C182: 7 | D182: 8 | E182: 1 | F182: 9 | G182: 20180620041 | H182: 17819 | I182: 181 | J182: 20180620041 | K182: 17819
A183: 180620-042 | B183: 4 | C183: 9 | D183: 0 | E183: 7 | F183: 9 | G183: 20180620042 | H183: 49079 | I183: 182 | J183: 20180620042 | K183: 49079
A184: 180620-043 | B184: 7 | C184: 1 | D184: 8 | E184: 5 | F184: 1 | G184: 20180620043 | H184: 71851 | I184: 183 | J184: 20180620043 | K184: 71851
A185: 180620-044 | B185: 8 | C185: 2 | D185: 9 | E185: 9 | F185: 9 | G185: 20180620044 | H185: 82999 | I185: 184 | J185: 20180620044 | K185: 82999
A186: 180620-045 | B186: 7 | C186: 0 | D186: 2 | E186: 2 | F186: 2 | G186: 20180620045 | H186: 70222 | I186: 185 | J186: 20180620045 | K186: 70222
A187: 180620-046 | B187: 9 | C187: 5 | D187: 1 | E187: 0 | F187: 6 | G187: 20180620046 | H187: 95106 | I187: 186 | J187: 20180620046 | K187: 95106
A188: 180620-047 | B188: 0 | C188: 6 | D188: 4 | E188: 1 | F188: 7 | G188: 20180620047 | H188: 06417 | I188: 187 | J188: 20180620047 | K188: 06417
A189: 180620-048 | B189: 4 | C189: 4 | D189: 7 | E189: 5 | F189: 7 | G189: 20180620048 | H189: 44757 | I189: 188 | J189: 20180620048 | K189: 44757
A190: 180620-049 | B190: 0 | C190: 4 | D190: 2 | E190: 1 | F190: 8 | G190: 20180620049 | H190: 04218 | I190: 189 | J190: 20180620049 | K190: 04218
A191: 180620-050 | B191: 1 | C191: 4 | D191: 1 | E191: 0 | F191: 9 | G191: 20180620050 | H191: 14109 | I191: 190 | J191: 20180620050 | K191: 14109
A192: 180620-051 | B192: 3 | C192: 2 | D192: 2 | E192: 5 | F192: 5 | G192: 20180620051 | H192: 32255 | I192: 191 | J192: 20180620051 | K192: 32255
A193: 180620-052 | B193: 5 | C193: 7 | D193: 0 | E193: 1 | F193: 2 | G193: 20180620052 | H193: 57012 | I193: 192 | J193: 20180620052 | K193: 57012
A194: 180620-053 | B194: 8 | C194: 2 | D194: 8 | E194: 8 | F194: 7 | G194: 20180620053 | H194: 82887 | I194: 193 | J194: 20180620053 | K194: 82887
A195: 180620-054 | B195: 8 | C195: 6 | D195: 9 | E195: 0 | F195: 7 | G195: 20180620054 | H195: 86907 | I195: 194 | J195: 20180620054 | K195: 86907
A196: 180620-055 | B196: 8 | C196: 1 | D196: 2 | E196: 8 | F196: 0 | G196: 20180620055 | H196: 81280 | I196: 195 | J196: 20180620055 | K196: 81280
A197: 180620-056 | B197: 7 | C197: 0 | D197: 2 | E197: 5 | F197: 2 | G197: ="20"&SUBSTITUTE(A197,"-","")+0 -> 20180620056 | H197: 70252 | I197: =ROW()-$I$1006-1 -> 196 | J197: =OFFSET(G$1,$I197,) -> 20180620056 | K197: =OFFSET(H$1,$I197,) -> 70252
A198: 180620-057 | B198: 3 | C198: 9 | D198: 0 | E198: 9 | F198: 1 | G198: 20180620057 | H198: =B198&C198&D198&E198&F198 -> 39091 | I198: 197 | J198: 20180620057 | K198: 39091
A199: 180620-058 | B199: 1 | C199: 3 | D199: 6 | E199: 7 | F199: 9 | G199: 20180620058 | H199: 13679 | I199: 198 | J199: 20180620058 | K199: 13679
A200: 180620-059 | B200: 3 | C200: 8 | D200: 7 | E200: 1 | F200: 4 | G200: 20180620059 | H200: 38714 | I200: 199 | J200: 20180620059 | K200: 38714
A201: 180620-060 | B201: 7 | C201: 7 | D201: 8 | E201: 9 | F201: 9 | G201: 20180620060 | H201: 77899 | I201: 200 | J201: 20180620060 | K201: 77899
A202: 180620-061 | B202: 0 | C202: 0 | D202: 6 | E202: 2 | F202: 2 | G202: 20180620061 | H202: 00622 | I202: 201 | J202: 20180620061 | K202: 00622
A203: 180620-062 | B203: 0 | C203: 4 | D203: 8 | E203: 0 | F203: 3 | G203: 20180620062 | H203: 04803 | I203: 202 | J203: 20180620062 | K203: 04803
A204: 180620-063 | B204: 9 | C204: 7 | D204: 1 | E204: 5 | F204: 1 | G204: 20180620063 | H204: 97151 | I204: 203 | J204: 20180620063 | K204: 97151
... 802 more rows

Sheet 360福彩 (hidden)
A3: 2015246 2015-09-10 3 1 3 | B3: =MID(A3,1,FIND(" ",A3)-1) -> 2015246 | C3: ="00"&RIGHT(SUBSTITUTE(A3," ",""),3) -> 00313 | D3: =ROW()-$D$1004-1 -> 2 | E3: =OFFSET($B$1,$D3,) -> 2015246 | F3: =OFFSET($C$1,$D3,) -> 00313
A4: 2015247 2015-09-11 4 9 8 | B4: =MID(A4,1,FIND(" ",A4)-1) -> 2015247 | C4: 00498 | D4: 3 | E4: 2015247 | F4: 00498
A5: 2015248 2015-09-12 9 9 5 | B5: 2015248 | C5: 00995 | D5: 4 | E5: 2015248 | F5: 00995
A6: 2015249 2015-09-13 3 1 9 | B6: 2015249 | C6: 00319 | D6: 5 | E6: 2015249 | F6: 00319
A7: 2015250 2015-09-14 8 7 3 | B7: 2015250 | C7: 00873 | D7: 6 | E7: 2015250 | F7: 00873
A8: 2015251 2015-09-15 6 6 8 | B8: 2015251 | C8: 00668 | D8: 7 | E8: 2015251 | F8: 00668
A9: 2015252 2015-09-16 9 6 7 | B9: 2015252 | C9: 00967 | D9: 8 | E9: 2015252 | F9: 00967
A10: 2015253 2015-09-17 5 1 4 | B10: 2015253 | C10: 00514 | D10: 9 | E10: 2015253 | F10: 00514
A11: 2015254 2015-09-18 1 7 8 | B11: 2015254 | C11: 00178 | D11: 10 | E11: 2015254 | F11: 00178
A12: 2015255 2015-09-19 8 3 5 | B12: 2015255 | C12: 00835 | D12: 11 | E12: 2015255 | F12: 00835
A13: 2015256 2015-09-20 7 2 2 | B13: 2015256 | C13: 00722 | D13: 12 | E13: 2015256 | F13: 00722
A14: 2015257 2015-09-21 8 8 9 | B14: 2015257 | C14: 00889 | D14: 13 | E14: 2015257 | F14: 00889
A15: 2015258 2015-09-22 5 5 5 | B15: 2015258 | C15: 00555 | D15: 14 | E15: 2015258 | F15: 00555
A16: 2015259 2015-09-23 0 6 4 | B16: 2015259 | C16: 00064 | D16: 15 | E16: 2015259 | F16: 00064
A17: 2015260 2015-09-24 1 1 8 | B17: 2015260 | C17: 00118 | D17: 16 | E17: 2015260 | F17: 00118
A18: 2015261 2015-09-25 3 2 0 | B18: 2015261 | C18: 00320 | D18: 17 | E18: 2015261 | F18: 00320
A19: 2015262 2015-09-26 9 6 3 | B19: 2015262 | C19: 00963 | D19: 18 | E19: 2015262 | F19: 00963
A20: 2015263 2015-09-27 0 8 2 | B20: 2015263 | C20: 00082 | D20: 19 | E20: 2015263 | F20: 00082
A21: 2015264 2015-09-28 9 1 4 | B21: 2015264 | C21: 00914 | D21: 20 | E21: 2015264 | F21: 00914
A22: 2015265 2015-09-29 0 1 9 | B22: 2015265 | C22: 00019 | D22: 21 | E22: 2015265 | F22: 00019
A23: 2015266 2015-09-30 7 5 2 | B23: 2015266 | C23: 00752 | D23: 22 | E23: 2015266 | F23: 00752
A24: 2015267 2015-10-01 7 8 7 | B24: 2015267 | C24: 00787 | D24: 23 | E24: 2015267 | F24: 00787
A25: 2015268 2015-10-02 3 3 4 | B25: 2015268 | C25: 00334 | D25: 24 | E25: 2015268 | F25: 00334
A26: 2015269 2015-10-03 7 7 7 | B26: 2015269 | C26: 00777 | D26: 25 | E26: 2015269 | F26: 00777
A27: 2015270 2015-10-04 7 0 5 | B27: 2015270 | C27: 00705 | D27: 26 | E27: 2015270 | F27: 00705
A28: 2015271 2015-10-05 1 9 1 | B28: 2015271 | C28: 00191 | D28: 27 | E28: 2015271 | F28: 00191
A29: 2015272 2015-10-06 8 2 8 | B29: 2015272 | C29: 00828 | D29: 28 | E29: 2015272 | F29: 00828
A30: 2015273 2015-10-07 7 9 0 | B30: 2015273 | C30: 00790 | D30: 29 | E30: 2015273 | F30: 00790
A31: 2015274 2015-10-08 7 5 5 | B31: 2015274 | C31: 00755 | D31: 30 | E31: 2015274 | F31: 00755
A32: 2015275 2015-10-09 4 4 6 | B32: 2015275 | C32: 00446 | D32: 31 | E32: 2015275 | F32: 00446
A33: 2015276 2015-10-10 0 1 1 | B33: 2015276 | C33: 00011 | D33: 32 | E33: 2015276 | F33: 00011
A34: 2015277 2015-10-11 7 0 6 | B34: 2015277 | C34: 00706 | D34: 33 | E34: 2015277 | F34: 00706
A35: 2015278 2015-10-12 8 4 5 | B35: 2015278 | C35: 00845 | D35: 34 | E35: 2015278 | F35: 00845
A36: 2015279 2015-10-13 6 1 2 | B36: 2015279 | C36: 00612 | D36: 35 | E36: 2015279 | F36: 00612
A37: 2015280 2015-10-14 9 8 1 | B37: 2015280 | C37: 00981 | D37: 36 | E37: 2015280 | F37: 00981
A38: 2015281 2015-10-15 1 4 4 | B38: 2015281 | C38: 00144 | D38: 37 | E38: 2015281 | F38: 00144
A39: 2015282 2015-10-16 8 6 4 | B39: 2015282 | C39: 00864 | D39: 38 | E39: 2015282 | F39: 00864
A40: 2015283 2015-10-17 9 1 5 | B40: 2015283 | C40: 00915 | D40: 39 | E40: 2015283 | F40: 00915
A41: 2015284 2015-10-18 5 7 7 | B41: 2015284 | C41: 00577 | D41: 40 | E41: 2015284 | F41: 00577
A42: 2015285 2015-10-19 5 0 8 | B42: 2015285 | C42: 00508 | D42: 41 | E42: 2015285 | F42: 00508
A43: 2015286 2015-10-20 0 2 0 | B43: 2015286 | C43: 00020 | D43: 42 | E43: 2015286 | F43: 00020
A44: 2015287 2015-10-21 9 7 7 | B44: 2015287 | C44: 00977 | D44: 43 | E44: 2015287 | F44: 00977
A45: 2015288 2015-10-22 9 9 9 | B45: 2015288 | C45: 00999 | D45: 44 | E45: 2015288 | F45: 00999
A46: 2015289 2015-10-23 6 9 6 | B46: 2015289 | C46: 00696 | D46: 45 | E46: 2015289 | F46: 00696
A47: 2015290 2015-10-24 7 9 5 | B47: 2015290 | C47: 00795 | D47: 46 | E47: 2015290 | F47: 00795
A48: 2015291 2015-10-25 8 9 6 | B48: 2015291 | C48: 00896 | D48: 47 | E48: 2015291 | F48: 00896
A49: 2015292 2015-10-26 1 0 0 | B49: 2015292 | C49: 00100 | D49: 48 | E49: 2015292 | F49: 00100
A50: 2015293 2015-10-27 9 2 0 | B50: 2015293 | C50: 00920 | D50: 49 | E50: 2015293 | F50: 00920
A51: 2015294 2015-10-28 6 2 8 | B51: 2015294 | C51: 00628 | D51: 50 | E51: 2015294 | F51: 00628
A52: 2015295 2015-10-29 2 3 2 | B52: 2015295 | C52: 00232 | D52: 51 | E52: 2015295 | F52: 00232
A53: 2015296 2015-10-30 3 6 1 | B53: 2015296 | C53: 00361 | D53: 52 | E53: 2015296 | F53: 00361
A54: 2015297 2015-10-31 8 8 8 | B54: 2015297 | C54: 00888 | D54: 53 | E54: 2015297 | F54: 00888
A55: 2015298 2015-11-01 2 3 6 | B55: 2015298 | C55: 00236 | D55: 54 | E55: 2015298 | F55: 00236
A56: 2015299 2015-11-02 6 5 7 | B56: 2015299 | C56: 00657 | D56: 55 | E56: 2015299 | F56: 00657
A57: 2015300 2015-11-03 2 5 6 | B57: 2015300 | C57: 00256 | D57: 56 | E57: 2015300 | F57: 00256
A58: 2015301 2015-11-04 2 7 1 | B58: 2015301 | C58: 00271 | D58: 57 | E58: 2015301 | F58: 00271
A59: 2015302 2015-11-05 1 2 0 | B59: 2015302 | C59: 00120 | D59: 58 | E59: 2015302 | F59: 00120
A60: 2015303 2015-11-06 4 7 5 | B60: 2015303 | C60: 00475 | D60: 59 | E60: 2015303 | F60: 00475
A61: 2015304 2015-11-07 7 5 1 | B61: 2015304 | C61: 00751 | D61: 60 | E61: 2015304 | F61: 00751
A62: 2015305 2015-11-08 6 0 2 | B62: 2015305 | C62: 00602 | D62: 61 | E62: 2015305 | F62: 00602
A63: 2015306 2015-11-09 3 9 2 | B63: 2015306 | C63: 00392 | D63: 62 | E63: 2015306 | F63: 00392
A64: 2015307 2015-11-10 4 7 3 | B64: 2015307 | C64: 00473 | D64: 63 | E64: 2015307 | F64: 00473
A65: 2015308 2015-11-11 8 4 9 | B65: 2015308 | C65: 00849 | D65: 64 | E65: 2015308 | F65: 00849
A66: 2015309 2015-11-12 8 9 9 | B66: 2015309 | C66: 00899 | D66: 65 | E66: 2015309 | F66: 00899
A67: 2015310 2015-11-13 5 1 6 | B67: 2015310 | C67: ="00"&RIGHT(SUBSTITUTE(A67," ",""),3) -> 00516 | D67: =ROW()-$D$1004-1 -> 66 | E67: =OFFSET($B$1,$D67,) -> 2015310 | F67: =OFFSET($C$1,$D67,) -> 00516
A68: 2015311 2015-11-14 6 5 6 | B68: =MID(A68,1,FIND(" ",A68)-1) -> 2015311 | C68: 00656 | D68: 67 | E68: 2015311 | F68: 00656
A69: 2015312 2015-11-15 3 1 8 | B69: 2015312 | C69: 00318 | D69: 68 | E69: 2015312 | F69: 00318
A70: 2015313 2015-11-16 0 0 8 | B70: 2015313 | C70: 00008 | D70: 69 | E70: 2015313 | F70: 00008
A71: 2015314 2015-11-17 0 1 0 | B71: 2015314 | C71: 00010 | D71: 70 | E71: 2015314 | F71: 00010
A72: 2015315 2015-11-18 4 0 3 | B72: 2015315 | C72: 00403 | D72: 71 | E72: 2015315 | F72: 00403
A73: 2015316 2015-11-19 8 6 9 | B73: 2015316 | C73: 00869 | D73: 72 | E73: 2015316 | F73: 00869
A74: 2015317 2015-11-20 6 2 8 | B74: 2015317 | C74: 00628 | D74: 73 | E74: 2015317 | F74: 00628
A75: 2015318 2015-11-21 1 1 1 | B75: 2015318 | C75: 00111 | D75: 74 | E75: 2015318 | F75: 00111
A76: 2015319 2015-11-22 8 6 0 | B76: 2015319 | C76: 00860 | D76: 75 | E76: 2015319 | F76: 00860
A77: 2015320 2015-11-23 7 8 5 | B77: 2015320 | C77: 00785 | D77: 76 | E77: 2015320 | F77: 00785
A78: 2015321 2015-11-24 2 8 6 | B78: 2015321 | C78: 00286 | D78: 77 | E78: 2015321 | F78: 00286
A79: 2015322 2015-11-25 9 3 9 | B79: 2015322 | C79: 00939 | D79: 78 | E79: 2015322 | F79: 00939
A80: 2015323 2015-11-26 7 6 4 | B80: 2015323 | C80: 00764 | D80: 79 | E80: 2015323 | F80: 00764
A81: 2015324 2015-11-27 6 9 8 | B81: 2015324 | C81: 00698 | D81: 80 | E81: 2015324 | F81: 00698
A82: 2015325 2015-11-28 6 0 7 | B82: 2015325 | C82: 00607 | D82: 81 | E82: 2015325 | F82: 00607
A83: 2015326 2015-11-29 8 1 8 | B83: 2015326 | C83: 00818 | D83: 82 | E83: 2015326 | F83: 00818
A84: 2015327 2015-11-30 8 1 9 | B84: 2015327 | C84: 00819 | D84: 83 | E84: 2015327 | F84: 00819
A85: 2015328 2015-12-01 3 7 3 | B85: 2015328 | C85: 00373 | D85: 84 | E85: 2015328 | F85: 00373
A86: 2015329 2015-12-02 4 5 1 | B86: 2015329 | C86: 00451 | D86: 85 | E86: 2015329 | F86: 00451
A87: 2015330 2015-12-03 3 6 9 | B87: 2015330 | C87: 00369 | D87: 86 | E87: 2015330 | F87: 00369
A88: 2015331 2015-12-04 0 7 0 | B88: 2015331 | C88: 00070 | D88: 87 | E88: 2015331 | F88: 00070
A89: 2015332 2015-12-05 4 3 4 | B89: 2015332 | C89: 00434 | D89: 88 | E89: 2015332 | F89: 00434
A90: 2015333 2015-12-06 9 8 0 | B90: 2015333 | C90: 00980 | D90: 89 | E90: 2015333 | F90: 00980
A91: 2015334 2015-12-07 2 6 1 | B91: 2015334 | C91: 00261 | D91: 90 | E91: 2015334 | F91: 00261
A92: 2015335 2015-12-08 9 9 6 | B92: 2015335 | C92: 00996 | D92: 91 | E92: 2015335 | F92: 00996
A93: 2015336 2015-12-09 3 6 9 | B93: 2015336 | C93: 00369 | D93: 92 | E93: 2015336 | F93: 00369
A94: 2015337 2015-12-10 6 2 4 | B94: 2015337 | C94: 00624 | D94: 93 | E94: 2015337 | F94: 00624
A95: 2015338 2015-12-11 2 5 4 | B95: 2015338 | C95: 00254 | D95: 94 | E95: 2015338 | F95: 00254
A96: 2015339 2015-12-12 0 1 4 | B96: 2015339 | C96: 00014 | D96: 95 | E96: 2015339 | F96: 00014
A97: 2015340 2015-12-13 0 7 9 | B97: 2015340 | C97: 00079 | D97: 96 | E97: 2015340 | F97: 00079
A98: 2015341 2015-12-14 0 7 0 | B98: 2015341 | C98: 00070 | D98: 97 | E98: 2015341 | F98: 00070
A99: 2015342 2015-12-15 6 4 2 | B99: 2015342 | C99: 00642 | D99: 98 | E99: 2015342 | F99: 00642
A100: 2015343 2015-12-16 6 5 5 | B100: 2015343 | C100: 00655 | D100: 99 | E100: 2015343 | F100: 00655
A101: 2015344 2015-12-17 1 3 4 | B101: 2015344 | C101: 00134 | D101: 100 | E101: 2015344 | F101: 00134
A102: 2015345 2015-12-18 6 1 2 | B102: 2015345 | C102: 00612 | D102: 101 | E102: 2015345 | F102: 00612
A103: 2015346 2015-12-19 2 2 9 | B103: 2015346 | C103: 00229 | D103: 102 | E103: 2015346 | F103: 00229
A104: 2015347 2015-12-20 2 3 2 | B104: 2015347 | C104: 00232 | D104: 103 | E104: 2015347 | F104: 00232
A105: 2015348 2015-12-21 9 9 7 | B105: 2015348 | C105: 00997 | D105: 104 | E105: 2015348 | F105: 00997
A106: 2015349 2015-12-22 6 8 0 | B106: 2015349 | C106: 00680 | D106: 105 | E106: 2015349 | F106: 00680
A107: 2015350 2015-12-23 4 6 1 | B107: 2015350 | C107: 00461 | D107: 106 | E107: 2015350 | F107: 00461
A108: 2015351 2015-12-24 9 9 3 | B108: 2015351 | C108: 00993 | D108: 107 | E108: 2015351 | F108: 00993
A109: 2015352 2015-12-25 4 3 8 | B109: 2015352 | C109: 00438 | D109: 108 | E109: 2015352 | F109: 00438
A110: 2015353 2015-12-26 3 9 1 | B110: 2015353 | C110: 00391 | D110: 109 | E110: 2015353 | F110: 00391
A111: 2015354 2015-12-27 3 5 6 | B111: 2015354 | C111: 00356 | D111: 110 | E111: 2015354 | F111: 00356
A112: 2015355 2015-12-28 3 4 4 | B112: 2015355 | C112: 00344 | D112: 111 | E112: 2015355 | F112: 00344
A113: 2015356 2015-12-29 4 7 5 | B113: 2015356 | C113: 00475 | D113: 112 | E113: 2015356 | F113: 00475
A114: 2015357 2015-12-30 2 5 8 | B114: 2015357 | C114: 00258 | D114: 113 | E114: 2015357 | F114: 00258
A115: 2015358 2015-12-31 2 6 1 | B115: 2015358 | C115: 00261 | D115: 114 | E115: 2015358 | F115: 00261
A116: 2016001 2016-01-01 8 7 9 | B116: 2016001 | C116: 00879 | D116: 115 | E116: 2016001 | F116: 00879
A117: 2016002 2016-01-02 2 7 3 | B117: 2016002 | C117: 00273 | D117: 116 | E117: 2016002 | F117: 00273
A118: 2016003 2016-01-03 1 5 9 | B118: 2016003 | C118: 00159 | D118: 117 | E118: 2016003 | F118: 00159
A119: 2016004 2016-01-04 6 7 1 | B119: 2016004 | C119: 00671 | D119: 118 | E119: 2016004 | F119: 00671
A120: 2016005 2016-01-05 5 8 1 | B120: 2016005 | C120: 00581 | D120: 119 | E120: 2016005 | F120: 00581
A121: 2016006 2016-01-06 7 0 9 | B121: 2016006 | C121: 00709 | D121: 120 | E121: 2016006 | F121: 00709
A122: 2016007 2016-01-07 9 5 2 | B122: 2016007 | C122: 00952 | D122: 121 | E122: 2016007 | F122: 00952
A123: 2016008 2016-01-08 5 8 3 | B123: 2016008 | C123: 00583 | D123: 122 | E123: 2016008 | F123: 00583
A124: 2016009 2016-01-09 3 5 3 | B124: 2016009 | C124: 00353 | D124: 123 | E124: 2016009 | F124: 00353
A125: 2016010 2016-01-10 8 0 2 | B125: 2016010 | C125: 00802 | D125: 124 | E125: 2016010 | F125: 00802
A126: 2016011 2016-01-11 8 1 5 | B126: 2016011 | C126: 00815 | D126: 125 | E126: 2016011 | F126: 00815
A127: 2016012 2016-01-12 1 8 0 | B127: 2016012 | C127: 00180 | D127: 126 | E127: 2016012 | F127: 00180
A128: 2016013 2016-01-13 3 2 4 | B128: 2016013 | C128: 00324 | D128: 127 | E128: 2016013 | F128: 00324
A129: 2016014 2016-01-14 9 3 8 | B129: 2016014 | C129: 00938 | D129: 128 | E129: 2016014 | F129: 00938
A130: 2016015 2016-01-15 3 4 9 | B130: 2016015 | C130: 00349 | D130: 129 | E130: 2016015 | F130: 00349
A131: 2016016 2016-01-16 4 4 7 | B131: 2016016 | C131: ="00"&RIGHT(SUBSTITUTE(A131," ",""),3) -> 00447 | D131: =ROW()-$D$1004-1 -> 130 | E131: =OFFSET($B$1,$D131,) -> 2016016 | F131: =OFFSET($C$1,$D131,) -> 00447
A132: 2016017 2016-01-17 5 3 1 | B132: =MID(A132,1,FIND(" ",A132)-1) -> 2016017 | C132: 00531 | D132: 131 | E132: 2016017 | F132: 00531
A133: 2016018 2016-01-18 5 6 3 | B133: 2016018 | C133: 00563 | D133: 132 | E133: 2016018 | F133: 00563
A134: 2016019 2016-01-19 2 7 8 | B134: 2016019 | C134: 00278 | D134: 133 | E134: 2016019 | F134: 00278
A135: 2016020 2016-01-20 5 2 1 | B135: 2016020 | C135: 00521 | D135: 134 | E135: 2016020 | F135: 00521
A136: 2016021 2016-01-21 6 9 9 | B136: 2016021 | C136: 00699 | D136: 135 | E136: 2016021 | F136: 00699
A137: 2016022 2016-01-22 9 1 6 | B137: 2016022 | C137: 00916 | D137: 136 | E137: 2016022 | F137: 00916
A138: 2016023 2016-01-23 7 2 9 | B138: 2016023 | C138: 00729 | D138: 137 | E138: 2016023 | F138: 00729
A139: 2016024 2016-01-24 6 2 4 | B139: 2016024 | C139: 00624 | D139: 138 | E139: 2016024 | F139: 00624
A140: 2016025 2016-01-25 1 1 0 | B140: 2016025 | C140: 00110 | D140: 139 | E140: 2016025 | F140: 00110
A141: 2016026 2016-01-26 3 2 4 | B141: 2016026 | C141: 00324 | D141: 140 | E141: 2016026 | F141: 00324
A142: 2016027 2016-01-27 2 8 0 | B142: 2016027 | C142: 00280 | D142: 141 | E142: 2016027 | F142: 00280
A143: 2016028 2016-01-28 4 1 6 | B143: 2016028 | C143: 00416 | D143: 142 | E143: 2016028 | F143: 00416
A144: 2016029 2016-01-29 0 2 6 | B144: 2016029 | C144: 00026 | D144: 143 | E144: 2016029 | F144: 00026
A145: 2016030 2016-01-30 2 9 3 | B145: 2016030 | C145: 00293 | D145: 144 | E145: 2016030 | F145: 00293
A146: 2016031 2016-01-31 5 9 2 | B146: 2016031 | C146: 00592 | D146: 145 | E146: 2016031 | F146: 00592
A147: 2016032 2016-02-01 7 7 8 | B147: 2016032 | C147: 00778 | D147: 146 | E147: 2016032 | F147: 00778
A148: 2016033 2016-02-02 3 8 7 | B148: 2016033 | C148: 00387 | D148: 147 | E148: 2016033 | F148: 00387
A149: 2016034 2016-02-03 6 0 6 | B149: 2016034 | C149: 00606 | D149: 148 | E149: 2016034 | F149: 00606
A150: 2016035 2016-02-04 9 8 1 | B150: 2016035 | C150: 00981 | D150: 149 | E150: 2016035 | F150: 00981
A151: 2016036 2016-02-05 9 6 8 | B151: 2016036 | C151: 00968 | D151: 150 | E151: 2016036 | F151: 00968
A152: 2016037 2016-02-06 4 6 8 | B152: 2016037 | C152: 00468 | D152: 151 | E152: 2016037 | F152: 00468
A153: 2016038 2016-02-14 9 6 0 | B153: 2016038 | C153: 00960 | D153: 152 | E153: 2016038 | F153: 00960
A154: 2016039 2016-02-15 2 4 8 | B154: 2016039 | C154: 00248 | D154: 153 | E154: 2016039 | F154: 00248
A155: 2016040 2016-02-16 1 4 3 | B155: 2016040 | C155: 00143 | D155: 154 | E155: 2016040 | F155: 00143
A156: 2016041 2016-02-17 5 1 9 | B156: 2016041 | C156: 00519 | D156: 155 | E156: 2016041 | F156: 00519
A157: 2016042 2016-02-18 7 0 1 | B157: 2016042 | C157: 00701 | D157: 156 | E157: 2016042 | F157: 00701
A158: 2016043 2016-02-19 5 5 7 | B158: 2016043 | C158: 00557 | D158: 157 | E158: 2016043 | F158: 00557
A159: 2016044 2016-02-20 0 1 0 | B159: 2016044 | C159: 00010 | D159: 158 | E159: 2016044 | F159: 00010
A160: 2016045 2016-02-21 6 9 2 | B160: 2016045 | C160: 00692 | D160: 159 | E160: 2016045 | F160: 00692
A161: 2016046 2016-02-22 3 8 3 | B161: 2016046 | C161: 00383 | D161: 160 | E161: 2016046 | F161: 00383
A162: 2016047 2016-02-23 6 0 6 | B162: 2016047 | C162: 00606 | D162: 161 | E162: 2016047 | F162: 00606
A163: 2016048 2016-02-24 8 5 1 | B163: 2016048 | C163: 00851 | D163: 162 | E163: 2016048 | F163: 00851
A164: 2016049 2016-02-25 7 3 9 | B164: 2016049 | C164: 00739 | D164: 163 | E164: 2016049 | F164: 00739
A165: 2016050 2016-02-26 7 3 1 | B165: 2016050 | C165: 00731 | D165: 164 | E165: 2016050 | F165: 00731
A166: 2016051 2016-02-27 5 2 8 | B166: 2016051 | C166: 00528 | D166: 165 | E166: 2016051 | F166: 00528
A167: 2016052 2016-02-28 6 4 1 | B167: 2016052 | C167: 00641 | D167: 166 | E167: 2016052 | F167: 00641
A168: 2016053 2016-02-29 9 4 9 | B168: 2016053 | C168: 00949 | D168: 167 | E168: 2016053 | F168: 00949
A169: 2016054 2016-03-01 3 2 8 | B169: 2016054 | C169: 00328 | D169: 168 | E169: 2016054 | F169: 00328
A170: 2016055 2016-03-02 5 5 3 | B170: 2016055 | C170: 00553 | D170: 169 | E170: 2016055 | F170: 00553
A171: 2016056 2016-03-03 9 4 1 | B171: 2016056 | C171: 00941 | D171: 170 | E171: 2016056 | F171: 00941
A172: 2016057 2016-03-04 5 4 3 | B172: 2016057 | C172: 00543 | D172: 171 | E172: 2016057 | F172: 00543
A173: 2016058 2016-03-05 1 2 6 | B173: 2016058 | C173: 00126 | D173: 172 | E173: 2016058 | F173: 00126
A174: 2016059 2016-03-06 7 4 1 | B174: 2016059 | C174: 00741 | D174: 173 | E174: 2016059 | F174: 00741
A175: 2016060 2016-03-07 0 3 9 | B175: 2016060 | C175: 00039 | D175: 174 | E175: 2016060 | F175: 00039
A176: 2016061 2016-03-08 7 5 4 | B176: 2016061 | C176: 00754 | D176: 175 | E176: 2016061 | F176: 00754
A177: 2016062 2016-03-09 8 0 3 | B177: 2016062 | C177: 00803 | D177: 176 | E177: 2016062 | F177: 00803
A178: 2016063 2016-03-10 3 5 6 | B178: 2016063 | C178: 00356 | D178: 177 | E178: 2016063 | F178: 00356
A179: 2016064 2016-03-11 0 6 2 | B179: 2016064 | C179: 00062 | D179: 178 | E179: 2016064 | F179: 00062
A180: 2016065 2016-03-12 4 5 0 | B180: 2016065 | C180: 00450 | D180: 179 | E180: 2016065 | F180: 00450
A181: 2016066 2016-03-13 1 8 1 | B181: 2016066 | C181: 00181 | D181: 180 | E181: 2016066 | F181: 00181
A182: 2016067 2016-03-14 0 0 1 | B182: 2016067 | C182: 00001 | D182: 181 | E182: 2016067 | F182: 00001
A183: 2016068 2016-03-15 0 7 5 | B183: 2016068 | C183: 00075 | D183: 182 | E183: 2016068 | F183: 00075
A184: 2016069 2016-03-16 6 4 3 | B184: 2016069 | C184: 00643 | D184: 183 | E184: 2016069 | F184: 00643
A185: 2016070 2016-03-17 8 9 6 | B185: 2016070 | C185: 00896 | D185: 184 | E185: 2016070 | F185: 00896
A186: 2016071 2016-03-18 6 5 0 | B186: 2016071 | C186: 00650 | D186: 185 | E186: 2016071 | F186: 00650
A187: 2016072 2016-03-19 0 2 0 | B187: 2016072 | C187: 00020 | D187: 186 | E187: 2016072 | F187: 00020
A188: 2016073 2016-03-20 8 1 5 | B188: 2016073 | C188: 00815 | D188: 187 | E188: 2016073 | F188: 00815
A189: 2016074 2016-03-21 7 7 7 | B189: 2016074 | C189: 00777 | D189: 188 | E189: 2016074 | F189: 00777
A190: 2016075 2016-03-22 8 4 5 | B190: 2016075 | C190: 00845 | D190: 189 | E190: 2016075 | F190: 00845
A191: 2016076 2016-03-23 6 4 4 | B191: 2016076 | C191: 00644 | D191: 190 | E191: 2016076 | F191: 00644
A192: 2016077 2016-03-24 7 1 7 | B192: 2016077 | C192: 00717 | D192: 191 | E192: 2016077 | F192: 00717
A193: 2016078 2016-03-25 9 0 8 | B193: 2016078 | C193: 00908 | D193: 192 | E193: 2016078 | F193: 00908
A194: 2016079 2016-03-26 0 7 5 | B194: 2016079 | C194: 00075 | D194: 193 | E194: 2016079 | F194: 00075
A195: 2016080 2016-03-27 2 6 1 | B195: 2016080 | C195: ="00"&RIGHT(SUBSTITUTE(A195," ",""),3) -> 00261 | D195: =ROW()-$D$1004-1 -> 194 | E195: =OFFSET($B$1,$D195,) -> 2016080 | F195: =OFFSET($C$1,$D195,) -> 00261
A196: 2016081 2016-03-28 6 3 5 | B196: =MID(A196,1,FIND(" ",A196)-1) -> 2016081 | C196: 00635 | D196: 195 | E196: 2016081 | F196: 00635
A197: 2016082 2016-03-29 6 4 0 | B197: 2016082 | C197: 00640 | D197: 196 | E197: 2016082 | F197: 00640
A198: 2016083 2016-03-30 2 8 9 | B198: 2016083 | C198: 00289 | D198: 197 | E198: 2016083 | F198: 00289
A199: 2016084 2016-03-31 2 8 2 | B199: 2016084 | C199: 00282 | D199: 198 | E199: 2016084 | F199: 00282
A200: 2016085 2016-04-01 9 6 7 | B200: 2016085 | C200: 00967 | D200: 199 | E200: 2016085 | F200: 00967
A201: 2016086 2016-04-02 2 4 9 | B201: 2016086 | C201: 00249 | D201: 200 | E201: 2016086 | F201: 00249
A202: 2016087 2016-04-03 0 9 9 | B202: 2016087 | C202: 00099 | D202: 201 | E202: 2016087 | F202: 00099
... 802 more rows

Sheet Sheet1 (hidden)
A1: expect | B1: opencode | C1: opentime
A2: 20180625093 | B2: 4,3,0,6,0 | C2: 2018-6-25 21:32:00 | E2: =OFFSET($H$1,$G2,) -> 20180625093 | F2: =OFFSET($I$1,$G2,) -> 43060 | G2: =ROW()-$G$203-1 -> 1 | H2: =表1[[#This Row],[expect]]*1 -> 20180625093 | I2: =SUBSTITUTE(表1[[#This Row],[opencode]],",","") -> 43060
A3: 20180625094 | B3: 1,5,6,7,3 | C3: 2018-6-25 21:42:00 | E3: 20180625094 | F3: 15673 | G3: 2 | H3: =表1[[#This Row],[expect]]*1 -> 20180625094 | I3: =SUBSTITUTE(表1[[#This Row],[opencode]],",","") -> 15673
A4: 20180625095 | B4: 9,2,3,8,3 | C4: 2018-6-25 21:52:00 | E4: 20180625095 | F4: 92383 | G4: 3 | H4: =表1[[#This Row],[expect]]*1 -> 20180625095 | I4: =SUBSTITUTE(表1[[#This Row],[opencode]],",","") -> 92383
A5: 20180625096 | B5: 2,1,2,0,0 | C5: 2018-6-25 22:02:00 | E5: 20180625096 | F5: 21200 | G5: 4 | H5: =表1[[#This Row],[expect]]*1 -> 20180625096 | I5: =SUBSTITUTE(表1[[#This Row],[opencode]],",","") -> 21200
A6: 20180625097 | B6: 4,4,4,5,9 | C6: 2018-6-25 22:07:00 | E6: 20180625097 | F6: 44459 | G6: 5 | H6: =表1[[#This Row],[expect]]*1 -> 20180625097 | I6: =SUBSTITUTE(表1[[#This Row],[opencode]],",","") -> 44459
A7: 20180625098 | B7: 9,1,4,1,0 | C7: 2018-6-25 22:12:00 | E7: 20180625098 | F7: 91410 | G7: 6 | H7: =表1[[#This Row],[expect]]*1 -> 20180625098 | I7: =SUBSTITUTE(表1[[#This Row],[opencode]],",","") -> 91410
A8: 20180625099 | B8: 5,9,6,0,5 | C8: 2018-6-25 22:17:00 | E8: 20180625099 | F8: 59605 | G8: 7 | H8: =表1[[#This Row],[expect]]*1 -> 20180625099 | I8: =SUBSTITUTE(表1[[#This Row],[opencode]],",","") -> 59605
A9: 20180625100 | B9: 2,1,4,5,6 | C9: 2018-6-25 22:22:00 | E9: 20180625100 | F9: 21456 | G9: 8 | H9: =表1[[#This Row],[expect]]*1 -> 20180625100 | I9: =SUBSTITUTE(表1[[#This Row],[opencode]],",","") -> 21456
A10: 20180625101 | B10: 1,8,7,0,8 | C10: 2018-6-25 22:27:00 | E10: 20180625101 | F10: 18708 | G10: 9 | H10: =表1[[#This Row],[expect]]*1 -> 20180625101 | I10: =SUBSTITUTE(表1[[#This Row],[opencode]],",","") -> 18708
A11: 20180625102 | B11: 2,2,6,3,5 | C11: 2018-6-25 22:32:00 | E11: 20180625102 | F11: 22635 | G11: 10 | H11: =表1[[#This Row],[expect]]*1 -> 20180625102 | I11: =SUBSTITUTE(表1[[#This Row],[opencode]],",","") -> 22635
A12: 20180625103 | B12: 6,2,5,0,4 | C12: 2018-6-25 22:37:00 | E12: 20180625103 | F12: 62504 | G12: 11 | H12: =表1[[#This Row],[expect]]*1 -> 20180625103 | I12: =SUBSTITUTE(表1[[#This Row],[opencode]],",","") -> 62504
A13: 20180625104 | B13: 5,4,1,8,4 | C13: 2018-6-25 22:42:00 | E13: 20180625104 | F13: 54184 | G13: 12 | H13: =表1[[#This Row],[expect]]*1 -> 20180625104 | I13: =SUBSTITUTE(表1[[#This Row],[opencode]],",","") -> 54184
A14: 20180625105 | B14: 0,5,0,7,3 | C14: 2018-6-25 22:47:00 | E14: 20180625105 | F14: 05073 | G14: 13 | H14: =表1[[#This Row],[expect]]*1 -> 20180625105 | I14: =SUBSTITUTE(表1[[#This Row],[opencode]],",","") -> 05073
A15: 20180625106 | B15: 0,9,7,1,9 | C15: 2018-6-25 22:52:00 | E15: 20180625106 | F15: 09719 | G15: 14 | H15: =表1[[#This Row],[expect]]*1 -> 20180625106 | I15: =SUBSTITUTE(表1[[#This Row],[opencode]],",","") -> 09719
A16: 20180625107 | B16: 0,3,4,1,1 | C16: 2018-6-25 22:57:00 | E16: 20180625107 | F16: 03411 | G16: 15 | H16: =表1[[#This Row],[expect]]*1 -> 20180625107 | I16: =SUBSTITUTE(表1[[#This Row],[opencode]],",","") -> 03411
A17: 20180625108 | B17: 2,2,1,8,8 | C17: 2018-6-25 23:02:00 | E17: 20180625108 | F17: 22188 | G17: 16 | H17: =表1[[#This Row],[expect]]*1 -> 20180625108 | I17: =SUBSTITUTE(表1[[#This Row],[opencode]],",","") -> 22188
A18: 20180625109 | B18: 2,3,0,6,0 | C18: 2018-6-25 23:07:00 | E18: 20180625109 | F18: 23060 | G18: 17 | H18: =表1[[#This Row],[expect]]*1 -> 20180625109 | I18: =SUBSTITUTE(表1[[#This Row],[opencode]],",","") -> 23060
A19: 20180625110 | B19: 7,7,4,3,6 | C19: 2018-6-25 23:12:00 | E19: 20180625110 | F19: 77436 | G19: 18 | H19: =表1[[#This Row],[expect]]*1 -> 20180625110 | I19: =SUBSTITUTE(表1[[#This Row],[opencode]],",","") -> 77436
A20: 20180625111 | B20: 1,1,1,7,4 | C20: 2018-6-25 23:17:00 | E20: 20180625111 | F20: 11174 | G20: 19 | H20: =表1[[#This Row],[expect]]*1 -> 20180625111 | I20: =SUBSTITUTE(表1[[#This Row],[opencode]],",","") -> 11174
A21: 20180625112 | B21: 6,9,9,1,4 | C21: 2018-6-25 23:22:00 | E21: 20180625112 | F21: 69914 | G21: 20 | H21: =表1[[#This Row],[expect]]*1 -> 20180625112 | I21: =SUBSTITUTE(表1[[#This Row],[opencode]],",","") -> 69914
A22: 20180625113 | B22: 2,5,5,4,8 | C22: 2018-6-25 23:27:00 | E22: 20180625113 | F22: 25548 | G22: 21 | H22: =表1[[#This Row],[expect]]*1 -> 20180625113 | I22: =SUBSTITUTE(表1[[#This Row],[opencode]],",","") -> 25548
A23: 20180625114 | B23: 2,3,9,4,4 | C23: 2018-6-25 23:32:00 | E23: 20180625114 | F23: 23944 | G23: 22 | H23: =表1[[#This Row],[expect]]*1 -> 20180625114 | I23: =SUBSTITUTE(表1[[#This Row],[opencode]],",","") -> 23944
A24: 20180625115 | B24: 7,8,5,2,1 | C24: 2018-6-25 23:37:00 | E24: 20180625115 | F24: 78521 | G24: 23 | H24: =表1[[#This Row],[expect]]*1 -> 20180625115 | I24: =SUBSTITUTE(表1[[#This Row],[opencode]],",","") -> 78521
A25: 20180625116 | B25: 7,9,4,8,7 | C25: 2018-6-25 23:42:00 | E25: 20180625116 | F25: 79487 | G25: 24 | H25: =表1[[#This Row],[expect]]*1 -> 20180625116 | I25: =SUBSTITUTE(表1[[#This Row],[opencode]],",","") -> 79487
A26: 20180625117 | B26: 6,1,3,8,5 | C26: 2018-6-25 23:47:00 | E26: 20180625117 | F26: 61385 | G26: 25 | H26: =表1[[#This Row],[expect]]*1 -> 20180625117 | I26: =SUBSTITUTE(表1[[#This Row],[opencode]],",","") -> 61385
A27: 20180625118 | B27: 6,3,5,4,1 | C27: 2018-6-25 23:52:00 | E27: 20180625118 | F27: 63541 | G27: 26 | H27: =表1[[#This Row],[expect]]*1 -> 20180625118 | I27: =SUBSTITUTE(表1[[#This Row],[opencode]],",","") -> 63541
A28: 20180625119 | B28: 2,0,3,8,9 | C28: 2018-6-25 23:57:00 | E28: 20180625119 | F28: 20389 | G28: 27 | H28: =表1[[#This Row],[expect]]*1 -> 20180625119 | I28: =SUBSTITUTE(表1[[#This Row],[opencode]],",","") -> 20389
A29: 20180625120 | B29: 5,7,2,5,2 | C29: 2018-6-26 0:02:00 | E29: 20180625120 | F29: 57252 | G29: 28 | H29: =表1[[#This Row],[expect]]*1 -> 20180625120 | I29: =SUBSTITUTE(表1[[#This Row],[opencode]],",","") -> 57252
A30: 20180626001 | B30: 3,9,4,9,9 | C30: 2018-6-26 0:07:00 | E30: 20180626001 | F30: 39499 | G30: 29 | H30: =表1[[#This Row],[expect]]*1 -> 20180626001 | I30: =SUBSTITUTE(表1[[#This Row],[opencode]],",","") -> 39499
A31: 20180626002 | B31: 1,3,9,0,5 | C31: 2018-6-26 0:12:00 | E31: 20180626002 | F31: 13905 | G31: 30 | H31: =表1[[#This Row],[expect]]*1 -> 20180626002 | I31: =SUBSTITUTE(表1[[#This Row],[opencode]],",","") -> 13905
A32: 20180626003 | B32: 2,9,6,9,6 | C32: 2018-6-26 0:17:00 | E32: 20180626003 | F32: 29696 | G32: 31 | H32: =表1[[#This Row],[expect]]*1 -> 20180626003 | I32: =SUBSTITUTE(表1[[#This Row],[opencode]],",","") -> 29696
A33: 20180626004 | B33: 8,1,3,4,1 | C33: 2018-6-26 0:22:00 | E33: 20180626004 | F33: 81341 | G33: 32 | H33: =表1[[#This Row],[expect]]*1 -> 20180626004 | I33: =SUBSTITUTE(表1[[#This Row],[opencode]],",","") -> 81341
A34: 20180626005 | B34: 1,6,8,4,2 | C34: 2018-6-26 0:27:00 | E34: 20180626005 | F34: 16842 | G34: 33 | H34: =表1[[#This Row],[expect]]*1 -> 20180626005 | I34: =SUBSTITUTE(表1[[#This Row],[opencode]],",","") -> 16842
A35: 20180626006 | B35: 6,2,3,9,7 | C35: 2018-6-26 0:32:00 | E35: 20180626006 | F35: 62397 | G35: 34 | H35: =表1[[#This Row],[expect]]*1 -> 20180626006 | I35: =SUBSTITUTE(表1[[#This Row],[opencode]],",","") -> 62397
A36: 20180626007 | B36: 8,7,1,2,0 | C36: 2018-6-26 0:37:00 | E36: 20180626007 | F36: 87120 | G36: 35 | H36: =表1[[#This Row],[expect]]*1 -> 20180626007 | I36: =SUBSTITUTE(表1[[#This Row],[opencode]],",","") -> 87120
A37: 20180626008 | B37: 2,5,0,0,9 | C37: 2018-6-26 0:42:00 | E37: 20180626008 | F37: 25009 | G37: 36 | H37: =表1[[#This Row],[expect]]*1 -> 20180626008 | I37: =SUBSTITUTE(表1[[#This Row],[opencode]],",","") -> 25009
A38: 20180626009 | B38: 8,3,8,5,5 | C38: 2018-6-26 0:47:00 | E38: 20180626009 | F38: 83855 | G38: 37 | H38: =表1[[#This Row],[expect]]*1 -> 20180626009 | I38: =SUBSTITUTE(表1[[#This Row],[opencode]],",","") -> 83855
A39: 20180626010 | B39: 9,0,9,8,6 | C39: 2018-6-26 0:52:00 | E39: 20180626010 | F39: 90986 | G39: 38 | H39: =表1[[#This Row],[expect]]*1 -> 20180626010 | I39: =SUBSTITUTE(表1[[#This Row],[opencode]],",","") -> 90986
A40: 20180626011 | B40: 9,2,9,0,3 | C40: 2018-6-26 0:57:00 | E40: 20180626011 | F40: 92903 | G40: 39 | H40: =表1[[#This Row],[expect]]*1 -> 20180626011 | I40: =SUBSTITUTE(表1[[#This Row],[opencode]],",","") -> 92903
A41: 20180626012 | B41: 7,4,0,0,1 | C41: 2018-6-26 1:02:00 | E41: 20180626012 | F41: 74001 | G41: 40 | H41: =表1[[#This Row],[expect]]*1 -> 20180626012 | I41: =SUBSTITUTE(表1[[#This Row],[opencode]],",","") -> 74001
A42: 20180626013 | B42: 8,5,8,3,9 | C42: 2018-6-26 1:07:00 | E42: 20180626013 | F42: 85839 | G42: 41 | H42: =表1[[#This Row],[expect]]*1 -> 20180626013 | I42: =SUBSTITUTE(表1[[#This Row],[opencode]],",","") -> 85839
A43: 20180626014 | B43: 2,0,7,4,0 | C43: 2018-6-26 1:12:00 | E43: 20180626014 | F43: 20740 | G43: 42 | H43: =表1[[#This Row],[expect]]*1 -> 20180626014 | I43: =SUBSTITUTE(表1[[#This Row],[opencode]],",","") -> 20740
A44: 20180626015 | B44: 6,8,5,5,4 | C44: 2018-6-26 1:17:00 | E44: 20180626015 | F44: 68554 | G44: 43 | H44: =表1[[#This Row],[expect]]*1 -> 20180626015 | I44: =SUBSTITUTE(表1[[#This Row],[opencode]],",","") -> 68554
A45: 20180626016 | B45: 6,6,3,7,1 | C45: 2018-6-26 1:22:00 | E45: 20180626016 | F45: 66371 | G45: 44 | H45: =表1[[#This Row],[expect]]*1 -> 20180626016 | I45: =SUBSTITUTE(表1[[#This Row],[opencode]],",","") -> 66371
A46: 20180626017 | B46: 2,3,5,8,0 | C46: 2018-6-26 1:27:00 | E46: 20180626017 | F46: 23580 | G46: 45 | H46: =表1[[#This Row],[expect]]*1 -> 20180626017 | I46: =SUBSTITUTE(表1[[#This Row],[opencode]],",","") -> 23580
A47: 20180626018 | B47: 4,5,7,2,8 | C47: 2018-6-26 1:32:00 | E47: 20180626018 | F47: 45728 | G47: 46 | H47: =表1[[#This Row],[expect]]*1 -> 20180626018 | I47: =SUBSTITUTE(表1[[#This Row],[opencode]],",","") -> 45728
A48: 20180626019 | B48: 3,4,5,9,4 | C48: 2018-6-26 1:37:00 | E48: 20180626019 | F48: 34594 | G48: 47 | H48: =表1[[#This Row],[expect]]*1 -> 20180626019 | I48: =SUBSTITUTE(表1[[#This Row],[opencode]],",","") -> 34594
A49: 20180626020 | B49: 0,1,5,3,6 | C49: 2018-6-26 1:42:00 | E49: 20180626020 | F49: 01536 | G49: 48 | H49: =表1[[#This Row],[expect]]*1 -> 20180626020 | I49: =SUBSTITUTE(表1[[#This Row],[opencode]],",","") -> 01536
A50: 20180626021 | B50: 6,9,5,7,8 | C50: 2018-6-26 1:47:00 | E50: 20180626021 | F50: 69578 | G50: 49 | H50: =表1[[#This Row],[expect]]*1 -> 20180626021 | I50: =SUBSTITUTE(表1[[#This Row],[opencode]],",","") -> 69578
A51: 20180626022 | B51: 1,5,4,6,4 | C51: 2018-6-26 1:52:00 | E51: 20180626022 | F51: 15464 | G51: 50 | H51: =表1[[#This Row],[expect]]*1 -> 20180626022 | I51: =SUBSTITUTE(表1[[#This Row],[opencode]],",","") -> 15464
A52: 20180626023 | B52: 6,5,7,4,6 | C52: 2018-6-26 1:57:00 | E52: 20180626023 | F52: 65746 | G52: 51 | H52: =表1[[#This Row],[expect]]*1 -> 20180626023 | I52: =SUBSTITUTE(表1[[#This Row],[opencode]],",","") -> 65746
A53: 20180626024 | B53: 3,8,5,9,3 | C53: 2018-6-26 10:02:00 | E53: 20180626024 | F53: 38593 | G53: 52 | H53: =表1[[#This Row],[expect]]*1 -> 20180626024 | I53: =SUBSTITUTE(表1[[#This Row],[opencode]],",","") -> 38593
A54: 20180626025 | B54: 5,7,1,3,3 | C54: 2018-6-26 10:12:00 | E54: 20180626025 | F54: 57133 | G54: 53 | H54: =表1[[#This Row],[expect]]*1 -> 20180626025 | I54: =SUBSTITUTE(表1[[#This Row],[opencode]],",","") -> 57133
A55: 20180626026 | B55: 4,5,8,7,8 | C55: 2018-6-26 10:22:00 | E55: 20180626026 | F55: 45878 | G55: 54 | H55: =表1[[#This Row],[expect]]*1 -> 20180626026 | I55: =SUBSTITUTE(表1[[#This Row],[opencode]],",","") -> 45878
A56: 20180626027 | B56: 1,8,0,9,5 | C56: 2018-6-26 10:32:00 | E56: 20180626027 | F56: 18095 | G56: 55 | H56: =表1[[#This Row],[expect]]*1 -> 20180626027 | I56: =SUBSTITUTE(表1[[#This Row],[opencode]],",","") -> 18095
A57: 20180626028 | B57: 7,9,3,8,9 | C57: 2018-6-26 10:42:00 | E57: 20180626028 | F57: 79389 | G57: 56 | H57: =表1[[#This Row],[expect]]*1 -> 20180626028 | I57: =SUBSTITUTE(表1[[#This Row],[opencode]],",","") -> 79389
A58: 20180626029 | B58: 5,5,2,3,7 | C58: 2018-6-26 10:52:00 | E58: 20180626029 | F58: 55237 | G58: 57 | H58: =表1[[#This Row],[expect]]*1 -> 20180626029 | I58: =SUBSTITUTE(表1[[#This Row],[opencode]],",","") -> 55237
A59: 20180626030 | B59: 3,2,6,0,2 | C59: 2018-6-26 11:02:00 | E59: 20180626030 | F59: 32602 | G59: 58 | H59: =表1[[#This Row],[expect]]*1 -> 20180626030 | I59: =SUBSTITUTE(表1[[#This Row],[opencode]],",","") -> 32602
A60: 20180626031 | B60: 3,9,6,9,8 | C60: 2018-6-26 11:12:00 | E60: 20180626031 | F60: 39698 | G60: 59 | H60: =表1[[#This Row],[expect]]*1 -> 20180626031 | I60: =SUBSTITUTE(表1[[#This Row],[opencode]],",","") -> 39698
A61: 20180626032 | B61: 0,5,5,8,7 | C61: 2018-6-26 11:22:00 | E61: 20180626032 | F61: 05587 | G61: 60 | H61: =表1[[#This Row],[expect]]*1 -> 20180626032 | I61: =SUBSTITUTE(表1[[#This Row],[opencode]],",","") -> 05587
A62: 20180626033 | B62: 4,7,4,1,7 | C62: 2018-6-26 11:32:00 | E62: 20180626033 | F62: 47417 | G62: 61 | H62: =表1[[#This Row],[expect]]*1 -> 20180626033 | I62: =SUBSTITUTE(表1[[#This Row],[opencode]],",","") -> 47417
A63: 20180626034 | B63: 1,3,4,7,7 | C63: 2018-6-26 11:42:00 | E63: 20180626034 | F63: 13477 | G63: 62 | H63: =表1[[#This Row],[expect]]*1 -> 20180626034 | I63: =SUBSTITUTE(表1[[#This Row],[opencode]],",","") -> 13477
A64: 20180626035 | B64: 6,0,9,7,8 | C64: 2018-6-26 11:52:00 | E64: 20180626035 | F64: 60978 | G64: 63 | H64: =表1[[#This Row],[expect]]*1 -> 20180626035 | I64: =SUBSTITUTE(表1[[#This Row],[opencode]],",","") -> 60978
A65: 20180626036 | B65: 0,3,3,2,8 | C65: 2018-6-26 12:02:00 | E65: 20180626036 | F65: 03328 | G65: 64 | H65: =表1[[#This Row],[expect]]*1 -> 20180626036 | I65: =SUBSTITUTE(表1[[#This Row],[opencode]],",","") -> 03328
A66: 20180626037 | B66: 0,6,4,7,7 | C66: 2018-6-26 12:12:00 | E66: =OFFSET($H$1,$G66,) -> 20180626037 | F66: =OFFSET($I$1,$G66,) -> 06477 | G66: =ROW()-$G$203-1 -> 65 | H66: =表1[[#This Row],[expect]]*1 -> 20180626037 | I66: =SUBSTITUTE(表1[[#This Row],[opencode]],",","") -> 06477
A67: 20180626038 | B67: 9,0,3,3,4 | C67: 2018-6-26 12:22:00 | E67: 20180626038 | F67: 90334 | G67: 66 | H67: =表1[[#This Row],[expect]]*1 -> 20180626038 | I67: =SUBSTITUTE(表1[[#This Row],[opencode]],",","") -> 90334
A68: 20180626039 | B68: 4,0,1,0,9 | C68: 2018-6-26 12:32:00 | E68: 20180626039 | F68: 40109 | G68: 67 | H68: =表1[[#This Row],[expect]]*1 -> 20180626039 | I68: =SUBSTITUTE(表1[[#This Row],[opencode]],",","") -> 40109
A69: 20180626040 | B69: 2,7,6,9,7 | C69: 2018-6-26 12:42:00 | E69: 20180626040 | F69: 27697 | G69: 68 | H69: =表1[[#This Row],[expect]]*1 -> 20180626040 | I69: =SUBSTITUTE(表1[[#This Row],[opencode]],",","") -> 27697
A70: 20180626041 | B70: 9,7,2,0,5 | C70: 2018-6-26 12:52:00 | E70: 20180626041 | F70: 97205 | G70: 69 | H70: =表1[[#This Row],[expect]]*1 -> 20180626041 | I70: =SUBSTITUTE(表1[[#This Row],[opencode]],",","") -> 97205
A71: 20180626042 | B71: 4,6,4,1,6 | C71: 2018-6-26 13:02:00 | E71: 20180626042 | F71: 46416 | G71: 70 | H71: =表1[[#This Row],[expect]]*1 -> 20180626042 | I71: =SUBSTITUTE(表1[[#This Row],[opencode]],",","") -> 46416
A72: 20180626043 | B72: 3,4,6,8,6 | C72: 2018-6-26 13:12:00 | E72: 20180626043 | F72: 34686 | G72: 71 | H72: =表1[[#This Row],[expect]]*1 -> 20180626043 | I72: =SUBSTITUTE(表1[[#This Row],[opencode]],",","") -> 34686
A73: 20180626044 | B73: 9,6,8,2,3 | C73: 2018-6-26 13:22:00 | E73: 20180626044 | F73: 96823 | G73: 72 | H73: =表1[[#This Row],[expect]]*1 -> 20180626044 | I73: =SUBSTITUTE(表1[[#This Row],[opencode]],",","") -> 96823
A74: 20180626045 | B74: 6,9,1,6,9 | C74: 2018-6-26 13:32:00 | E74: 20180626045 | F74: 69169 | G74: 73 | H74: =表1[[#This Row],[expect]]*1 -> 20180626045 | I74: =SUBSTITUTE(表1[[#This Row],[opencode]],",","") -> 69169
A75: 20180626046 | B75: 5,2,5,6,7 | C75: 2018-6-26 13:42:00 | E75: 20180626046 | F75: 52567 | G75: 74 | H75: =表1[[#This Row],[expect]]*1 -> 20180626046 | I75: =SUBSTITUTE(表1[[#This Row],[opencode]],",","") -> 52567
A76: 20180626047 | B76: 6,5,6,3,7 | C76: 2018-6-26 13:52:00 | E76: 20180626047 | F76: 65637 | G76: 75 | H76: =表1[[#This Row],[expect]]*1 -> 20180626047 | I76: =SUBSTITUTE(表1[[#This Row],[opencode]],",","") -> 65637
A77: 20180626048 | B77: 1,1,3,0,1 | C77: 2018-6-26 14:02:00 | E77: 20180626048 | F77: 11301 | G77: 76 | H77: =表1[[#This Row],[expect]]*1 -> 20180626048 | I77: =SUBSTITUTE(表1[[#This Row],[opencode]],",","") -> 11301
A78: 20180626049 | B78: 8,8,7,1,2 | C78: 2018-6-26 14:12:00 | E78: 20180626049 | F78: 88712 | G78: 77 | H78: =表1[[#This Row],[expect]]*1 -> 20180626049 | I78: =SUBSTITUTE(表1[[#This Row],[opencode]],",","") -> 88712
A79: 20180626050 | B79: 9,9,8,1,9 | C79: 2018-6-26 14:22:00 | E79: 20180626050 | F79: 99819 | G79: 78 | H79: =表1[[#This Row],[expect]]*1 -> 20180626050 | I79: =SUBSTITUTE(表1[[#This Row],[opencode]],",","") -> 99819
A80: 20180626051 | B80: 5,5,7,1,4 | C80: 2018-6-26 14:32:00 | E80: 20180626051 | F80: 55714 | G80: 79 | H80: =表1[[#This Row],[expect]]*1 -> 20180626051 | I80: =SUBSTITUTE(表1[[#This Row],[opencode]],",","") -> 55714
A81: 20180626052 | B81: 4,8,8,1,2 | C81: 2018-6-26 14:42:00 | E81: 20180626052 | F81: 48812 | G81: 80 | H81: =表1[[#This Row],[expect]]*1 -> 20180626052 | I81: =SUBSTITUTE(表1[[#This Row],[opencode]],",","") -> 48812
A82: 20180626053 | B82: 4,6,7,7,2 | C82: 2018-6-26 14:52:00 | E82: 20180626053 | F82: 46772 | G82: 81 | H82: =表1[[#This Row],[expect]]*1 -> 20180626053 | I82: =SUBSTITUTE(表1[[#This Row],[opencode]],",","") -> 46772
A83: 20180626054 | B83: 7,7,8,9,9 | C83: 2018-6-26 15:02:00 | E83: 20180626054 | F83: 77899 | G83: 82 | H83: =表1[[#This Row],[expect]]*1 -> 20180626054 | I83: =SUBSTITUTE(表1[[#This Row],[opencode]],",","") -> 77899
A84: 20180626055 | B84: 8,0,6,8,7 | C84: 2018-6-26 15:12:00 | E84: 20180626055 | F84: 80687 | G84: 83 | H84: =表1[[#This Row],[expect]]*1 -> 20180626055 | I84: =SUBSTITUTE(表1[[#This Row],[opencode]],",","") -> 80687
A85: 20180626056 | B85: 0,9,3,0,0 | C85: 2018-6-26 15:22:00 | E85: 20180626056 | F85: 09300 | G85: 84 | H85: =表1[[#This Row],[expect]]*1 -> 20180626056 | I85: =SUBSTITUTE(表1[[#This Row],[opencode]],",","") -> 09300
A86: 20180626057 | B86: 4,1,2,3,4 | C86: 2018-6-26 15:32:00 | E86: 20180626057 | F86: 41234 | G86: 85 | H86: =表1[[#This Row],[expect]]*1 -> 20180626057 | I86: =SUBSTITUTE(表1[[#This Row],[opencode]],",","") -> 41234
A87: 20180626058 | B87: 8,3,7,8,1 | C87: 2018-6-26 15:42:00 | E87: 20180626058 | F87: 83781 | G87: 86 | H87: =表1[[#This Row],[expect]]*1 -> 20180626058 | I87: =SUBSTITUTE(表1[[#This Row],[opencode]],",","") -> 83781
A88: 20180626059 | B88: 9,3,1,6,1 | C88: 2018-6-26 15:52:00 | E88: 20180626059 | F88: 93161 | G88: 87 | H88: =表1[[#This Row],[expect]]*1 -> 20180626059 | I88: =SUBSTITUTE(表1[[#This Row],[opencode]],",","") -> 93161
A89: 20180626060 | B89: 3,9,2,4,9 | C89: 2018-6-26 16:02:00 | E89: 20180626060 | F89: 39249 | G89: 88 | H89: =表1[[#This Row],[expect]]*1 -> 20180626060 | I89: =SUBSTITUTE(表1[[#This Row],[opencode]],",","") -> 39249
A90: 20180626061 | B90: 9,2,2,9,4 | C90: 2018-6-26 16:12:00 | E90: 20180626061 | F90: 92294 | G90: 89 | H90: =表1[[#This Row],[expect]]*1 -> 20180626061 | I90: =SUBSTITUTE(表1[[#This Row],[opencode]],",","") -> 92294
A91: 20180626062 | B91: 6,8,8,8,9 | C91: 2018-6-26 16:22:00 | E91: 20180626062 | F91: 68889 | G91: 90 | H91: =表1[[#This Row],[expect]]*1 -> 20180626062 | I91: =SUBSTITUTE(表1[[#This Row],[opencode]],",","") -> 68889
A92: 20180626063 | B92: 7,5,0,9,3 | C92: 2018-6-26 16:32:00 | E92: 20180626063 | F92: 75093 | G92: 91 | H92: =表1[[#This Row],[expect]]*1 -> 20180626063 | I92: =SUBSTITUTE(表1[[#This Row],[opencode]],",","") -> 75093
A93: 20180626064 | B93: 7,1,4,6,4 | C93: 2018-6-26 16:42:00 | E93: 20180626064 | F93: 71464 | G93: 92 | H93: =表1[[#This Row],[expect]]*1 -> 20180626064 | I93: =SUBSTITUTE(表1[[#This Row],[opencode]],",","") -> 71464
A94: 20180626065 | B94: 1,3,7,0,2 | C94: 2018-6-26 16:52:00 | E94: 20180626065 | F94: 13702 | G94: 93 | H94: =表1[[#This Row],[expect]]*1 -> 20180626065 | I94: =SUBSTITUTE(表1[[#This Row],[opencode]],",","") -> 13702
A95: 20180626066 | B95: 7,6,8,7,1 | C95: 2018-6-26 17:02:00 | E95: 20180626066 | F95: 76871 | G95: 94 | H95: =表1[[#This Row],[expect]]*1 -> 20180626066 | I95: =SUBSTITUTE(表1[[#This Row],[opencode]],",","") -> 76871
A96: 20180626067 | B96: 4,9,5,6,8 | C96: 2018-6-26 17:12:00 | E96: 20180626067 | F96: 49568 | G96: 95 | H96: =表1[[#This Row],[expect]]*1 -> 20180626067 | I96: =SUBSTITUTE(表1[[#This Row],[opencode]],",","") -> 49568
A97: 20180626068 | B97: 6,9,2,2,9 | C97: 2018-6-26 17:22:00 | E97: 20180626068 | F97: 69229 | G97: 96 | H97: =表1[[#This Row],[expect]]*1 -> 20180626068 | I97: =SUBSTITUTE(表1[[#This Row],[opencode]],",","") -> 69229
A98: 20180626069 | B98: 0,8,4,9,7 | C98: 2018-6-26 17:32:00 | E98: 20180626069 | F98: 08497 | G98: 97 | H98: =表1[[#This Row],[expect]]*1 -> 20180626069 | I98: =SUBSTITUTE(表1[[#This Row],[opencode]],",","") -> 08497
A99: 20180626070 | B99: 6,1,5,3,9 | C99: 2018-6-26 17:42:00 | E99: 20180626070 | F99: 61539 | G99: 98 | H99: =表1[[#This Row],[expect]]*1 -> 20180626070 | I99: =SUBSTITUTE(表1[[#This Row],[opencode]],",","") -> 61539
A100: 20180626071 | B100: 2,6,2,4,5 | C100: 2018-6-26 17:52:00 | E100: 20180626071 | F100: 26245 | G100: 99 | H100: =表1[[#This Row],[expect]]*1 -> 20180626071 | I100: =SUBSTITUTE(表1[[#This Row],[opencode]],",","") -> 26245
A101: 20180626072 | B101: 5,9,7,2,0 | C101: 2018-6-26 18:02:00 | E101: 20180626072 | F101: 59720 | G101: 100 | H101: =表1[[#This Row],[expect]]*1 -> 20180626072 | I101: =SUBSTITUTE(表1[[#This Row],[opencode]],",","") -> 59720
A102: 20180626073 | B102: 7,1,9,8,1 | C102: 2018-6-26 18:12:00 | E102: 20180626073 | F102: 71981 | G102: 101 | H102: =表1[[#This Row],[expect]]*1 -> 20180626073 | I102: =SUBSTITUTE(表1[[#This Row],[opencode]],",","") -> 71981
A103: 20180626074 | B103: 0,7,4,4,2 | C103: 2018-6-26 18:22:00 | E103: 20180626074 | F103: 07442 | G103: 102 | H103: =表1[[#This Row],[expect]]*1 -> 20180626074 | I103: =SUBSTITUTE(表1[[#This Row],[opencode]],",","") -> 07442
A104: 20180626075 | B104: 4,7,7,7,7 | C104: 2018-6-26 18:32:00 | E104: 20180626075 | F104: 47777 | G104: 103 | H104: =表1[[#This Row],[expect]]*1 -> 20180626075 | I104: =SUBSTITUTE(表1[[#This Row],[opencode]],",","") -> 47777
A105: 20180626076 | B105: 4,3,6,0,2 | C105: 2018-6-26 18:42:00 | E105: 20180626076 | F105: 43602 | G105: 104 | H105: =表1[[#This Row],[expect]]*1 -> 20180626076 | I105: =SUBSTITUTE(表1[[#This Row],[opencode]],",","") -> 43602
A106: 20180626077 | B106: 5,3,9,1,4 | C106: 2018-6-26 18:52:00 | E106: 20180626077 | F106: 53914 | G106: 105 | H106: =表1[[#This Row],[expect]]*1 -> 20180626077 | I106: =SUBSTITUTE(表1[[#This Row],[opencode]],",","") -> 53914
A107: 20180626078 | B107: 8,4,2,5,3 | C107: 2018-6-26 19:02:00 | E107: 20180626078 | F107: 84253 | G107: 106 | H107: =表1[[#This Row],[expect]]*1 -> 20180626078 | I107: =SUBSTITUTE(表1[[#This Row],[opencode]],",","") -> 84253
A108: 20180626079 | B108: 1,9,0,5,6 | C108: 2018-6-26 19:12:00 | E108: 20180626079 | F108: 19056 | G108: 107 | H108: =表1[[#This Row],[expect]]*1 -> 20180626079 | I108: =SUBSTITUTE(表1[[#This Row],[opencode]],",","") -> 19056
A109: 20180626080 | B109: 2,6,3,0,6 | C109: 2018-6-26 19:22:00 | E109: 20180626080 | F109: 26306 | G109: 108 | H109: =表1[[#This Row],[expect]]*1 -> 20180626080 | I109: =SUBSTITUTE(表1[[#This Row],[opencode]],",","") -> 26306
A110: 20180626081 | B110: 8,2,2,0,9 | C110: 2018-6-26 19:32:00 | E110: 20180626081 | F110: 82209 | G110: 109 | H110: =表1[[#This Row],[expect]]*1 -> 20180626081 | I110: =SUBSTITUTE(表1[[#This Row],[opencode]],",","") -> 82209
A111: 20180626082 | B111: 5,8,8,2,5 | C111: 2018-6-26 19:42:00 | E111: 20180626082 | F111: 58825 | G111: 110 | H111: =表1[[#This Row],[expect]]*1 -> 20180626082 | I111: =SUBSTITUTE(表1[[#This Row],[opencode]],",","") -> 58825
A112: 20180626083 | B112: 3,9,7,0,3 | C112: 2018-6-26 19:52:00 | E112: 20180626083 | F112: 39703 | G112: 111 | H112: =表1[[#This Row],[expect]]*1 -> 20180626083 | I112: =SUBSTITUTE(表1[[#This Row],[opencode]],",","") -> 39703
A113: 20180626084 | B113: 6,3,5,3,1 | C113: 2018-6-26 20:02:00 | E113: 20180626084 | F113: 63531 | G113: 112 | H113: =表1[[#This Row],[expect]]*1 -> 20180626084 | I113: =SUBSTITUTE(表1[[#This Row],[opencode]],",","") -> 63531
A114: 20180626085 | B114: 1,6,2,0,5 | C114: 2018-6-26 20:12:00 | E114: 20180626085 | F114: 16205 | G114: 113 | H114: =表1[[#This Row],[expect]]*1 -> 20180626085 | I114: =SUBSTITUTE(表1[[#This Row],[opencode]],",","") -> 16205
A115: 20180626086 | B115: 8,0,7,4,3 | C115: 2018-6-26 20:22:00 | E115: 20180626086 | F115: 80743 | G115: 114 | H115: =表1[[#This Row],[expect]]*1 -> 20180626086 | I115: =SUBSTITUTE(表1[[#This Row],[opencode]],",","") -> 80743
A116: 20180626087 | B116: 1,3,7,6,7 | C116: 2018-6-26 20:32:00 | E116: 20180626087 | F116: 13767 | G116: 115 | H116: =表1[[#This Row],[expect]]*1 -> 20180626087 | I116: =SUBSTITUTE(表1[[#This Row],[opencode]],",","") -> 13767
A117: 20180626088 | B117: 7,1,2,0,2 | C117: 2018-6-26 20:42:00 | E117: 20180626088 | F117: 71202 | G117: 116 | H117: =表1[[#This Row],[expect]]*1 -> 20180626088 | I117: =SUBSTITUTE(表1[[#This Row],[opencode]],",","") -> 71202
A118: 20180626089 | B118: 3,2,8,7,7 | C118: 2018-6-26 20:52:00 | E118: 20180626089 | F118: 32877 | G118: 117 | H118: =表1[[#This Row],[expect]]*1 -> 20180626089 | I118: =SUBSTITUTE(表1[[#This Row],[opencode]],",","") -> 32877
A119: 20180626090 | B119: 0,6,1,3,6 | C119: 2018-6-26 21:02:00 | E119: 20180626090 | F119: 06136 | G119: 118 | H119: =表1[[#This Row],[expect]]*1 -> 20180626090 | I119: =SUBSTITUTE(表1[[#This Row],[opencode]],",","") -> 06136
A120: 20180626091 | B120: 4,8,3,2,0 | C120: 2018-6-26 21:12:00 | E120: 20180626091 | F120: 48320 | G120: 119 | H120: =表1[[#This Row],[expect]]*1 -> 20180626091 | I120: =SUBSTITUTE(表1[[#This Row],[opencode]],",","") -> 48320
A121: 20180626092 | B121: 1,0,6,4,4 | C121: 2018-6-26 21:22:00 | E121: 20180626092 | F121: 10644 | G121: 120 | H121: =表1[[#This Row],[expect]]*1 -> 20180626092 | I121: =SUBSTITUTE(表1[[#This Row],[opencode]],",","") -> 10644
A122: 20180626093 | B122: 7,6,2,3,1 | C122: 2018-6-26 21:32:00 | E122: 20180626093 | F122: 76231 | G122: 121 | H122: =表1[[#This Row],[expect]]*1 -> 20180626093 | I122: =SUBSTITUTE(表1[[#This Row],[opencode]],",","") -> 76231
A123: 20180626094 | B123: 6,0,1,1,4 | C123: 2018-6-26 21:42:00 | E123: 20180626094 | F123: 60114 | G123: 122 | H123: =表1[[#This Row],[expect]]*1 -> 20180626094 | I123: =SUBSTITUTE(表1[[#This Row],[opencode]],",","") -> 60114
A124: 20180626095 | B124: 3,8,0,9,4 | C124: 2018-6-26 21:52:00 | E124: 20180626095 | F124: 38094 | G124: 123 | H124: =表1[[#This Row],[expect]]*1 -> 20180626095 | I124: =SUBSTITUTE(表1[[#This Row],[opencode]],",","") -> 38094
A125: 20180626096 | B125: 3,1,9,3,8 | C125: 2018-6-26 22:02:00 | E125: 20180626096 | F125: 31938 | G125: 124 | H125: =表1[[#This Row],[expect]]*1 -> 20180626096 | I125: =SUBSTITUTE(表1[[#This Row],[opencode]],",","") -> 31938
A126: 20180626097 | B126: 4,0,8,7,2 | C126: 2018-6-26 22:07:00 | E126: 20180626097 | F126: 40872 | G126: 125 | H126: =表1[[#This Row],[expect]]*1 -> 20180626097 | I126: =SUBSTITUTE(表1[[#This Row],[opencode]],",","") -> 40872
A127: 20180626098 | B127: 6,3,5,4,7 | C127: 2018-6-26 22:12:00 | E127: 20180626098 | F127: 63547 | G127: 126 | H127: =表1[[#This Row],[expect]]*1 -> 20180626098 | I127: =SUBSTITUTE(表1[[#This Row],[opencode]],",","") -> 63547
A128: 20180626099 | B128: 3,9,4,2,7 | C128: 2018-6-26 22:17:00 | E128: 20180626099 | F128: 39427 | G128: 127 | H128: =表1[[#This Row],[expect]]*1 -> 20180626099 | I128: =SUBSTITUTE(表1[[#This Row],[opencode]],",","") -> 39427
A129: 20180626100 | B129: 2,6,7,6,0 | C129: 2018-6-26 22:22:00 | E129: 20180626100 | F129: 26760 | G129: 128 | H129: =表1[[#This Row],[expect]]*1 -> 20180626100 | I129: =SUBSTITUTE(表1[[#This Row],[opencode]],",","") -> 26760
A130: 20180626101 | B130: 5,7,2,1,5 | C130: 2018-6-26 22:27:00 | E130: =OFFSET($H$1,$G130,) -> 20180626101 | F130: =OFFSET($I$1,$G130,) -> 57215 | G130: =ROW()-$G$203-1 -> 129 | H130: =表1[[#This Row],[expect]]*1 -> 20180626101 | I130: =SUBSTITUTE(表1[[#This Row],[opencode]],",","") -> 57215
A131: 20180626102 | B131: 0,2,0,4,5 | C131: 2018-6-26 22:32:00 | E131: 20180626102 | F131: 02045 | G131: 130 | H131: =表1[[#This Row],[expect]]*1 -> 20180626102 | I131: =SUBSTITUTE(表1[[#This Row],[opencode]],",","") -> 02045
A132: 20180626103 | B132: 2,3,4,7,8 | C132: 2018-6-26 22:37:00 | E132: 20180626103 | F132: 23478 | G132: 131 | H132: =表1[[#This Row],[expect]]*1 -> 20180626103 | I132: =SUBSTITUTE(表1[[#This Row],[opencode]],",","") -> 23478
A133: 20180626104 | B133: 7,6,1,8,4 | C133: 2018-6-26 22:42:00 | E133: 20180626104 | F133: 76184 | G133: 132 | H133: =表1[[#This Row],[expect]]*1 -> 20180626104 | I133: =SUBSTITUTE(表1[[#This Row],[opencode]],",","") -> 76184
A134: 20180626105 | B134: 1,5,4,1,1 | C134: 2018-6-26 22:47:00 | E134: 20180626105 | F134: 15411 | G134: 133 | H134: =表1[[#This Row],[expect]]*1 -> 20180626105 | I134: =SUBSTITUTE(表1[[#This Row],[opencode]],",","") -> 15411
A135: 20180626106 | B135: 1,3,4,8,8 | C135: 2018-6-26 22:52:00 | E135: 20180626106 | F135: 13488 | G135: 134 | H135: =表1[[#This Row],[expect]]*1 -> 20180626106 | I135: =SUBSTITUTE(表1[[#This Row],[opencode]],",","") -> 13488
A136: 20180626107 | B136: 4,6,3,9,3 | C136: 2018-6-26 22:57:00 | E136: 20180626107 | F136: 46393 | G136: 135 | H136: =表1[[#This Row],[expect]]*1 -> 20180626107 | I136: =SUBSTITUTE(表1[[#This Row],[opencode]],",","") -> 46393
A137: 20180626108 | B137: 1,1,7,8,7 | C137: 2018-6-26 23:02:00 | E137: 20180626108 | F137: 11787 | G137: 136 | H137: =表1[[#This Row],[expect]]*1 -> 20180626108 | I137: =SUBSTITUTE(表1[[#This Row],[opencode]],",","") -> 11787
A138: 20180626109 | B138: 9,1,0,4,0 | C138: 2018-6-26 23:07:00 | E138: 20180626109 | F138: 91040 | G138: 137 | H138: =表1[[#This Row],[expect]]*1 -> 20180626109 | I138: =SUBSTITUTE(表1[[#This Row],[opencode]],",","") -> 91040
A139: 20180626110 | B139: 6,7,6,1,4 | C139: 2018-6-26 23:12:00 | E139: 20180626110 | F139: 67614 | G139: 138 | H139: =表1[[#This Row],[expect]]*1 -> 20180626110 | I139: =SUBSTITUTE(表1[[#This Row],[opencode]],",","") -> 67614
A140: 20180626111 | B140: 2,5,0,1,0 | C140: 2018-6-26 23:17:00 | E140: 20180626111 | F140: 25010 | G140: 139 | H140: =表1[[#This Row],[expect]]*1 -> 20180626111 | I140: =SUBSTITUTE(表1[[#This Row],[opencode]],",","") -> 25010
A141: 20180626112 | B141: 5,9,2,7,4 | C141: 2018-6-26 23:22:00 | E141: 20180626112 | F141: 59274 | G141: 140 | H141: =表1[[#This Row],[expect]]*1 -> 20180626112 | I141: =SUBSTITUTE(表1[[#This Row],[opencode]],",","") -> 59274
A142: 20180626113 | B142: 9,3,8,2,5 | C142: 2018-6-26 23:27:00 | E142: 20180626113 | F142: 93825 | G142: 141 | H142: =表1[[#This Row],[expect]]*1 -> 20180626113 | I142: =SUBSTITUTE(表1[[#This Row],[opencode]],",","") -> 93825
A143: 20180626114 | B143: 8,3,5,7,4 | C143: 2018-6-26 23:32:00 | E143: 20180626114 | F143: 83574 | G143: 142 | H143: =表1[[#This Row],[expect]]*1 -> 20180626114 | I143: =SUBSTITUTE(表1[[#This Row],[opencode]],",","") -> 83574
A144: 20180626115 | B144: 3,7,0,4,9 | C144: 2018-6-26 23:37:00 | E144: 20180626115 | F144: 37049 | G144: 143 | H144: =表1[[#This Row],[expect]]*1 -> 20180626115 | I144: =SUBSTITUTE(表1[[#This Row],[opencode]],",","") -> 37049
A145: 20180626116 | B145: 8,6,5,5,0 | C145: 2018-6-26 23:42:00 | E145: 20180626116 | F145: 86550 | G145: 144 | H145: =表1[[#This Row],[expect]]*1 -> 20180626116 | I145: =SUBSTITUTE(表1[[#This Row],[opencode]],",","") -> 86550
A146: 20180626117 | B146: 2,8,3,0,5 | C146: 2018-6-26 23:47:00 | E146: 20180626117 | F146: 28305 | G146: 145 | H146: =表1[[#This Row],[expect]]*1 -> 20180626117 | I146: =SUBSTITUTE(表1[[#This Row],[opencode]],",","") -> 28305
A147: 20180626118 | B147: 3,5,8,5,1 | C147: 2018-6-26 23:52:00 | E147: 20180626118 | F147: 35851 | G147: 146 | H147: =表1[[#This Row],[expect]]*1 -> 20180626118 | I147: =SUBSTITUTE(表1[[#This Row],[opencode]],",","") -> 35851
A148: 20180626119 | B148: 4,3,9,9,5 | C148: 2018-6-26 23:57:00 | E148: 20180626119 | F148: 43995 | G148: 147 | H148: =表1[[#This Row],[expect]]*1 -> 20180626119 | I148: =SUBSTITUTE(表1[[#This Row],[opencode]],",","") -> 43995
A149: 20180626120 | B149: 3,4,8,3,8 | C149: 2018-6-27 0:02:00 | E149: 20180626120 | F149: 34838 | G149: 148 | H149: =表1[[#This Row],[expect]]*1 -> 20180626120 | I149: =SUBSTITUTE(表1[[#This Row],[opencode]],",","") -> 34838
A150: 20180627001 | B150: 1,7,6,5,6 | C150: 2018-6-27 0:07:00 | E150: 20180627001 | F150: 17656 | G150: 149 | H150: =表1[[#This Row],[expect]]*1 -> 20180627001 | I150: =SUBSTITUTE(表1[[#This Row],[opencode]],",","") -> 17656
A151: 20180627002 | B151: 9,7,4,8,4 | C151: 2018-6-27 0:12:00 | E151: 20180627002 | F151: 97484 | G151: 150 | H151: =表1[[#This Row],[expect]]*1 -> 20180627002 | I151: =SUBSTITUTE(表1[[#This Row],[opencode]],",","") -> 97484
A152: 20180627003 | B152: 0,1,4,1,1 | C152: 2018-6-27 0:17:00 | E152: 20180627003 | F152: 01411 | G152: 151 | H152: =表1[[#This Row],[expect]]*1 -> 20180627003 | I152: =SUBSTITUTE(表1[[#This Row],[opencode]],",","") -> 01411
A153: 20180627004 | B153: 1,9,4,5,8 | C153: 2018-6-27 0:22:00 | E153: 20180627004 | F153: 19458 | G153: 152 | H153: =表1[[#This Row],[expect]]*1 -> 20180627004 | I153: =SUBSTITUTE(表1[[#This Row],[opencode]],",","") -> 19458
A154: 20180627005 | B154: 8,8,1,0,9 | C154: 2018-6-27 0:27:00 | E154: 20180627005 | F154: 88109 | G154: 153 | H154: =表1[[#This Row],[expect]]*1 -> 20180627005 | I154: =SUBSTITUTE(表1[[#This Row],[opencode]],",","") -> 88109
A155: 20180627006 | B155: 7,7,3,3,5 | C155: 2018-6-27 0:32:00 | E155: 20180627006 | F155: 77335 | G155: 154 | H155: =表1[[#This Row],[expect]]*1 -> 20180627006 | I155: =SUBSTITUTE(表1[[#This Row],[opencode]],",","") -> 77335
A156: 20180627007 | B156: 8,3,8,9,0 | C156: 2018-6-27 0:37:00 | E156: 20180627007 | F156: 83890 | G156: 155 | H156: =表1[[#This Row],[expect]]*1 -> 20180627007 | I156: =SUBSTITUTE(表1[[#This Row],[opencode]],",","") -> 83890
A157: 20180627008 | B157: 9,2,6,1,3 | C157: 2018-6-27 0:42:00 | E157: 20180627008 | F157: 92613 | G157: 156 | H157: =表1[[#This Row],[expect]]*1 -> 20180627008 | I157: =SUBSTITUTE(表1[[#This Row],[opencode]],",","") -> 92613
A158: 20180627009 | B158: 7,3,1,1,5 | C158: 2018-6-27 0:47:00 | E158: 20180627009 | F158: 73115 | G158: 157 | H158: =表1[[#This Row],[expect]]*1 -> 20180627009 | I158: =SUBSTITUTE(表1[[#This Row],[opencode]],",","") -> 73115
A159: 20180627010 | B159: 8,1,4,9,6 | C159: 2018-6-27 0:52:00 | E159: 20180627010 | F159: 81496 | G159: 158 | H159: =表1[[#This Row],[expect]]*1 -> 20180627010 | I159: =SUBSTITUTE(表1[[#This Row],[opencode]],",","") -> 81496
A160: 20180627011 | B160: 3,0,0,6,1 | C160: 2018-6-27 0:57:00 | E160: 20180627011 | F160: 30061 | G160: 159 | H160: =表1[[#This Row],[expect]]*1 -> 20180627011 | I160: =SUBSTITUTE(表1[[#This Row],[opencode]],",","") -> 30061
A161: 20180627012 | B161: 7,8,2,0,8 | C161: 2018-6-27 1:02:00 | E161: 20180627012 | F161: 78208 | G161: 160 | H161: =表1[[#This Row],[expect]]*1 -> 20180627012 | I161: =SUBSTITUTE(表1[[#This Row],[opencode]],",","") -> 78208
A162: 20180627013 | B162: 1,0,1,9,7 | C162: 2018-6-27 1:07:00 | E162: 20180627013 | F162: 10197 | G162: 161 | H162: =表1[[#This Row],[expect]]*1 -> 20180627013 | I162: =SUBSTITUTE(表1[[#This Row],[opencode]],",","") -> 10197
A163: 20180627014 | B163: 3,0,1,6,1 | C163: 2018-6-27 1:12:00 | E163: 20180627014 | F163: 30161 | G163: 162 | H163: =表1[[#This Row],[expect]]*1 -> 20180627014 | I163: =SUBSTITUTE(表1[[#This Row],[opencode]],",","") -> 30161
A164: 20180627015 | B164: 3,0,2,7,0 | C164: 2018-6-27 1:17:00 | E164: 20180627015 | F164: 30270 | G164: 163 | H164: =表1[[#This Row],[expect]]*1 -> 20180627015 | I164: =SUBSTITUTE(表1[[#This Row],[opencode]],",","") -> 30270
A165: 20180627016 | B165: 3,7,1,0,6 | C165: 2018-6-27 1:22:00 | E165: 20180627016 | F165: 37106 | G165: 164 | H165: =表1[[#This Row],[expect]]*1 -> 20180627016 | I165: =SUBSTITUTE(表1[[#This Row],[opencode]],",","") -> 37106
A166: 20180627017 | B166: 6,7,3,6,2 | C166: 2018-6-27 1:27:00 | E166: 20180627017 | F166: 67362 | G166: 165 | H166: =表1[[#This Row],[expect]]*1 -> 20180627017 | I166: =SUBSTITUTE(表1[[#This Row],[opencode]],",","") -> 67362
A167: 20180627018 | B167: 5,1,8,4,9 | C167: 2018-6-27 1:32:00 | E167: 20180627018 | F167: 51849 | G167: 166 | H167: =表1[[#This Row],[expect]]*1 -> 20180627018 | I167: =SUBSTITUTE(表1[[#This Row],[opencode]],",","") -> 51849
A168: 20180627019 | B168: 7,0,7,6,0 | C168: 2018-6-27 1:37:00 | E168: 20180627019 | F168: 70760 | G168: 167 | H168: =表1[[#This Row],[expect]]*1 -> 20180627019 | I168: =SUBSTITUTE(表1[[#This Row],[opencode]],",","") -> 70760
A169: 20180627020 | B169: 0,4,2,1,3 | C169: 2018-6-27 1:42:00 | E169: 20180627020 | F169: 04213 | G169: 168 | H169: =表1[[#This Row],[expect]]*1 -> 20180627020 | I169: =SUBSTITUTE(表1[[#This Row],[opencode]],",","") -> 04213
A170: 20180627021 | B170: 7,5,1,8,3 | C170: 2018-6-27 1:47:00 | E170: 20180627021 | F170: 75183 | G170: 169 | H170: =表1[[#This Row],[expect]]*1 -> 20180627021 | I170: =SUBSTITUTE(表1[[#This Row],[opencode]],",","") -> 75183
A171: 20180627022 | B171: 2,6,6,6,6 | C171: 2018-6-27 1:52:00 | E171: 20180627022 | F171: 26666 | G171: 170 | H171: =表1[[#This Row],[expect]]*1 -> 20180627022 | I171: =SUBSTITUTE(表1[[#This Row],[opencode]],",","") -> 26666
A172: 20180627023 | B172: 1,8,7,0,9 | C172: 2018-6-27 1:57:00 | E172: 20180627023 | F172: 18709 | G172: 171 | H172: =表1[[#This Row],[expect]]*1 -> 20180627023 | I172: =SUBSTITUTE(表1[[#This Row],[opencode]],",","") -> 18709
A173: 20180627024 | B173: 4,8,0,9,5 | C173: 2018-6-27 10:02:00 | E173: 20180627024 | F173: 48095 | G173: 172 | H173: =表1[[#This Row],[expect]]*1 -> 20180627024 | I173: =SUBSTITUTE(表1[[#This Row],[opencode]],",","") -> 48095
A174: 20180627025 | B174: 2,4,6,4,4 | C174: 2018-6-27 10:12:00 | E174: 20180627025 | F174: 24644 | G174: 173 | H174: =表1[[#This Row],[expect]]*1 -> 20180627025 | I174: =SUBSTITUTE(表1[[#This Row],[opencode]],",","") -> 24644
A175: 20180627026 | B175: 6,4,7,5,4 | C175: 2018-6-27 10:22:00 | E175: 20180627026 | F175: 64754 | G175: 174 | H175: =表1[[#This Row],[expect]]*1 -> 20180627026 | I175: =SUBSTITUTE(表1[[#This Row],[opencode]],",","") -> 64754
A176: 20180627027 | B176: 9,8,9,9,6 | C176: 2018-6-27 10:32:00 | E176: 20180627027 | F176: 98996 | G176: 175 | H176: =表1[[#This Row],[expect]]*1 -> 20180627027 | I176: =SUBSTITUTE(表1[[#This Row],[opencode]],",","") -> 98996
A177: 20180627028 | B177: 9,8,4,2,1 | C177: 2018-6-27 10:42:00 | E177: 20180627028 | F177: 98421 | G177: 176 | H177: =表1[[#This Row],[expect]]*1 -> 20180627028 | I177: =SUBSTITUTE(表1[[#This Row],[opencode]],",","") -> 98421
A178: 20180627029 | B178: 1,4,5,8,7 | C178: 2018-6-27 10:52:00 | E178: 20180627029 | F178: 14587 | G178: 177 | H178: =表1[[#This Row],[expect]]*1 -> 20180627029 | I178: =SUBSTITUTE(表1[[#This Row],[opencode]],",","") -> 14587
A179: 20180627030 | B179: 6,4,4,4,1 | C179: 2018-6-27 11:02:00 | E179: 20180627030 | F179: 64441 | G179: 178 | H179: =表1[[#This Row],[expect]]*1 -> 20180627030 | I179: =SUBSTITUTE(表1[[#This Row],[opencode]],",","") -> 64441
A180: 20180627031 | B180: 2,9,2,4,8 | C180: 2018-6-27 11:12:00 | E180: 20180627031 | F180: 29248 | G180: 179 | H180: =表1[[#This Row],[expect]]*1 -> 20180627031 | I180: =SUBSTITUTE(表1[[#This Row],[opencode]],",","") -> 29248
A181: 20180627032 | B181: 8,4,4,4,1 | C181: 2018-6-27 11:22:00 | E181: 20180627032 | F181: 84441 | G181: 180 | H181: =表1[[#This Row],[expect]]*1 -> 20180627032 | I181: =SUBSTITUTE(表1[[#This Row],[opencode]],",","") -> 84441
A182: 20180627033 | B182: 7,6,2,9,8 | C182: 2018-6-27 11:32:00 | E182: 20180627033 | F182: 76298 | G182: 181 | H182: =表1[[#This Row],[expect]]*1 -> 20180627033 | I182: =SUBSTITUTE(表1[[#This Row],[opencode]],",","") -> 76298
A183: 20180627034 | B183: 6,3,5,7,8 | C183: 2018-6-27 11:42:00 | E183: 20180627034 | F183: 63578 | G183: 182 | H183: =表1[[#This Row],[expect]]*1 -> 20180627034 | I183: =SUBSTITUTE(表1[[#This Row],[opencode]],",","") -> 63578
A184: 20180627035 | B184: 5,6,9,5,4 | C184: 2018-6-27 11:52:00 | E184: 20180627035 | F184: 56954 | G184: 183 | H184: =表1[[#This Row],[expect]]*1 -> 20180627035 | I184: =SUBSTITUTE(表1[[#This Row],[opencode]],",","") -> 56954
A185: 20180627036 | B185: 8,6,9,6,2 | C185: 2018-6-27 12:02:00 | E185: 20180627036 | F185: 86962 | G185: 184 | H185: =表1[[#This Row],[expect]]*1 -> 20180627036 | I185: =SUBSTITUTE(表1[[#This Row],[opencode]],",","") -> 86962
A186: 20180627037 | B186: 2,7,2,1,4 | C186: 2018-6-27 12:12:00 | E186: 20180627037 | F186: 27214 | G186: 185 | H186: =表1[[#This Row],[expect]]*1 -> 20180627037 | I186: =SUBSTITUTE(表1[[#This Row],[opencode]],",","") -> 27214
A187: 20180627038 | B187: 1,9,1,1,8 | C187: 2018-6-27 12:22:00 | E187: 20180627038 | F187: 19118 | G187: 186 | H187: =表1[[#This Row],[expect]]*1 -> 20180627038 | I187: =SUBSTITUTE(表1[[#This Row],[opencode]],",","") -> 19118
A188: 20180627039 | B188: 8,8,1,4,4 | C188: 2018-6-27 12:32:00 | E188: 20180627039 | F188: 88144 | G188: 187 | H188: =表1[[#This Row],[expect]]*1 -> 20180627039 | I188: =SUBSTITUTE(表1[[#This Row],[opencode]],",","") -> 88144
A189: 20180627040 | B189: 3,8,7,0,3 | C189: 2018-6-27 12:42:00 | E189: 20180627040 | F189: 38703 | G189: 188 | H189: =表1[[#This Row],[expect]]*1 -> 20180627040 | I189: =SUBSTITUTE(表1[[#This Row],[opencode]],",","") -> 38703
A190: 20180627041 | B190: 6,3,1,2,4 | C190: 2018-6-27 12:52:00 | E190: 20180627041 | F190: 63124 | G190: 189 | H190: =表1[[#This Row],[expect]]*1 -> 20180627041 | I190: =SUBSTITUTE(表1[[#This Row],[opencode]],",","") -> 63124
A191: 20180627042 | B191: 2,5,8,9,6 | C191: 2018-6-27 13:02:00 | E191: 20180627042 | F191: 25896 | G191: 190 | H191: =表1[[#This Row],[expect]]*1 -> 20180627042 | I191: =SUBSTITUTE(表1[[#This Row],[opencode]],",","") -> 25896
A192: 20180627043 | B192: 5,0,9,9,6 | C192: 2018-6-27 13:12:00 | E192: 20180627043 | F192: 50996 | G192: 191 | H192: =表1[[#This Row],[expect]]*1 -> 20180627043 | I192: =SUBSTITUTE(表1[[#This Row],[opencode]],",","") -> 50996
A193: 20180627044 | B193: 9,5,1,7,3 | C193: 2018-6-27 13:22:00 | E193: 20180627044 | F193: 95173 | G193: 192 | H193: =表1[[#This Row],[expect]]*1 -> 20180627044 | I193: =SUBSTITUTE(表1[[#This Row],[opencode]],",","") -> 95173
A194: 20180627045 | B194: 6,7,3,5,1 | C194: 2018-6-27 13:32:00 | E194: =OFFSET($H$1,$G194,) -> 20180627045 | F194: =OFFSET($I$1,$G194,) -> 67351 | G194: =ROW()-$G$203-1 -> 193 | H194: =表1[[#This Row],[expect]]*1 -> 20180627045 | I194: =SUBSTITUTE(表1[[#This Row],[opencode]],",","") -> 67351
A195: 20180627046 | B195: 9,1,7,7,4 | C195: 2018-6-27 13:42:00 | E195: 20180627046 | F195: 91774 | G195: 194 | H195: =表1[[#This Row],[expect]]*1 -> 20180627046 | I195: =SUBSTITUTE(表1[[#This Row],[opencode]],",","") -> 91774
A196: 20180627047 | B196: 6,2,1,7,9 | C196: 2018-6-27 13:52:00 | E196: 20180627047 | F196: 62179 | G196: 195 | H196: =表1[[#This Row],[expect]]*1 -> 20180627047 | I196: =SUBSTITUTE(表1[[#This Row],[opencode]],",","") -> 62179
A197: 20180627048 | B197: 3,8,2,9,9 | C197: 2018-6-27 14:02:00 | E197: 20180627048 | F197: 38299 | G197: 196 | H197: =表1[[#This Row],[expect]]*1 -> 20180627048 | I197: =SUBSTITUTE(表1[[#This Row],[opencode]],",","") -> 38299
A198: 20180627049 | B198: 6,2,0,6,0 | C198: 2018-6-27 14:12:00 | E198: 20180627049 | F198: 62060 | G198: 197 | H198: =表1[[#This Row],[expect]]*1 -> 20180627049 | I198: =SUBSTITUTE(表1[[#This Row],[opencode]],",","") -> 62060
A199: 20180627050 | B199: 4,0,3,2,4 | C199: 2018-6-27 14:22:00 | E199: 20180627050 | F199: 40324 | G199: 198 | H199: =表1[[#This Row],[expect]]*1 -> 20180627050 | I199: =SUBSTITUTE(表1[[#This Row],[opencode]],",","") -> 40324
A200: 20180627051 | B200: 1,6,6,9,2 | C200: 2018-6-27 14:32:00 | E200: 20180627051 | F200: 16692 | G200: 199 | H200: =表1[[#This Row],[expect]]*1 -> 20180627051 | I200: =SUBSTITUTE(表1[[#This Row],[opencode]],",","") -> 16692
... 3 more rows

Sheet 胆对九补序
B1: =199-COUNTBLANK(C13:C211)+13 -> 14 | E1: TRUE | Q1: =199-COUNTBLANK(#REF!)+13 ->  | R1: TRUE | AD1: =199-COUNTBLANK(#REF!)+13 ->  | AE1: TRUE | AQ1: =199-COUNTBLANK(#REF!)+13 ->  | AR1: FALSE | BD1: 下期序 | BE1: =TRIM(INDEX(BE13:BE211,199-COUNTBLANK(BE13:BE211))) -> 4567890123 | BF1: =TRIM(INDEX(BF13:BF211,199-COUNTBLANK(BF13:BF211))) -> 1234567890 | BG1: 4567890123 | BH1: 1234567890
BD2: 提取位置 | BE2: 12345 | BF2: 12346 | BG2: 12347 | BH2: 12348
BD3: 组号条件 | BE3: =IF(SUMPRODUCT(--ISNUMBER(FIND(1,BE2)))>=1,MID(BE1,1,1),"")&IF(SUMPRODUCT(--ISNUMBER(FIND(2,BE2)))>=1,MID(BE1,2,1),"")&IF(SUMPRODUCT(--ISNUMBER(FIND(3,BE2)))>=1,MID(BE1,3,1),"")&IF(SUMPRODUCT(--ISNUMBER(FIND(4,BE2)))>=1,MID(BE1,4,1),"")&IF(SUMPRODUCT(--ISNUMBER(FIND(5,BE2)))>=1,MID(BE1,5,1),"")&IF(SUMPRODUCT(--ISNUMBER(FIND(6,BE2)))>=1,MID(BE1,6,1),"")&IF(SUMPRODUCT(--ISNUMBER(FIND(7,BE2)))>=1,MID(BE1,7,1),"")&IF(SUMPRODUCT(--ISNUMBER(FIND(8,BE2)))>=1,MID(BE1,8,1),"")&IF(SUMPRODUCT(--ISNUMBER(FIND(9,BE2)))>=1,MID(BE1,9,1),"")&IF(SUMPRODUCT(--ISNUMBER(FIND(0,BE2)))>=1,MID(BE1,10,1),"") -> 45678 | BF3: =IF(SUMPRODUCT(--ISNUMBER(FIND(1,BF2)))>=1,MID(BF1,1,1),"")&IF(SUMPRODUCT(--ISNUMBER(FIND(2,BF2)))>=1,MID(BF1,2,1),"")&IF(SUMPRODUCT(--ISNUMBER(FIND(3,BF2)))>=1,MID(BF1,3,1),"")&IF(SUMPRODUCT(--ISNUMBER(FIND(4,BF2)))>=1,MID(BF1,4,1),"")&IF(SUMPRODUCT(--ISNUMBER(FIND(5,BF2)))>=1,MID(BF1,5,1),"")&IF(SUMPRODUCT(--ISNUMBER(FIND(6,BF2)))>=1,MID(BF1,6,1),"")&IF(SUMPRODUCT(--ISNUMBER(FIND(7,BF2)))>=1,MID(BF1,7,1),"")&IF(SUMPRODUCT(--ISNUMBER(FIND(8,BF2)))>=1,MID(BF1,8,1),"")&IF(SUMPRODUCT(--ISNUMBER(FIND(9,BF2)))>=1,MID(BF1,9,1),"")&IF(SUMPRODUCT(--ISNUMBER(FIND(0,BF2)))>=1,MID(BF1,10,1),"") -> 12346 | BG3: 45670 | BH3: 12348
BD4: 45678 | BE4: 复制 | BF4: 复制 | BG4: 复制 | BH4: 复制
C12: 期数 | D12: 开奖 | E12: =P12&" 序" -> 胆对九 序 | F12: 0 | G12: 1 | H12: 2 | I12: 3 | J12: 4 | K12: 5 | L12: 6 | M12: 7 | N12: 8 | O12: 9 | P12: 胆对九 | R12: =AC12&" 序" -> 胆对补 序 | S12: 0 | T12: 1 | U12: 2 | V12: 3 | W12: 4 | X12: 5 | Y12: 6 | Z12: 7 | AA12: 8 | AB12: 9 | AC12: 胆对补 | AE12: =AP12&" 序" -> 胆九补 序 | AF12: 0 | AG12: 1 | AH12: 2 | AI12: 3 | AJ12: 4 | AK12: 5 | AL12: 6 | AM12: 7 | AN12: 8 | AO12: 9 | AP12: 胆九补 | AR12: =BC12&" 序" -> 对九补 序 | AS12: 0 | AT12: 1 | AU12: 2 | AV12: 3 | AW12: 4 | AX12: 5 | AY12: 6 | AZ12: 7 | BA12: 8 | BB12: 9 | BC12: 对九补 | BE12: =IF(E12="","",E12) -> 胆对九 序 | BF12: =IF(R12="","",R12) -> 胆对补 序 | BG12: =IF(AE12="","",AE12) -> 胆九补 序 | BH12: =IF(AR12="","",AR12) -> 对九补 序
C13: 23 | D13: 001 | E13: 1234567890 | F13: =IF($E13="","",MID($E13,F$12+1,1)) -> 1 | G13: =IF($E13="","",MID($E13,G$12+1,1)) -> 2 | H13: 3 | I13: 4 | J13: 5 | K13: 6 | L13: 7 | M13: 8 | N13: 9 | O13: 0 | P13: =IF($D13="","",VLOOKUP($D13,数据库!$B$4:$AD$1003,MATCH(P$12,数据库!$C$2:$R$2,)+1,0)) -> 001556998 | R13: 1234567890 | S13: =IF($R13="","",MID($R13,S$12+1,1)) -> 1 | T13: =IF($R13="","",MID($R13,T$12+1,1)) -> 2 | U13: 3 | V13: 4 | W13: 5 | X13: 6 | Y13: 7 | Z13: 8 | AA13: 9 | AB13: 0 | AC13: =IF($D13="","",VLOOKUP($D13,数据库!$B$4:$AD$1003,MATCH(AC$12,数据库!$C$2:$R$2,)+1,0)) -> 001556009 | AE13: 1234567890 | AF13: =IF($AE13="","",MID($AE13,AF$12+1,1)) -> 1 | AG13: =IF($AE13="","",MID($AE13,AG$12+1,1)) -> 2 | AH13: 3 | AI13: 4 | AJ13: 5 | AK13: 6 | AL13: 7 | AM13: 8 | AN13: 9 | AO13: 0 | AP13: =IF($D13="","",VLOOKUP($D13,数据库!$B$4:$AD$1003,MATCH(AP$12,数据库!$C$2:$R$2,)+1,0)) -> 001998009 | AR13: 1234567890 | AS13: =IF($AR13="","",MID($AR13,AS$12+1,1)) -> 1 | AT13: =IF($AR13="","",MID($AR13,AT$12+1,1)) -> 2 | AU13: 3 | AV13: 4 | AW13: 5 | AX13: 6 | AY13: 7 | AZ13: 8 | BA13: 9 | BB13: 0 | BC13: =IF($D13="","",VLOOKUP($D13,数据库!$B$4:$AD$1003,MATCH(BC$12,数据库!$C$2:$R$2,)+1,0)) -> 556998009 | BD13: 1 | BE13: =IF(E13="","",E13) -> 1234567890 | BF13: =IF(R13="","",R13) -> 1234567890 | BG13: =IF(AE13="","",AE13) -> 1234567890 | BH13: =IF(AR13="","",AR13) -> 1234567890
E14: 4567890123 | F14: =IF($E14="","",MID($E14,F$12+1,1)) -> 4 | G14: 5 | H14: 6 | I14: 7 | J14: 8 | K14: 9 | L14: 0 | M14: 1 | N14: 2 | O14: 3 | P14: =IF($D14="","",VLOOKUP($D14,数据库!$B$4:$AD$1003,MATCH(P$12,数据库!$C$2:$R$2,)+1,0)) ->  | S14: =IF($R14="","",MID($R14,S$12+1,1)) ->  | AC14: =IF($D14="","",VLOOKUP($D14,数据库!$B$4:$AD$1003,MATCH(AC$12,数据库!$C$2:$R$2,)+1,0)) ->  | AE14: 4567890123 | AF14: =IF($AE14="","",MID($AE14,AF$12+1,1)) -> 4 | AG14: 5 | AH14: 6 | AI14: 7 | AJ14: 8 | AK14: 9 | AL14: 0 | AM14: 1 | AN14: 2 | AO14: 3 | AP14: =IF($D14="","",VLOOKUP($D14,数据库!$B$4:$AD$1003,MATCH(AP$12,数据库!$C$2:$R$2,)+1,0)) ->  | AS14: =IF($AR14="","",MID($AR14,AS$12+1,1)) ->  | BC14: =IF($D14="","",VLOOKUP($D14,数据库!$B$4:$AD$1003,MATCH(BC$12,数据库!$C$2:$R$2,)+1,0)) ->  | BD14: 2 | BE14: =IF(E14="","",E14) -> 4567890123 | BF14: =IF(R14="","",R14) ->  | BG14: =IF(AE14="","",AE14) -> 4567890123 | BH14: =IF(AR14="","",AR14) -> 
P15: =IF($D15="","",VLOOKUP($D15,数据库!$B$4:$AD$1003,MATCH(P$12,数据库!$C$2:$R$2,)+1,0)) ->  | AC15: =IF($D15="","",VLOOKUP($D15,数据库!$B$4:$AD$1003,MATCH(AC$12,数据库!$C$2:$R$2,)+1,0)) ->  | AP15: =IF($D15="","",VLOOKUP($D15,数据库!$B$4:$AD$1003,MATCH(AP$12,数据库!$C$2:$R$2,)+1,0)) ->  | BC15: =IF($D15="","",VLOOKUP($D15,数据库!$B$4:$AD$1003,MATCH(BC$12,数据库!$C$2:$R$2,)+1,0)) ->  | BD15: 3
P16: =IF($D16="","",VLOOKUP($D16,数据库!$B$4:$AD$1003,MATCH(P$12,数据库!$C$2:$R$2,)+1,0)) ->  | AC16: =IF($D16="","",VLOOKUP($D16,数据库!$B$4:$AD$1003,MATCH(AC$12,数据库!$C$2:$R$2,)+1,0)) ->  | AP16: =IF($D16="","",VLOOKUP($D16,数据库!$B$4:$AD$1003,MATCH(AP$12,数据库!$C$2:$R$2,)+1,0)) ->  | BC16: =IF($D16="","",VLOOKUP($D16,数据库!$B$4:$AD$1003,MATCH(BC$12,数据库!$C$2:$R$2,)+1,0)) ->  | BD16: 4
P17: =IF($D17="","",VLOOKUP($D17,数据库!$B$4:$AD$1003,MATCH(P$12,数据库!$C$2:$R$2,)+1,0)) ->  | AC17: =IF($D17="","",VLOOKUP($D17,数据库!$B$4:$AD$1003,MATCH(AC$12,数据库!$C$2:$R$2,)+1,0)) ->  | AP17: =IF($D17="","",VLOOKUP($D17,数据库!$B$4:$AD$1003,MATCH(AP$12,数据库!$C$2:$R$2,)+1,0)) ->  | BC17: =IF($D17="","",VLOOKUP($D17,数据库!$B$4:$AD$1003,MATCH(BC$12,数据库!$C$2:$R$2,)+1,0)) ->  | BD17: 5
P18: =IF($D18="","",VLOOKUP($D18,数据库!$B$4:$AD$1003,MATCH(P$12,数据库!$C$2:$R$2,)+1,0)) ->  | AC18: =IF($D18="","",VLOOKUP($D18,数据库!$B$4:$AD$1003,MATCH(AC$12,数据库!$C$2:$R$2,)+1,0)) ->  | AP18: =IF($D18="","",VLOOKUP($D18,数据库!$B$4:$AD$1003,MATCH(AP$12,数据库!$C$2:$R$2,)+1,0)) ->  | BC18: =IF($D18="","",VLOOKUP($D18,数据库!$B$4:$AD$1003,MATCH(BC$12,数据库!$C$2:$R$2,)+1,0)) ->  | BD18: 6
P19: =IF($D19="","",VLOOKUP($D19,数据库!$B$4:$AD$1003,MATCH(P$12,数据库!$C$2:$R$2,)+1,0)) ->  | AC19: =IF($D19="","",VLOOKUP($D19,数据库!$B$4:$AD$1003,MATCH(AC$12,数据库!$C$2:$R$2,)+1,0)) ->  | AP19: =IF($D19="","",VLOOKUP($D19,数据库!$B$4:$AD$1003,MATCH(AP$12,数据库!$C$2:$R$2,)+1,0)) ->  | BC19: =IF($D19="","",VLOOKUP($D19,数据库!$B$4:$AD$1003,MATCH(BC$12,数据库!$C$2:$R$2,)+1,0)) ->  | BD19: 7
P20: =IF($D20="","",VLOOKUP($D20,数据库!$B$4:$AD$1003,MATCH(P$12,数据库!$C$2:$R$2,)+1,0)) ->  | AC20: =IF($D20="","",VLOOKUP($D20,数据库!$B$4:$AD$1003,MATCH(AC$12,数据库!$C$2:$R$2,)+1,0)) ->  | AP20: =IF($D20="","",VLOOKUP($D20,数据库!$B$4:$AD$1003,MATCH(AP$12,数据库!$C$2:$R$2,)+1,0)) ->  | BC20: =IF($D20="","",VLOOKUP($D20,数据库!$B$4:$AD$1003,MATCH(BC$12,数据库!$C$2:$R$2,)+1,0)) ->  | BD20: 8
P21: =IF($D21="","",VLOOKUP($D21,数据库!$B$4:$AD$1003,MATCH(P$12,数据库!$C$2:$R$2,)+1,0)) ->  | AC21: =IF($D21="","",VLOOKUP($D21,数据库!$B$4:$AD$1003,MATCH(AC$12,数据库!$C$2:$R$2,)+1,0)) ->  | AP21: =IF($D21="","",VLOOKUP($D21,数据库!$B$4:$AD$1003,MATCH(AP$12,数据库!$C$2:$R$2,)+1,0)) ->  | BC21: =IF($D21="","",VLOOKUP($D21,数据库!$B$4:$AD$1003,MATCH(BC$12,数据库!$C$2:$R$2,)+1,0)) ->  | BD21: 9
P22: =IF($D22="","",VLOOKUP($D22,数据库!$B$4:$AD$1003,MATCH(P$12,数据库!$C$2:$R$2,)+1,0)) ->  | AC22: =IF($D22="","",VLOOKUP($D22,数据库!$B$4:$AD$1003,MATCH(AC$12,数据库!$C$2:$R$2,)+1,0)) ->  | AP22: =IF($D22="","",VLOOKUP($D22,数据库!$B$4:$AD$1003,MATCH(AP$12,数据库!$C$2:$R$2,)+1,0)) ->  | BC22: =IF($D22="","",VLOOKUP($D22,数据库!$B$4:$AD$1003,MATCH(BC$12,数据库!$C$2:$R$2,)+1,0)) ->  | BD22: 10
P23: =IF($D23="","",VLOOKUP($D23,数据库!$B$4:$AD$1003,MATCH(P$12,数据库!$C$2:$R$2,)+1,0)) ->  | AC23: =IF($D23="","",VLOOKUP($D23,数据库!$B$4:$AD$1003,MATCH(AC$12,数据库!$C$2:$R$2,)+1,0)) ->  | AP23: =IF($D23="","",VLOOKUP($D23,数据库!$B$4:$AD$1003,MATCH(AP$12,数据库!$C$2:$R$2,)+1,0)) ->  | BC23: =IF($D23="","",VLOOKUP($D23,数据库!$B$4:$AD$1003,MATCH(BC$12,数据库!$C$2:$R$2,)+1,0)) ->  | BD23: 11
P24: =IF($D24="","",VLOOKUP($D24,数据库!$B$4:$AD$1003,MATCH(P$12,数据库!$C$2:$R$2,)+1,0)) ->  | AC24: =IF($D24="","",VLOOKUP($D24,数据库!$B$4:$AD$1003,MATCH(AC$12,数据库!$C$2:$R$2,)+1,0)) ->  | AP24: =IF($D24="","",VLOOKUP($D24,数据库!$B$4:$AD$1003,MATCH(AP$12,数据库!$C$2:$R$2,)+1,0)) ->  | BC24: =IF($D24="","",VLOOKUP($D24,数据库!$B$4:$AD$1003,MATCH(BC$12,数据库!$C$2:$R$2,)+1,0)) ->  | BD24: 12
P25: =IF($D25="","",VLOOKUP($D25,数据库!$B$4:$AD$1003,MATCH(P$12,数据库!$C$2:$R$2,)+1,0)) ->  | AC25: =IF($D25="","",VLOOKUP($D25,数据库!$B$4:$AD$1003,MATCH(AC$12,数据库!$C$2:$R$2,)+1,0)) ->  | AP25: =IF($D25="","",VLOOKUP($D25,数据库!$B$4:$AD$1003,MATCH(AP$12,数据库!$C$2:$R$2,)+1,0)) ->  | BC25: =IF($D25="","",VLOOKUP($D25,数据库!$B$4:$AD$1003,MATCH(BC$12,数据库!$C$2:$R$2,)+1,0)) ->  | BD25: 13
P26: =IF($D26="","",VLOOKUP($D26,数据库!$B$4:$AD$1003,MATCH(P$12,数据库!$C$2:$R$2,)+1,0)) ->  | AC26: =IF($D26="","",VLOOKUP($D26,数据库!$B$4:$AD$1003,MATCH(AC$12,数据库!$C$2:$R$2,)+1,0)) ->  | AP26: =IF($D26="","",VLOOKUP($D26,数据库!$B$4:$AD$1003,MATCH(AP$12,数据库!$C$2:$R$2,)+1,0)) ->  | BC26: =IF($D26="","",VLOOKUP($D26,数据库!$B$4:$AD$1003,MATCH(BC$12,数据库!$C$2:$R$2,)+1,0)) ->  | BD26: 14
P27: =IF($D27="","",VLOOKUP($D27,数据库!$B$4:$AD$1003,MATCH(P$12,数据库!$C$2:$R$2,)+1,0)) ->  | AC27: =IF($D27="","",VLOOKUP($D27,数据库!$B$4:$AD$1003,MATCH(AC$12,数据库!$C$2:$R$2,)+1,0)) ->  | AP27: =IF($D27="","",VLOOKUP($D27,数据库!$B$4:$AD$1003,MATCH(AP$12,数据库!$C$2:$R$2,)+1,0)) ->  | BC27: =IF($D27="","",VLOOKUP($D27,数据库!$B$4:$AD$1003,MATCH(BC$12,数据库!$C$2:$R$2,)+1,0)) ->  | BD27: 15
P28: =IF($D28="","",VLOOKUP($D28,数据库!$B$4:$AD$1003,MATCH(P$12,数据库!$C$2:$R$2,)+1,0)) ->  | AC28: =IF($D28="","",VLOOKUP($D28,数据库!$B$4:$AD$1003,MATCH(AC$12,数据库!$C$2:$R$2,)+1,0)) ->  | AP28: =IF($D28="","",VLOOKUP($D28,数据库!$B$4:$AD$1003,MATCH(AP$12,数据库!$C$2:$R$2,)+1,0)) ->  | BC28: =IF($D28="","",VLOOKUP($D28,数据库!$B$4:$AD$1003,MATCH(BC$12,数据库!$C$2:$R$2,)+1,0)) ->  | BD28: 16
P29: =IF($D29="","",VLOOKUP($D29,数据库!$B$4:$AD$1003,MATCH(P$12,数据库!$C$2:$R$2,)+1,0)) ->  | AC29: =IF($D29="","",VLOOKUP($D29,数据库!$B$4:$AD$1003,MATCH(AC$12,数据库!$C$2:$R$2,)+1,0)) ->  | AP29: =IF($D29="","",VLOOKUP($D29,数据库!$B$4:$AD$1003,MATCH(AP$12,数据库!$C$2:$R$2,)+1,0)) ->  | BC29: =IF($D29="","",VLOOKUP($D29,数据库!$B$4:$AD$1003,MATCH(BC$12,数据库!$C$2:$R$2,)+1,0)) ->  | BD29: 17
P30: =IF($D30="","",VLOOKUP($D30,数据库!$B$4:$AD$1003,MATCH(P$12,数据库!$C$2:$R$2,)+1,0)) ->  | AC30: =IF($D30="","",VLOOKUP($D30,数据库!$B$4:$AD$1003,MATCH(AC$12,数据库!$C$2:$R$2,)+1,0)) ->  | AP30: =IF($D30="","",VLOOKUP($D30,数据库!$B$4:$AD$1003,MATCH(AP$12,数据库!$C$2:$R$2,)+1,0)) ->  | BC30: =IF($D30="","",VLOOKUP($D30,数据库!$B$4:$AD$1003,MATCH(BC$12,数据库!$C$2:$R$2,)+1,0)) ->  | BD30: 18
P31: =IF($D31="","",VLOOKUP($D31,数据库!$B$4:$AD$1003,MATCH(P$12,数据库!$C$2:$R$2,)+1,0)) ->  | AC31: =IF($D31="","",VLOOKUP($D31,数据库!$B$4:$AD$1003,MATCH(AC$12,数据库!$C$2:$R$2,)+1,0)) ->  | AP31: =IF($D31="","",VLOOKUP($D31,数据库!$B$4:$AD$1003,MATCH(AP$12,数据库!$C$2:$R$2,)+1,0)) ->  | BC31: =IF($D31="","",VLOOKUP($D31,数据库!$B$4:$AD$1003,MATCH(BC$12,数据库!$C$2:$R$2,)+1,0)) ->  | BD31: 19
P32: =IF($D32="","",VLOOKUP($D32,数据库!$B$4:$AD$1003,MATCH(P$12,数据库!$C$2:$R$2,)+1,0)) ->  | AC32: =IF($D32="","",VLOOKUP($D32,数据库!$B$4:$AD$1003,MATCH(AC$12,数据库!$C$2:$R$2,)+1,0)) ->  | AP32: =IF($D32="","",VLOOKUP($D32,数据库!$B$4:$AD$1003,MATCH(AP$12,数据库!$C$2:$R$2,)+1,0)) ->  | BC32: =IF($D32="","",VLOOKUP($D32,数据库!$B$4:$AD$1003,MATCH(BC$12,数据库!$C$2:$R$2,)+1,0)) ->  | BD32: 20
P33: =IF($D33="","",VLOOKUP($D33,数据库!$B$4:$AD$1003,MATCH(P$12,数据库!$C$2:$R$2,)+1,0)) ->  | AC33: =IF($D33="","",VLOOKUP($D33,数据库!$B$4:$AD$1003,MATCH(AC$12,数据库!$C$2:$R$2,)+1,0)) ->  | AP33: =IF($D33="","",VLOOKUP($D33,数据库!$B$4:$AD$1003,MATCH(AP$12,数据库!$C$2:$R$2,)+1,0)) ->  | BC33: =IF($D33="","",VLOOKUP($D33,数据库!$B$4:$AD$1003,MATCH(BC$12,数据库!$C$2:$R$2,)+1,0)) ->  | BD33: 21
P34: =IF($D34="","",VLOOKUP($D34,数据库!$B$4:$AD$1003,MATCH(P$12,数据库!$C$2:$R$2,)+1,0)) ->  | AC34: =IF($D34="","",VLOOKUP($D34,数据库!$B$4:$AD$1003,MATCH(AC$12,数据库!$C$2:$R$2,)+1,0)) ->  | AP34: =IF($D34="","",VLOOKUP($D34,数据库!$B$4:$AD$1003,MATCH(AP$12,数据库!$C$2:$R$2,)+1,0)) ->  | BC34: =IF($D34="","",VLOOKUP($D34,数据库!$B$4:$AD$1003,MATCH(BC$12,数据库!$C$2:$R$2,)+1,0)) ->  | BD34: 22
P35: =IF($D35="","",VLOOKUP($D35,数据库!$B$4:$AD$1003,MATCH(P$12,数据库!$C$2:$R$2,)+1,0)) ->  | AC35: =IF($D35="","",VLOOKUP($D35,数据库!$B$4:$AD$1003,MATCH(AC$12,数据库!$C$2:$R$2,)+1,0)) ->  | AP35: =IF($D35="","",VLOOKUP($D35,数据库!$B$4:$AD$1003,MATCH(AP$12,数据库!$C$2:$R$2,)+1,0)) ->  | BC35: =IF($D35="","",VLOOKUP($D35,数据库!$B$4:$AD$1003,MATCH(BC$12,数据库!$C$2:$R$2,)+1,0)) ->  | BD35: 23
P36: =IF($D36="","",VLOOKUP($D36,数据库!$B$4:$AD$1003,MATCH(P$12,数据库!$C$2:$R$2,)+1,0)) ->  | AC36: =IF($D36="","",VLOOKUP($D36,数据库!$B$4:$AD$1003,MATCH(AC$12,数据库!$C$2:$R$2,)+1,0)) ->  | AP36: =IF($D36="","",VLOOKUP($D36,数据库!$B$4:$AD$1003,MATCH(AP$12,数据库!$C$2:$R$2,)+1,0)) ->  | BC36: =IF($D36="","",VLOOKUP($D36,数据库!$B$4:$AD$1003,MATCH(BC$12,数据库!$C$2:$R$2,)+1,0)) ->  | BD36: 24
P37: =IF($D37="","",VLOOKUP($D37,数据库!$B$4:$AD$1003,MATCH(P$12,数据库!$C$2:$R$2,)+1,0)) ->  | AC37: =IF($D37="","",VLOOKUP($D37,数据库!$B$4:$AD$1003,MATCH(AC$12,数据库!$C$2:$R$2,)+1,0)) ->  | AP37: =IF($D37="","",VLOOKUP($D37,数据库!$B$4:$AD$1003,MATCH(AP$12,数据库!$C$2:$R$2,)+1,0)) ->  | BC37: =IF($D37="","",VLOOKUP($D37,数据库!$B$4:$AD$1003,MATCH(BC$12,数据库!$C$2:$R$2,)+1,0)) ->  | BD37: 25
P38: =IF($D38="","",VLOOKUP($D38,数据库!$B$4:$AD$1003,MATCH(P$12,数据库!$C$2:$R$2,)+1,0)) ->  | AC38: =IF($D38="","",VLOOKUP($D38,数据库!$B$4:$AD$1003,MATCH(AC$12,数据库!$C$2:$R$2,)+1,0)) ->  | AP38: =IF($D38="","",VLOOKUP($D38,数据库!$B$4:$AD$1003,MATCH(AP$12,数据库!$C$2:$R$2,)+1,0)) ->  | BC38: =IF($D38="","",VLOOKUP($D38,数据库!$B$4:$AD$1003,MATCH(BC$12,数据库!$C$2:$R$2,)+1,0)) ->  | BD38: 26
P39: =IF($D39="","",VLOOKUP($D39,数据库!$B$4:$AD$1003,MATCH(P$12,数据库!$C$2:$R$2,)+1,0)) ->  | AC39: =IF($D39="","",VLOOKUP($D39,数据库!$B$4:$AD$1003,MATCH(AC$12,数据库!$C$2:$R$2,)+1,0)) ->  | AP39: =IF($D39="","",VLOOKUP($D39,数据库!$B$4:$AD$1003,MATCH(AP$12,数据库!$C$2:$R$2,)+1,0)) ->  | BC39: =IF($D39="","",VLOOKUP($D39,数据库!$B$4:$AD$1003,MATCH(BC$12,数据库!$C$2:$R$2,)+1,0)) ->  | BD39: 27
P40: =IF($D40="","",VLOOKUP($D40,数据库!$B$4:$AD$1003,MATCH(P$12,数据库!$C$2:$R$2,)+1,0)) ->  | AC40: =IF($D40="","",VLOOKUP($D40,数据库!$B$4:$AD$1003,MATCH(AC$12,数据库!$C$2:$R$2,)+1,0)) ->  | AP40: =IF($D40="","",VLOOKUP($D40,数据库!$B$4:$AD$1003,MATCH(AP$12,数据库!$C$2:$R$2,)+1,0)) ->  | BC40: =IF($D40="","",VLOOKUP($D40,数据库!$B$4:$AD$1003,MATCH(BC$12,数据库!$C$2:$R$2,)+1,0)) ->  | BD40: 28
P41: =IF($D41="","",VLOOKUP($D41,数据库!$B$4:$AD$1003,MATCH(P$12,数据库!$C$2:$R$2,)+1,0)) ->  | AC41: =IF($D41="","",VLOOKUP($D41,数据库!$B$4:$AD$1003,MATCH(AC$12,数据库!$C$2:$R$2,)+1,0)) ->  | AP41: =IF($D41="","",VLOOKUP($D41,数据库!$B$4:$AD$1003,MATCH(AP$12,数据库!$C$2:$R$2,)+1,0)) ->  | BC41: =IF($D41="","",VLOOKUP($D41,数据库!$B$4:$AD$1003,MATCH(BC$12,数据库!$C$2:$R$2,)+1,0)) ->  | BD41: 29
P42: =IF($D42="","",VLOOKUP($D42,数据库!$B$4:$AD$1003,MATCH(P$12,数据库!$C$2:$R$2,)+1,0)) ->  | AC42: =IF($D42="","",VLOOKUP($D42,数据库!$B$4:$AD$1003,MATCH(AC$12,数据库!$C$2:$R$2,)+1,0)) ->  | AP42: =IF($D42="","",VLOOKUP($D42,数据库!$B$4:$AD$1003,MATCH(AP$12,数据库!$C$2:$R$2,)+1,0)) ->  | BC42: =IF($D42="","",VLOOKUP($D42,数据库!$B$4:$AD$1003,MATCH(BC$12,数据库!$C$2:$R$2,)+1,0)) ->  | BD42: 30
P43: =IF($D43="","",VLOOKUP($D43,数据库!$B$4:$AD$1003,MATCH(P$12,数据库!$C$2:$R$2,)+1,0)) ->  | AC43: =IF($D43="","",VLOOKUP($D43,数据库!$B$4:$AD$1003,MATCH(AC$12,数据库!$C$2:$R$2,)+1,0)) ->  | AP43: =IF($D43="","",VLOOKUP($D43,数据库!$B$4:$AD$1003,MATCH(AP$12,数据库!$C$2:$R$2,)+1,0)) ->  | BC43: =IF($D43="","",VLOOKUP($D43,数据库!$B$4:$AD$1003,MATCH(BC$12,数据库!$C$2:$R$2,)+1,0)) ->  | BD43: 31
P44: =IF($D44="","",VLOOKUP($D44,数据库!$B$4:$AD$1003,MATCH(P$12,数据库!$C$2:$R$2,)+1,0)) ->  | AC44: =IF($D44="","",VLOOKUP($D44,数据库!$B$4:$AD$1003,MATCH(AC$12,数据库!$C$2:$R$2,)+1,0)) ->  | AP44: =IF($D44="","",VLOOKUP($D44,数据库!$B$4:$AD$1003,MATCH(AP$12,数据库!$C$2:$R$2,)+1,0)) ->  | BC44: =IF($D44="","",VLOOKUP($D44,数据库!$B$4:$AD$1003,MATCH(BC$12,数据库!$C$2:$R$2,)+1,0)) ->  | BD44: 32
P45: =IF($D45="","",VLOOKUP($D45,数据库!$B$4:$AD$1003,MATCH(P$12,数据库!$C$2:$R$2,)+1,0)) ->  | AC45: =IF($D45="","",VLOOKUP($D45,数据库!$B$4:$AD$1003,MATCH(AC$12,数据库!$C$2:$R$2,)+1,0)) ->  | AP45: =IF($D45="","",VLOOKUP($D45,数据库!$B$4:$AD$1003,MATCH(AP$12,数据库!$C$2:$R$2,)+1,0)) ->  | BC45: =IF($D45="","",VLOOKUP($D45,数据库!$B$4:$AD$1003,MATCH(BC$12,数据库!$C$2:$R$2,)+1,0)) ->  | BD45: 33
F46: =IF($E46="","",MID($E46,F$12+1,1)) ->  | P46: =IF($D46="","",VLOOKUP($D46,数据库!$B$4:$AD$1003,MATCH(P$12,数据库!$C$2:$R$2,)+1,0)) ->  | S46: =IF($R46="","",MID($R46,S$12+1,1)) ->  | AC46: =IF($D46="","",VLOOKUP($D46,数据库!$B$4:$AD$1003,MATCH(AC$12,数据库!$C$2:$R$2,)+1,0)) ->  | AF46: =IF($AE46="","",MID($AE46,AF$12+1,1)) ->  | AP46: =IF($D46="","",VLOOKUP($D46,数据库!$B$4:$AD$1003,MATCH(AP$12,数据库!$C$2:$R$2,)+1,0)) ->  | AS46: =IF($AR46="","",MID($AR46,AS$12+1,1)) ->  | BC46: =IF($D46="","",VLOOKUP($D46,数据库!$B$4:$AD$1003,MATCH(BC$12,数据库!$C$2:$R$2,)+1,0)) ->  | BD46: 34
P47: =IF($D47="","",VLOOKUP($D47,数据库!$B$4:$AD$1003,MATCH(P$12,数据库!$C$2:$R$2,)+1,0)) ->  | AC47: =IF($D47="","",VLOOKUP($D47,数据库!$B$4:$AD$1003,MATCH(AC$12,数据库!$C$2:$R$2,)+1,0)) ->  | AP47: =IF($D47="","",VLOOKUP($D47,数据库!$B$4:$AD$1003,MATCH(AP$12,数据库!$C$2:$R$2,)+1,0)) ->  | BC47: =IF($D47="","",VLOOKUP($D47,数据库!$B$4:$AD$1003,MATCH(BC$12,数据库!$C$2:$R$2,)+1,0)) ->  | BD47: 35
P48: =IF($D48="","",VLOOKUP($D48,数据库!$B$4:$AD$1003,MATCH(P$12,数据库!$C$2:$R$2,)+1,0)) ->  | AC48: =IF($D48="","",VLOOKUP($D48,数据库!$B$4:$AD$1003,MATCH(AC$12,数据库!$C$2:$R$2,)+1,0)) ->  | AP48: =IF($D48="","",VLOOKUP($D48,数据库!$B$4:$AD$1003,MATCH(AP$12,数据库!$C$2:$R$2,)+1,0)) ->  | BC48: =IF($D48="","",VLOOKUP($D48,数据库!$B$4:$AD$1003,MATCH(BC$12,数据库!$C$2:$R$2,)+1,0)) ->  | BD48: 36
P49: =IF($D49="","",VLOOKUP($D49,数据库!$B$4:$AD$1003,MATCH(P$12,数据库!$C$2:$R$2,)+1,0)) ->  | AC49: =IF($D49="","",VLOOKUP($D49,数据库!$B$4:$AD$1003,MATCH(AC$12,数据库!$C$2:$R$2,)+1,0)) ->  | AP49: =IF($D49="","",VLOOKUP($D49,数据库!$B$4:$AD$1003,MATCH(AP$12,数据库!$C$2:$R$2,)+1,0)) ->  | BC49: =IF($D49="","",VLOOKUP($D49,数据库!$B$4:$AD$1003,MATCH(BC$12,数据库!$C$2:$R$2,)+1,0)) ->  | BD49: 37
P50: =IF($D50="","",VLOOKUP($D50,数据库!$B$4:$AD$1003,MATCH(P$12,数据库!$C$2:$R$2,)+1,0)) ->  | AC50: =IF($D50="","",VLOOKUP($D50,数据库!$B$4:$AD$1003,MATCH(AC$12,数据库!$C$2:$R$2,)+1,0)) ->  | AP50: =IF($D50="","",VLOOKUP($D50,数据库!$B$4:$AD$1003,MATCH(AP$12,数据库!$C$2:$R$2,)+1,0)) ->  | BC50: =IF($D50="","",VLOOKUP($D50,数据库!$B$4:$AD$1003,MATCH(BC$12,数据库!$C$2:$R$2,)+1,0)) ->  | BD50: 38
P51: =IF($D51="","",VLOOKUP($D51,数据库!$B$4:$AD$1003,MATCH(P$12,数据库!$C$2:$R$2,)+1,0)) ->  | AC51: =IF($D51="","",VLOOKUP($D51,数据库!$B$4:$AD$1003,MATCH(AC$12,数据库!$C$2:$R$2,)+1,0)) ->  | AP51: =IF($D51="","",VLOOKUP($D51,数据库!$B$4:$AD$1003,MATCH(AP$12,数据库!$C$2:$R$2,)+1,0)) ->  | BC51: =IF($D51="","",VLOOKUP($D51,数据库!$B$4:$AD$1003,MATCH(BC$12,数据库!$C$2:$R$2,)+1,0)) ->  | BD51: 39
P52: =IF($D52="","",VLOOKUP($D52,数据库!$B$4:$AD$1003,MATCH(P$12,数据库!$C$2:$R$2,)+1,0)) ->  | AC52: =IF($D52="","",VLOOKUP($D52,数据库!$B$4:$AD$1003,MATCH(AC$12,数据库!$C$2:$R$2,)+1,0)) ->  | AP52: =IF($D52="","",VLOOKUP($D52,数据库!$B$4:$AD$1003,MATCH(AP$12,数据库!$C$2:$R$2,)+1,0)) ->  | BC52: =IF($D52="","",VLOOKUP($D52,数据库!$B$4:$AD$1003,MATCH(BC$12,数据库!$C$2:$R$2,)+1,0)) ->  | BD52: 40
P53: =IF($D53="","",VLOOKUP($D53,数据库!$B$4:$AD$1003,MATCH(P$12,数据库!$C$2:$R$2,)+1,0)) ->  | AC53: =IF($D53="","",VLOOKUP($D53,数据库!$B$4:$AD$1003,MATCH(AC$12,数据库!$C$2:$R$2,)+1,0)) ->  | AP53: =IF($D53="","",VLOOKUP($D53,数据库!$B$4:$AD$1003,MATCH(AP$12,数据库!$C$2:$R$2,)+1,0)) ->  | BC53: =IF($D53="","",VLOOKUP($D53,数据库!$B$4:$AD$1003,MATCH(BC$12,数据库!$C$2:$R$2,)+1,0)) ->  | BD53: 41
P54: =IF($D54="","",VLOOKUP($D54,数据库!$B$4:$AD$1003,MATCH(P$12,数据库!$C$2:$R$2,)+1,0)) ->  | AC54: =IF($D54="","",VLOOKUP($D54,数据库!$B$4:$AD$1003,MATCH(AC$12,数据库!$C$2:$R$2,)+1,0)) ->  | AP54: =IF($D54="","",VLOOKUP($D54,数据库!$B$4:$AD$1003,MATCH(AP$12,数据库!$C$2:$R$2,)+1,0)) ->  | BC54: =IF($D54="","",VLOOKUP($D54,数据库!$B$4:$AD$1003,MATCH(BC$12,数据库!$C$2:$R$2,)+1,0)) ->  | BD54: 42
P55: =IF($D55="","",VLOOKUP($D55,数据库!$B$4:$AD$1003,MATCH(P$12,数据库!$C$2:$R$2,)+1,0)) ->  | AC55: =IF($D55="","",VLOOKUP($D55,数据库!$B$4:$AD$1003,MATCH(AC$12,数据库!$C$2:$R$2,)+1,0)) ->  | AP55: =IF($D55="","",VLOOKUP($D55,数据库!$B$4:$AD$1003,MATCH(AP$12,数据库!$C$2:$R$2,)+1,0)) ->  | BC55: =IF($D55="","",VLOOKUP($D55,数据库!$B$4:$AD$1003,MATCH(BC$12,数据库!$C$2:$R$2,)+1,0)) ->  | BD55: 43
P56: =IF($D56="","",VLOOKUP($D56,数据库!$B$4:$AD$1003,MATCH(P$12,数据库!$C$2:$R$2,)+1,0)) ->  | AC56: =IF($D56="","",VLOOKUP($D56,数据库!$B$4:$AD$1003,MATCH(AC$12,数据库!$C$2:$R$2,)+1,0)) ->  | AP56: =IF($D56="","",VLOOKUP($D56,数据库!$B$4:$AD$1003,MATCH(AP$12,数据库!$C$2:$R$2,)+1,0)) ->  | BC56: =IF($D56="","",VLOOKUP($D56,数据库!$B$4:$AD$1003,MATCH(BC$12,数据库!$C$2:$R$2,)+1,0)) ->  | BD56: 44
P57: =IF($D57="","",VLOOKUP($D57,数据库!$B$4:$AD$1003,MATCH(P$12,数据库!$C$2:$R$2,)+1,0)) ->  | AC57: =IF($D57="","",VLOOKUP($D57,数据库!$B$4:$AD$1003,MATCH(AC$12,数据库!$C$2:$R$2,)+1,0)) ->  | AP57: =IF($D57="","",VLOOKUP($D57,数据库!$B$4:$AD$1003,MATCH(AP$12,数据库!$C$2:$R$2,)+1,0)) ->  | BC57: =IF($D57="","",VLOOKUP($D57,数据库!$B$4:$AD$1003,MATCH(BC$12,数据库!$C$2:$R$2,)+1,0)) ->  | BD57: 45
P58: =IF($D58="","",VLOOKUP($D58,数据库!$B$4:$AD$1003,MATCH(P$12,数据库!$C$2:$R$2,)+1,0)) ->  | AC58: =IF($D58="","",VLOOKUP($D58,数据库!$B$4:$AD$1003,MATCH(AC$12,数据库!$C$2:$R$2,)+1,0)) ->  | AP58: =IF($D58="","",VLOOKUP($D58,数据库!$B$4:$AD$1003,MATCH(AP$12,数据库!$C$2:$R$2,)+1,0)) ->  | BC58: =IF($D58="","",VLOOKUP($D58,数据库!$B$4:$AD$1003,MATCH(BC$12,数据库!$C$2:$R$2,)+1,0)) ->  | BD58: 46
P59: =IF($D59="","",VLOOKUP($D59,数据库!$B$4:$AD$1003,MATCH(P$12,数据库!$C$2:$R$2,)+1,0)) ->  | AC59: =IF($D59="","",VLOOKUP($D59,数据库!$B$4:$AD$1003,MATCH(AC$12,数据库!$C$2:$R$2,)+1,0)) ->  | AP59: =IF($D59="","",VLOOKUP($D59,数据库!$B$4:$AD$1003,MATCH(AP$12,数据库!$C$2:$R$2,)+1,0)) ->  | BC59: =IF($D59="","",VLOOKUP($D59,数据库!$B$4:$AD$1003,MATCH(BC$12,数据库!$C$2:$R$2,)+1,0)) ->  | BD59: 47
P60: =IF($D60="","",VLOOKUP($D60,数据库!$B$4:$AD$1003,MATCH(P$12,数据库!$C$2:$R$2,)+1,0)) ->  | AC60: =IF($D60="","",VLOOKUP($D60,数据库!$B$4:$AD$1003,MATCH(AC$12,数据库!$C$2:$R$2,)+1,0)) ->  | AP60: =IF($D60="","",VLOOKUP($D60,数据库!$B$4:$AD$1003,MATCH(AP$12,数据库!$C$2:$R$2,)+1,0)) ->  | BC60: =IF($D60="","",VLOOKUP($D60,数据库!$B$4:$AD$1003,MATCH(BC$12,数据库!$C$2:$R$2,)+1,0)) ->  | BD60: 48
P61: =IF($D61="","",VLOOKUP($D61,数据库!$B$4:$AD$1003,MATCH(P$12,数据库!$C$2:$R$2,)+1,0)) ->  | AC61: =IF($D61="","",VLOOKUP($D61,数据库!$B$4:$AD$1003,MATCH(AC$12,数据库!$C$2:$R$2,)+1,0)) ->  | AP61: =IF($D61="","",VLOOKUP($D61,数据库!$B$4:$AD$1003,MATCH(AP$12,数据库!$C$2:$R$2,)+1,0)) ->  | BC61: =IF($D61="","",VLOOKUP($D61,数据库!$B$4:$AD$1003,MATCH(BC$12,数据库!$C$2:$R$2,)+1,0)) ->  | BD61: 49
P62: =IF($D62="","",VLOOKUP($D62,数据库!$B$4:$AD$1003,MATCH(P$12,数据库!$C$2:$R$2,)+1,0)) ->  | AC62: =IF($D62="","",VLOOKUP($D62,数据库!$B$4:$AD$1003,MATCH(AC$12,数据库!$C$2:$R$2,)+1,0)) ->  | AP62: =IF($D62="","",VLOOKUP($D62,数据库!$B$4:$AD$1003,MATCH(AP$12,数据库!$C$2:$R$2,)+1,0)) ->  | BC62: =IF($D62="","",VLOOKUP($D62,数据库!$B$4:$AD$1003,MATCH(BC$12,数据库!$C$2:$R$2,)+1,0)) ->  | BD62: 50
P63: =IF($D63="","",VLOOKUP($D63,数据库!$B$4:$AD$1003,MATCH(P$12,数据库!$C$2:$R$2,)+1,0)) ->  | AC63: =IF($D63="","",VLOOKUP($D63,数据库!$B$4:$AD$1003,MATCH(AC$12,数据库!$C$2:$R$2,)+1,0)) ->  | AP63: =IF($D63="","",VLOOKUP($D63,数据库!$B$4:$AD$1003,MATCH(AP$12,数据库!$C$2:$R$2,)+1,0)) ->  | BC63: =IF($D63="","",VLOOKUP($D63,数据库!$B$4:$AD$1003,MATCH(BC$12,数据库!$C$2:$R$2,)+1,0)) ->  | BD63: 51
P64: =IF($D64="","",VLOOKUP($D64,数据库!$B$4:$AD$1003,MATCH(P$12,数据库!$C$2:$R$2,)+1,0)) ->  | AC64: =IF($D64="","",VLOOKUP($D64,数据库!$B$4:$AD$1003,MATCH(AC$12,数据库!$C$2:$R$2,)+1,0)) ->  | AP64: =IF($D64="","",VLOOKUP($D64,数据库!$B$4:$AD$1003,MATCH(AP$12,数据库!$C$2:$R$2,)+1,0)) ->  | BC64: =IF($D64="","",VLOOKUP($D64,数据库!$B$4:$AD$1003,MATCH(BC$12,数据库!$C$2:$R$2,)+1,0)) ->  | BD64: 52
P65: =IF($D65="","",VLOOKUP($D65,数据库!$B$4:$AD$1003,MATCH(P$12,数据库!$C$2:$R$2,)+1,0)) ->  | AC65: =IF($D65="","",VLOOKUP($D65,数据库!$B$4:$AD$1003,MATCH(AC$12,数据库!$C$2:$R$2,)+1,0)) ->  | AP65: =IF($D65="","",VLOOKUP($D65,数据库!$B$4:$AD$1003,MATCH(AP$12,数据库!$C$2:$R$2,)+1,0)) ->  | BC65: =IF($D65="","",VLOOKUP($D65,数据库!$B$4:$AD$1003,MATCH(BC$12,数据库!$C$2:$R$2,)+1,0)) ->  | BD65: 53
P66: =IF($D66="","",VLOOKUP($D66,数据库!$B$4:$AD$1003,MATCH(P$12,数据库!$C$2:$R$2,)+1,0)) ->  | AC66: =IF($D66="","",VLOOKUP($D66,数据库!$B$4:$AD$1003,MATCH(AC$12,数据库!$C$2:$R$2,)+1,0)) ->  | AP66: =IF($D66="","",VLOOKUP($D66,数据库!$B$4:$AD$1003,MATCH(AP$12,数据库!$C$2:$R$2,)+1,0)) ->  | BC66: =IF($D66="","",VLOOKUP($D66,数据库!$B$4:$AD$1003,MATCH(BC$12,数据库!$C$2:$R$2,)+1,0)) ->  | BD66: 54
P67: =IF($D67="","",VLOOKUP($D67,数据库!$B$4:$AD$1003,MATCH(P$12,数据库!$C$2:$R$2,)+1,0)) ->  | AC67: =IF($D67="","",VLOOKUP($D67,数据库!$B$4:$AD$1003,MATCH(AC$12,数据库!$C$2:$R$2,)+1,0)) ->  | AP67: =IF($D67="","",VLOOKUP($D67,数据库!$B$4:$AD$1003,MATCH(AP$12,数据库!$C$2:$R$2,)+1,0)) ->  | BC67: =IF($D67="","",VLOOKUP($D67,数据库!$B$4:$AD$1003,MATCH(BC$12,数据库!$C$2:$R$2,)+1,0)) ->  | BD67: 55
P68: =IF($D68="","",VLOOKUP($D68,数据库!$B$4:$AD$1003,MATCH(P$12,数据库!$C$2:$R$2,)+1,0)) ->  | AC68: =IF($D68="","",VLOOKUP($D68,数据库!$B$4:$AD$1003,MATCH(AC$12,数据库!$C$2:$R$2,)+1,0)) ->  | AP68: =IF($D68="","",VLOOKUP($D68,数据库!$B$4:$AD$1003,MATCH(AP$12,数据库!$C$2:$R$2,)+1,0)) ->  | BC68: =IF($D68="","",VLOOKUP($D68,数据库!$B$4:$AD$1003,MATCH(BC$12,数据库!$C$2:$R$2,)+1,0)) ->  | BD68: 56
P69: =IF($D69="","",VLOOKUP($D69,数据库!$B$4:$AD$1003,MATCH(P$12,数据库!$C$2:$R$2,)+1,0)) ->  | AC69: =IF($D69="","",VLOOKUP($D69,数据库!$B$4:$AD$1003,MATCH(AC$12,数据库!$C$2:$R$2,)+1,0)) ->  | AP69: =IF($D69="","",VLOOKUP($D69,数据库!$B$4:$AD$1003,MATCH(AP$12,数据库!$C$2:$R$2,)+1,0)) ->  | BC69: =IF($D69="","",VLOOKUP($D69,数据库!$B$4:$AD$1003,MATCH(BC$12,数据库!$C$2:$R$2,)+1,0)) ->  | BD69: 57
P70: =IF($D70="","",VLOOKUP($D70,数据库!$B$4:$AD$1003,MATCH(P$12,数据库!$C$2:$R$2,)+1,0)) ->  | AC70: =IF($D70="","",VLOOKUP($D70,数据库!$B$4:$AD$1003,MATCH(AC$12,数据库!$C$2:$R$2,)+1,0)) ->  | AP70: =IF($D70="","",VLOOKUP($D70,数据库!$B$4:$AD$1003,MATCH(AP$12,数据库!$C$2:$R$2,)+1,0)) ->  | BC70: =IF($D70="","",VLOOKUP($D70,数据库!$B$4:$AD$1003,MATCH(BC$12,数据库!$C$2:$R$2,)+1,0)) ->  | BD70: 58
K71: =IF($E71="","",MID($E71,K$12+1,1)) ->  | P71: =IF($D71="","",VLOOKUP($D71,数据库!$B$4:$AD$1003,MATCH(P$12,数据库!$C$2:$R$2,)+1,0)) ->  | X71: =IF($R71="","",MID($R71,X$12+1,1)) ->  | AC71: =IF($D71="","",VLOOKUP($D71,数据库!$B$4:$AD$1003,MATCH(AC$12,数据库!$C$2:$R$2,)+1,0)) ->  | AK71: =IF($AE71="","",MID($AE71,AK$12+1,1)) ->  | AP71: =IF($D71="","",VLOOKUP($D71,数据库!$B$4:$AD$1003,MATCH(AP$12,数据库!$C$2:$R$2,)+1,0)) ->  | AX71: =IF($AR71="","",MID($AR71,AX$12+1,1)) ->  | BC71: =IF($D71="","",VLOOKUP($D71,数据库!$B$4:$AD$1003,MATCH(BC$12,数据库!$C$2:$R$2,)+1,0)) ->  | BD71: 59
F72: =IF($E72="","",MID($E72,F$12+1,1)) ->  | P72: =IF($D72="","",VLOOKUP($D72,数据库!$B$4:$AD$1003,MATCH(P$12,数据库!$C$2:$R$2,)+1,0)) ->  | S72: =IF($R72="","",MID($R72,S$12+1,1)) ->  | AC72: =IF($D72="","",VLOOKUP($D72,数据库!$B$4:$AD$1003,MATCH(AC$12,数据库!$C$2:$R$2,)+1,0)) ->  | AF72: =IF($AE72="","",MID($AE72,AF$12+1,1)) ->  | AP72: =IF($D72="","",VLOOKUP($D72,数据库!$B$4:$AD$1003,MATCH(AP$12,数据库!$C$2:$R$2,)+1,0)) ->  | AS72: =IF($AR72="","",MID($AR72,AS$12+1,1)) ->  | BC72: =IF($D72="","",VLOOKUP($D72,数据库!$B$4:$AD$1003,MATCH(BC$12,数据库!$C$2:$R$2,)+1,0)) ->  | BD72: 60
P73: =IF($D73="","",VLOOKUP($D73,数据库!$B$4:$AD$1003,MATCH(P$12,数据库!$C$2:$R$2,)+1,0)) ->  | AC73: =IF($D73="","",VLOOKUP($D73,数据库!$B$4:$AD$1003,MATCH(AC$12,数据库!$C$2:$R$2,)+1,0)) ->  | AP73: =IF($D73="","",VLOOKUP($D73,数据库!$B$4:$AD$1003,MATCH(AP$12,数据库!$C$2:$R$2,)+1,0)) ->  | BC73: =IF($D73="","",VLOOKUP($D73,数据库!$B$4:$AD$1003,MATCH(BC$12,数据库!$C$2:$R$2,)+1,0)) ->  | BD73: 61
P74: =IF($D74="","",VLOOKUP($D74,数据库!$B$4:$AD$1003,MATCH(P$12,数据库!$C$2:$R$2,)+1,0)) ->  | AC74: =IF($D74="","",VLOOKUP($D74,数据库!$B$4:$AD$1003,MATCH(AC$12,数据库!$C$2:$R$2,)+1,0)) ->  | AP74: =IF($D74="","",VLOOKUP($D74,数据库!$B$4:$AD$1003,MATCH(AP$12,数据库!$C$2:$R$2,)+1,0)) ->  | BC74: =IF($D74="","",VLOOKUP($D74,数据库!$B$4:$AD$1003,MATCH(BC$12,数据库!$C$2:$R$2,)+1,0)) ->  | BD74: 62
P75: =IF($D75="","",VLOOKUP($D75,数据库!$B$4:$AD$1003,MATCH(P$12,数据库!$C$2:$R$2,)+1,0)) ->  | AC75: =IF($D75="","",VLOOKUP($D75,数据库!$B$4:$AD$1003,MATCH(AC$12,数据库!$C$2:$R$2,)+1,0)) ->  | AP75: =IF($D75="","",VLOOKUP($D75,数据库!$B$4:$AD$1003,MATCH(AP$12,数据库!$C$2:$R$2,)+1,0)) ->  | BC75: =IF($D75="","",VLOOKUP($D75,数据库!$B$4:$AD$1003,MATCH(BC$12,数据库!$C$2:$R$2,)+1,0)) ->  | BD75: 63
P76: =IF($D76="","",VLOOKUP($D76,数据库!$B$4:$AD$1003,MATCH(P$12,数据库!$C$2:$R$2,)+1,0)) ->  | AC76: =IF($D76="","",VLOOKUP($D76,数据库!$B$4:$AD$1003,MATCH(AC$12,数据库!$C$2:$R$2,)+1,0)) ->  | AP76: =IF($D76="","",VLOOKUP($D76,数据库!$B$4:$AD$1003,MATCH(AP$12,数据库!$C$2:$R$2,)+1,0)) ->  | BC76: =IF($D76="","",VLOOKUP($D76,数据库!$B$4:$AD$1003,MATCH(BC$12,数据库!$C$2:$R$2,)+1,0)) ->  | BD76: 64
P77: =IF($D77="","",VLOOKUP($D77,数据库!$B$4:$AD$1003,MATCH(P$12,数据库!$C$2:$R$2,)+1,0)) ->  | AC77: =IF($D77="","",VLOOKUP($D77,数据库!$B$4:$AD$1003,MATCH(AC$12,数据库!$C$2:$R$2,)+1,0)) ->  | AP77: =IF($D77="","",VLOOKUP($D77,数据库!$B$4:$AD$1003,MATCH(AP$12,数据库!$C$2:$R$2,)+1,0)) ->  | BC77: =IF($D77="","",VLOOKUP($D77,数据库!$B$4:$AD$1003,MATCH(BC$12,数据库!$C$2:$R$2,)+1,0)) ->  | BD77: 65
P78: =IF($D78="","",VLOOKUP($D78,数据库!$B$4:$AD$1003,MATCH(P$12,数据库!$C$2:$R$2,)+1,0)) ->  | AC78: =IF($D78="","",VLOOKUP($D78,数据库!$B$4:$AD$1003,MATCH(AC$12,数据库!$C$2:$R$2,)+1,0)) ->  | AP78: =IF($D78="","",VLOOKUP($D78,数据库!$B$4:$AD$1003,MATCH(AP$12,数据库!$C$2:$R$2,)+1,0)) ->  | BC78: =IF($D78="","",VLOOKUP($D78,数据库!$B$4:$AD$1003,MATCH(BC$12,数据库!$C$2:$R$2,)+1,0)) ->  | BD78: 66 | BE78: =IF(E78="","",E78) ->  | BF78: =IF(R78="","",R78) ->  | BG78: =IF(AE78="","",AE78) ->  | BH78: =IF(AR78="","",AR78) -> 
P79: =IF($D79="","",VLOOKUP($D79,数据库!$B$4:$AD$1003,MATCH(P$12,数据库!$C$2:$R$2,)+1,0)) ->  | AC79: =IF($D79="","",VLOOKUP($D79,数据库!$B$4:$AD$1003,MATCH(AC$12,数据库!$C$2:$R$2,)+1,0)) ->  | AP79: =IF($D79="","",VLOOKUP($D79,数据库!$B$4:$AD$1003,MATCH(AP$12,数据库!$C$2:$R$2,)+1,0)) ->  | BC79: =IF($D79="","",VLOOKUP($D79,数据库!$B$4:$AD$1003,MATCH(BC$12,数据库!$C$2:$R$2,)+1,0)) ->  | BD79: 67
P80: =IF($D80="","",VLOOKUP($D80,数据库!$B$4:$AD$1003,MATCH(P$12,数据库!$C$2:$R$2,)+1,0)) ->  | AC80: =IF($D80="","",VLOOKUP($D80,数据库!$B$4:$AD$1003,MATCH(AC$12,数据库!$C$2:$R$2,)+1,0)) ->  | AP80: =IF($D80="","",VLOOKUP($D80,数据库!$B$4:$AD$1003,MATCH(AP$12,数据库!$C$2:$R$2,)+1,0)) ->  | BC80: =IF($D80="","",VLOOKUP($D80,数据库!$B$4:$AD$1003,MATCH(BC$12,数据库!$C$2:$R$2,)+1,0)) ->  | BD80: 68
P81: =IF($D81="","",VLOOKUP($D81,数据库!$B$4:$AD$1003,MATCH(P$12,数据库!$C$2:$R$2,)+1,0)) ->  | AC81: =IF($D81="","",VLOOKUP($D81,数据库!$B$4:$AD$1003,MATCH(AC$12,数据库!$C$2:$R$2,)+1,0)) ->  | AP81: =IF($D81="","",VLOOKUP($D81,数据库!$B$4:$AD$1003,MATCH(AP$12,数据库!$C$2:$R$2,)+1,0)) ->  | BC81: =IF($D81="","",VLOOKUP($D81,数据库!$B$4:$AD$1003,MATCH(BC$12,数据库!$C$2:$R$2,)+1,0)) ->  | BD81: 69
P82: =IF($D82="","",VLOOKUP($D82,数据库!$B$4:$AD$1003,MATCH(P$12,数据库!$C$2:$R$2,)+1,0)) ->  | AC82: =IF($D82="","",VLOOKUP($D82,数据库!$B$4:$AD$1003,MATCH(AC$12,数据库!$C$2:$R$2,)+1,0)) ->  | AP82: =IF($D82="","",VLOOKUP($D82,数据库!$B$4:$AD$1003,MATCH(AP$12,数据库!$C$2:$R$2,)+1,0)) ->  | BC82: =IF($D82="","",VLOOKUP($D82,数据库!$B$4:$AD$1003,MATCH(BC$12,数据库!$C$2:$R$2,)+1,0)) ->  | BD82: 70
P83: =IF($D83="","",VLOOKUP($D83,数据库!$B$4:$AD$1003,MATCH(P$12,数据库!$C$2:$R$2,)+1,0)) ->  | AC83: =IF($D83="","",VLOOKUP($D83,数据库!$B$4:$AD$1003,MATCH(AC$12,数据库!$C$2:$R$2,)+1,0)) ->  | AP83: =IF($D83="","",VLOOKUP($D83,数据库!$B$4:$AD$1003,MATCH(AP$12,数据库!$C$2:$R$2,)+1,0)) ->  | BC83: =IF($D83="","",VLOOKUP($D83,数据库!$B$4:$AD$1003,MATCH(BC$12,数据库!$C$2:$R$2,)+1,0)) ->  | BD83: 71
P84: =IF($D84="","",VLOOKUP($D84,数据库!$B$4:$AD$1003,MATCH(P$12,数据库!$C$2:$R$2,)+1,0)) ->  | AC84: =IF($D84="","",VLOOKUP($D84,数据库!$B$4:$AD$1003,MATCH(AC$12,数据库!$C$2:$R$2,)+1,0)) ->  | AP84: =IF($D84="","",VLOOKUP($D84,数据库!$B$4:$AD$1003,MATCH(AP$12,数据库!$C$2:$R$2,)+1,0)) ->  | BC84: =IF($D84="","",VLOOKUP($D84,数据库!$B$4:$AD$1003,MATCH(BC$12,数据库!$C$2:$R$2,)+1,0)) ->  | BD84: 72
P85: =IF($D85="","",VLOOKUP($D85,数据库!$B$4:$AD$1003,MATCH(P$12,数据库!$C$2:$R$2,)+1,0)) ->  | AC85: =IF($D85="","",VLOOKUP($D85,数据库!$B$4:$AD$1003,MATCH(AC$12,数据库!$C$2:$R$2,)+1,0)) ->  | AP85: =IF($D85="","",VLOOKUP($D85,数据库!$B$4:$AD$1003,MATCH(AP$12,数据库!$C$2:$R$2,)+1,0)) ->  | BC85: =IF($D85="","",VLOOKUP($D85,数据库!$B$4:$AD$1003,MATCH(BC$12,数据库!$C$2:$R$2,)+1,0)) ->  | BD85: 73
P86: =IF($D86="","",VLOOKUP($D86,数据库!$B$4:$AD$1003,MATCH(P$12,数据库!$C$2:$R$2,)+1,0)) ->  | AC86: =IF($D86="","",VLOOKUP($D86,数据库!$B$4:$AD$1003,MATCH(AC$12,数据库!$C$2:$R$2,)+1,0)) ->  | AP86: =IF($D86="","",VLOOKUP($D86,数据库!$B$4:$AD$1003,MATCH(AP$12,数据库!$C$2:$R$2,)+1,0)) ->  | BC86: =IF($D86="","",VLOOKUP($D86,数据库!$B$4:$AD$1003,MATCH(BC$12,数据库!$C$2:$R$2,)+1,0)) ->  | BD86: 74
P87: =IF($D87="","",VLOOKUP($D87,数据库!$B$4:$AD$1003,MATCH(P$12,数据库!$C$2:$R$2,)+1,0)) ->  | AC87: =IF($D87="","",VLOOKUP($D87,数据库!$B$4:$AD$1003,MATCH(AC$12,数据库!$C$2:$R$2,)+1,0)) ->  | AP87: =IF($D87="","",VLOOKUP($D87,数据库!$B$4:$AD$1003,MATCH(AP$12,数据库!$C$2:$R$2,)+1,0)) ->  | BC87: =IF($D87="","",VLOOKUP($D87,数据库!$B$4:$AD$1003,MATCH(BC$12,数据库!$C$2:$R$2,)+1,0)) ->  | BD87: 75
P88: =IF($D88="","",VLOOKUP($D88,数据库!$B$4:$AD$1003,MATCH(P$12,数据库!$C$2:$R$2,)+1,0)) ->  | AC88: =IF($D88="","",VLOOKUP($D88,数据库!$B$4:$AD$1003,MATCH(AC$12,数据库!$C$2:$R$2,)+1,0)) ->  | AP88: =IF($D88="","",VLOOKUP($D88,数据库!$B$4:$AD$1003,MATCH(AP$12,数据库!$C$2:$R$2,)+1,0)) ->  | BC88: =IF($D88="","",VLOOKUP($D88,数据库!$B$4:$AD$1003,MATCH(BC$12,数据库!$C$2:$R$2,)+1,0)) ->  | BD88: 76
P89: =IF($D89="","",VLOOKUP($D89,数据库!$B$4:$AD$1003,MATCH(P$12,数据库!$C$2:$R$2,)+1,0)) ->  | AC89: =IF($D89="","",VLOOKUP($D89,数据库!$B$4:$AD$1003,MATCH(AC$12,数据库!$C$2:$R$2,)+1,0)) ->  | AP89: =IF($D89="","",VLOOKUP($D89,数据库!$B$4:$AD$1003,MATCH(AP$12,数据库!$C$2:$R$2,)+1,0)) ->  | BC89: =IF($D89="","",VLOOKUP($D89,数据库!$B$4:$AD$1003,MATCH(BC$12,数据库!$C$2:$R$2,)+1,0)) ->  | BD89: 77
P90: =IF($D90="","",VLOOKUP($D90,数据库!$B$4:$AD$1003,MATCH(P$12,数据库!$C$2:$R$2,)+1,0)) ->  | AC90: =IF($D90="","",VLOOKUP($D90,数据库!$B$4:$AD$1003,MATCH(AC$12,数据库!$C$2:$R$2,)+1,0)) ->  | AP90: =IF($D90="","",VLOOKUP($D90,数据库!$B$4:$AD$1003,MATCH(AP$12,数据库!$C$2:$R$2,)+1,0)) ->  | BC90: =IF($D90="","",VLOOKUP($D90,数据库!$B$4:$AD$1003,MATCH(BC$12,数据库!$C$2:$R$2,)+1,0)) ->  | BD90: 78
P91: =IF($D91="","",VLOOKUP($D91,数据库!$B$4:$AD$1003,MATCH(P$12,数据库!$C$2:$R$2,)+1,0)) ->  | AC91: =IF($D91="","",VLOOKUP($D91,数据库!$B$4:$AD$1003,MATCH(AC$12,数据库!$C$2:$R$2,)+1,0)) ->  | AP91: =IF($D91="","",VLOOKUP($D91,数据库!$B$4:$AD$1003,MATCH(AP$12,数据库!$C$2:$R$2,)+1,0)) ->  | BC91: =IF($D91="","",VLOOKUP($D91,数据库!$B$4:$AD$1003,MATCH(BC$12,数据库!$C$2:$R$2,)+1,0)) ->  | BD91: 79
P92: =IF($D92="","",VLOOKUP($D92,数据库!$B$4:$AD$1003,MATCH(P$12,数据库!$C$2:$R$2,)+1,0)) ->  | AC92: =IF($D92="","",VLOOKUP($D92,数据库!$B$4:$AD$1003,MATCH(AC$12,数据库!$C$2:$R$2,)+1,0)) ->  | AP92: =IF($D92="","",VLOOKUP($D92,数据库!$B$4:$AD$1003,MATCH(AP$12,数据库!$C$2:$R$2,)+1,0)) ->  | BC92: =IF($D92="","",VLOOKUP($D92,数据库!$B$4:$AD$1003,MATCH(BC$12,数据库!$C$2:$R$2,)+1,0)) ->  | BD92: 80
P93: =IF($D93="","",VLOOKUP($D93,数据库!$B$4:$AD$1003,MATCH(P$12,数据库!$C$2:$R$2,)+1,0)) ->  | AC93: =IF($D93="","",VLOOKUP($D93,数据库!$B$4:$AD$1003,MATCH(AC$12,数据库!$C$2:$R$2,)+1,0)) ->  | AP93: =IF($D93="","",VLOOKUP($D93,数据库!$B$4:$AD$1003,MATCH(AP$12,数据库!$C$2:$R$2,)+1,0)) ->  | BC93: =IF($D93="","",VLOOKUP($D93,数据库!$B$4:$AD$1003,MATCH(BC$12,数据库!$C$2:$R$2,)+1,0)) ->  | BD93: 81
P94: =IF($D94="","",VLOOKUP($D94,数据库!$B$4:$AD$1003,MATCH(P$12,数据库!$C$2:$R$2,)+1,0)) ->  | AC94: =IF($D94="","",VLOOKUP($D94,数据库!$B$4:$AD$1003,MATCH(AC$12,数据库!$C$2:$R$2,)+1,0)) ->  | AP94: =IF($D94="","",VLOOKUP($D94,数据库!$B$4:$AD$1003,MATCH(AP$12,数据库!$C$2:$R$2,)+1,0)) ->  | BC94: =IF($D94="","",VLOOKUP($D94,数据库!$B$4:$AD$1003,MATCH(BC$12,数据库!$C$2:$R$2,)+1,0)) ->  | BD94: 82
P95: =IF($D95="","",VLOOKUP($D95,数据库!$B$4:$AD$1003,MATCH(P$12,数据库!$C$2:$R$2,)+1,0)) ->  | AC95: =IF($D95="","",VLOOKUP($D95,数据库!$B$4:$AD$1003,MATCH(AC$12,数据库!$C$2:$R$2,)+1,0)) ->  | AP95: =IF($D95="","",VLOOKUP($D95,数据库!$B$4:$AD$1003,MATCH(AP$12,数据库!$C$2:$R$2,)+1,0)) ->  | BC95: =IF($D95="","",VLOOKUP($D95,数据库!$B$4:$AD$1003,MATCH(BC$12,数据库!$C$2:$R$2,)+1,0)) ->  | BD95: 83
P96: =IF($D96="","",VLOOKUP($D96,数据库!$B$4:$AD$1003,MATCH(P$12,数据库!$C$2:$R$2,)+1,0)) ->  | AC96: =IF($D96="","",VLOOKUP($D96,数据库!$B$4:$AD$1003,MATCH(AC$12,数据库!$C$2:$R$2,)+1,0)) ->  | AP96: =IF($D96="","",VLOOKUP($D96,数据库!$B$4:$AD$1003,MATCH(AP$12,数据库!$C$2:$R$2,)+1,0)) ->  | BC96: =IF($D96="","",VLOOKUP($D96,数据库!$B$4:$AD$1003,MATCH(BC$12,数据库!$C$2:$R$2,)+1,0)) ->  | BD96: 84
P97: =IF($D97="","",VLOOKUP($D97,数据库!$B$4:$AD$1003,MATCH(P$12,数据库!$C$2:$R$2,)+1,0)) ->  | AC97: =IF($D97="","",VLOOKUP($D97,数据库!$B$4:$AD$1003,MATCH(AC$12,数据库!$C$2:$R$2,)+1,0)) ->  | AP97: =IF($D97="","",VLOOKUP($D97,数据库!$B$4:$AD$1003,MATCH(AP$12,数据库!$C$2:$R$2,)+1,0)) ->  | BC97: =IF($D97="","",VLOOKUP($D97,数据库!$B$4:$AD$1003,MATCH(BC$12,数据库!$C$2:$R$2,)+1,0)) ->  | BD97: 85
P98: =IF($D98="","",VLOOKUP($D98,数据库!$B$4:$AD$1003,MATCH(P$12,数据库!$C$2:$R$2,)+1,0)) ->  | AC98: =IF($D98="","",VLOOKUP($D98,数据库!$B$4:$AD$1003,MATCH(AC$12,数据库!$C$2:$R$2,)+1,0)) ->  | AP98: =IF($D98="","",VLOOKUP($D98,数据库!$B$4:$AD$1003,MATCH(AP$12,数据库!$C$2:$R$2,)+1,0)) ->  | BC98: =IF($D98="","",VLOOKUP($D98,数据库!$B$4:$AD$1003,MATCH(BC$12,数据库!$C$2:$R$2,)+1,0)) ->  | BD98: 86
N99: =IF($E99="","",MID($E99,N$12+1,1)) ->  | P99: =IF($D99="","",VLOOKUP($D99,数据库!$B$4:$AD$1003,MATCH(P$12,数据库!$C$2:$R$2,)+1,0)) ->  | AA99: =IF($R99="","",MID($R99,AA$12+1,1)) ->  | AC99: =IF($D99="","",VLOOKUP($D99,数据库!$B$4:$AD$1003,MATCH(AC$12,数据库!$C$2:$R$2,)+1,0)) ->  | AN99: =IF($AE99="","",MID($AE99,AN$12+1,1)) ->  | AP99: =IF($D99="","",VLOOKUP($D99,数据库!$B$4:$AD$1003,MATCH(AP$12,数据库!$C$2:$R$2,)+1,0)) ->  | BA99: =IF($AR99="","",MID($AR99,BA$12+1,1)) ->  | BC99: =IF($D99="","",VLOOKUP($D99,数据库!$B$4:$AD$1003,MATCH(BC$12,数据库!$C$2:$R$2,)+1,0)) ->  | BD99: 87
P100: =IF($D100="","",VLOOKUP($D100,数据库!$B$4:$AD$1003,MATCH(P$12,数据库!$C$2:$R$2,)+1,0)) ->  | AC100: =IF($D100="","",VLOOKUP($D100,数据库!$B$4:$AD$1003,MATCH(AC$12,数据库!$C$2:$R$2,)+1,0)) ->  | AP100: =IF($D100="","",VLOOKUP($D100,数据库!$B$4:$AD$1003,MATCH(AP$12,数据库!$C$2:$R$2,)+1,0)) ->  | BC100: =IF($D100="","",VLOOKUP($D100,数据库!$B$4:$AD$1003,MATCH(BC$12,数据库!$C$2:$R$2,)+1,0)) ->  | BD100: 88
P101: =IF($D101="","",VLOOKUP($D101,数据库!$B$4:$AD$1003,MATCH(P$12,数据库!$C$2:$R$2,)+1,0)) ->  | AC101: =IF($D101="","",VLOOKUP($D101,数据库!$B$4:$AD$1003,MATCH(AC$12,数据库!$C$2:$R$2,)+1,0)) ->  | AP101: =IF($D101="","",VLOOKUP($D101,数据库!$B$4:$AD$1003,MATCH(AP$12,数据库!$C$2:$R$2,)+1,0)) ->  | BC101: =IF($D101="","",VLOOKUP($D101,数据库!$B$4:$AD$1003,MATCH(BC$12,数据库!$C$2:$R$2,)+1,0)) ->  | BD101: 89
P102: =IF($D102="","",VLOOKUP($D102,数据库!$B$4:$AD$1003,MATCH(P$12,数据库!$C$2:$R$2,)+1,0)) ->  | AC102: =IF($D102="","",VLOOKUP($D102,数据库!$B$4:$AD$1003,MATCH(AC$12,数据库!$C$2:$R$2,)+1,0)) ->  | AP102: =IF($D102="","",VLOOKUP($D102,数据库!$B$4:$AD$1003,MATCH(AP$12,数据库!$C$2:$R$2,)+1,0)) ->  | BC102: =IF($D102="","",VLOOKUP($D102,数据库!$B$4:$AD$1003,MATCH(BC$12,数据库!$C$2:$R$2,)+1,0)) ->  | BD102: 90
P103: =IF($D103="","",VLOOKUP($D103,数据库!$B$4:$AD$1003,MATCH(P$12,数据库!$C$2:$R$2,)+1,0)) ->  | AC103: =IF($D103="","",VLOOKUP($D103,数据库!$B$4:$AD$1003,MATCH(AC$12,数据库!$C$2:$R$2,)+1,0)) ->  | AP103: =IF($D103="","",VLOOKUP($D103,数据库!$B$4:$AD$1003,MATCH(AP$12,数据库!$C$2:$R$2,)+1,0)) ->  | BC103: =IF($D103="","",VLOOKUP($D103,数据库!$B$4:$AD$1003,MATCH(BC$12,数据库!$C$2:$R$2,)+1,0)) ->  | BD103: 91
P104: =IF($D104="","",VLOOKUP($D104,数据库!$B$4:$AD$1003,MATCH(P$12,数据库!$C$2:$R$2,)+1,0)) ->  | AC104: =IF($D104="","",VLOOKUP($D104,数据库!$B$4:$AD$1003,MATCH(AC$12,数据库!$C$2:$R$2,)+1,0)) ->  | AP104: =IF($D104="","",VLOOKUP($D104,数据库!$B$4:$AD$1003,MATCH(AP$12,数据库!$C$2:$R$2,)+1,0)) ->  | BC104: =IF($D104="","",VLOOKUP($D104,数据库!$B$4:$AD$1003,MATCH(BC$12,数据库!$C$2:$R$2,)+1,0)) ->  | BD104: 92
P105: =IF($D105="","",VLOOKUP($D105,数据库!$B$4:$AD$1003,MATCH(P$12,数据库!$C$2:$R$2,)+1,0)) ->  | AC105: =IF($D105="","",VLOOKUP($D105,数据库!$B$4:$AD$1003,MATCH(AC$12,数据库!$C$2:$R$2,)+1,0)) ->  | AP105: =IF($D105="","",VLOOKUP($D105,数据库!$B$4:$AD$1003,MATCH(AP$12,数据库!$C$2:$R$2,)+1,0)) ->  | BC105: =IF($D105="","",VLOOKUP($D105,数据库!$B$4:$AD$1003,MATCH(BC$12,数据库!$C$2:$R$2,)+1,0)) ->  | BD105: 93
P106: =IF($D106="","",VLOOKUP($D106,数据库!$B$4:$AD$1003,MATCH(P$12,数据库!$C$2:$R$2,)+1,0)) ->  | AC106: =IF($D106="","",VLOOKUP($D106,数据库!$B$4:$AD$1003,MATCH(AC$12,数据库!$C$2:$R$2,)+1,0)) ->  | AP106: =IF($D106="","",VLOOKUP($D106,数据库!$B$4:$AD$1003,MATCH(AP$12,数据库!$C$2:$R$2,)+1,0)) ->  | BC106: =IF($D106="","",VLOOKUP($D106,数据库!$B$4:$AD$1003,MATCH(BC$12,数据库!$C$2:$R$2,)+1,0)) ->  | BD106: 94
P107: =IF($D107="","",VLOOKUP($D107,数据库!$B$4:$AD$1003,MATCH(P$12,数据库!$C$2:$R$2,)+1,0)) ->  | AC107: =IF($D107="","",VLOOKUP($D107,数据库!$B$4:$AD$1003,MATCH(AC$12,数据库!$C$2:$R$2,)+1,0)) ->  | AP107: =IF($D107="","",VLOOKUP($D107,数据库!$B$4:$AD$1003,MATCH(AP$12,数据库!$C$2:$R$2,)+1,0)) ->  | BC107: =IF($D107="","",VLOOKUP($D107,数据库!$B$4:$AD$1003,MATCH(BC$12,数据库!$C$2:$R$2,)+1,0)) ->  | BD107: 95
P108: =IF($D108="","",VLOOKUP($D108,数据库!$B$4:$AD$1003,MATCH(P$12,数据库!$C$2:$R$2,)+1,0)) ->  | AC108: =IF($D108="","",VLOOKUP($D108,数据库!$B$4:$AD$1003,MATCH(AC$12,数据库!$C$2:$R$2,)+1,0)) ->  | AP108: =IF($D108="","",VLOOKUP($D108,数据库!$B$4:$AD$1003,MATCH(AP$12,数据库!$C$2:$R$2,)+1,0)) ->  | BC108: =IF($D108="","",VLOOKUP($D108,数据库!$B$4:$AD$1003,MATCH(BC$12,数据库!$C$2:$R$2,)+1,0)) ->  | BD108: 96
P109: =IF($D109="","",VLOOKUP($D109,数据库!$B$4:$AD$1003,MATCH(P$12,数据库!$C$2:$R$2,)+1,0)) ->  | AC109: =IF($D109="","",VLOOKUP($D109,数据库!$B$4:$AD$1003,MATCH(AC$12,数据库!$C$2:$R$2,)+1,0)) ->  | AP109: =IF($D109="","",VLOOKUP($D109,数据库!$B$4:$AD$1003,MATCH(AP$12,数据库!$C$2:$R$2,)+1,0)) ->  | BC109: =IF($D109="","",VLOOKUP($D109,数据库!$B$4:$AD$1003,MATCH(BC$12,数据库!$C$2:$R$2,)+1,0)) ->  | BD109: 97
P110: =IF($D110="","",VLOOKUP($D110,数据库!$B$4:$AD$1003,MATCH(P$12,数据库!$C$2:$R$2,)+1,0)) ->  | AC110: =IF($D110="","",VLOOKUP($D110,数据库!$B$4:$AD$1003,MATCH(AC$12,数据库!$C$2:$R$2,)+1,0)) ->  | AP110: =IF($D110="","",VLOOKUP($D110,数据库!$B$4:$AD$1003,MATCH(AP$12,数据库!$C$2:$R$2,)+1,0)) ->  | BC110: =IF($D110="","",VLOOKUP($D110,数据库!$B$4:$AD$1003,MATCH(BC$12,数据库!$C$2:$R$2,)+1,0)) ->  | BD110: 98
P111: =IF($D111="","",VLOOKUP($D111,数据库!$B$4:$AD$1003,MATCH(P$12,数据库!$C$2:$R$2,)+1,0)) ->  | AC111: =IF($D111="","",VLOOKUP($D111,数据库!$B$4:$AD$1003,MATCH(AC$12,数据库!$C$2:$R$2,)+1,0)) ->  | AP111: =IF($D111="","",VLOOKUP($D111,数据库!$B$4:$AD$1003,MATCH(AP$12,数据库!$C$2:$R$2,)+1,0)) ->  | BC111: =IF($D111="","",VLOOKUP($D111,数据库!$B$4:$AD$1003,MATCH(BC$12,数据库!$C$2:$R$2,)+1,0)) ->  | BD111: 99
P112: =IF($D112="","",VLOOKUP($D112,数据库!$B$4:$AD$1003,MATCH(P$12,数据库!$C$2:$R$2,)+1,0)) ->  | AC112: =IF($D112="","",VLOOKUP($D112,数据库!$B$4:$AD$1003,MATCH(AC$12,数据库!$C$2:$R$2,)+1,0)) ->  | AP112: =IF($D112="","",VLOOKUP($D112,数据库!$B$4:$AD$1003,MATCH(AP$12,数据库!$C$2:$R$2,)+1,0)) ->  | BC112: =IF($D112="","",VLOOKUP($D112,数据库!$B$4:$AD$1003,MATCH(BC$12,数据库!$C$2:$R$2,)+1,0)) ->  | BD112: 100
P113: =IF($D113="","",VLOOKUP($D113,数据库!$B$4:$AD$1003,MATCH(P$12,数据库!$C$2:$R$2,)+1,0)) ->  | AC113: =IF($D113="","",VLOOKUP($D113,数据库!$B$4:$AD$1003,MATCH(AC$12,数据库!$C$2:$R$2,)+1,0)) ->  | AP113: =IF($D113="","",VLOOKUP($D113,数据库!$B$4:$AD$1003,MATCH(AP$12,数据库!$C$2:$R$2,)+1,0)) ->  | BC113: =IF($D113="","",VLOOKUP($D113,数据库!$B$4:$AD$1003,MATCH(BC$12,数据库!$C$2:$R$2,)+1,0)) ->  | BD113: 101
P114: =IF($D114="","",VLOOKUP($D114,数据库!$B$4:$AD$1003,MATCH(P$12,数据库!$C$2:$R$2,)+1,0)) ->  | AC114: =IF($D114="","",VLOOKUP($D114,数据库!$B$4:$AD$1003,MATCH(AC$12,数据库!$C$2:$R$2,)+1,0)) ->  | AP114: =IF($D114="","",VLOOKUP($D114,数据库!$B$4:$AD$1003,MATCH(AP$12,数据库!$C$2:$R$2,)+1,0)) ->  | BC114: =IF($D114="","",VLOOKUP($D114,数据库!$B$4:$AD$1003,MATCH(BC$12,数据库!$C$2:$R$2,)+1,0)) ->  | BD114: 102
P115: =IF($D115="","",VLOOKUP($D115,数据库!$B$4:$AD$1003,MATCH(P$12,数据库!$C$2:$R$2,)+1,0)) ->  | AC115: =IF($D115="","",VLOOKUP($D115,数据库!$B$4:$AD$1003,MATCH(AC$12,数据库!$C$2:$R$2,)+1,0)) ->  | AP115: =IF($D115="","",VLOOKUP($D115,数据库!$B$4:$AD$1003,MATCH(AP$12,数据库!$C$2:$R$2,)+1,0)) ->  | BC115: =IF($D115="","",VLOOKUP($D115,数据库!$B$4:$AD$1003,MATCH(BC$12,数据库!$C$2:$R$2,)+1,0)) ->  | BD115: 103
P116: =IF($D116="","",VLOOKUP($D116,数据库!$B$4:$AD$1003,MATCH(P$12,数据库!$C$2:$R$2,)+1,0)) ->  | AC116: =IF($D116="","",VLOOKUP($D116,数据库!$B$4:$AD$1003,MATCH(AC$12,数据库!$C$2:$R$2,)+1,0)) ->  | AP116: =IF($D116="","",VLOOKUP($D116,数据库!$B$4:$AD$1003,MATCH(AP$12,数据库!$C$2:$R$2,)+1,0)) ->  | BC116: =IF($D116="","",VLOOKUP($D116,数据库!$B$4:$AD$1003,MATCH(BC$12,数据库!$C$2:$R$2,)+1,0)) ->  | BD116: 104
P117: =IF($D117="","",VLOOKUP($D117,数据库!$B$4:$AD$1003,MATCH(P$12,数据库!$C$2:$R$2,)+1,0)) ->  | AC117: =IF($D117="","",VLOOKUP($D117,数据库!$B$4:$AD$1003,MATCH(AC$12,数据库!$C$2:$R$2,)+1,0)) ->  | AP117: =IF($D117="","",VLOOKUP($D117,数据库!$B$4:$AD$1003,MATCH(AP$12,数据库!$C$2:$R$2,)+1,0)) ->  | BC117: =IF($D117="","",VLOOKUP($D117,数据库!$B$4:$AD$1003,MATCH(BC$12,数据库!$C$2:$R$2,)+1,0)) ->  | BD117: 105
P118: =IF($D118="","",VLOOKUP($D118,数据库!$B$4:$AD$1003,MATCH(P$12,数据库!$C$2:$R$2,)+1,0)) ->  | AC118: =IF($D118="","",VLOOKUP($D118,数据库!$B$4:$AD$1003,MATCH(AC$12,数据库!$C$2:$R$2,)+1,0)) ->  | AP118: =IF($D118="","",VLOOKUP($D118,数据库!$B$4:$AD$1003,MATCH(AP$12,数据库!$C$2:$R$2,)+1,0)) ->  | BC118: =IF($D118="","",VLOOKUP($D118,数据库!$B$4:$AD$1003,MATCH(BC$12,数据库!$C$2:$R$2,)+1,0)) ->  | BD118: 106
P119: =IF($D119="","",VLOOKUP($D119,数据库!$B$4:$AD$1003,MATCH(P$12,数据库!$C$2:$R$2,)+1,0)) ->  | AC119: =IF($D119="","",VLOOKUP($D119,数据库!$B$4:$AD$1003,MATCH(AC$12,数据库!$C$2:$R$2,)+1,0)) ->  | AP119: =IF($D119="","",VLOOKUP($D119,数据库!$B$4:$AD$1003,MATCH(AP$12,数据库!$C$2:$R$2,)+1,0)) ->  | BC119: =IF($D119="","",VLOOKUP($D119,数据库!$B$4:$AD$1003,MATCH(BC$12,数据库!$C$2:$R$2,)+1,0)) ->  | BD119: 107
P120: =IF($D120="","",VLOOKUP($D120,数据库!$B$4:$AD$1003,MATCH(P$12,数据库!$C$2:$R$2,)+1,0)) ->  | AC120: =IF($D120="","",VLOOKUP($D120,数据库!$B$4:$AD$1003,MATCH(AC$12,数据库!$C$2:$R$2,)+1,0)) ->  | AP120: =IF($D120="","",VLOOKUP($D120,数据库!$B$4:$AD$1003,MATCH(AP$12,数据库!$C$2:$R$2,)+1,0)) ->  | BC120: =IF($D120="","",VLOOKUP($D120,数据库!$B$4:$AD$1003,MATCH(BC$12,数据库!$C$2:$R$2,)+1,0)) ->  | BD120: 108
P121: =IF($D121="","",VLOOKUP($D121,数据库!$B$4:$AD$1003,MATCH(P$12,数据库!$C$2:$R$2,)+1,0)) ->  | AC121: =IF($D121="","",VLOOKUP($D121,数据库!$B$4:$AD$1003,MATCH(AC$12,数据库!$C$2:$R$2,)+1,0)) ->  | AP121: =IF($D121="","",VLOOKUP($D121,数据库!$B$4:$AD$1003,MATCH(AP$12,数据库!$C$2:$R$2,)+1,0)) ->  | BC121: =IF($D121="","",VLOOKUP($D121,数据库!$B$4:$AD$1003,MATCH(BC$12,数据库!$C$2:$R$2,)+1,0)) ->  | BD121: 109
P122: =IF($D122="","",VLOOKUP($D122,数据库!$B$4:$AD$1003,MATCH(P$12,数据库!$C$2:$R$2,)+1,0)) ->  | AC122: =IF($D122="","",VLOOKUP($D122,数据库!$B$4:$AD$1003,MATCH(AC$12,数据库!$C$2:$R$2,)+1,0)) ->  | AP122: =IF($D122="","",VLOOKUP($D122,数据库!$B$4:$AD$1003,MATCH(AP$12,数据库!$C$2:$R$2,)+1,0)) ->  | BC122: =IF($D122="","",VLOOKUP($D122,数据库!$B$4:$AD$1003,MATCH(BC$12,数据库!$C$2:$R$2,)+1,0)) ->  | BD122: 110
P123: =IF($D123="","",VLOOKUP($D123,数据库!$B$4:$AD$1003,MATCH(P$12,数据库!$C$2:$R$2,)+1,0)) ->  | AC123: =IF($D123="","",VLOOKUP($D123,数据库!$B$4:$AD$1003,MATCH(AC$12,数据库!$C$2:$R$2,)+1,0)) ->  | AP123: =IF($D123="","",VLOOKUP($D123,数据库!$B$4:$AD$1003,MATCH(AP$12,数据库!$C$2:$R$2,)+1,0)) ->  | BC123: =IF($D123="","",VLOOKUP($D123,数据库!$B$4:$AD$1003,MATCH(BC$12,数据库!$C$2:$R$2,)+1,0)) ->  | BD123: 111
P124: =IF($D124="","",VLOOKUP($D124,数据库!$B$4:$AD$1003,MATCH(P$12,数据库!$C$2:$R$2,)+1,0)) ->  | AC124: =IF($D124="","",VLOOKUP($D124,数据库!$B$4:$AD$1003,MATCH(AC$12,数据库!$C$2:$R$2,)+1,0)) ->  | AP124: =IF($D124="","",VLOOKUP($D124,数据库!$B$4:$AD$1003,MATCH(AP$12,数据库!$C$2:$R$2,)+1,0)) ->  | BC124: =IF($D124="","",VLOOKUP($D124,数据库!$B$4:$AD$1003,MATCH(BC$12,数据库!$C$2:$R$2,)+1,0)) ->  | BD124: 112
P125: =IF($D125="","",VLOOKUP($D125,数据库!$B$4:$AD$1003,MATCH(P$12,数据库!$C$2:$R$2,)+1,0)) ->  | AC125: =IF($D125="","",VLOOKUP($D125,数据库!$B$4:$AD$1003,MATCH(AC$12,数据库!$C$2:$R$2,)+1,0)) ->  | AP125: =IF($D125="","",VLOOKUP($D125,数据库!$B$4:$AD$1003,MATCH(AP$12,数据库!$C$2:$R$2,)+1,0)) ->  | BC125: =IF($D125="","",VLOOKUP($D125,数据库!$B$4:$AD$1003,MATCH(BC$12,数据库!$C$2:$R$2,)+1,0)) ->  | BD125: 113
P126: =IF($D126="","",VLOOKUP($D126,数据库!$B$4:$AD$1003,MATCH(P$12,数据库!$C$2:$R$2,)+1,0)) ->  | AC126: =IF($D126="","",VLOOKUP($D126,数据库!$B$4:$AD$1003,MATCH(AC$12,数据库!$C$2:$R$2,)+1,0)) ->  | AP126: =IF($D126="","",VLOOKUP($D126,数据库!$B$4:$AD$1003,MATCH(AP$12,数据库!$C$2:$R$2,)+1,0)) ->  | BC126: =IF($D126="","",VLOOKUP($D126,数据库!$B$4:$AD$1003,MATCH(BC$12,数据库!$C$2:$R$2,)+1,0)) ->  | BD126: 114
P127: =IF($D127="","",VLOOKUP($D127,数据库!$B$4:$AD$1003,MATCH(P$12,数据库!$C$2:$R$2,)+1,0)) ->  | AC127: =IF($D127="","",VLOOKUP($D127,数据库!$B$4:$AD$1003,MATCH(AC$12,数据库!$C$2:$R$2,)+1,0)) ->  | AP127: =IF($D127="","",VLOOKUP($D127,数据库!$B$4:$AD$1003,MATCH(AP$12,数据库!$C$2:$R$2,)+1,0)) ->  | BC127: =IF($D127="","",VLOOKUP($D127,数据库!$B$4:$AD$1003,MATCH(BC$12,数据库!$C$2:$R$2,)+1,0)) ->  | BD127: 115
H128: =IF($E128="","",MID($E128,H$12+1,1)) ->  | P128: =IF($D128="","",VLOOKUP($D128,数据库!$B$4:$AD$1003,MATCH(P$12,数据库!$C$2:$R$2,)+1,0)) ->  | U128: =IF($R128="","",MID($R128,U$12+1,1)) ->  | AC128: =IF($D128="","",VLOOKUP($D128,数据库!$B$4:$AD$1003,MATCH(AC$12,数据库!$C$2:$R$2,)+1,0)) ->  | AH128: =IF($AE128="","",MID($AE128,AH$12+1,1)) ->  | AP128: =IF($D128="","",VLOOKUP($D128,数据库!$B$4:$AD$1003,MATCH(AP$12,数据库!$C$2:$R$2,)+1,0)) ->  | AU128: =IF($AR128="","",MID($AR128,AU$12+1,1)) ->  | BC128: =IF($D128="","",VLOOKUP($D128,数据库!$B$4:$AD$1003,MATCH(BC$12,数据库!$C$2:$R$2,)+1,0)) ->  | BD128: 116
P129: =IF($D129="","",VLOOKUP($D129,数据库!$B$4:$AD$1003,MATCH(P$12,数据库!$C$2:$R$2,)+1,0)) ->  | AC129: =IF($D129="","",VLOOKUP($D129,数据库!$B$4:$AD$1003,MATCH(AC$12,数据库!$C$2:$R$2,)+1,0)) ->  | AP129: =IF($D129="","",VLOOKUP($D129,数据库!$B$4:$AD$1003,MATCH(AP$12,数据库!$C$2:$R$2,)+1,0)) ->  | BC129: =IF($D129="","",VLOOKUP($D129,数据库!$B$4:$AD$1003,MATCH(BC$12,数据库!$C$2:$R$2,)+1,0)) ->  | BD129: 117
P130: =IF($D130="","",VLOOKUP($D130,数据库!$B$4:$AD$1003,MATCH(P$12,数据库!$C$2:$R$2,)+1,0)) ->  | AC130: =IF($D130="","",VLOOKUP($D130,数据库!$B$4:$AD$1003,MATCH(AC$12,数据库!$C$2:$R$2,)+1,0)) ->  | AP130: =IF($D130="","",VLOOKUP($D130,数据库!$B$4:$AD$1003,MATCH(AP$12,数据库!$C$2:$R$2,)+1,0)) ->  | BC130: =IF($D130="","",VLOOKUP($D130,数据库!$B$4:$AD$1003,MATCH(BC$12,数据库!$C$2:$R$2,)+1,0)) ->  | BD130: 118
P131: =IF($D131="","",VLOOKUP($D131,数据库!$B$4:$AD$1003,MATCH(P$12,数据库!$C$2:$R$2,)+1,0)) ->  | AC131: =IF($D131="","",VLOOKUP($D131,数据库!$B$4:$AD$1003,MATCH(AC$12,数据库!$C$2:$R$2,)+1,0)) ->  | AP131: =IF($D131="","",VLOOKUP($D131,数据库!$B$4:$AD$1003,MATCH(AP$12,数据库!$C$2:$R$2,)+1,0)) ->  | BC131: =IF($D131="","",VLOOKUP($D131,数据库!$B$4:$AD$1003,MATCH(BC$12,数据库!$C$2:$R$2,)+1,0)) ->  | BD131: 119
P132: =IF($D132="","",VLOOKUP($D132,数据库!$B$4:$AD$1003,MATCH(P$12,数据库!$C$2:$R$2,)+1,0)) ->  | AC132: =IF($D132="","",VLOOKUP($D132,数据库!$B$4:$AD$1003,MATCH(AC$12,数据库!$C$2:$R$2,)+1,0)) ->  | AP132: =IF($D132="","",VLOOKUP($D132,数据库!$B$4:$AD$1003,MATCH(AP$12,数据库!$C$2:$R$2,)+1,0)) ->  | BC132: =IF($D132="","",VLOOKUP($D132,数据库!$B$4:$AD$1003,MATCH(BC$12,数据库!$C$2:$R$2,)+1,0)) ->  | BD132: 120
P133: =IF($D133="","",VLOOKUP($D133,数据库!$B$4:$AD$1003,MATCH(P$12,数据库!$C$2:$R$2,)+1,0)) ->  | AC133: =IF($D133="","",VLOOKUP($D133,数据库!$B$4:$AD$1003,MATCH(AC$12,数据库!$C$2:$R$2,)+1,0)) ->  | AP133: =IF($D133="","",VLOOKUP($D133,数据库!$B$4:$AD$1003,MATCH(AP$12,数据库!$C$2:$R$2,)+1,0)) ->  | BC133: =IF($D133="","",VLOOKUP($D133,数据库!$B$4:$AD$1003,MATCH(BC$12,数据库!$C$2:$R$2,)+1,0)) ->  | BD133: 121
P134: =IF($D134="","",VLOOKUP($D134,数据库!$B$4:$AD$1003,MATCH(P$12,数据库!$C$2:$R$2,)+1,0)) ->  | AC134: =IF($D134="","",VLOOKUP($D134,数据库!$B$4:$AD$1003,MATCH(AC$12,数据库!$C$2:$R$2,)+1,0)) ->  | AP134: =IF($D134="","",VLOOKUP($D134,数据库!$B$4:$AD$1003,MATCH(AP$12,数据库!$C$2:$R$2,)+1,0)) ->  | BC134: =IF($D134="","",VLOOKUP($D134,数据库!$B$4:$AD$1003,MATCH(BC$12,数据库!$C$2:$R$2,)+1,0)) ->  | BD134: 122
P135: =IF($D135="","",VLOOKUP($D135,数据库!$B$4:$AD$1003,MATCH(P$12,数据库!$C$2:$R$2,)+1,0)) ->  | AC135: =IF($D135="","",VLOOKUP($D135,数据库!$B$4:$AD$1003,MATCH(AC$12,数据库!$C$2:$R$2,)+1,0)) ->  | AP135: =IF($D135="","",VLOOKUP($D135,数据库!$B$4:$AD$1003,MATCH(AP$12,数据库!$C$2:$R$2,)+1,0)) ->  | BC135: =IF($D135="","",VLOOKUP($D135,数据库!$B$4:$AD$1003,MATCH(BC$12,数据库!$C$2:$R$2,)+1,0)) ->  | BD135: 123
F136: =IF($E136="","",MID($E136,F$12+1,1)) ->  | P136: =IF($D136="","",VLOOKUP($D136,数据库!$B$4:$AD$1003,MATCH(P$12,数据库!$C$2:$R$2,)+1,0)) ->  | S136: =IF($R136="","",MID($R136,S$12+1,1)) ->  | AC136: =IF($D136="","",VLOOKUP($D136,数据库!$B$4:$AD$1003,MATCH(AC$12,数据库!$C$2:$R$2,)+1,0)) ->  | AF136: =IF($AE136="","",MID($AE136,AF$12+1,1)) ->  | AP136: =IF($D136="","",VLOOKUP($D136,数据库!$B$4:$AD$1003,MATCH(AP$12,数据库!$C$2:$R$2,)+1,0)) ->  | AS136: =IF($AR136="","",MID($AR136,AS$12+1,1)) ->  | BC136: =IF($D136="","",VLOOKUP($D136,数据库!$B$4:$AD$1003,MATCH(BC$12,数据库!$C$2:$R$2,)+1,0)) ->  | BD136: 124
P137: =IF($D137="","",VLOOKUP($D137,数据库!$B$4:$AD$1003,MATCH(P$12,数据库!$C$2:$R$2,)+1,0)) ->  | AC137: =IF($D137="","",VLOOKUP($D137,数据库!$B$4:$AD$1003,MATCH(AC$12,数据库!$C$2:$R$2,)+1,0)) ->  | AP137: =IF($D137="","",VLOOKUP($D137,数据库!$B$4:$AD$1003,MATCH(AP$12,数据库!$C$2:$R$2,)+1,0)) ->  | BC137: =IF($D137="","",VLOOKUP($D137,数据库!$B$4:$AD$1003,MATCH(BC$12,数据库!$C$2:$R$2,)+1,0)) ->  | BD137: 125
P138: =IF($D138="","",VLOOKUP($D138,数据库!$B$4:$AD$1003,MATCH(P$12,数据库!$C$2:$R$2,)+1,0)) ->  | AC138: =IF($D138="","",VLOOKUP($D138,数据库!$B$4:$AD$1003,MATCH(AC$12,数据库!$C$2:$R$2,)+1,0)) ->  | AP138: =IF($D138="","",VLOOKUP($D138,数据库!$B$4:$AD$1003,MATCH(AP$12,数据库!$C$2:$R$2,)+1,0)) ->  | BC138: =IF($D138="","",VLOOKUP($D138,数据库!$B$4:$AD$1003,MATCH(BC$12,数据库!$C$2:$R$2,)+1,0)) ->  | BD138: 126
P139: =IF($D139="","",VLOOKUP($D139,数据库!$B$4:$AD$1003,MATCH(P$12,数据库!$C$2:$R$2,)+1,0)) ->  | AC139: =IF($D139="","",VLOOKUP($D139,数据库!$B$4:$AD$1003,MATCH(AC$12,数据库!$C$2:$R$2,)+1,0)) ->  | AP139: =IF($D139="","",VLOOKUP($D139,数据库!$B$4:$AD$1003,MATCH(AP$12,数据库!$C$2:$R$2,)+1,0)) ->  | BC139: =IF($D139="","",VLOOKUP($D139,数据库!$B$4:$AD$1003,MATCH(BC$12,数据库!$C$2:$R$2,)+1,0)) ->  | BD139: 127
P140: =IF($D140="","",VLOOKUP($D140,数据库!$B$4:$AD$1003,MATCH(P$12,数据库!$C$2:$R$2,)+1,0)) ->  | AC140: =IF($D140="","",VLOOKUP($D140,数据库!$B$4:$AD$1003,MATCH(AC$12,数据库!$C$2:$R$2,)+1,0)) ->  | AP140: =IF($D140="","",VLOOKUP($D140,数据库!$B$4:$AD$1003,MATCH(AP$12,数据库!$C$2:$R$2,)+1,0)) ->  | BC140: =IF($D140="","",VLOOKUP($D140,数据库!$B$4:$AD$1003,MATCH(BC$12,数据库!$C$2:$R$2,)+1,0)) ->  | BD140: 128
P141: =IF($D141="","",VLOOKUP($D141,数据库!$B$4:$AD$1003,MATCH(P$12,数据库!$C$2:$R$2,)+1,0)) ->  | AC141: =IF($D141="","",VLOOKUP($D141,数据库!$B$4:$AD$1003,MATCH(AC$12,数据库!$C$2:$R$2,)+1,0)) ->  | AP141: =IF($D141="","",VLOOKUP($D141,数据库!$B$4:$AD$1003,MATCH(AP$12,数据库!$C$2:$R$2,)+1,0)) ->  | BC141: =IF($D141="","",VLOOKUP($D141,数据库!$B$4:$AD$1003,MATCH(BC$12,数据库!$C$2:$R$2,)+1,0)) ->  | BD141: 129
P142: =IF($D142="","",VLOOKUP($D142,数据库!$B$4:$AD$1003,MATCH(P$12,数据库!$C$2:$R$2,)+1,0)) ->  | AC142: =IF($D142="","",VLOOKUP($D142,数据库!$B$4:$AD$1003,MATCH(AC$12,数据库!$C$2:$R$2,)+1,0)) ->  | AP142: =IF($D142="","",VLOOKUP($D142,数据库!$B$4:$AD$1003,MATCH(AP$12,数据库!$C$2:$R$2,)+1,0)) ->  | BC142: =IF($D142="","",VLOOKUP($D142,数据库!$B$4:$AD$1003,MATCH(BC$12,数据库!$C$2:$R$2,)+1,0)) ->  | BD142: 130 | BE142: =IF(E142="","",E142) ->  | BF142: =IF(R142="","",R142) ->  | BG142: =IF(AE142="","",AE142) ->  | BH142: =IF(AR142="","",AR142) -> 
P143: =IF($D143="","",VLOOKUP($D143,数据库!$B$4:$AD$1003,MATCH(P$12,数据库!$C$2:$R$2,)+1,0)) ->  | AC143: =IF($D143="","",VLOOKUP($D143,数据库!$B$4:$AD$1003,MATCH(AC$12,数据库!$C$2:$R$2,)+1,0)) ->  | AP143: =IF($D143="","",VLOOKUP($D143,数据库!$B$4:$AD$1003,MATCH(AP$12,数据库!$C$2:$R$2,)+1,0)) ->  | BC143: =IF($D143="","",VLOOKUP($D143,数据库!$B$4:$AD$1003,MATCH(BC$12,数据库!$C$2:$R$2,)+1,0)) ->  | BD143: 131
P144: =IF($D144="","",VLOOKUP($D144,数据库!$B$4:$AD$1003,MATCH(P$12,数据库!$C$2:$R$2,)+1,0)) ->  | AC144: =IF($D144="","",VLOOKUP($D144,数据库!$B$4:$AD$1003,MATCH(AC$12,数据库!$C$2:$R$2,)+1,0)) ->  | AP144: =IF($D144="","",VLOOKUP($D144,数据库!$B$4:$AD$1003,MATCH(AP$12,数据库!$C$2:$R$2,)+1,0)) ->  | BC144: =IF($D144="","",VLOOKUP($D144,数据库!$B$4:$AD$1003,MATCH(BC$12,数据库!$C$2:$R$2,)+1,0)) ->  | BD144: 132
P145: =IF($D145="","",VLOOKUP($D145,数据库!$B$4:$AD$1003,MATCH(P$12,数据库!$C$2:$R$2,)+1,0)) ->  | AC145: =IF($D145="","",VLOOKUP($D145,数据库!$B$4:$AD$1003,MATCH(AC$12,数据库!$C$2:$R$2,)+1,0)) ->  | AP145: =IF($D145="","",VLOOKUP($D145,数据库!$B$4:$AD$1003,MATCH(AP$12,数据库!$C$2:$R$2,)+1,0)) ->  | BC145: =IF($D145="","",VLOOKUP($D145,数据库!$B$4:$AD$1003,MATCH(BC$12,数据库!$C$2:$R$2,)+1,0)) ->  | BD145: 133
P146: =IF($D146="","",VLOOKUP($D146,数据库!$B$4:$AD$1003,MATCH(P$12,数据库!$C$2:$R$2,)+1,0)) ->  | AC146: =IF($D146="","",VLOOKUP($D146,数据库!$B$4:$AD$1003,MATCH(AC$12,数据库!$C$2:$R$2,)+1,0)) ->  | AP146: =IF($D146="","",VLOOKUP($D146,数据库!$B$4:$AD$1003,MATCH(AP$12,数据库!$C$2:$R$2,)+1,0)) ->  | BC146: =IF($D146="","",VLOOKUP($D146,数据库!$B$4:$AD$1003,MATCH(BC$12,数据库!$C$2:$R$2,)+1,0)) ->  | BD146: 134
P147: =IF($D147="","",VLOOKUP($D147,数据库!$B$4:$AD$1003,MATCH(P$12,数据库!$C$2:$R$2,)+1,0)) ->  | AC147: =IF($D147="","",VLOOKUP($D147,数据库!$B$4:$AD$1003,MATCH(AC$12,数据库!$C$2:$R$2,)+1,0)) ->  | AP147: =IF($D147="","",VLOOKUP($D147,数据库!$B$4:$AD$1003,MATCH(AP$12,数据库!$C$2:$R$2,)+1,0)) ->  | BC147: =IF($D147="","",VLOOKUP($D147,数据库!$B$4:$AD$1003,MATCH(BC$12,数据库!$C$2:$R$2,)+1,0)) ->  | BD147: 135
P148: =IF($D148="","",VLOOKUP($D148,数据库!$B$4:$AD$1003,MATCH(P$12,数据库!$C$2:$R$2,)+1,0)) ->  | AC148: =IF($D148="","",VLOOKUP($D148,数据库!$B$4:$AD$1003,MATCH(AC$12,数据库!$C$2:$R$2,)+1,0)) ->  | AP148: =IF($D148="","",VLOOKUP($D148,数据库!$B$4:$AD$1003,MATCH(AP$12,数据库!$C$2:$R$2,)+1,0)) ->  | BC148: =IF($D148="","",VLOOKUP($D148,数据库!$B$4:$AD$1003,MATCH(BC$12,数据库!$C$2:$R$2,)+1,0)) ->  | BD148: 136
P149: =IF($D149="","",VLOOKUP($D149,数据库!$B$4:$AD$1003,MATCH(P$12,数据库!$C$2:$R$2,)+1,0)) ->  | AC149: =IF($D149="","",VLOOKUP($D149,数据库!$B$4:$AD$1003,MATCH(AC$12,数据库!$C$2:$R$2,)+1,0)) ->  | AP149: =IF($D149="","",VLOOKUP($D149,数据库!$B$4:$AD$1003,MATCH(AP$12,数据库!$C$2:$R$2,)+1,0)) ->  | BC149: =IF($D149="","",VLOOKUP($D149,数据库!$B$4:$AD$1003,MATCH(BC$12,数据库!$C$2:$R$2,)+1,0)) ->  | BD149: 137
P150: =IF($D150="","",VLOOKUP($D150,数据库!$B$4:$AD$1003,MATCH(P$12,数据库!$C$2:$R$2,)+1,0)) ->  | AC150: =IF($D150="","",VLOOKUP($D150,数据库!$B$4:$AD$1003,MATCH(AC$12,数据库!$C$2:$R$2,)+1,0)) ->  | AP150: =IF($D150="","",VLOOKUP($D150,数据库!$B$4:$AD$1003,MATCH(AP$12,数据库!$C$2:$R$2,)+1,0)) ->  | BC150: =IF($D150="","",VLOOKUP($D150,数据库!$B$4:$AD$1003,MATCH(BC$12,数据库!$C$2:$R$2,)+1,0)) ->  | BD150: 138
P151: =IF($D151="","",VLOOKUP($D151,数据库!$B$4:$AD$1003,MATCH(P$12,数据库!$C$2:$R$2,)+1,0)) ->  | AC151: =IF($D151="","",VLOOKUP($D151,数据库!$B$4:$AD$1003,MATCH(AC$12,数据库!$C$2:$R$2,)+1,0)) ->  | AP151: =IF($D151="","",VLOOKUP($D151,数据库!$B$4:$AD$1003,MATCH(AP$12,数据库!$C$2:$R$2,)+1,0)) ->  | BC151: =IF($D151="","",VLOOKUP($D151,数据库!$B$4:$AD$1003,MATCH(BC$12,数据库!$C$2:$R$2,)+1,0)) ->  | BD151: 139
P152: =IF($D152="","",VLOOKUP($D152,数据库!$B$4:$AD$1003,MATCH(P$12,数据库!$C$2:$R$2,)+1,0)) ->  | AC152: =IF($D152="","",VLOOKUP($D152,数据库!$B$4:$AD$1003,MATCH(AC$12,数据库!$C$2:$R$2,)+1,0)) ->  | AP152: =IF($D152="","",VLOOKUP($D152,数据库!$B$4:$AD$1003,MATCH(AP$12,数据库!$C$2:$R$2,)+1,0)) ->  | BC152: =IF($D152="","",VLOOKUP($D152,数据库!$B$4:$AD$1003,MATCH(BC$12,数据库!$C$2:$R$2,)+1,0)) ->  | BD152: 140
P153: =IF($D153="","",VLOOKUP($D153,数据库!$B$4:$AD$1003,MATCH(P$12,数据库!$C$2:$R$2,)+1,0)) ->  | AC153: =IF($D153="","",VLOOKUP($D153,数据库!$B$4:$AD$1003,MATCH(AC$12,数据库!$C$2:$R$2,)+1,0)) ->  | AP153: =IF($D153="","",VLOOKUP($D153,数据库!$B$4:$AD$1003,MATCH(AP$12,数据库!$C$2:$R$2,)+1,0)) ->  | BC153: =IF($D153="","",VLOOKUP($D153,数据库!$B$4:$AD$1003,MATCH(BC$12,数据库!$C$2:$R$2,)+1,0)) ->  | BD153: 141
P154: =IF($D154="","",VLOOKUP($D154,数据库!$B$4:$AD$1003,MATCH(P$12,数据库!$C$2:$R$2,)+1,0)) ->  | AC154: =IF($D154="","",VLOOKUP($D154,数据库!$B$4:$AD$1003,MATCH(AC$12,数据库!$C$2:$R$2,)+1,0)) ->  | AP154: =IF($D154="","",VLOOKUP($D154,数据库!$B$4:$AD$1003,MATCH(AP$12,数据库!$C$2:$R$2,)+1,0)) ->  | BC154: =IF($D154="","",VLOOKUP($D154,数据库!$B$4:$AD$1003,MATCH(BC$12,数据库!$C$2:$R$2,)+1,0)) ->  | BD154: 142
P155: =IF($D155="","",VLOOKUP($D155,数据库!$B$4:$AD$1003,MATCH(P$12,数据库!$C$2:$R$2,)+1,0)) ->  | AC155: =IF($D155="","",VLOOKUP($D155,数据库!$B$4:$AD$1003,MATCH(AC$12,数据库!$C$2:$R$2,)+1,0)) ->  | AP155: =IF($D155="","",VLOOKUP($D155,数据库!$B$4:$AD$1003,MATCH(AP$12,数据库!$C$2:$R$2,)+1,0)) ->  | BC155: =IF($D155="","",VLOOKUP($D155,数据库!$B$4:$AD$1003,MATCH(BC$12,数据库!$C$2:$R$2,)+1,0)) ->  | BD155: 143
K156: =IF($E156="","",MID($E156,K$12+1,1)) ->  | P156: =IF($D156="","",VLOOKUP($D156,数据库!$B$4:$AD$1003,MATCH(P$12,数据库!$C$2:$R$2,)+1,0)) ->  | X156: =IF($R156="","",MID($R156,X$12+1,1)) ->  | AC156: =IF($D156="","",VLOOKUP($D156,数据库!$B$4:$AD$1003,MATCH(AC$12,数据库!$C$2:$R$2,)+1,0)) ->  | AK156: =IF($AE156="","",MID($AE156,AK$12+1,1)) ->  | AP156: =IF($D156="","",VLOOKUP($D156,数据库!$B$4:$AD$1003,MATCH(AP$12,数据库!$C$2:$R$2,)+1,0)) ->  | AX156: =IF($AR156="","",MID($AR156,AX$12+1,1)) ->  | BC156: =IF($D156="","",VLOOKUP($D156,数据库!$B$4:$AD$1003,MATCH(BC$12,数据库!$C$2:$R$2,)+1,0)) ->  | BD156: 144
P157: =IF($D157="","",VLOOKUP($D157,数据库!$B$4:$AD$1003,MATCH(P$12,数据库!$C$2:$R$2,)+1,0)) ->  | AC157: =IF($D157="","",VLOOKUP($D157,数据库!$B$4:$AD$1003,MATCH(AC$12,数据库!$C$2:$R$2,)+1,0)) ->  | AP157: =IF($D157="","",VLOOKUP($D157,数据库!$B$4:$AD$1003,MATCH(AP$12,数据库!$C$2:$R$2,)+1,0)) ->  | BC157: =IF($D157="","",VLOOKUP($D157,数据库!$B$4:$AD$1003,MATCH(BC$12,数据库!$C$2:$R$2,)+1,0)) ->  | BD157: 145
P158: =IF($D158="","",VLOOKUP($D158,数据库!$B$4:$AD$1003,MATCH(P$12,数据库!$C$2:$R$2,)+1,0)) ->  | AC158: =IF($D158="","",VLOOKUP($D158,数据库!$B$4:$AD$1003,MATCH(AC$12,数据库!$C$2:$R$2,)+1,0)) ->  | AP158: =IF($D158="","",VLOOKUP($D158,数据库!$B$4:$AD$1003,MATCH(AP$12,数据库!$C$2:$R$2,)+1,0)) ->  | BC158: =IF($D158="","",VLOOKUP($D158,数据库!$B$4:$AD$1003,MATCH(BC$12,数据库!$C$2:$R$2,)+1,0)) ->  | BD158: 146
P159: =IF($D159="","",VLOOKUP($D159,数据库!$B$4:$AD$1003,MATCH(P$12,数据库!$C$2:$R$2,)+1,0)) ->  | AC159: =IF($D159="","",VLOOKUP($D159,数据库!$B$4:$AD$1003,MATCH(AC$12,数据库!$C$2:$R$2,)+1,0)) ->  | AP159: =IF($D159="","",VLOOKUP($D159,数据库!$B$4:$AD$1003,MATCH(AP$12,数据库!$C$2:$R$2,)+1,0)) ->  | BC159: =IF($D159="","",VLOOKUP($D159,数据库!$B$4:$AD$1003,MATCH(BC$12,数据库!$C$2:$R$2,)+1,0)) ->  | BD159: 147
P160: =IF($D160="","",VLOOKUP($D160,数据库!$B$4:$AD$1003,MATCH(P$12,数据库!$C$2:$R$2,)+1,0)) ->  | AC160: =IF($D160="","",VLOOKUP($D160,数据库!$B$4:$AD$1003,MATCH(AC$12,数据库!$C$2:$R$2,)+1,0)) ->  | AP160: =IF($D160="","",VLOOKUP($D160,数据库!$B$4:$AD$1003,MATCH(AP$12,数据库!$C$2:$R$2,)+1,0)) ->  | BC160: =IF($D160="","",VLOOKUP($D160,数据库!$B$4:$AD$1003,MATCH(BC$12,数据库!$C$2:$R$2,)+1,0)) ->  | BD160: 148
P161: =IF($D161="","",VLOOKUP($D161,数据库!$B$4:$AD$1003,MATCH(P$12,数据库!$C$2:$R$2,)+1,0)) ->  | AC161: =IF($D161="","",VLOOKUP($D161,数据库!$B$4:$AD$1003,MATCH(AC$12,数据库!$C$2:$R$2,)+1,0)) ->  | AP161: =IF($D161="","",VLOOKUP($D161,数据库!$B$4:$AD$1003,MATCH(AP$12,数据库!$C$2:$R$2,)+1,0)) ->  | BC161: =IF($D161="","",VLOOKUP($D161,数据库!$B$4:$AD$1003,MATCH(BC$12,数据库!$C$2:$R$2,)+1,0)) ->  | BD161: 149
P162: =IF($D162="","",VLOOKUP($D162,数据库!$B$4:$AD$1003,MATCH(P$12,数据库!$C$2:$R$2,)+1,0)) ->  | AC162: =IF($D162="","",VLOOKUP($D162,数据库!$B$4:$AD$1003,MATCH(AC$12,数据库!$C$2:$R$2,)+1,0)) ->  | AP162: =IF($D162="","",VLOOKUP($D162,数据库!$B$4:$AD$1003,MATCH(AP$12,数据库!$C$2:$R$2,)+1,0)) ->  | BC162: =IF($D162="","",VLOOKUP($D162,数据库!$B$4:$AD$1003,MATCH(BC$12,数据库!$C$2:$R$2,)+1,0)) ->  | BD162: 150
P163: =IF($D163="","",VLOOKUP($D163,数据库!$B$4:$AD$1003,MATCH(P$12,数据库!$C$2:$R$2,)+1,0)) ->  | AC163: =IF($D163="","",VLOOKUP($D163,数据库!$B$4:$AD$1003,MATCH(AC$12,数据库!$C$2:$R$2,)+1,0)) ->  | AP163: =IF($D163="","",VLOOKUP($D163,数据库!$B$4:$AD$1003,MATCH(AP$12,数据库!$C$2:$R$2,)+1,0)) ->  | BC163: =IF($D163="","",VLOOKUP($D163,数据库!$B$4:$AD$1003,MATCH(BC$12,数据库!$C$2:$R$2,)+1,0)) ->  | BD163: 151
P164: =IF($D164="","",VLOOKUP($D164,数据库!$B$4:$AD$1003,MATCH(P$12,数据库!$C$2:$R$2,)+1,0)) ->  | AC164: =IF($D164="","",VLOOKUP($D164,数据库!$B$4:$AD$1003,MATCH(AC$12,数据库!$C$2:$R$2,)+1,0)) ->  | AP164: =IF($D164="","",VLOOKUP($D164,数据库!$B$4:$AD$1003,MATCH(AP$12,数据库!$C$2:$R$2,)+1,0)) ->  | BC164: =IF($D164="","",VLOOKUP($D164,数据库!$B$4:$AD$1003,MATCH(BC$12,数据库!$C$2:$R$2,)+1,0)) ->  | BD164: 152
P165: =IF($D165="","",VLOOKUP($D165,数据库!$B$4:$AD$1003,MATCH(P$12,数据库!$C$2:$R$2,)+1,0)) ->  | AC165: =IF($D165="","",VLOOKUP($D165,数据库!$B$4:$AD$1003,MATCH(AC$12,数据库!$C$2:$R$2,)+1,0)) ->  | AP165: =IF($D165="","",VLOOKUP($D165,数据库!$B$4:$AD$1003,MATCH(AP$12,数据库!$C$2:$R$2,)+1,0)) ->  | BC165: =IF($D165="","",VLOOKUP($D165,数据库!$B$4:$AD$1003,MATCH(BC$12,数据库!$C$2:$R$2,)+1,0)) ->  | BD165: 153
P166: =IF($D166="","",VLOOKUP($D166,数据库!$B$4:$AD$1003,MATCH(P$12,数据库!$C$2:$R$2,)+1,0)) ->  | AC166: =IF($D166="","",VLOOKUP($D166,数据库!$B$4:$AD$1003,MATCH(AC$12,数据库!$C$2:$R$2,)+1,0)) ->  | AP166: =IF($D166="","",VLOOKUP($D166,数据库!$B$4:$AD$1003,MATCH(AP$12,数据库!$C$2:$R$2,)+1,0)) ->  | BC166: =IF($D166="","",VLOOKUP($D166,数据库!$B$4:$AD$1003,MATCH(BC$12,数据库!$C$2:$R$2,)+1,0)) ->  | BD166: 154
P167: =IF($D167="","",VLOOKUP($D167,数据库!$B$4:$AD$1003,MATCH(P$12,数据库!$C$2:$R$2,)+1,0)) ->  | AC167: =IF($D167="","",VLOOKUP($D167,数据库!$B$4:$AD$1003,MATCH(AC$12,数据库!$C$2:$R$2,)+1,0)) ->  | AP167: =IF($D167="","",VLOOKUP($D167,数据库!$B$4:$AD$1003,MATCH(AP$12,数据库!$C$2:$R$2,)+1,0)) ->  | BC167: =IF($D167="","",VLOOKUP($D167,数据库!$B$4:$AD$1003,MATCH(BC$12,数据库!$C$2:$R$2,)+1,0)) ->  | BD167: 155
P168: =IF($D168="","",VLOOKUP($D168,数据库!$B$4:$AD$1003,MATCH(P$12,数据库!$C$2:$R$2,)+1,0)) ->  | AC168: =IF($D168="","",VLOOKUP($D168,数据库!$B$4:$AD$1003,MATCH(AC$12,数据库!$C$2:$R$2,)+1,0)) ->  | AP168: =IF($D168="","",VLOOKUP($D168,数据库!$B$4:$AD$1003,MATCH(AP$12,数据库!$C$2:$R$2,)+1,0)) ->  | BC168: =IF($D168="","",VLOOKUP($D168,数据库!$B$4:$AD$1003,MATCH(BC$12,数据库!$C$2:$R$2,)+1,0)) ->  | BD168: 156
P169: =IF($D169="","",VLOOKUP($D169,数据库!$B$4:$AD$1003,MATCH(P$12,数据库!$C$2:$R$2,)+1,0)) ->  | AC169: =IF($D169="","",VLOOKUP($D169,数据库!$B$4:$AD$1003,MATCH(AC$12,数据库!$C$2:$R$2,)+1,0)) ->  | AP169: =IF($D169="","",VLOOKUP($D169,数据库!$B$4:$AD$1003,MATCH(AP$12,数据库!$C$2:$R$2,)+1,0)) ->  | BC169: =IF($D169="","",VLOOKUP($D169,数据库!$B$4:$AD$1003,MATCH(BC$12,数据库!$C$2:$R$2,)+1,0)) ->  | BD169: 157
P170: =IF($D170="","",VLOOKUP($D170,数据库!$B$4:$AD$1003,MATCH(P$12,数据库!$C$2:$R$2,)+1,0)) ->  | AC170: =IF($D170="","",VLOOKUP($D170,数据库!$B$4:$AD$1003,MATCH(AC$12,数据库!$C$2:$R$2,)+1,0)) ->  | AP170: =IF($D170="","",VLOOKUP($D170,数据库!$B$4:$AD$1003,MATCH(AP$12,数据库!$C$2:$R$2,)+1,0)) ->  | BC170: =IF($D170="","",VLOOKUP($D170,数据库!$B$4:$AD$1003,MATCH(BC$12,数据库!$C$2:$R$2,)+1,0)) ->  | BD170: 158
P171: =IF($D171="","",VLOOKUP($D171,数据库!$B$4:$AD$1003,MATCH(P$12,数据库!$C$2:$R$2,)+1,0)) ->  | AC171: =IF($D171="","",VLOOKUP($D171,数据库!$B$4:$AD$1003,MATCH(AC$12,数据库!$C$2:$R$2,)+1,0)) ->  | AP171: =IF($D171="","",VLOOKUP($D171,数据库!$B$4:$AD$1003,MATCH(AP$12,数据库!$C$2:$R$2,)+1,0)) ->  | BC171: =IF($D171="","",VLOOKUP($D171,数据库!$B$4:$AD$1003,MATCH(BC$12,数据库!$C$2:$R$2,)+1,0)) ->  | BD171: 159
P172: =IF($D172="","",VLOOKUP($D172,数据库!$B$4:$AD$1003,MATCH(P$12,数据库!$C$2:$R$2,)+1,0)) ->  | AC172: =IF($D172="","",VLOOKUP($D172,数据库!$B$4:$AD$1003,MATCH(AC$12,数据库!$C$2:$R$2,)+1,0)) ->  | AP172: =IF($D172="","",VLOOKUP($D172,数据库!$B$4:$AD$1003,MATCH(AP$12,数据库!$C$2:$R$2,)+1,0)) ->  | BC172: =IF($D172="","",VLOOKUP($D172,数据库!$B$4:$AD$1003,MATCH(BC$12,数据库!$C$2:$R$2,)+1,0)) ->  | BD172: 160
P173: =IF($D173="","",VLOOKUP($D173,数据库!$B$4:$AD$1003,MATCH(P$12,数据库!$C$2:$R$2,)+1,0)) ->  | AC173: =IF($D173="","",VLOOKUP($D173,数据库!$B$4:$AD$1003,MATCH(AC$12,数据库!$C$2:$R$2,)+1,0)) ->  | AP173: =IF($D173="","",VLOOKUP($D173,数据库!$B$4:$AD$1003,MATCH(AP$12,数据库!$C$2:$R$2,)+1,0)) ->  | BC173: =IF($D173="","",VLOOKUP($D173,数据库!$B$4:$AD$1003,MATCH(BC$12,数据库!$C$2:$R$2,)+1,0)) ->  | BD173: 161
P174: =IF($D174="","",VLOOKUP($D174,数据库!$B$4:$AD$1003,MATCH(P$12,数据库!$C$2:$R$2,)+1,0)) ->  | AC174: =IF($D174="","",VLOOKUP($D174,数据库!$B$4:$AD$1003,MATCH(AC$12,数据库!$C$2:$R$2,)+1,0)) ->  | AP174: =IF($D174="","",VLOOKUP($D174,数据库!$B$4:$AD$1003,MATCH(AP$12,数据库!$C$2:$R$2,)+1,0)) ->  | BC174: =IF($D174="","",VLOOKUP($D174,数据库!$B$4:$AD$1003,MATCH(BC$12,数据库!$C$2:$R$2,)+1,0)) ->  | BD174: 162
P175: =IF($D175="","",VLOOKUP($D175,数据库!$B$4:$AD$1003,MATCH(P$12,数据库!$C$2:$R$2,)+1,0)) ->  | AC175: =IF($D175="","",VLOOKUP($D175,数据库!$B$4:$AD$1003,MATCH(AC$12,数据库!$C$2:$R$2,)+1,0)) ->  | AP175: =IF($D175="","",VLOOKUP($D175,数据库!$B$4:$AD$1003,MATCH(AP$12,数据库!$C$2:$R$2,)+1,0)) ->  | BC175: =IF($D175="","",VLOOKUP($D175,数据库!$B$4:$AD$1003,MATCH(BC$12,数据库!$C$2:$R$2,)+1,0)) ->  | BD175: 163
P176: =IF($D176="","",VLOOKUP($D176,数据库!$B$4:$AD$1003,MATCH(P$12,数据库!$C$2:$R$2,)+1,0)) ->  | AC176: =IF($D176="","",VLOOKUP($D176,数据库!$B$4:$AD$1003,MATCH(AC$12,数据库!$C$2:$R$2,)+1,0)) ->  | AP176: =IF($D176="","",VLOOKUP($D176,数据库!$B$4:$AD$1003,MATCH(AP$12,数据库!$C$2:$R$2,)+1,0)) ->  | BC176: =IF($D176="","",VLOOKUP($D176,数据库!$B$4:$AD$1003,MATCH(BC$12,数据库!$C$2:$R$2,)+1,0)) ->  | BD176: 164
P177: =IF($D177="","",VLOOKUP($D177,数据库!$B$4:$AD$1003,MATCH(P$12,数据库!$C$2:$R$2,)+1,0)) ->  | AC177: =IF($D177="","",VLOOKUP($D177,数据库!$B$4:$AD$1003,MATCH(AC$12,数据库!$C$2:$R$2,)+1,0)) ->  | AP177: =IF($D177="","",VLOOKUP($D177,数据库!$B$4:$AD$1003,MATCH(AP$12,数据库!$C$2:$R$2,)+1,0)) ->  | BC177: =IF($D177="","",VLOOKUP($D177,数据库!$B$4:$AD$1003,MATCH(BC$12,数据库!$C$2:$R$2,)+1,0)) ->  | BD177: 165
P178: =IF($D178="","",VLOOKUP($D178,数据库!$B$4:$AD$1003,MATCH(P$12,数据库!$C$2:$R$2,)+1,0)) ->  | AC178: =IF($D178="","",VLOOKUP($D178,数据库!$B$4:$AD$1003,MATCH(AC$12,数据库!$C$2:$R$2,)+1,0)) ->  | AP178: =IF($D178="","",VLOOKUP($D178,数据库!$B$4:$AD$1003,MATCH(AP$12,数据库!$C$2:$R$2,)+1,0)) ->  | BC178: =IF($D178="","",VLOOKUP($D178,数据库!$B$4:$AD$1003,MATCH(BC$12,数据库!$C$2:$R$2,)+1,0)) ->  | BD178: 166
P179: =IF($D179="","",VLOOKUP($D179,数据库!$B$4:$AD$1003,MATCH(P$12,数据库!$C$2:$R$2,)+1,0)) ->  | AC179: =IF($D179="","",VLOOKUP($D179,数据库!$B$4:$AD$1003,MATCH(AC$12,数据库!$C$2:$R$2,)+1,0)) ->  | AP179: =IF($D179="","",VLOOKUP($D179,数据库!$B$4:$AD$1003,MATCH(AP$12,数据库!$C$2:$R$2,)+1,0)) ->  | BC179: =IF($D179="","",VLOOKUP($D179,数据库!$B$4:$AD$1003,MATCH(BC$12,数据库!$C$2:$R$2,)+1,0)) ->  | BD179: 167
P180: =IF($D180="","",VLOOKUP($D180,数据库!$B$4:$AD$1003,MATCH(P$12,数据库!$C$2:$R$2,)+1,0)) ->  | AC180: =IF($D180="","",VLOOKUP($D180,数据库!$B$4:$AD$1003,MATCH(AC$12,数据库!$C$2:$R$2,)+1,0)) ->  | AP180: =IF($D180="","",VLOOKUP($D180,数据库!$B$4:$AD$1003,MATCH(AP$12,数据库!$C$2:$R$2,)+1,0)) ->  | BC180: =IF($D180="","",VLOOKUP($D180,数据库!$B$4:$AD$1003,MATCH(BC$12,数据库!$C$2:$R$2,)+1,0)) ->  | BD180: 168
P181: =IF($D181="","",VLOOKUP($D181,数据库!$B$4:$AD$1003,MATCH(P$12,数据库!$C$2:$R$2,)+1,0)) ->  | AC181: =IF($D181="","",VLOOKUP($D181,数据库!$B$4:$AD$1003,MATCH(AC$12,数据库!$C$2:$R$2,)+1,0)) ->  | AP181: =IF($D181="","",VLOOKUP($D181,数据库!$B$4:$AD$1003,MATCH(AP$12,数据库!$C$2:$R$2,)+1,0)) ->  | BC181: =IF($D181="","",VLOOKUP($D181,数据库!$B$4:$AD$1003,MATCH(BC$12,数据库!$C$2:$R$2,)+1,0)) ->  | BD181: 169
P182: =IF($D182="","",VLOOKUP($D182,数据库!$B$4:$AD$1003,MATCH(P$12,数据库!$C$2:$R$2,)+1,0)) ->  | AC182: =IF($D182="","",VLOOKUP($D182,数据库!$B$4:$AD$1003,MATCH(AC$12,数据库!$C$2:$R$2,)+1,0)) ->  | AP182: =IF($D182="","",VLOOKUP($D182,数据库!$B$4:$AD$1003,MATCH(AP$12,数据库!$C$2:$R$2,)+1,0)) ->  | BC182: =IF($D182="","",VLOOKUP($D182,数据库!$B$4:$AD$1003,MATCH(BC$12,数据库!$C$2:$R$2,)+1,0)) ->  | BD182: 170
P183: =IF($D183="","",VLOOKUP($D183,数据库!$B$4:$AD$1003,MATCH(P$12,数据库!$C$2:$R$2,)+1,0)) ->  | AC183: =IF($D183="","",VLOOKUP($D183,数据库!$B$4:$AD$1003,MATCH(AC$12,数据库!$C$2:$R$2,)+1,0)) ->  | AP183: =IF($D183="","",VLOOKUP($D183,数据库!$B$4:$AD$1003,MATCH(AP$12,数据库!$C$2:$R$2,)+1,0)) ->  | BC183: =IF($D183="","",VLOOKUP($D183,数据库!$B$4:$AD$1003,MATCH(BC$12,数据库!$C$2:$R$2,)+1,0)) ->  | BD183: 171
N184: =IF($E184="","",MID($E184,N$12+1,1)) ->  | P184: =IF($D184="","",VLOOKUP($D184,数据库!$B$4:$AD$1003,MATCH(P$12,数据库!$C$2:$R$2,)+1,0)) ->  | AA184: =IF($R184="","",MID($R184,AA$12+1,1)) ->  | AC184: =IF($D184="","",VLOOKUP($D184,数据库!$B$4:$AD$1003,MATCH(AC$12,数据库!$C$2:$R$2,)+1,0)) ->  | AN184: =IF($AE184="","",MID($AE184,AN$12+1,1)) ->  | AP184: =IF($D184="","",VLOOKUP($D184,数据库!$B$4:$AD$1003,MATCH(AP$12,数据库!$C$2:$R$2,)+1,0)) ->  | BA184: =IF($AR184="","",MID($AR184,BA$12+1,1)) ->  | BC184: =IF($D184="","",VLOOKUP($D184,数据库!$B$4:$AD$1003,MATCH(BC$12,数据库!$C$2:$R$2,)+1,0)) ->  | BD184: 172
P185: =IF($D185="","",VLOOKUP($D185,数据库!$B$4:$AD$1003,MATCH(P$12,数据库!$C$2:$R$2,)+1,0)) ->  | AC185: =IF($D185="","",VLOOKUP($D185,数据库!$B$4:$AD$1003,MATCH(AC$12,数据库!$C$2:$R$2,)+1,0)) ->  | AP185: =IF($D185="","",VLOOKUP($D185,数据库!$B$4:$AD$1003,MATCH(AP$12,数据库!$C$2:$R$2,)+1,0)) ->  | BC185: =IF($D185="","",VLOOKUP($D185,数据库!$B$4:$AD$1003,MATCH(BC$12,数据库!$C$2:$R$2,)+1,0)) ->  | BD185: 173
P186: =IF($D186="","",VLOOKUP($D186,数据库!$B$4:$AD$1003,MATCH(P$12,数据库!$C$2:$R$2,)+1,0)) ->  | AC186: =IF($D186="","",VLOOKUP($D186,数据库!$B$4:$AD$1003,MATCH(AC$12,数据库!$C$2:$R$2,)+1,0)) ->  | AP186: =IF($D186="","",VLOOKUP($D186,数据库!$B$4:$AD$1003,MATCH(AP$12,数据库!$C$2:$R$2,)+1,0)) ->  | BC186: =IF($D186="","",VLOOKUP($D186,数据库!$B$4:$AD$1003,MATCH(BC$12,数据库!$C$2:$R$2,)+1,0)) ->  | BD186: 174
P187: =IF($D187="","",VLOOKUP($D187,数据库!$B$4:$AD$1003,MATCH(P$12,数据库!$C$2:$R$2,)+1,0)) ->  | AC187: =IF($D187="","",VLOOKUP($D187,数据库!$B$4:$AD$1003,MATCH(AC$12,数据库!$C$2:$R$2,)+1,0)) ->  | AP187: =IF($D187="","",VLOOKUP($D187,数据库!$B$4:$AD$1003,MATCH(AP$12,数据库!$C$2:$R$2,)+1,0)) ->  | BC187: =IF($D187="","",VLOOKUP($D187,数据库!$B$4:$AD$1003,MATCH(BC$12,数据库!$C$2:$R$2,)+1,0)) ->  | BD187: 175
P188: =IF($D188="","",VLOOKUP($D188,数据库!$B$4:$AD$1003,MATCH(P$12,数据库!$C$2:$R$2,)+1,0)) ->  | AC188: =IF($D188="","",VLOOKUP($D188,数据库!$B$4:$AD$1003,MATCH(AC$12,数据库!$C$2:$R$2,)+1,0)) ->  | AP188: =IF($D188="","",VLOOKUP($D188,数据库!$B$4:$AD$1003,MATCH(AP$12,数据库!$C$2:$R$2,)+1,0)) ->  | BC188: =IF($D188="","",VLOOKUP($D188,数据库!$B$4:$AD$1003,MATCH(BC$12,数据库!$C$2:$R$2,)+1,0)) ->  | BD188: 176
P189: =IF($D189="","",VLOOKUP($D189,数据库!$B$4:$AD$1003,MATCH(P$12,数据库!$C$2:$R$2,)+1,0)) ->  | AC189: =IF($D189="","",VLOOKUP($D189,数据库!$B$4:$AD$1003,MATCH(AC$12,数据库!$C$2:$R$2,)+1,0)) ->  | AP189: =IF($D189="","",VLOOKUP($D189,数据库!$B$4:$AD$1003,MATCH(AP$12,数据库!$C$2:$R$2,)+1,0)) ->  | BC189: =IF($D189="","",VLOOKUP($D189,数据库!$B$4:$AD$1003,MATCH(BC$12,数据库!$C$2:$R$2,)+1,0)) ->  | BD189: 177
P190: =IF($D190="","",VLOOKUP($D190,数据库!$B$4:$AD$1003,MATCH(P$12,数据库!$C$2:$R$2,)+1,0)) ->  | AC190: =IF($D190="","",VLOOKUP($D190,数据库!$B$4:$AD$1003,MATCH(AC$12,数据库!$C$2:$R$2,)+1,0)) ->  | AP190: =IF($D190="","",VLOOKUP($D190,数据库!$B$4:$AD$1003,MATCH(AP$12,数据库!$C$2:$R$2,)+1,0)) ->  | BC190: =IF($D190="","",VLOOKUP($D190,数据库!$B$4:$AD$1003,MATCH(BC$12,数据库!$C$2:$R$2,)+1,0)) ->  | BD190: 178
P191: =IF($D191="","",VLOOKUP($D191,数据库!$B$4:$AD$1003,MATCH(P$12,数据库!$C$2:$R$2,)+1,0)) ->  | AC191: =IF($D191="","",VLOOKUP($D191,数据库!$B$4:$AD$1003,MATCH(AC$12,数据库!$C$2:$R$2,)+1,0)) ->  | AP191: =IF($D191="","",VLOOKUP($D191,数据库!$B$4:$AD$1003,MATCH(AP$12,数据库!$C$2:$R$2,)+1,0)) ->  | BC191: =IF($D191="","",VLOOKUP($D191,数据库!$B$4:$AD$1003,MATCH(BC$12,数据库!$C$2:$R$2,)+1,0)) ->  | BD191: 179
P192: =IF($D192="","",VLOOKUP($D192,数据库!$B$4:$AD$1003,MATCH(P$12,数据库!$C$2:$R$2,)+1,0)) ->  | AC192: =IF($D192="","",VLOOKUP($D192,数据库!$B$4:$AD$1003,MATCH(AC$12,数据库!$C$2:$R$2,)+1,0)) ->  | AP192: =IF($D192="","",VLOOKUP($D192,数据库!$B$4:$AD$1003,MATCH(AP$12,数据库!$C$2:$R$2,)+1,0)) ->  | BC192: =IF($D192="","",VLOOKUP($D192,数据库!$B$4:$AD$1003,MATCH(BC$12,数据库!$C$2:$R$2,)+1,0)) ->  | BD192: 180
P193: =IF($D193="","",VLOOKUP($D193,数据库!$B$4:$AD$1003,MATCH(P$12,数据库!$C$2:$R$2,)+1,0)) ->  | AC193: =IF($D193="","",VLOOKUP($D193,数据库!$B$4:$AD$1003,MATCH(AC$12,数据库!$C$2:$R$2,)+1,0)) ->  | AP193: =IF($D193="","",VLOOKUP($D193,数据库!$B$4:$AD$1003,MATCH(AP$12,数据库!$C$2:$R$2,)+1,0)) ->  | BC193: =IF($D193="","",VLOOKUP($D193,数据库!$B$4:$AD$1003,MATCH(BC$12,数据库!$C$2:$R$2,)+1,0)) ->  | BD193: 181
P194: =IF($D194="","",VLOOKUP($D194,数据库!$B$4:$AD$1003,MATCH(P$12,数据库!$C$2:$R$2,)+1,0)) ->  | AC194: =IF($D194="","",VLOOKUP($D194,数据库!$B$4:$AD$1003,MATCH(AC$12,数据库!$C$2:$R$2,)+1,0)) ->  | AP194: =IF($D194="","",VLOOKUP($D194,数据库!$B$4:$AD$1003,MATCH(AP$12,数据库!$C$2:$R$2,)+1,0)) ->  | BC194: =IF($D194="","",VLOOKUP($D194,数据库!$B$4:$AD$1003,MATCH(BC$12,数据库!$C$2:$R$2,)+1,0)) ->  | BD194: 182
P195: =IF($D195="","",VLOOKUP($D195,数据库!$B$4:$AD$1003,MATCH(P$12,数据库!$C$2:$R$2,)+1,0)) ->  | AC195: =IF($D195="","",VLOOKUP($D195,数据库!$B$4:$AD$1003,MATCH(AC$12,数据库!$C$2:$R$2,)+1,0)) ->  | AP195: =IF($D195="","",VLOOKUP($D195,数据库!$B$4:$AD$1003,MATCH(AP$12,数据库!$C$2:$R$2,)+1,0)) ->  | BC195: =IF($D195="","",VLOOKUP($D195,数据库!$B$4:$AD$1003,MATCH(BC$12,数据库!$C$2:$R$2,)+1,0)) ->  | BD195: 183
P196: =IF($D196="","",VLOOKUP($D196,数据库!$B$4:$AD$1003,MATCH(P$12,数据库!$C$2:$R$2,)+1,0)) ->  | AC196: =IF($D196="","",VLOOKUP($D196,数据库!$B$4:$AD$1003,MATCH(AC$12,数据库!$C$2:$R$2,)+1,0)) ->  | AP196: =IF($D196="","",VLOOKUP($D196,数据库!$B$4:$AD$1003,MATCH(AP$12,数据库!$C$2:$R$2,)+1,0)) ->  | BC196: =IF($D196="","",VLOOKUP($D196,数据库!$B$4:$AD$1003,MATCH(BC$12,数据库!$C$2:$R$2,)+1,0)) ->  | BD196: 184
P197: =IF($D197="","",VLOOKUP($D197,数据库!$B$4:$AD$1003,MATCH(P$12,数据库!$C$2:$R$2,)+1,0)) ->  | AC197: =IF($D197="","",VLOOKUP($D197,数据库!$B$4:$AD$1003,MATCH(AC$12,数据库!$C$2:$R$2,)+1,0)) ->  | AP197: =IF($D197="","",VLOOKUP($D197,数据库!$B$4:$AD$1003,MATCH(AP$12,数据库!$C$2:$R$2,)+1,0)) ->  | BC197: =IF($D197="","",VLOOKUP($D197,数据库!$B$4:$AD$1003,MATCH(BC$12,数据库!$C$2:$R$2,)+1,0)) ->  | BD197: 185
P198: =IF($D198="","",VLOOKUP($D198,数据库!$B$4:$AD$1003,MATCH(P$12,数据库!$C$2:$R$2,)+1,0)) ->  | AC198: =IF($D198="","",VLOOKUP($D198,数据库!$B$4:$AD$1003,MATCH(AC$12,数据库!$C$2:$R$2,)+1,0)) ->  | AP198: =IF($D198="","",VLOOKUP($D198,数据库!$B$4:$AD$1003,MATCH(AP$12,数据库!$C$2:$R$2,)+1,0)) ->  | BC198: =IF($D198="","",VLOOKUP($D198,数据库!$B$4:$AD$1003,MATCH(BC$12,数据库!$C$2:$R$2,)+1,0)) ->  | BD198: 186
P199: =IF($D199="","",VLOOKUP($D199,数据库!$B$4:$AD$1003,MATCH(P$12,数据库!$C$2:$R$2,)+1,0)) ->  | AC199: =IF($D199="","",VLOOKUP($D199,数据库!$B$4:$AD$1003,MATCH(AC$12,数据库!$C$2:$R$2,)+1,0)) ->  | AP199: =IF($D199="","",VLOOKUP($D199,数据库!$B$4:$AD$1003,MATCH(AP$12,数据库!$C$2:$R$2,)+1,0)) ->  | BC199: =IF($D199="","",VLOOKUP($D199,数据库!$B$4:$AD$1003,MATCH(BC$12,数据库!$C$2:$R$2,)+1,0)) ->  | BD199: 187
F200: =IF($E200="","",MID($E200,F$12+1,1)) ->  | P200: =IF($D200="","",VLOOKUP($D200,数据库!$B$4:$AD$1003,MATCH(P$12,数据库!$C$2:$R$2,)+1,0)) ->  | S200: =IF($R200="","",MID($R200,S$12+1,1)) ->  | AC200: =IF($D200="","",VLOOKUP($D200,数据库!$B$4:$AD$1003,MATCH(AC$12,数据库!$C$2:$R$2,)+1,0)) ->  | AF200: =IF($AE200="","",MID($AE200,AF$12+1,1)) ->  | AP200: =IF($D200="","",VLOOKUP($D200,数据库!$B$4:$AD$1003,MATCH(AP$12,数据库!$C$2:$R$2,)+1,0)) ->  | AS200: =IF($AR200="","",MID($AR200,AS$12+1,1)) ->  | BC200: =IF($D200="","",VLOOKUP($D200,数据库!$B$4:$AD$1003,MATCH(BC$12,数据库!$C$2:$R$2,)+1,0)) ->  | BD200: 188
P201: =IF($D201="","",VLOOKUP($D201,数据库!$B$4:$AD$1003,MATCH(P$12,数据库!$C$2:$R$2,)+1,0)) ->  | AC201: =IF($D201="","",VLOOKUP($D201,数据库!$B$4:$AD$1003,MATCH(AC$12,数据库!$C$2:$R$2,)+1,0)) ->  | AP201: =IF($D201="","",VLOOKUP($D201,数据库!$B$4:$AD$1003,MATCH(AP$12,数据库!$C$2:$R$2,)+1,0)) ->  | BC201: =IF($D201="","",VLOOKUP($D201,数据库!$B$4:$AD$1003,MATCH(BC$12,数据库!$C$2:$R$2,)+1,0)) ->  | BD201: 189
P202: =IF($D202="","",VLOOKUP($D202,数据库!$B$4:$AD$1003,MATCH(P$12,数据库!$C$2:$R$2,)+1,0)) ->  | AC202: =IF($D202="","",VLOOKUP($D202,数据库!$B$4:$AD$1003,MATCH(AC$12,数据库!$C$2:$R$2,)+1,0)) ->  | AP202: =IF($D202="","",VLOOKUP($D202,数据库!$B$4:$AD$1003,MATCH(AP$12,数据库!$C$2:$R$2,)+1,0)) ->  | BC202: =IF($D202="","",VLOOKUP($D202,数据库!$B$4:$AD$1003,MATCH(BC$12,数据库!$C$2:$R$2,)+1,0)) ->  | BD202: 190
P203: =IF($D203="","",VLOOKUP($D203,数据库!$B$4:$AD$1003,MATCH(P$12,数据库!$C$2:$R$2,)+1,0)) ->  | AC203: =IF($D203="","",VLOOKUP($D203,数据库!$B$4:$AD$1003,MATCH(AC$12,数据库!$C$2:$R$2,)+1,0)) ->  | AP203: =IF($D203="","",VLOOKUP($D203,数据库!$B$4:$AD$1003,MATCH(AP$12,数据库!$C$2:$R$2,)+1,0)) ->  | BC203: =IF($D203="","",VLOOKUP($D203,数据库!$B$4:$AD$1003,MATCH(BC$12,数据库!$C$2:$R$2,)+1,0)) ->  | BD203: 191
P204: =IF($D204="","",VLOOKUP($D204,数据库!$B$4:$AD$1003,MATCH(P$12,数据库!$C$2:$R$2,)+1,0)) ->  | AC204: =IF($D204="","",VLOOKUP($D204,数据库!$B$4:$AD$1003,MATCH(AC$12,数据库!$C$2:$R$2,)+1,0)) ->  | AP204: =IF($D204="","",VLOOKUP($D204,数据库!$B$4:$AD$1003,MATCH(AP$12,数据库!$C$2:$R$2,)+1,0)) ->  | BC204: =IF($D204="","",VLOOKUP($D204,数据库!$B$4:$AD$1003,MATCH(BC$12,数据库!$C$2:$R$2,)+1,0)) ->  | BD204: 192
P205: =IF($D205="","",VLOOKUP($D205,数据库!$B$4:$AD$1003,MATCH(P$12,数据库!$C$2:$R$2,)+1,0)) ->  | AC205: =IF($D205="","",VLOOKUP($D205,数据库!$B$4:$AD$1003,MATCH(AC$12,数据库!$C$2:$R$2,)+1,0)) ->  | AP205: =IF($D205="","",VLOOKUP($D205,数据库!$B$4:$AD$1003,MATCH(AP$12,数据库!$C$2:$R$2,)+1,0)) ->  | BC205: =IF($D205="","",VLOOKUP($D205,数据库!$B$4:$AD$1003,MATCH(BC$12,数据库!$C$2:$R$2,)+1,0)) ->  | BD205: 193
P206: =IF($D206="","",VLOOKUP($D206,数据库!$B$4:$AD$1003,MATCH(P$12,数据库!$C$2:$R$2,)+1,0)) ->  | AC206: =IF($D206="","",VLOOKUP($D206,数据库!$B$4:$AD$1003,MATCH(AC$12,数据库!$C$2:$R$2,)+1,0)) ->  | AP206: =IF($D206="","",VLOOKUP($D206,数据库!$B$4:$AD$1003,MATCH(AP$12,数据库!$C$2:$R$2,)+1,0)) ->  | BC206: =IF($D206="","",VLOOKUP($D206,数据库!$B$4:$AD$1003,MATCH(BC$12,数据库!$C$2:$R$2,)+1,0)) ->  | BD206: 194 | BE206: =IF(E206="","",E206) ->  | BF206: =IF(R206="","",R206) ->  | BG206: =IF(AE206="","",AE206) ->  | BH206: =IF(AR206="","",AR206) -> 
P207: =IF($D207="","",VLOOKUP($D207,数据库!$B$4:$AD$1003,MATCH(P$12,数据库!$C$2:$R$2,)+1,0)) ->  | AC207: =IF($D207="","",VLOOKUP($D207,数据库!$B$4:$AD$1003,MATCH(AC$12,数据库!$C$2:$R$2,)+1,0)) ->  | AP207: =IF($D207="","",VLOOKUP($D207,数据库!$B$4:$AD$1003,MATCH(AP$12,数据库!$C$2:$R$2,)+1,0)) ->  | BC207: =IF($D207="","",VLOOKUP($D207,数据库!$B$4:$AD$1003,MATCH(BC$12,数据库!$C$2:$R$2,)+1,0)) ->  | BD207: 195
... 4 more rows

Sheet 胆对九补序(定位）
B1: =199-COUNTBLANK(C13:C211)+13 -> 14 | E1: TRUE | Q1: =199-COUNTBLANK(#REF!)+13 ->  | R1: TRUE | AD1: =199-COUNTBLANK(#REF!)+13 ->  | AE1: TRUE | AR1: TRUE | BD1: =199-COUNTBLANK(#REF!)+13 ->  | BE1: TRUE | BQ1: =199-COUNTBLANK(#REF!)+13 ->  | BR1: TRUE | CE1: TRUE | CQ1: =199-COUNTBLANK(#REF!)+13 ->  | CR1: TRUE | DD1: =199-COUNTBLANK(#REF!)+13 ->  | DE1: TRUE | DR1: TRUE | ED1: =199-COUNTBLANK(#REF!)+13 ->  | EE1: TRUE | EQ1: =199-COUNTBLANK(#REF!)+13 ->  | ER1: TRUE | FD1: 下期序 | FE1: =IFERROR(TRIM(INDEX(FE13:FE211,199-COUNTBLANK(FE13:FE211))),"空") -> 4567890123 | FF1: 4567890123 | FG1: 4567890123 | FH1: 4567890123 | FI1: 4567890123 | FJ1: 空 | FK1: 4567890123 | FL1: 4567890123 | FM1: 4567890123 | FN1: 4567890123 | FO1: 4567890123 | FP1: 4567890123
FD2: 提取位置 | FE2: 12345 | FF2: 12346 | FG2: 12347 | FH2: 12348 | FI2: 12349 | FJ2: 12350 | FK2: 12351 | FL2: 12352 | FM2: 12353 | FN2: 12354 | FO2: 12355 | FP2: 12356
FD3: 组号条件 | FE3: =IF(SUMPRODUCT(--ISNUMBER(FIND(1,FE2)))>=1,MID(FE1,1,1),"")&IF(SUMPRODUCT(--ISNUMBER(FIND(2,FE2)))>=1,MID(FE1,2,1),"")&IF(SUMPRODUCT(--ISNUMBER(FIND(3,FE2)))>=1,MID(FE1,3,1),"")&IF(SUMPRODUCT(--ISNUMBER(FIND(4,FE2)))>=1,MID(FE1,4,1),"")&IF(SUMPRODUCT(--ISNUMBER(FIND(5,FE2)))>=1,MID(FE1,5,1),"")&IF(SUMPRODUCT(--ISNUMBER(FIND(6,FE2)))>=1,MID(FE1,6,1),"")&IF(SUMPRODUCT(--ISNUMBER(FIND(7,FE2)))>=1,MID(FE1,7,1),"")&IF(SUMPRODUCT(--ISNUMBER(FIND(8,FE2)))>=1,MID(FE1,8,1),"")&IF(SUMPRODUCT(--ISNUMBER(FIND(9,FE2)))>=1,MID(FE1,9,1),"")&IF(SUMPRODUCT(--ISNUMBER(FIND(0,FE2)))>=1,MID(FE1,10,1),"") -> 45678 | FF3: =IF(SUMPRODUCT(--ISNUMBER(FIND(1,FF2)))>=1,MID(FF1,1,1),"")&IF(SUMPRODUCT(--ISNUMBER(FIND(2,FF2)))>=1,MID(FF1,2,1),"")&IF(SUMPRODUCT(--ISNUMBER(FIND(3,FF2)))>=1,MID(FF1,3,1),"")&IF(SUMPRODUCT(--ISNUMBER(FIND(4,FF2)))>=1,MID(FF1,4,1),"")&IF(SUMPRODUCT(--ISNUMBER(FIND(5,FF2)))>=1,MID(FF1,5,1),"")&IF(SUMPRODUCT(--ISNUMBER(FIND(6,FF2)))>=1,MID(FF1,6,1),"")&IF(SUMPRODUCT(--ISNUMBER(FIND(7,FF2)))>=1,MID(FF1,7,1),"")&IF(SUMPRODUCT(--ISNUMBER(FIND(8,FF2)))>=1,MID(FF1,8,1),"")&IF(SUMPRODUCT(--ISNUMBER(FIND(9,FF2)))>=1,MID(FF1,9,1),"")&IF(SUMPRODUCT(--ISNUMBER(FIND(0,FF2)))>=1,MID(FF1,10,1),"") -> 45679 | FG3: 45670 | FH3: 45671 | FI3: =IF(SUMPRODUCT(--ISNUMBER(FIND(1,FI2)))>=1,MID(FI1,1,1),"")&IF(SUMPRODUCT(--ISNUMBER(FIND(2,FI2)))>=1,MID(FI1,2,1),"")&IF(SUMPRODUCT(--ISNUMBER(FIND(3,FI2)))>=1,MID(FI1,3,1),"")&IF(SUMPRODUCT(--ISNUMBER(FIND(4,FI2)))>=1,MID(FI1,4,1),"")&IF(SUMPRODUCT(--ISNUMBER(FIND(5,FI2)))>=1,MID(FI1,5,1),"")&IF(SUMPRODUCT(--ISNUMBER(FIND(6,FI2)))>=1,MID(FI1,6,1),"")&IF(SUMPRODUCT(--ISNUMBER(FIND(7,FI2)))>=1,MID(FI1,7,1),"")&IF(SUMPRODUCT(--ISNUMBER(FIND(8,FI2)))>=1,MID(FI1,8,1),"")&IF(SUMPRODUCT(--ISNUMBER(FIND(9,FI2)))>=1,MID(FI1,9,1),"")&IF(SUMPRODUCT(--ISNUMBER(FIND(0,FI2)))>=1,MID(FI1,10,1),"") -> 45672 | FJ3: =IF(SUMPRODUCT(--ISNUMBER(FIND(1,FJ2)))>=1,MID(FJ1,1,1),"")&IF(SUMPRODUCT(--ISNUMBER(FIND(2,FJ2)))>=1,MID(FJ1,2,1),"")&IF(SUMPRODUCT(--ISNUMBER(FIND(3,FJ2)))>=1,MID(FJ1,3,1),"")&IF(SUMPRODUCT(--ISNUMBER(FIND(4,FJ2)))>=1,MID(FJ1,4,1),"")&IF(SUMPRODUCT(--ISNUMBER(FIND(5,FJ2)))>=1,MID(FJ1,5,1),"")&IF(SUMPRODUCT(--ISNUMBER(FIND(6,FJ2)))>=1,MID(FJ1,6,1),"")&IF(SUMPRODUCT(--ISNUMBER(FIND(7,FJ2)))>=1,MID(FJ1,7,1),"")&IF(SUMPRODUCT(--ISNUMBER(FIND(8,FJ2)))>=1,MID(FJ1,8,1),"")&IF(SUMPRODUCT(--ISNUMBER(FIND(9,FJ2)))>=1,MID(FJ1,9,1),"")&IF(SUMPRODUCT(--ISNUMBER(FIND(0,FJ2)))>=1,MID(FJ1,10,1),"") -> 空 | FK3: =IF(SUMPRODUCT(--ISNUMBER(FIND(1,FK2)))>=1,MID(FK1,1,1),"")&IF(SUMPRODUCT(--ISNUMBER(FIND(2,FK2)))>=1,MID(FK1,2,1),"")&IF(SUMPRODUCT(--ISNUMBER(FIND(3,FK2)))>=1,MID(FK1,3,1),"")&IF(SUMPRODUCT(--ISNUMBER(FIND(4,FK2)))>=1,MID(FK1,4,1),"")&IF(SUMPRODUCT(--ISNUMBER(FIND(5,FK2)))>=1,MID(FK1,5,1),"")&IF(SUMPRODUCT(--ISNUMBER(FIND(6,FK2)))>=1,MID(FK1,6,1),"")&IF(SUMPRODUCT(--ISNUMBER(FIND(7,FK2)))>=1,MID(FK1,7,1),"")&IF(SUMPRODUCT(--ISNUMBER(FIND(8,FK2)))>=1,MID(FK1,8,1),"")&IF(SUMPRODUCT(--ISNUMBER(FIND(9,FK2)))>=1,MID(FK1,9,1),"")&IF(SUMPRODUCT(--ISNUMBER(FIND(0,FK2)))>=1,MID(FK1,10,1),"") -> 4568 | FL3: =IF(SUMPRODUCT(--ISNUMBER(FIND(1,FL2)))>=1,MID(FL1,1,1),"")&IF(SUMPRODUCT(--ISNUMBER(FIND(2,FL2)))>=1,MID(FL1,2,1),"")&IF(SUMPRODUCT(--ISNUMBER(FIND(3,FL2)))>=1,MID(FL1,3,1),"")&IF(SUMPRODUCT(--ISNUMBER(FIND(4,FL2)))>=1,MID(FL1,4,1),"")&IF(SUMPRODUCT(--ISNUMBER(FIND(5,FL2)))>=1,MID(FL1,5,1),"")&IF(SUMPRODUCT(--ISNUMBER(FIND(6,FL2)))>=1,MID(FL1,6,1),"")&IF(SUMPRODUCT(--ISNUMBER(FIND(7,FL2)))>=1,MID(FL1,7,1),"")&IF(SUMPRODUCT(--ISNUMBER(FIND(8,FL2)))>=1,MID(FL1,8,1),"")&IF(SUMPRODUCT(--ISNUMBER(FIND(9,FL2)))>=1,MID(FL1,9,1),"")&IF(SUMPRODUCT(--ISNUMBER(FIND(0,FL2)))>=1,MID(FL1,10,1),"") -> 4568 | FM3: =IF(SUMPRODUCT(--ISNUMBER(FIND(1,FM2)))>=1,MID(FM1,1,1),"")&IF(SUMPRODUCT(--ISNUMBER(FIND(2,FM2)))>=1,MID(FM1,2,1),"")&IF(SUMPRODUCT(--ISNUMBER(FIND(3,FM2)))>=1,MID(FM1,3,1),"")&IF(SUMPRODUCT(--ISNUMBER(FIND(4,FM2)))>=1,MID(FM1,4,1),"")&IF(SUMPRODUCT(--ISNUMBER(FIND(5,FM2)))>=1,MID(FM1,5,1),"")&IF(SUMPRODUCT(--ISNUMBER(FIND(6,FM2)))>=1,MID(FM1,6,1),"")&IF(SUMPRODUCT(--ISNUMBER(FIND(7,FM2)))>=1,MID(FM1,7,1),"")&IF(SUMPRODUCT(--ISNUMBER(FIND(8,FM2)))>=1,MID(FM1,8,1),"")&IF(SUMPRODUCT(--ISNUMBER(FIND(9,FM2)))>=1,MID(FM1,9,1),"")&IF(SUMPRODUCT(--ISNUMBER(FIND(0,FM2)))>=1,MID(FM1,10,1),"") -> 4568 | FN3: =IF(SUMPRODUCT(--ISNUMBER(FIND(1,FN2)))>=1,MID(FN1,1,1),"")&IF(SUMPRODUCT(--ISNUMBER(FIND(2,FN2)))>=1,MID(FN1,2,1),"")&IF(SUMPRODUCT(--ISNUMBER(FIND(3,FN2)))>=1,MID(FN1,3,1),"")&IF(SUMPRODUCT(--ISNUMBER(FIND(4,FN2)))>=1,MID(FN1,4,1),"")&IF(SUMPRODUCT(--ISNUMBER(FIND(5,FN2)))>=1,MID(FN1,5,1),"")&IF(SUMPRODUCT(--ISNUMBER(FIND(6,FN2)))>=1,MID(FN1,6,1),"")&IF(SUMPRODUCT(--ISNUMBER(FIND(7,FN2)))>=1,MID(FN1,7,1),"")&IF(SUMPRODUCT(--ISNUMBER(FIND(8,FN2)))>=1,MID(FN1,8,1),"")&IF(SUMPRODUCT(--ISNUMBER(FIND(9,FN2)))>=1,MID(FN1,9,1),"")&IF(SUMPRODUCT(--ISNUMBER(FIND(0,FN2)))>=1,MID(FN1,10,1),"") -> 45678 | FO3: =IF(SUMPRODUCT(--ISNUMBER(FIND(1,FO2)))>=1,MID(FO1,1,1),"")&IF(SUMPRODUCT(--ISNUMBER(FIND(2,FO2)))>=1,MID(FO1,2,1),"")&IF(SUMPRODUCT(--ISNUMBER(FIND(3,FO2)))>=1,MID(FO1,3,1),"")&IF(SUMPRODUCT(--ISNUMBER(FIND(4,FO2)))>=1,MID(FO1,4,1),"")&IF(SUMPRODUCT(--ISNUMBER(FIND(5,FO2)))>=1,MID(FO1,5,1),"")&IF(SUMPRODUCT(--ISNUMBER(FIND(6,FO2)))>=1,MID(FO1,6,1),"")&IF(SUMPRODUCT(--ISNUMBER(FIND(7,FO2)))>=1,MID(FO1,7,1),"")&IF(SUMPRODUCT(--ISNUMBER(FIND(8,FO2)))>=1,MID(FO1,8,1),"")&IF(SUMPRODUCT(--ISNUMBER(FIND(9,FO2)))>=1,MID(FO1,9,1),"")&IF(SUMPRODUCT(--ISNUMBER(FIND(0,FO2)))>=1,MID(FO1,10,1),"") -> 4568 | FP3: =IF(SUMPRODUCT(--ISNUMBER(FIND(1,FP2)))>=1,MID(FP1,1,1),"")&IF(SUMPRODUCT(--ISNUMBER(FIND(2,FP2)))>=1,MID(FP1,2,1),"")&IF(SUMPRODUCT(--ISNUMBER(FIND(3,FP2)))>=1,MID(FP1,3,1),"")&IF(SUMPRODUCT(--ISNUMBER(FIND(4,FP2)))>=1,MID(FP1,4,1),"")&IF(SUMPRODUCT(--ISNUMBER(FIND(5,FP2)))>=1,MID(FP1,5,1),"")&IF(SUMPRODUCT(--ISNUMBER(FIND(6,FP2)))>=1,MID(FP1,6,1),"")&IF(SUMPRODUCT(--ISNUMBER(FIND(7,FP2)))>=1,MID(FP1,7,1),"")&IF(SUMPRODUCT(--ISNUMBER(FIND(8,FP2)))>=1,MID(FP1,8,1),"")&IF(SUMPRODUCT(--ISNUMBER(FIND(9,FP2)))>=1,MID(FP1,9,1),"")&IF(SUMPRODUCT(--ISNUMBER(FIND(0,FP2)))>=1,MID(FP1,10,1),"") -> 45689
FD4: 4568-4568-4568 | FF4: 复制 | FI4: 复制 | FL4: 复制 | FO4: 复制
C12: 期数 | D12: 开奖 | E12: =P12&" 序" -> 定百胆对九 序 | F12: 0 | G12: 1 | H12: 2 | I12: 3 | J12: 4 | K12: 5 | L12: 6 | M12: 7 | N12: 8 | O12: 9 | P12: 定百胆对九 | R12: =AC12&" 序" -> 定十胆对九 序 | S12: 0 | T12: 1 | U12: 2 | V12: 3 | W12: 4 | X12: 5 | Y12: 6 | Z12: 7 | AA12: 8 | AB12: 9 | AC12: 定十胆对九 | AE12: =AP12&" 序" -> 定个胆对九 序 | AF12: 0 | AG12: 1 | AH12: 2 | AI12: 3 | AJ12: 4 | AK12: 5 | AL12: 6 | AM12: 7 | AN12: 8 | AO12: 9 | AP12: 定个胆对九 | AR12: =BC12&" 序" -> 定百胆对补 序 | AS12: 0 | AT12: 1 | AU12: 2 | AV12: 3 | AW12: 4 | AX12: 5 | AY12: 6 | AZ12: 7 | BA12: 8 | BB12: 9 | BC12: 定百胆对补 | BE12: =BP12&" 序" -> 定十胆对补 序 | BF12: 0 | BG12: 1 | BH12: 2 | BI12: 3 | BJ12: 4 | BK12: 5 | BL12: 6 | BM12: 7 | BN12: 8 | BO12: 9 | BP12: 定十胆对补 | BR12: =CC12&" 序" -> 定个胆对补 序 | BS12: 0 | BT12: 1 | BU12: 2 | BV12: 3 | BW12: 4 | BX12: 5 | BY12: 6 | BZ12: 7 | CA12: 8 | CB12: 9 | CC12: 定个胆对补 | CE12: =CP12&" 序" -> 定百胆九补 序 | CF12: 0 | CG12: 1 | CH12: 2 | CI12: 3 | CJ12: 4 | CK12: 5 | CL12: 6 | CM12: 7 | CN12: 8 | CO12: 9 | CP12: 定百胆九补 | CR12: =DC12&" 序" -> 定十胆九补 序 | CS12: 0 | CT12: 1 | CU12: 2 | CV12: 3 | CW12: 4 | CX12: 5 | CY12: 6 | CZ12: 7 | DA12: 8 | DB12: 9 | DC12: 定十胆九补 | DE12: =DP12&" 序" -> 定个胆九补 序 | DF12: 0 | DG12: 1 | DH12: 2 | DI12: 3 | DJ12: 4 | DK12: 5 | DL12: 6 | DM12: 7 | DN12: 8 | DO12: 9 | DP12: 定个胆九补 | DR12: =EC12&" 序" -> 定百对九补 序 | DS12: 0 | DT12: 1 | DU12: 2 | DV12: 3 | DW12: 4 | DX12: 5 | DY12: 6 | DZ12: 7 | EA12: 8 | EB12: 9 | EC12: 定百对九补 | EE12: =EP12&" 序" -> 定十对九补 序 | EF12: 0 | EG12: 1 | EH12: 2 | EI12: 3 | EJ12: 4 | EK12: 5 | EL12: 6 | EM12: 7 | EN12: 8 | EO12: 9 | EP12: 定十对九补 | ER12: =FC12&" 序" -> 定个对九补 序 | ES12: 0 | ET12: 1 | EU12: 2 | EV12: 3 | EW12: 4 | EX12: 5 | EY12: 6 | EZ12: 7 | FA12: 8 | FB12: 9 | FC12: 定个对九补 | FE12: =IF(E12="","",E12) -> 定百胆对九 序 | FF12: =IF(R12="","",R12) -> 定十胆对九 序 | FG12: =IF(AE12="","",AE12) -> 定个胆对九 序 | FH12: =IF(AR12="","",AR12) -> 定百胆对补 序 | FI12: =IF(BE12="","",BE12) -> 定十胆对补 序 | FJ12: =IF(BR12="","",BR12) -> 定个胆对补 序 | FK12: =IF(CE12="","",CE12) -> 定百胆九补 序 | FL12: =IF(CR12="","",CR12) -> 定十胆九补 序 | FM12: =IF(DE12="","",DE12) -> 定个胆九补 序 | FN12: =IF(DR12="","",DR12) -> 定百对九补 序 | FO12: =IF(EE12="","",EE12) -> 定十对九补 序 | FP12: =IF(ER12="","",ER12) -> 定个对九补 序
C13: 25 | D13: 123 | E13: 4567890123 | F13: =IF($E13="","",MID($E13,F$12+1,1)) -> 4 | G13: =IF($E13="","",MID($E13,G$12+1,1)) -> 5 | H13: 6 | I13: 7 | J13: 8 | K13: 9 | L13: 0 | M13: 1 | N13: 2 | O13: 3 | P13: =IF($D13="","",VLOOKUP($D13,数据库!$B$4:$AD$1003,MATCH(P$12,数据库!$C$2:$AD$2,)+1,0)) -> 168 | R13: 4567890123 | S13: =IF(R13="","",MID($R13,S$12+1,1)) -> 4 | T13: =IF(S13="","",MID($R13,T$12+1,1)) -> 5 | U13: 6 | V13: 7 | W13: 8 | X13: 9 | Y13: 0 | Z13: 1 | AA13: 2 | AB13: 3 | AC13: =IF($D13="","",VLOOKUP($D13,数据库!$B$4:$AD$1003,MATCH(AC$12,数据库!$C$2:$AD$2,)+1,0)) -> 277 | AE13: 4567890123 | AF13: =IF($AE13="","",MID($AE13,AF$12+1,1)) -> 4 | AG13: =IF($AE13="","",MID($AE13,AG$12+1,1)) -> 5 | AH13: 6 | AI13: 7 | AJ13: 8 | AK13: 9 | AL13: 0 | AM13: 1 | AN13: 2 | AO13: 3 | AP13: =IF($D13="","",VLOOKUP($D13,数据库!$B$4:$AD$1003,MATCH(AP$12,数据库!$C$2:$AD$2,)+1,0)) -> 386 | AR13: 4567890123 | AS13: =IF($AR13="","",MID($AR13,AS$12+1,1)) -> 4 | AT13: =IF($AR13="","",MID($AR13,AT$12+1,1)) -> 5 | AU13: 6 | AV13: 7 | AW13: 8 | AX13: 9 | AY13: 0 | AZ13: 1 | BA13: 2 | BB13: 3 | BC13: =IF($D13="","",VLOOKUP($D13,数据库!$B$4:$AD$1003,MATCH(BC$12,数据库!$C$2:$AD$2,)+1,0)) -> 169 | BE13: 4567890123 | BF13: =IF($BE13="","",MID($BE13,BF$12+1,1)) -> 4 | BG13: =IF($BE13="","",MID($BE13,BG$12+1,1)) -> 5 | BH13: 6 | BI13: 7 | BJ13: 8 | BK13: 9 | BL13: 0 | BM13: 1 | BN13: 2 | BO13: 3 | BP13: =IF($D13="","",VLOOKUP($D13,数据库!$B$4:$AD$1003,MATCH(BP$12,数据库!$C$2:$AD$2,)+1,0)) -> 278 | BS13: =IF($BR13="","",MID($BR13,BS$12+1,1)) ->  | BT13: =IF($BR13="","",MID($BR13,BT$12+1,1)) ->  | CC13: =IF($D13="","",VLOOKUP($D13,数据库!$B$4:$AD$1003,MATCH(CC$12,数据库!$C$2:$AD$2,)+1,0)) -> 387 | CE13: 4567890123 | CF13: =IF($CE13="","",MID($CE13,CF$12+1,1)) -> 4 | CG13: =IF($CE13="","",MID($CE13,CG$12+1,1)) -> 5 | CH13: 6 | CI13: 7 | CJ13: 8 | CK13: 9 | CL13: 0 | CM13: 1 | CN13: 2 | CO13: 3 | CP13: =IF($D13="","",VLOOKUP($D13,数据库!$B$4:$AD$1003,MATCH(CP$12,数据库!$C$2:$AD$2,)+1,0)) -> 189 | CR13: 4567890123 | CS13: =IF($CR13="","",MID($CR13,CS$12+1,1)) -> 4 | CT13: =IF($CR13="","",MID($CR13,CT$12+1,1)) -> 5 | CU13: 6 | CV13: 7 | CW13: 8 | CX13: 9 | CY13: 0 | CZ13: 1 | DA13: 2 | DB13: 3 | DC13: =IF($D13="","",VLOOKUP($D13,数据库!$B$4:$AD$1003,MATCH(DC$12,数据库!$C$2:$AD$2,)+1,0)) -> 278 | DE13: 4567890123 | DF13: =IF($DE13="","",MID($DE13,DF$12+1,1)) -> 4 | DG13: =IF($DE13="","",MID($DE13,DG$12+1,1)) -> 5 | DH13: 6 | DI13: 7 | DJ13: 8 | DK13: 9 | DL13: 0 | DM13: 1 | DN13: 2 | DO13: 3 | DP13: =IF($D13="","",VLOOKUP($D13,数据库!$B$4:$AD$1003,MATCH(DP$12,数据库!$C$2:$AD$2,)+1,0)) -> 367 | DR13: 4567890123 | DS13: =IF($DR13="","",MID($DR13,DS$12+1,1)) -> 4 | DT13: =IF($DR13="","",MID($DR13,DT$12+1,1)) -> 5 | DU13: 6 | DV13: 7 | DW13: 8 | DX13: 9 | DY13: 0 | DZ13: 1 | EA13: 2 | EB13: 3 | EC13: =IF($D13="","",VLOOKUP($D13,数据库!$B$4:$AD$1003,MATCH(EC$12,数据库!$C$2:$AD$2,)+1,0)) -> 689 | EE13: 4567890123 | EF13: =IF($EE13="","",MID($EE13,EF$12+1,1)) -> 4 | EG13: =IF($EE13="","",MID($EE13,EG$12+1,1)) -> 5 | EH13: 6 | EI13: 7 | EJ13: 8 | EK13: 9 | EL13: 0 | EM13: 1 | EN13: 2 | EO13: 3 | EP13: =IF($D13="","",VLOOKUP($D13,数据库!$B$4:$AD$1003,MATCH(EP$12,数据库!$C$2:$AD$2,)+1,0)) -> 778 | ER13: 4567890123 | ES13: =IF($ER13="","",MID($ER13,ES$12+1,1)) -> 4 | ET13: =IF($ER13="","",MID($ER13,ET$12+1,1)) -> 5 | EU13: 6 | EV13: 7 | EW13: 8 | EX13: 9 | EY13: 0 | EZ13: 1 | FA13: 2 | FB13: 3 | FC13: =IF($D13="","",VLOOKUP($D13,数据库!$B$4:$AD$1003,MATCH(FC$12,数据库!$C$2:$AD$2,)+1,0)) -> 867 | FE13: =IF(E13="","",E13) -> 4567890123 | FF13: =IF(R13="","",R13) -> 4567890123 | FG13: =IF(AE13="","",AE13) -> 4567890123 | FH13: =IF(AR13="","",AR13) -> 4567890123 | FI13: =IF(BE13="","",BE13) -> 4567890123 | FJ13: =IF(BR13="","",BR13) ->  | FK13: =IF(CE13="","",CE13) -> 4567890123 | FL13: =IF(CR13="","",CR13) -> 4567890123 | FM13: =IF(DE13="","",DE13) -> 4567890123 | FN13: =IF(DR13="","",DR13) -> 4567890123 | FO13: =IF(EE13="","",EE13) -> 4567890123 | FP13: =IF(ER13="","",ER13) -> 4567890123 | FQ13: =IF(Q13="","",Q13) -> 
F14: =IF($E14="","",MID($E14,F$12+1,1)) ->  | P14: =IF($D14="","",VLOOKUP($D14,数据库!$B$4:$AD$1003,MATCH(P$12,数据库!$C$2:$AD$2,)+1,0)) ->  | S14: =IF(R14="","",MID($R14,S$12+1,1)) ->  | AC14: =IF($D14="","",VLOOKUP($D14,数据库!$B$4:$AD$1003,MATCH(AC$12,数据库!$C$2:$R$2,)+1,0)) ->  | AF14: =IF($AE14="","",MID($AE14,AF$12+1,1)) ->  | AP14: =IF($D14="","",VLOOKUP($D14,数据库!$B$4:$AD$1003,MATCH(AP$12,数据库!$C$2:$R$2,)+1,0)) ->  | AS14: =IF($AR14="","",MID($AR14,AS$12+1,1)) ->  | BC14: =IF($D14="","",VLOOKUP($D14,数据库!$B$4:$AD$1003,MATCH(BC$12,数据库!$C$2:$AD$2,)+1,0)) ->  | BF14: =IF($BE14="","",MID($BE14,BF$12+1,1)) ->  | BP14: =IF($D14="","",VLOOKUP($D14,数据库!$B$4:$AD$1003,MATCH(BP$12,数据库!$C$2:$R$2,)+1,0)) ->  | BS14: =IF($BR14="","",MID($BR14,BS$12+1,1)) ->  | CC14: =IF($D14="","",VLOOKUP($D14,数据库!$B$4:$AD$1003,MATCH(CC$12,数据库!$C$2:$R$2,)+1,0)) ->  | CF14: =IF($CE14="","",MID($CE14,CF$12+1,1)) ->  | CP14: =IF($D14="","",VLOOKUP($D14,数据库!$B$4:$AD$1003,MATCH(CP$12,数据库!$C$2:$AD$2,)+1,0)) ->  | CS14: =IF($CR14="","",MID($CR14,CS$12+1,1)) ->  | DC14: =IF($D14="","",VLOOKUP($D14,数据库!$B$4:$AD$1003,MATCH(DC$12,数据库!$C$2:$R$2,)+1,0)) ->  | DF14: =IF($DE14="","",MID($DE14,DF$12+1,1)) ->  | DP14: =IF($D14="","",VLOOKUP($D14,数据库!$B$4:$AD$1003,MATCH(DP$12,数据库!$C$2:$R$2,)+1,0)) ->  | DS14: =IF($DR14="","",MID($DR14,DS$12+1,1)) ->  | EC14: =IF($D14="","",VLOOKUP($D14,数据库!$B$4:$AD$1003,MATCH(EC$12,数据库!$C$2:$AD$2,)+1,0)) ->  | EF14: =IF($EE14="","",MID($EE14,EF$12+1,1)) ->  | EP14: =IF($D14="","",VLOOKUP($D14,数据库!$B$4:$AD$1003,MATCH(EP$12,数据库!$C$2:$R$2,)+1,0)) ->  | ES14: =IF($ER14="","",MID($ER14,ES$12+1,1)) ->  | FC14: =IF($D14="","",VLOOKUP($D14,数据库!$B$4:$AD$1003,MATCH(FC$12,数据库!$C$2:$R$2,)+1,0)) ->  | FE14: =IF(E14="","",E14) ->  | FF14: =IF(R14="","",R14) ->  | FG14: =IF(AE14="","",AE14) ->  | FH14: =IF(AR14="","",AR14) ->  | FI14: =IF(BE14="","",BE14) ->  | FJ14: =IF(BR14="","",BR14) ->  | FK14: =IF(CE14="","",CE14) ->  | FL14: =IF(CR14="","",CR14) ->  | FM14: =IF(DE14="","",DE14) ->  | FN14: =IF(DR14="","",DR14) ->  | FO14: =IF(EE14="","",EE14) ->  | FP14: =IF(ER14="","",ER14) -> 
P15: =IF($D15="","",VLOOKUP($D15,数据库!$B$4:$AD$1003,MATCH(P$12,数据库!$C$2:$AD$2,)+1,0)) ->  | S15: =IF(R15="","",MID($R15,S$12+1,1)) ->  | AC15: =IF($D15="","",VLOOKUP($D15,数据库!$B$4:$AD$1003,MATCH(AC$12,数据库!$C$2:$R$2,)+1,0)) ->  | AP15: =IF($D15="","",VLOOKUP($D15,数据库!$B$4:$AD$1003,MATCH(AP$12,数据库!$C$2:$R$2,)+1,0)) ->  | BC15: =IF($D15="","",VLOOKUP($D15,数据库!$B$4:$AD$1003,MATCH(BC$12,数据库!$C$2:$AD$2,)+1,0)) ->  | BP15: =IF($D15="","",VLOOKUP($D15,数据库!$B$4:$AD$1003,MATCH(BP$12,数据库!$C$2:$R$2,)+1,0)) ->  | CC15: =IF($D15="","",VLOOKUP($D15,数据库!$B$4:$AD$1003,MATCH(CC$12,数据库!$C$2:$R$2,)+1,0)) ->  | CP15: =IF($D15="","",VLOOKUP($D15,数据库!$B$4:$AD$1003,MATCH(CP$12,数据库!$C$2:$AD$2,)+1,0)) ->  | DC15: =IF($D15="","",VLOOKUP($D15,数据库!$B$4:$AD$1003,MATCH(DC$12,数据库!$C$2:$R$2,)+1,0)) ->  | DP15: =IF($D15="","",VLOOKUP($D15,数据库!$B$4:$AD$1003,MATCH(DP$12,数据库!$C$2:$R$2,)+1,0)) ->  | EC15: =IF($D15="","",VLOOKUP($D15,数据库!$B$4:$AD$1003,MATCH(EC$12,数据库!$C$2:$AD$2,)+1,0)) ->  | EP15: =IF($D15="","",VLOOKUP($D15,数据库!$B$4:$AD$1003,MATCH(EP$12,数据库!$C$2:$R$2,)+1,0)) ->  | FC15: =IF($D15="","",VLOOKUP($D15,数据库!$B$4:$AD$1003,MATCH(FC$12,数据库!$C$2:$R$2,)+1,0)) -> 
P16: =IF($D16="","",VLOOKUP($D16,数据库!$B$4:$AD$1003,MATCH(P$12,数据库!$C$2:$AD$2,)+1,0)) ->  | S16: =IF(R16="","",MID($R16,S$12+1,1)) ->  | AC16: =IF($D16="","",VLOOKUP($D16,数据库!$B$4:$AD$1003,MATCH(AC$12,数据库!$C$2:$R$2,)+1,0)) ->  | AP16: =IF($D16="","",VLOOKUP($D16,数据库!$B$4:$AD$1003,MATCH(AP$12,数据库!$C$2:$R$2,)+1,0)) ->  | BC16: =IF($D16="","",VLOOKUP($D16,数据库!$B$4:$AD$1003,MATCH(BC$12,数据库!$C$2:$AD$2,)+1,0)) ->  | BP16: =IF($D16="","",VLOOKUP($D16,数据库!$B$4:$AD$1003,MATCH(BP$12,数据库!$C$2:$R$2,)+1,0)) ->  | CC16: =IF($D16="","",VLOOKUP($D16,数据库!$B$4:$AD$1003,MATCH(CC$12,数据库!$C$2:$R$2,)+1,0)) ->  | CP16: =IF($D16="","",VLOOKUP($D16,数据库!$B$4:$AD$1003,MATCH(CP$12,数据库!$C$2:$AD$2,)+1,0)) ->  | DC16: =IF($D16="","",VLOOKUP($D16,数据库!$B$4:$AD$1003,MATCH(DC$12,数据库!$C$2:$R$2,)+1,0)) ->  | DP16: =IF($D16="","",VLOOKUP($D16,数据库!$B$4:$AD$1003,MATCH(DP$12,数据库!$C$2:$R$2,)+1,0)) ->  | EC16: =IF($D16="","",VLOOKUP($D16,数据库!$B$4:$AD$1003,MATCH(EC$12,数据库!$C$2:$AD$2,)+1,0)) ->  | EP16: =IF($D16="","",VLOOKUP($D16,数据库!$B$4:$AD$1003,MATCH(EP$12,数据库!$C$2:$R$2,)+1,0)) ->  | FC16: =IF($D16="","",VLOOKUP($D16,数据库!$B$4:$AD$1003,MATCH(FC$12,数据库!$C$2:$R$2,)+1,0)) -> 
P17: =IF($D17="","",VLOOKUP($D17,数据库!$B$4:$AD$1003,MATCH(P$12,数据库!$C$2:$AD$2,)+1,0)) ->  | S17: =IF(R17="","",MID($R17,S$12+1,1)) ->  | AC17: =IF($D17="","",VLOOKUP($D17,数据库!$B$4:$AD$1003,MATCH(AC$12,数据库!$C$2:$R$2,)+1,0)) ->  | AP17: =IF($D17="","",VLOOKUP($D17,数据库!$B$4:$AD$1003,MATCH(AP$12,数据库!$C$2:$R$2,)+1,0)) ->  | BC17: =IF($D17="","",VLOOKUP($D17,数据库!$B$4:$AD$1003,MATCH(BC$12,数据库!$C$2:$AD$2,)+1,0)) ->  | BP17: =IF($D17="","",VLOOKUP($D17,数据库!$B$4:$AD$1003,MATCH(BP$12,数据库!$C$2:$R$2,)+1,0)) ->  | CC17: =IF($D17="","",VLOOKUP($D17,数据库!$B$4:$AD$1003,MATCH(CC$12,数据库!$C$2:$R$2,)+1,0)) ->  | CP17: =IF($D17="","",VLOOKUP($D17,数据库!$B$4:$AD$1003,MATCH(CP$12,数据库!$C$2:$AD$2,)+1,0)) ->  | DC17: =IF($D17="","",VLOOKUP($D17,数据库!$B$4:$AD$1003,MATCH(DC$12,数据库!$C$2:$R$2,)+1,0)) ->  | DP17: =IF($D17="","",VLOOKUP($D17,数据库!$B$4:$AD$1003,MATCH(DP$12,数据库!$C$2:$R$2,)+1,0)) ->  | EC17: =IF($D17="","",VLOOKUP($D17,数据库!$B$4:$AD$1003,MATCH(EC$12,数据库!$C$2:$AD$2,)+1,0)) ->  | EP17: =IF($D17="","",VLOOKUP($D17,数据库!$B$4:$AD$1003,MATCH(EP$12,数据库!$C$2:$R$2,)+1,0)) ->  | FC17: =IF($D17="","",VLOOKUP($D17,数据库!$B$4:$AD$1003,MATCH(FC$12,数据库!$C$2:$R$2,)+1,0)) -> 
P18: =IF($D18="","",VLOOKUP($D18,数据库!$B$4:$AD$1003,MATCH(P$12,数据库!$C$2:$AD$2,)+1,0)) ->  | S18: =IF(R18="","",MID($R18,S$12+1,1)) ->  | AC18: =IF($D18="","",VLOOKUP($D18,数据库!$B$4:$AD$1003,MATCH(AC$12,数据库!$C$2:$R$2,)+1,0)) ->  | AP18: =IF($D18="","",VLOOKUP($D18,数据库!$B$4:$AD$1003,MATCH(AP$12,数据库!$C$2:$R$2,)+1,0)) ->  | BC18: =IF($D18="","",VLOOKUP($D18,数据库!$B$4:$AD$1003,MATCH(BC$12,数据库!$C$2:$AD$2,)+1,0)) ->  | BP18: =IF($D18="","",VLOOKUP($D18,数据库!$B$4:$AD$1003,MATCH(BP$12,数据库!$C$2:$R$2,)+1,0)) ->  | CC18: =IF($D18="","",VLOOKUP($D18,数据库!$B$4:$AD$1003,MATCH(CC$12,数据库!$C$2:$R$2,)+1,0)) ->  | CP18: =IF($D18="","",VLOOKUP($D18,数据库!$B$4:$AD$1003,MATCH(CP$12,数据库!$C$2:$AD$2,)+1,0)) ->  | DC18: =IF($D18="","",VLOOKUP($D18,数据库!$B$4:$AD$1003,MATCH(DC$12,数据库!$C$2:$R$2,)+1,0)) ->  | DP18: =IF($D18="","",VLOOKUP($D18,数据库!$B$4:$AD$1003,MATCH(DP$12,数据库!$C$2:$R$2,)+1,0)) ->  | EC18: =IF($D18="","",VLOOKUP($D18,数据库!$B$4:$AD$1003,MATCH(EC$12,数据库!$C$2:$AD$2,)+1,0)) ->  | EP18: =IF($D18="","",VLOOKUP($D18,数据库!$B$4:$AD$1003,MATCH(EP$12,数据库!$C$2:$R$2,)+1,0)) ->  | FC18: =IF($D18="","",VLOOKUP($D18,数据库!$B$4:$AD$1003,MATCH(FC$12,数据库!$C$2:$R$2,)+1,0)) -> 
P19: =IF($D19="","",VLOOKUP($D19,数据库!$B$4:$AD$1003,MATCH(P$12,数据库!$C$2:$AD$2,)+1,0)) ->  | S19: =IF(R19="","",MID($R19,S$12+1,1)) ->  | AC19: =IF($D19="","",VLOOKUP($D19,数据库!$B$4:$AD$1003,MATCH(AC$12,数据库!$C$2:$R$2,)+1,0)) ->  | AP19: =IF($D19="","",VLOOKUP($D19,数据库!$B$4:$AD$1003,MATCH(AP$12,数据库!$C$2:$R$2,)+1,0)) ->  | BC19: =IF($D19="","",VLOOKUP($D19,数据库!$B$4:$AD$1003,MATCH(BC$12,数据库!$C$2:$AD$2,)+1,0)) ->  | BP19: =IF($D19="","",VLOOKUP($D19,数据库!$B$4:$AD$1003,MATCH(BP$12,数据库!$C$2:$R$2,)+1,0)) ->  | CC19: =IF($D19="","",VLOOKUP($D19,数据库!$B$4:$AD$1003,MATCH(CC$12,数据库!$C$2:$R$2,)+1,0)) ->  | CP19: =IF($D19="","",VLOOKUP($D19,数据库!$B$4:$AD$1003,MATCH(CP$12,数据库!$C$2:$AD$2,)+1,0)) ->  | DC19: =IF($D19="","",VLOOKUP($D19,数据库!$B$4:$AD$1003,MATCH(DC$12,数据库!$C$2:$R$2,)+1,0)) ->  | DP19: =IF($D19="","",VLOOKUP($D19,数据库!$B$4:$AD$1003,MATCH(DP$12,数据库!$C$2:$R$2,)+1,0)) ->  | EC19: =IF($D19="","",VLOOKUP($D19,数据库!$B$4:$AD$1003,MATCH(EC$12,数据库!$C$2:$AD$2,)+1,0)) ->  | EP19: =IF($D19="","",VLOOKUP($D19,数据库!$B$4:$AD$1003,MATCH(EP$12,数据库!$C$2:$R$2,)+1,0)) ->  | FC19: =IF($D19="","",VLOOKUP($D19,数据库!$B$4:$AD$1003,MATCH(FC$12,数据库!$C$2:$R$2,)+1,0)) -> 
